{"text_format":"1","workbook":"xlsx","n_sheets":6,"sheets":["RELEVÉS","Février_2023","MINI-MAXI","MOIS","CONSOLE","GRAPHIQUES"],"not_rendered":{"charts":24,"images":51,"macros":1,"external_links":0,"defined_names":4,"comments":1,"pivot_tables":0},"unopened":[],"bounds":{"document_bytes":16777216,"sheet_cells":100000,"rows_first":2000,"rows_last":500,"rows_between":2000,"halvings":0,"cell_chars":16384,"cell_head_chars":4096},"cells_cut":0,"cells_raw":0,"read":"whole","date_system":"1900"}

{"sheet":"RELEVÉS","index":0,"n_rows":1450,"n_cols":54,"rows_kept":1450,"cut":false,"hidden":false,"merged":[[1,27,1,35]]}
["08:48:00",null,null,null,null,null,null,null,null,null,"L",null,null,"R",null,null,"W",null,null,null,null,null,null,null,null,null,null,null,null,null,null,null,null,null,null,null,null,"AJ",null,null,"AK",null,null,null,null,null,null,"BA"]
[null,"Pression mini",null,null,"Pression maxi",null,null,"Température ressentie",null,null,"Température mini",null,null,"Température maxi",null,null,"Vent en Km/h",null,null,null,null,null,null,null,null,null,null,"Humidité H%",null,null,null,null,null,null,null,null,null,"Pluie",null,null,"Temps de pluie",null,null,null,null,null,null,"Sonde Soleil"]
[null,"mini",null,"heure","maxi",null,"heure","mini",null,"heure","mini",null,"heure","maxi",null,"heure","maxi",null,"Heure",null,"Moyenne",null,null,"Sens",null,"Sens",null,"Mini",null,"Heure",null,"Maxi",null,"Heure",null,"Moy","mm",null,"Heure",null,"AK",null,null,null,null,null,null,{"$f":"W1450/60/1440","v":0.1986111111111111}]
[null,null,null,null,null,null,null,null,null,null,null,null,null,null,null,null,null,null,null,null,null,null,null,null,null,null,null,null,null,null,null,null,null,null,null,null,null,null,null,null,"0 à 7h",null,"7 à 12h",null," 12 à 19h",null,"19h à 24h"]
[null,{"$f":"MIN(H9:H1448)","v":0},null,{"$f":"VLOOKUP($B5,$H$9:$Q$1448,10,0)","v":"00:00:00"},{"$f":"MAX(H9:H1448)","v":54867},null,{"$f":"VLOOKUP($E5,$H$9:$Q$1448,10,0)","v":"13:17:00"},{"$f":"MAX($D$9:$D$1448)","v":13.1},null,{"$f":"VLOOKUP($H5,$D$9:$Q$1448,14,0)","v":"12:55:00"},{"$f":"MIN($B$9:$B$1448)","v":1.6},null,{"$f":"VLOOKUP($K5,$B$9:$Q$1448,16,0)","v":"08:07:00"},{"$f":"MAX(B9:B1448)","v":13.1},null,{"$f":"VLOOKUP($N5,$B$9:$Q$1448,16,0)","v":"12:55:00"},{"$f":"MAX(E9:F1448)","v":11.2},null,{"$f":"VLOOKUP($Q5,$F$9:$Q$1448,12,0)","v":"11:43:00"},null,{"$f":"AVERAGE(F9:F1448)","v":1.4039263803680977},null,null,null,null,"ONO",null,{"$f":"MIN(C9:C1448)","v":73},null,{"$f":"VLOOKUP($AB5,$C$9:$Q$1448,15,0)","v":"12:23:00"},null,{"$f":"MAX(C9:C1448)","v":99},null,{"$f":"VLOOKUP($AF5,$C$9:$Q$1448,15,0)","v":"01:30:00"},null,{"$f":"AVERAGE(C9:C1448)","v":93.793865030674851},{"$f":"MAX(K9:K1448)","v":0},null,{"$f":"(U1450/60)/1440","v":"00:00:00"},null,{"$f":"AO6+AQ6","v":"00:00:00"},null,null,null,{"$f":"AS6+AU6","v":"00:00:00"}]
[null,null,null,null,null,null,null,null,null,null,null,null,null,null,null,null,null,null,null,null,null,null,null,null,null,null,null,null,null,null,null,null,null,null,null,null,null,null,null,null,{"$f":"SUM(U9:U428)/60/1440","v":"00:00:00"},null,{"$f":"SUM(U429:U728)/60/1440","v":"00:00:00"},null,{"$f":"SUM(U729:U1148)/60/1440","v":"00:00:00"},null,{"$f":"SUM(U1148:U1448)/60/1440","v":"00:00:00"}]
[null,null,null,null,{"$f":"MAX(E9:E1448)","v":8.6},null,null,{"$f":"MAX(H9:H1448)","v":54867},{"$f":"MAX(I11:I1448)","v":4},null,null,null,null,null,null,null,null,null,null,null,null,null,null,"Début"]
[null,"T° Ext","H% Ext","Ressentie","Vent","Rafale","Pression","Luminosité","Uv","Pluie 1h","Jour","Semaine","Mois","Année","CH1","CH2","Heures","Date","Maxi","Graph","Pluie",null,"Soleil","Fin",null,"Soleil"]
[null,4.3,98,4.3,0,0,1029.5999999999999,0,0,0,0,0,1.5,112.2,2.4,null,"00:00:00","20230220",null,null,null,null,null,null,null,"N",null,null,null,0,0]
[null,4.2,98,4.2,0,0,1029.5999999999999,0,0,0,0,0,1.5,112.2,2.4,null,"00:01:00",null,null,null,{"$f":"IF(J10>0,60,\"\")","v":""},null,null,null,null,"N",null,0,null,11,22]
[null,4.2,98,4.2,0,0,1029.4000000000001,0,0,0,0,0,1.5,112.2,2.4,null,"00:02:00",null,null,null,{"$f":"IF(J11>0,60,\"\")","v":""},null,null,null,null,"NNE",null,22.5,null,{"$f":"AB11+$AD$10","v":33.5},45,null,null,null,null,null,null,null,"Aide mémoire"]
[null,4.2,98,4.2,0,0,1029.4000000000001,0,0,0,0,0,1.5,112.2,2.2999999999999998,null,"00:03:00",null,null,null,"",null,null,null,null,"NE",null,45,null,56,67,null,null,null,null,null,"Pluie",null,"=SOMME(K9:K1448)"]
[null,4.2,98,4.2,0,0,1029.4000000000001,0,0,0,0,0,1.5,112.2,2.2999999999999998,null,"00:04:00",null,null,null,"",null,null,null,null,"ENE",null,67.5,null,78.5,90,null,null,null,null,"AK",null,null,"=MAX(K9:K1448)"]
[null,4.0999999999999996,98,4.0999999999999996,0,0,1029.5999999999999,0,0,0,0,0,1.5,112.2,2.2999999999999998,null,"00:05:00",null,null,null,"",null,null,null,null,null,null,90,null,101,112,null,null,null,null,null,"Commentaires",null,null,null,"=SOMME(U9:U1448)"]
[null,4.0999999999999996,98,4.0999999999999996,0,0,1029.5999999999999,0,0,0,0,0,1.5,112.2,2.2999999999999998,null,"00:06:00",null,null,null,"",null,null,null,null,"ESE",null,112.5,null,123.5,135]
[null,4.0999999999999996,98,4.0999999999999996,0,0,1029.5,0,0,0,0,0,1.5,112.2,2.2999999999999998,null,"00:07:00",null,null,null,"",null,null,null,null,"SSE",null,135,null,146,157,null,null,null,null,null,"Soleil",null,"=SOMME(W9:W1448)"]
[null,4.0999999999999996,98,4.0999999999999996,0,0,1029.5,0,0,0,0,0,1.5,112.2,2.2999999999999998,null,"00:08:00",null,null,null,"",null,null,null,null,"SE",null,157.5,null,168.5,180,null,null,null,null,"AV3","Soleil",null,"=W1450/60/1440"]
[null,4.0999999999999996,98,4.0999999999999996,0,0,1029.8,0,0,0,0,0,1.5,112.2,2.2999999999999998,null,"00:09:00",null,null,null,"",null,null,null,null,"S",null,180,null,191,202]
[null,4.0999999999999996,98,4.0999999999999996,0,0,1029.3,0,0,0,0,0,1.5,112.2,2.2999999999999998,null,"00:10:00",null,null,null,"",null,null,null,null,"SSO",null,202.5,null,213.5,225,null,null,null,null,null,"Vues"]
[null,4.0999999999999996,98,4.0999999999999996,0,0,1029.5,0,0,0,0,0,1.5,112.2,2.2999999999999998,null,"00:11:00",null,null,null,"",null,null,null,null,"SO",null,225,null,236,247,null,null,null,null,"2023-01-22",104]
[null,4.0999999999999996,98,4.0999999999999996,0,0,1029.3,0,0,0,0,0,1.5,112.2,2.2999999999999998,null,"00:12:00",null,null,null,"",null,null,null,null,"OSO",null,247.5,null,258.5,270,null,null,null,null,"2023-01-28",128,null,{"$f":"AK21-AK20","v":24}]
[null,4.0999999999999996,98,4.0999999999999996,0,0,1029.4000000000001,0,0,0,0,0,1.5,112.2,2.2999999999999998,null,"00:13:00",null,null,null,"",null,null,null,null,"O",null,270,null,281,292,null,null,null,null,"2023-02-05",152,null,{"$f":"AK22-AK21","v":24}]
[null,4.0999999999999996,98,4.0999999999999996,0,0,1029.5,0,0,0,0,0,1.5,112.2,2.2999999999999998,null,"00:14:00",null,null,null,"",null,null,null,null,"ONO",null,292.5,null,303.5,315,null,null,null,"1900-01-23","2023-02-12",193,{"$f":"AJ23-AJ22","v":7},{"$f":"AK23-AK22","v":41}]
[null,4.0999999999999996,98,4.0999999999999996,0,0,1029.5999999999999,0,0,0,0,0,1.5,112.2,2.2999999999999998,null,"00:15:00",null,null,null,"",null,null,null,null,"NO",null,315,null,326,337,null,null,null,"2022-11-27",null,null,-44969]
[null,4.2,98,4.2,0,0,1029.5999999999999,0,0,0,0,0,1.5,112.2,2.2999999999999998,null,"00:16:00",null,null,null,{"$f":"IF(J25>0,60,\"\")","v":""},null,null,null,null,"NNO",null,337.5,null,348.5,349,null,null,null,"2022-12-06",null,null,0]
[null,4.2,98,4.2,0,0,1029.5999999999999,0,0,0,0,0,1.5,112.2,2.2999999999999998,null,"00:17:00",null,null,null,"",null,null,null,null,"N",null,349,null,360,null,null,null,null,"2022-12-12",null,null,0]
[null,4.2,98,4.2,0,0,1029.5,0,0,0,0,0,1.5,112.2,2.2999999999999998,null,"00:18:00",null,null,null,"",null,null,null,null,null,null,null,null,null,null,null,null,null,"2022-12-18",null,null,0]
[null,4.2,98,4.2,0,0,1029.5,0,0,0,0,0,1.5,112.2,2.4,null,"00:19:00",null,null,null,"",null,null,null,null,null,null,null,null,{"$f":"INDEX($Z$9:$Z$26,IF(ISNA(MATCH($AD$30,$AD$9:$AD$26,0)),MATCH($AD$30,$AD$9:$AD$26,1)+1,MATCH($AD$30,$AD$9:$AD$26,0)),1)","v":{"$error":"#DIV/0!"}},null,null,null,null,"2022-12-27",null,null,0]
[null,4.0999999999999996,98,4.0999999999999996,0,0,1029.4000000000001,0,0,0,0,0,1.5,112.2,2.4,null,"00:20:00",null,null,null,null,null,null,null,null,null,null,{"$f":"SUM(AB32:AB47)","v":{"$error":"#DIV/0!"}},null,{"$f":"MAX(AB32:AB47)","v":{"$error":"#DIV/0!"}},null,{"$f":"SUM(AF32:AF47)","v":0},null,null,"2023-12-31",null,null,0]
[null,4.0999999999999996,98,4.0999999999999996,0,0,1029.5,0,0,0,0,0,1.5,112.2,2.4,null,"00:21:00",null,null,null,"",null,null,null,null,null,null,null,null,{"$f":"VLOOKUP(AD29,AB32:AD47,AD31,0)","v":{"$error":"#DIV/0!"}}]
[null,4.0999999999999996,98,4.0999999999999996,0,0,1029.3,0,0,0,0,0,1.5,112.2,2.4,null,"00:22:00",null,null,null,"",null,null,null,null,null,null,null,null,3]
[null,4.0999999999999996,98,4.0999999999999996,0,0,1029.4000000000001,0,0,0,0,0,1.5,112.2,2.5,null,"00:23:00",null,null,null,"",null,null,null,null,null,null,{"$f":"AF32/$AF$29","v":{"$error":"#DIV/0!"}},null,0,null,{"$f":"COUNTIF($G$9:$G$1448,AD32)","v":0}]
[null,4.0999999999999996,98,4.0999999999999996,0,0,1029.3,0,0,0,0,0,1.5,112.2,2.5,null,"00:24:00",null,null,null,"",null,null,null,null,null,null,{"$f":"AF33/$AF$29","v":{"$error":"#DIV/0!"}},null,22,null,{"$f":"COUNTIF($G$9:$G$1448,AD33)","v":0}]
[null,4.0999999999999996,98,4.0999999999999996,0,0,1029.5999999999999,0,0,0,0,0,1.5,112.2,2.5,null,"00:25:00",null,null,null,"",null,null,null,null,null,null,{"$f":"AF34/$AF$29","v":{"$error":"#DIV/0!"}},null,45,null,0]
[null,4.0999999999999996,98,4.0999999999999996,0,0,1029.3,0,0,0,0,0,1.5,112.2,2.5,null,"00:26:00",null,null,null,"",null,null,null,null,null,null,{"$error":"#DIV/0!"},null,67,null,{"$f":"COUNTIF($G$9:$G$1448,AD35)","v":0}]
[null,4.0999999999999996,98,4.0999999999999996,0,0,1029.3,0,0,0,0,0,1.5,112.2,2.5,null,"00:27:00",null,null,null,"",null,null,null,null,null,null,{"$error":"#DIV/0!"},null,90,null,0]
[null,4.0999999999999996,98,4.0999999999999996,0,0,1029.4000000000001,0,0,0,0,0,1.5,112.2,2.5,null,"00:28:00",null,null,null,"",null,null,null,null,null,null,{"$error":"#DIV/0!"},null,112,null,0]
[null,4.0999999999999996,98,4.0999999999999996,0,0,1029.3,0,0,0,0,0,1.5,112.2,2.5,null,"00:29:00",null,null,null,"",null,null,null,null,null,null,{"$error":"#DIV/0!"},null,135,null,0]
[null,4.0999999999999996,98,4.0999999999999996,0,0,1029.3,0,0,0,0,0,1.5,112.2,2.5,null,"00:30:00",null,null,null,"",null,null,null,null,null,null,{"$error":"#DIV/0!"},null,157,null,0]
[null,4.0999999999999996,98,4.0999999999999996,0,0,1029.2,0,0,0,0,0,1.5,112.2,2.5,null,"00:31:00",null,null,null,"",null,null,null,null,null,null,{"$error":"#DIV/0!"},null,180,null,0]
[null,4.0999999999999996,98,4.0999999999999996,0,0,1029.3,0,0,0,0,0,1.5,112.2,2.5,null,"00:32:00",null,null,null,"",null,null,null,null,null,null,{"$error":"#DIV/0!"},null,202,null,0]
[null,4.3,98,4.3,0,0,1029.4000000000001,0,0,0,0,0,1.5,112.2,2.5,null,"00:33:00",null,null,null,"",null,null,null,null,null,null,{"$error":"#DIV/0!"},null,225,null,0]
[null,4.3,98,4.3,0,0,1029.3,0,0,0,0,0,1.5,112.2,2.5,null,"00:34:00",null,null,null,"",null,null,null,null,null,null,{"$error":"#DIV/0!"},null,247,null,0]
[null,4.3,98,4.3,0,0,1029.3,0,0,0,0,0,1.5,112.2,2.6,null,"00:35:00",null,null,null,"",null,null,null,null,null,null,{"$error":"#DIV/0!"},null,270,null,0]
[null,4.3,98,4.3,0,0,1029.2,0,0,0,0,0,1.5,112.2,2.6,null,"00:36:00",null,null,null,"",null,null,null,null,null,null,{"$error":"#DIV/0!"},null,292,null,0]
[null,4.3,98,4.3,0,0,1029.4000000000001,0,0,0,0,0,1.5,112.2,2.6,null,"00:37:00",null,null,null,"",null,null,null,null,null,null,{"$error":"#DIV/0!"},null,315,null,0]
[null,4.3,98,4.3,0,0,1029.4000000000001,0,0,0,0,0,1.5,112.2,2.6,null,"00:38:00",null,null,null,"",null,null,null,null,null,null,{"$error":"#DIV/0!"},null,337,null,0]
[null,4.2,98,4.2,0,0,1029.5,0,0,0,0,0,1.5,112.2,2.6,null,"00:39:00",null,null,null,""]
[null,4.2,98,4.2,0,0,1029.3,0,0,0,0,0,1.5,112.2,2.6,null,"00:40:00",null,null,null,""]
[null,4.2,98,4.2,0,0,1029.2,0,0,0,0,0,1.5,112.2,2.5,null,"00:41:00",null,null,null,""]
[null,4.2,98,4.2,0,0,1029.3,0,0,0,0,0,1.5,112.2,2.5,null,"00:42:00",null,null,null,""]
[null,4.2,98,4.2,0,0,1029.2,0,0,0,0,0,1.5,112.2,2.5,null,"00:43:00",null,null,null,""]
[null,4.2,98,4.2,0,0,1029.4000000000001,0,0,0,0,0,1.5,112.2,2.5,null,"00:44:00",null,null,null,""]
[null,4.2,98,4.2,0,0,1029.5,0,0,0,0,0,1.5,112.2,2.5,null,"00:45:00",null,null,null,""]
[null,4.2,98,4.2,0,0,1029.5,0,0,0,0,0,1.5,112.2,2.4,null,"00:46:00",null,null,null,""]
[null,4.2,98,4.2,0,0,1029.4000000000001,0,0,0,0,0,1.5,112.2,2.4,null,"00:47:00",null,null,null,""]
[null,4.2,98,4.2,0,0,1029.4000000000001,0,0,0,0,0,1.5,112.2,2.4,null,"00:48:00",null,null,null,""]
[null,4.2,98,4.2,0,0,1029.5,0,0,0,0,0,1.5,112.2,2.4,null,"00:49:00",null,null,null,""]
[null,4.2,98,4.2,0,0,1029.4000000000001,0,0,0,0,0,1.5,112.2,2.4,null,"00:50:00",null,null,null,""]
[null,4.2,98,4.2,0,0,1029.4000000000001,0,0,0,0,0,1.5,112.2,2.4,null,"00:51:00",null,null,null,""]
[null,4.2,98,4.2,0,0,1029.5,0,0,0,0,0,1.5,112.2,2.4,null,"00:52:00",null,null,null,""]
[null,4.2,98,4.2,0,0,1029.5,0,0,0,0,0,1.5,112.2,2.4,null,"00:53:00",null,null,null,""]
[null,4.0999999999999996,98,4.0999999999999996,0,0,1029.4000000000001,0,0,0,0,0,1.5,112.2,2.4,null,"00:54:00",null,null,null,""]
[null,4.0999999999999996,98,4.0999999999999996,0,0,1029.5999999999999,0,0,0,0,0,1.5,112.2,2.4,null,"00:55:00",null,null,null,""]
[null,4.0999999999999996,98,4.0999999999999996,0,0,1029.4000000000001,0,0,0,0,0,1.5,112.2,2.4,null,"00:56:00",null,null,null,""]
[null,4.0999999999999996,98,4.0999999999999996,0,0,1029.5,0,0,0,0,0,1.5,112.2,2.2999999999999998,null,"00:57:00",null,null,null,""]
[null,4.0999999999999996,98,4.0999999999999996,0,0,1029.4000000000001,0,0,0,0,0,1.5,112.2,2.2999999999999998,null,"00:58:00",null,null,null,""]
[null,4.0999999999999996,98,4.0999999999999996,0,0,1029.5999999999999,0,0,0,0,0,1.5,112.2,2.2999999999999998,null,"00:59:00",null,null,null,""]
[null,4.0999999999999996,98,4.0999999999999996,0,0,1029.5,0,0,0,0,0,1.5,112.2,2.2999999999999998,null,"01:00:00",null,null,null,""]
[null,4.0999999999999996,98,4.0999999999999996,0,0,1029.4000000000001,0,0,0,0,0,1.5,112.2,2.2999999999999998,null,"01:01:00",null,null,null,""]
[null,4.0999999999999996,98,4.0999999999999996,0,0,1029.7,0,0,0,0,0,1.5,112.2,2.2999999999999998,null,"01:02:00",null,null,null,""]
[null,4,98,4,0,0,1029.5999999999999,0,0,0,0,0,1.5,112.2,2.2000000000000002,null,"01:03:00",null,null,null,""]
[null,4,98,4,0,0,1029.2,0,0,0,0,0,1.5,112.2,2.2000000000000002,null,"01:04:00",null,null,null,""]
[null,4,98,4,0,0,1029.4000000000001,0,0,0,0,0,1.5,112.2,2.2000000000000002,null,"01:05:00",null,null,null,""]
[null,4,98,4,0,0,1029.5,0,0,0,0,0,1.5,112.2,2.2000000000000002,null,"01:06:00",null,null,null,{"$f":"IF(J75>0,60,\"\")","v":""}]
[null,4,98,4,0,0,1029.5,0,0,0,0,0,1.5,112.2,2.2000000000000002,null,"01:07:00",null,null,null,""]
[null,3.9,98,3.9,0,0,1029.5999999999999,0,0,0,0,0,1.5,112.2,2.2000000000000002,null,"01:08:00",null,null,null,""]
[null,3.9,98,3.9,0,0,1029.4000000000001,0,0,0,0,0,1.5,112.2,2.1,null,"01:09:00",null,null,null,""]
[null,3.9,98,3.9,0,0,1029.5999999999999,0,0,0,0,0,1.5,112.2,2.1,null,"01:10:00",null,null,null,""]
[null,3.8,98,3.8,0,0,1029.5,0,0,0,0,0,1.5,112.2,2.1,null,"01:11:00",null,null,null,""]
[null,3.8,98,3.8,0,0,1029.5,0,0,0,0,0,1.5,112.2,2.1,null,"01:12:00",null,null,null,""]
[null,3.8,98,3.8,0,0,1029.2,0,0,0,0,0,1.5,112.2,2.1,null,"01:13:00",null,null,null,""]
[null,3.8,98,3.8,0,0,1029.5,0,0,0,0,0,1.5,112.2,2,null,"01:14:00",null,null,null,""]
[null,3.8,98,3.8,0,0,1029.5,0,0,0,0,0,1.5,112.2,2,null,"01:15:00",null,null,null,""]
[null,3.8,98,3.8,0,0,1029.5999999999999,0,0,0,0,0,1.5,112.2,2,null,"01:16:00",null,null,null,""]
[null,3.8,98,3.8,0,0,1029.5,0,0,0,0,0,1.5,112.2,2,null,"01:17:00",null,null,null,""]
[null,3.8,98,3.8,0,0,1029.5999999999999,0,0,0,0,0,1.5,112.2,2,null,"01:18:00",null,null,null,""]
[null,3.8,98,3.8,0,0,1029.3,0,0,0,0,0,1.5,112.2,2,null,"01:19:00",null,null,null,""]
[null,3.8,98,3.8,0,0,1029.5999999999999,0,0,0,0,0,1.5,112.2,2,null,"01:20:00",null,null,null,""]
[null,3.8,98,3.8,0,0,1029.5,0,0,0,0,0,1.5,112.2,2.1,null,"01:21:00",null,null,null,""]
[null,3.9,98,3.9,0,0,1029.4000000000001,0,0,0,0,0,1.5,112.2,2.1,null,"01:22:00",null,null,null,""]
[null,3.9,98,3.9,0,0,1029.3,0,0,0,0,0,1.5,112.2,2.1,null,"01:23:00",null,null,null,""]
[null,3.9,98,3.9,0,0,1029.5,0,0,0,0,0,1.5,112.2,2.1,null,"01:24:00",null,null,null,""]
[null,3.8,98,3.8,0,0,1029.5,0,0,0,0,0,1.5,112.2,2.1,null,"01:25:00",null,null,null,""]
[null,3.8,98,3.8,0,0,1029.4000000000001,0,0,0,0,0,1.5,112.2,2.1,null,"01:26:00",null,null,null,""]
[null,3.8,98,3.8,0,0,1029.5,0,0,0,0,0,1.5,112.2,2.2000000000000002,null,"01:27:00",null,null,null,""]
[null,3.8,98,3.8,0,0,1029.4000000000001,0,0,0,0,0,1.5,112.2,2.1,null,"01:28:00",null,null,null,""]
[null,3.8,98,3.8,0,0,1029.4000000000001,0,0,0,0,0,1.5,112.2,2.2000000000000002,null,"01:29:00",null,null,null,""]
[null,3.8,99,3.8,0.4,1.8,1029.3,0,0,0,0,0,1.5,112.2,2.2000000000000002,null,"01:30:00",null,null,null,""]
[null,3.8,98,3.8,0,0,1029.4000000000001,0,0,0,0,0,1.5,112.2,2.2000000000000002,null,"01:31:00",null,null,null,""]
[null,3.8,98,3.8,0,0,1029.3,0,0,0,0,0,1.5,112.2,2.2000000000000002,null,"01:32:00",null,null,null,""]
[null,3.8,99,3.8,0,0,1029.4000000000001,0,0,0,0,0,1.5,112.2,2.2000000000000002,null,"01:33:00",null,null,null,""]
[null,3.8,98,3.8,0,0,1029.3,0,0,0,0,0,1.5,112.2,2.2000000000000002,null,"01:34:00",null,null,null,""]
[null,3.9,99,3.9,0,0,1029.3,0,0,0,0,0,1.5,112.2,2.2000000000000002,null,"01:35:00",null,null,null,""]
[null,3.9,98,3.9,0,0,1029.2,0,0,0,0,0,1.5,112.2,2.2000000000000002,null,"01:36:00",null,null,null,""]
[null,3.8,98,3.8,0,0,1029.3,0,0,0,0,0,1.5,112.2,2.2000000000000002,null,"01:37:00",null,null,null,""]
[null,3.8,99,3.8,0,0,1029.3,0,0,0,0,0,1.5,112.2,2.2000000000000002,null,"01:38:00",null,null,null,""]
[null,3.8,99,3.8,0,0,1029.5,0,0,0,0,0,1.5,112.2,2.2000000000000002,null,"01:39:00",null,null,null,""]
[null,3.8,98,3.8,0,0,1029.4000000000001,0,0,0,0,0,1.5,112.2,2.2000000000000002,null,"01:40:00",null,null,null,""]
[null,3.7,98,3.7,0,0,1029.5,0,0,0,0,0,1.5,112.2,2.2000000000000002,null,"01:41:00",null,null,null,""]
[null,3.7,99,3.7,0,0,1029.3,0,0,0,0,0,1.5,112.2,2.2000000000000002,null,"01:42:00",null,null,null,""]
[null,3.7,99,3.7,0,0,1029.2,0,0,0,0,0,1.5,112.2,2.2000000000000002,null,"01:43:00",null,null,null,""]
[null,3.7,99,3.7,0,0,1029.3,0,0,0,0,0,1.5,112.2,2.1,null,"01:44:00",null,null,null,""]
[null,3.7,99,3.7,0,0,1029.4000000000001,0,0,0,0,0,1.5,112.2,2.1,null,"01:45:00",null,null,null,""]
[null,3.7,99,3.7,0,0,1029.2,0,0,0,0,0,1.5,112.2,2.1,null,"01:46:00",null,null,null,""]
[null,3.7,99,3.7,0,0,1029.3,0,0,0,0,0,1.5,112.2,2.1,null,"01:47:00",null,null,null,""]
[null,3.7,99,3.7,0,0,1029.0999999999999,0,0,0,0,0,1.5,112.2,2.1,null,"01:48:00",null,null,null,""]
[null,3.7,99,3.7,0,0,1029.2,0,0,0,0,0,1.5,112.2,2.1,null,"01:49:00",null,null,null,""]
[null,3.8,99,3.8,0,0,1029.2,0,0,0,0,0,1.5,112.2,2.1,null,"01:50:00",null,null,null,""]
[null,3.8,99,3.8,1.1000000000000001,1.8,1029,0,0,0,0,0,1.5,112.2,2.2000000000000002,null,"01:51:00",null,null,null,""]
[null,3.9,99,3.9,0,0,1029.0999999999999,0,0,0,0,0,1.5,112.2,2.2000000000000002,null,"01:52:00",null,null,null,""]
[null,3.9,99,3.9,0,0,1029.0999999999999,0,0,0,0,0,1.5,112.2,2.2000000000000002,null,"01:53:00",null,null,null,""]
[null,3.9,99,3.9,0,0,1028.9000000000001,0,0,0,0,0,1.5,112.2,2.2000000000000002,null,"01:54:00",null,null,null,""]
[null,3.9,99,3.9,0,0,1028.8,0,0,0,0,0,1.5,112.2,2.2000000000000002,null,"01:55:00",null,null,null,""]
[null,3.9,99,3.9,0,0,1029,0,0,0,0,0,1.5,112.2,2.2000000000000002,null,"01:56:00",null,null,null,""]
[null,3.8,99,3.8,0,0,1028.9000000000001,0,0,0,0,0,1.5,112.2,2.2999999999999998,null,"01:57:00",null,null,null,""]
[null,3.8,99,3.8,0,0,1029.0999999999999,0,0,0,0,0,1.5,112.2,2.2999999999999998,null,"01:58:00",null,null,null,""]
[null,3.8,99,3.8,0,0,1028.8,0,0,0,0,0,1.5,112.2,2.2000000000000002,null,"01:59:00",null,null,null,""]
[null,3.8,99,3.8,0,0,1028.8,0,0,0,0,0,1.5,112.2,2.2999999999999998,null,"02:00:00",null,null,null,""]
[null,3.8,99,3.8,0,0,1029,0,0,0,0,0,1.5,112.2,2.2999999999999998,null,"02:01:00",null,null,null,""]
[null,3.8,99,3.8,0,0,1029.2,0,0,0,0,0,1.5,112.2,2.2000000000000002,null,"02:02:00",null,null,null,""]
[null,3.7,99,3.7,0,0,1028.9000000000001,0,0,0,0,0,1.5,112.2,2.2000000000000002,null,"02:03:00",null,null,null,""]
[null,3.7,99,3.7,0,0,1028.8,0,0,0,0,0,1.5,112.2,2.2000000000000002,null,"02:04:00",null,null,null,""]
[null,3.7,99,3.7,0,0,1028.8,0,0,0,0,0,1.5,112.2,2.2000000000000002,null,"02:05:00",null,null,null,""]
[null,3.7,99,3.7,0,0,1029,0,0,0,0,0,1.5,112.2,2.1,null,"02:06:00",null,null,null,""]
[null,3.6,99,3.6,0,0,1029,0,0,0,0,0,1.5,112.2,2.1,null,"02:07:00",null,null,null,""]
[null,3.6,99,3.6,0,0,1028.9000000000001,0,0,0,0,0,1.5,112.2,2,null,"02:08:00",null,null,null,""]
[null,3.6,99,3.6,0,0,1028.9000000000001,0,0,0,0,0,1.5,112.2,2,null,"02:09:00",null,null,null,""]
[null,3.7,99,3.7,0,0,1029,0,0,0,0,0,1.5,112.2,2,null,"02:10:00",null,null,null,{"$f":"IF(J139>0,60,\"\")","v":""}]
[null,3.7,99,3.7,0,0,1029,0,0,0,0,0,1.5,112.2,2,null,"02:11:00",null,null,null,""]
[null,3.7,99,3.7,0,0,1029,0,0,0,0,0,1.5,112.2,2,null,"02:12:00",null,null,null,""]
[null,3.7,99,3.7,0,0,1028.7,0,0,0,0,0,1.5,112.2,2,null,"02:13:00",null,null,null,""]
[null,3.7,99,3.7,0,0,1028.8,0,0,0,0,0,1.5,112.2,1.9,null,"02:14:00",null,null,null,""]
[null,3.7,99,3.7,0,0,1028.9000000000001,0,0,0,0,0,1.5,112.2,1.9,null,"02:15:00",null,null,null,""]
[null,3.7,99,3.7,0,0,1028.8,0,0,0,0,0,1.5,112.2,1.9,null,"02:16:00",null,null,null,""]
[null,3.7,99,3.7,0,0,1028.9000000000001,0,0,0,0,0,1.5,112.2,1.9,null,"02:17:00",null,null,null,""]
[null,3.7,99,3.7,0,0,1028.8,0,0,0,0,0,1.5,112.2,1.9,null,"02:18:00",null,null,null,""]
[null,3.7,99,3.7,0,0,1028.9000000000001,0,0,0,0,0,1.5,112.2,1.9,null,"02:19:00",null,null,null,""]
[null,3.7,99,3.7,0,0,1028.7,0,0,0,0,0,1.5,112.2,1.9,null,"02:20:00",null,null,null,""]
[null,3.7,99,3.7,0,0,1028.8,0,0,0,0,0,1.5,112.2,1.9,null,"02:21:00",null,null,null,""]
[null,3.7,99,3.7,0,0,1028.5999999999999,0,0,0,0,0,1.5,112.2,2,null,"02:22:00",null,null,null,""]
[null,3.7,99,3.7,0,0,1028.8,0,0,0,0,0,1.5,112.2,2,null,"02:23:00",null,null,null,""]
[null,3.7,99,3.7,0,0,1028.5999999999999,0,0,0,0,0,1.5,112.2,2,null,"02:24:00",null,null,null,""]
[null,3.7,99,3.7,0,0,1029,0,0,0,0,0,1.5,112.2,2,null,"02:25:00",null,null,null,""]
[null,3.7,99,3.7,0,0,1028.5999999999999,0,0,0,0,0,1.5,112.2,2,null,"02:26:00",null,null,null,""]
[null,3.7,99,3.7,0,0,1028.8,0,0,0,0,0,1.5,112.2,2.1,null,"02:27:00",null,null,null,""]
[null,3.7,99,3.7,0,0,1028.8,0,0,0,0,0,1.5,112.2,2.1,null,"02:28:00",null,null,null,""]
[null,3.7,99,3.7,0,0,1028.5999999999999,0,0,0,0,0,1.5,112.2,2.1,null,"02:29:00",null,null,null,""]
[null,3.7,99,3.7,0,0,1028.8,0,0,0,0,0,1.5,112.2,2,null,"02:30:00",null,null,null,""]
[null,3.7,99,3.7,0,0,1028.5999999999999,0,0,0,0,0,1.5,112.2,2,null,"02:31:00",null,null,null,""]
[null,3.6,99,3.6,0,0,1028.8,0,0,0,0,0,1.5,112.2,2,null,"02:32:00",null,null,null,""]
[null,3.6,99,3.6,0,0,1028.5,0,0,0,0,0,1.5,112.2,2,null,"02:33:00",null,null,null,""]
[null,3.6,99,3.6,0,0,1028.5,0,0,0,0,0,1.5,112.2,2,null,"02:34:00",null,null,null,""]
[null,3.6,99,3.6,0,0,1028.5,0,0,0,0,0,1.5,112.2,2,null,"02:35:00",null,null,null,""]
[null,3.6,99,3.6,0,0,1028.5,0,0,0,0,0,1.5,112.2,2,null,"02:36:00",null,null,null,""]
[null,3.6,99,3.6,0,0,1028.5,0,0,0,0,0,1.5,112.2,2,null,"02:37:00",null,null,null,""]
[null,3.6,99,3.6,0,0,1028.5999999999999,0,0,0,0,0,1.5,112.2,1.9,null,"02:38:00",null,null,null,""]
[null,3.5,99,3.5,0,0,1028.4000000000001,0,0,0,0,0,1.5,112.2,1.9,null,"02:39:00",null,null,null,""]
[null,3.5,99,3.5,0,0,1028.5,0,0,0,0,0,1.5,112.2,1.9,null,"02:40:00",null,null,null,""]
[null,3.5,99,3.5,0,0,1028.3,0,0,0,0,0,1.5,112.2,1.9,null,"02:41:00",null,null,null,""]
[null,3.5,99,3.5,0,0,1028.8,0,0,0,0,0,1.5,112.2,2,null,"02:42:00",null,null,null,""]
[null,3.5,99,3.5,0,0,1028.5999999999999,0,0,0,0,0,1.5,112.2,2,null,"02:43:00",null,null,null,""]
[null,3.5,99,3.5,0,0,1028.5999999999999,0,0,0,0,0,1.5,112.2,1.9,null,"02:44:00",null,null,null,""]
[null,3.5,99,3.5,0,0,1028.5,0,0,0,0,0,1.5,112.2,1.9,null,"02:45:00",null,null,null,""]
[null,3.5,99,3.5,0,0,1028.5999999999999,0,0,0,0,0,1.5,112.2,1.9,null,"02:46:00",null,null,null,""]
[null,3.5,99,3.5,0,0,1028.4000000000001,0,0,0,0,0,1.5,112.2,1.9,null,"02:47:00",null,null,null,""]
[null,3.5,99,3.5,0,0,1028.4000000000001,0,0,0,0,0,1.5,112.2,1.9,null,"02:48:00",null,null,null,""]
[null,3.5,99,3.5,0,0,1028.5,0,0,0,0,0,1.5,112.2,2,null,"02:49:00",null,null,null,""]
[null,3.5,99,3.5,0,0,1028.4000000000001,0,0,0,0,0,1.5,112.2,2.1,null,"02:50:00",null,null,null,""]
[null,3.5,99,3.5,0,0,1028.5,0,0,0,0,0,1.5,112.2,2.2000000000000002,null,"02:51:00",null,null,null,""]
[null,3.5,99,3.5,0,0,1028.4000000000001,0,0,0,0,0,1.5,112.2,2.2000000000000002,null,"02:52:00",null,null,null,""]
[null,3.5,99,3.5,0,0,1028.5,0,0,0,0,0,1.5,112.2,2.2999999999999998,null,"02:53:00",null,null,null,""]
[null,3.6,99,3.6,0,0,1028.4000000000001,0,0,0,0,0,1.5,112.2,2.2999999999999998,null,"02:54:00",null,null,null,""]
[null,3.6,99,3.6,0,0,1028.5,0,0,0,0,0,1.5,112.2,2.2999999999999998,null,"02:55:00",null,null,null,""]
[null,3.6,99,3.6,0,0,1028.4000000000001,0,0,0,0,0,1.5,112.2,2.2999999999999998,null,"02:56:00",null,null,null,""]
[null,3.5,99,3.5,0,0,1028.5999999999999,0,0,0,0,0,1.5,112.2,2.2999999999999998,null,"02:57:00",null,null,null,""]
[null,3.5,99,3.5,0,0,1028.5999999999999,0,0,0,0,0,1.5,112.2,2.2000000000000002,null,"02:58:00",null,null,null,""]
[null,3.4,99,3.4,0,0,1028.4000000000001,0,0,0,0,0,1.5,112.2,2.2000000000000002,null,"02:59:00",null,null,null,""]
[null,3.3,99,3.3,0,0,1028.5,0,0,0,0,0,1.5,112.2,2.1,null,"03:00:00",null,null,null,""]
[null,3.3,99,3.3,0,0,1028.5,0,0,0,0,0,1.5,112.2,2.1,null,"03:01:00",null,null,null,""]
[null,3.3,99,3.3,0,0,1028.5,0,0,0,0,0,1.5,112.2,2,null,"03:02:00",null,null,null,""]
[null,3.2,99,3.2,0,0,1028.5,0,0,0,0,0,1.5,112.2,2,null,"03:03:00",null,null,null,""]
[null,3.2,99,3.2,0,0,1028.5,0,0,0,0,0,1.5,112.2,1.9,null,"03:04:00",null,null,null,""]
[null,3.2,99,3.2,0,0,1028.5,0,0,0,0,0,1.5,112.2,1.9,null,"03:05:00",null,null,null,""]
[null,3.2,99,3.2,0,0,1028.4000000000001,0,0,0,0,0,1.5,112.2,1.9,null,"03:06:00",null,null,null,""]
[null,3.2,99,3.2,0,0,1028.5999999999999,0,0,0,0,0,1.5,112.2,1.9,null,"03:07:00",null,null,null,""]
[null,3.2,99,3.2,0,0,1028.4000000000001,0,0,0,0,0,1.5,112.2,1.9,null,"03:08:00",null,null,null,""]
[null,3.2,99,3.2,0,0,1028.5,0,0,0,0,0,1.5,112.2,1.8,null,"03:09:00",null,null,null,""]
[null,3.2,99,3.2,0,0,1028.5999999999999,0,0,0,0,0,1.5,112.2,1.8,null,"03:10:00",null,null,null,""]
[null,3.1,99,3.1,0,0,1028.5,0,0,0,0,0,1.5,112.2,1.7,null,"03:11:00",null,null,null,""]
[null,3.1,99,3.1,0,0,1028.7,0,0,0,0,0,1.5,112.2,1.7,null,"03:12:00",null,null,null,""]
[null,3.1,99,3.1,0,0,1028.5,0,0,0,0,0,1.5,112.2,1.7,null,"03:13:00",null,null,null,""]
[null,3.1,99,3.1,0,0,1028.5,0,0,0,0,0,1.5,112.2,1.7,null,"03:14:00",null,null,null,{"$f":"IF(J203>0,60,\"\")","v":""}]
[null,3.1,99,3.1,0,0,1028.5,0,0,0,0,0,1.5,112.2,1.6,null,"03:15:00",null,null,null,""]
[null,3.1,99,3.1,0,0,1028.5999999999999,0,0,0,0,0,1.5,112.2,1.6,null,"03:16:00",null,null,null,""]
[null,3.2,99,3.2,0,0,1028.4000000000001,0,0,0,0,0,1.5,112.2,1.6,null,"03:17:00",null,null,null,""]
[null,3.4,99,3.4,0,0,1028.4000000000001,0,0,0,0,0,1.5,112.2,1.6,null,"03:18:00",null,null,null,""]
[null,3.4,99,3.4,0,0,1028.4000000000001,0,0,0,0,0,1.5,112.2,1.6,null,"03:19:00",null,null,null,""]
[null,3.4,99,3.4,1.1000000000000001,1.8,1028.4000000000001,0,0,0,0,0,1.5,112.2,1.6,null,"03:20:00",null,null,null,""]
[null,3.4,99,3.4,0,0,1028.3,0,0,0,0,0,1.5,112.2,1.5,null,"03:21:00",null,null,null,""]
[null,3.4,99,3.4,0,0,1028.5,0,0,0,0,0,1.5,112.2,1.6,null,"03:22:00",null,null,null,""]
[null,3.4,99,3.4,0.4,1.8,1028.4000000000001,0,0,0,0,0,1.5,112.2,1.6,null,"03:23:00",null,null,null,""]
[null,3.4,99,3.4,0,0,1028.0999999999999,0,0,0,0,0,1.5,112.2,1.5,null,"03:24:00",null,null,null,""]
[null,3.4,99,3.4,0,0,1028.2,0,0,0,0,0,1.5,112.2,1.5,null,"03:25:00",null,null,null,""]
[null,3.4,99,3.4,0,0,1028.2,0,0,0,0,0,1.5,112.2,1.5,null,"03:26:00",null,null,null,""]
[null,3.3,99,3.3,0,0,1028.2,0,0,0,0,0,1.5,112.2,1.5,null,"03:27:00",null,null,null,""]
[null,3.3,99,3.3,0,0,1028.3,0,0,0,0,0,1.5,112.2,1.5,null,"03:28:00",null,null,null,""]
[null,3.3,99,3.3,0.4,1.8,1028.3,0,0,0,0,0,1.5,112.2,1.5,null,"03:29:00",null,null,null,""]
[null,3.3,99,3.3,0,0,1028.2,0,0,0,0,0,1.5,112.2,1.5,null,"03:30:00",null,null,null,""]
[null,3.3,99,3.3,0,0,1028.2,0,0,0,0,0,1.5,112.2,1.5,null,"03:31:00",null,null,null,""]
[null,3.3,99,3.3,0,0,1028.0999999999999,0,0,0,0,0,1.5,112.2,1.5,null,"03:32:00",null,null,null,""]
[null,3.3,99,3.3,0,0,1027.9000000000001,0,0,0,0,0,1.5,112.2,1.5,null,"03:33:00",null,null,null,""]
[null,3.3,99,3.3,0,0,1028.2,0,0,0,0,0,1.5,112.2,1.6,null,"03:34:00",null,null,null,""]
[null,3.3,99,3.3,0,0,1028.2,0,0,0,0,0,1.5,112.2,1.6,null,"03:35:00",null,null,null,""]
[null,3.3,99,3.3,0,0,1028.2,0,0,0,0,0,1.5,112.2,1.7,null,"03:36:00",null,null,null,""]
[null,3.3,99,3.3,0,0,1028.0999999999999,0,0,0,0,0,1.5,112.2,1.7,null,"03:37:00",null,null,null,""]
[null,3.3,99,3.3,0,0,1028.2,0,0,0,0,0,1.5,112.2,1.7,null,"03:38:00",null,null,null,""]
[null,3.3,99,3.3,0,0,1028.3,0,0,0,0,0,1.5,112.2,1.7,null,"03:39:00",null,null,null,""]
[null,3.3,99,3.3,0,0,1028.0999999999999,0,0,0,0,0,1.5,112.2,1.7,null,"03:40:00",null,null,null,""]
[null,3.3,99,3.3,0,0,1028,0,0,0,0,0,1.5,112.2,1.7,null,"03:41:00",null,null,null,""]
[null,3.2,99,3.2,0,0,1028.2,0,0,0,0,0,1.5,112.2,1.7,null,"03:42:00",null,null,null,""]
[null,3.2,99,3.2,0,0,1028.2,0,0,0,0,0,1.5,112.2,1.7,null,"03:43:00",null,null,null,""]
[null,3.2,99,3.2,0,0,1028.2,0,0,0,0,0,1.5,112.2,1.7,null,"03:44:00",null,null,null,""]
[null,3.2,99,3.2,0,0,1028,0,0,0,0,0,1.5,112.2,1.7,null,"03:45:00",null,null,null,""]
[null,3.2,99,3.2,0,0,1028.0999999999999,0,0,0,0,0,1.5,112.2,1.7,null,"03:46:00",null,null,null,""]
[null,3.2,99,3.2,0,0,1028,0,0,0,0,0,1.5,112.2,1.7,null,"03:47:00",null,null,null,""]
[null,3.2,99,3.2,0,0,1028,0,0,0,0,0,1.5,112.2,1.7,null,"03:48:00",null,null,null,""]
[null,3.2,99,3.2,0,0,1027.9000000000001,0,0,0,0,0,1.5,112.2,1.7,null,"03:49:00",null,null,null,""]
[null,3.2,99,3.2,0,0,1027.8,0,0,0,0,0,1.5,112.2,1.7,null,"03:50:00",null,null,null,""]
[null,3.2,99,3.2,0,0,1027.8,0,0,0,0,0,1.5,112.2,1.7,null,"03:51:00",null,null,null,""]
[null,3.2,99,3.2,0,0,1027.9000000000001,0,0,0,0,0,1.5,112.2,1.7,null,"03:52:00",null,null,null,""]
[null,3.2,99,3.2,0,0,1027.8,0,0,0,0,0,1.5,112.2,1.7,null,"03:53:00",null,null,null,""]
[null,3.2,99,3.2,0,0,1028,0,0,0,0,0,1.5,112.2,1.7,null,"03:54:00",null,null,null,""]
[null,3.2,99,3.2,0,0,1028,0,0,0,0,0,1.5,112.2,1.7,null,"03:55:00",null,null,null,""]
[null,3.2,99,3.2,0,0,1027.9000000000001,0,0,0,0,0,1.5,112.2,1.7,null,"03:56:00",null,null,null,""]
[null,3.2,99,3.2,0,0,1027.8,0,0,0,0,0,1.5,112.2,1.7,null,"03:57:00",null,null,null,""]
[null,3.2,99,3.2,0,0,1027.8,0,0,0,0,0,1.5,112.2,1.7,null,"03:58:00",null,null,null,""]
[null,3.2,99,3.2,0,0,1027.9000000000001,0,0,0,0,0,1.5,112.2,1.7,null,"03:59:00",null,null,null,""]
[null,3.2,99,3.2,0,0,1028,0,0,0,0,0,1.5,112.2,1.7,null,"04:00:00",null,null,null,""]
[null,3.3,99,3.3,0,0,1027.9000000000001,0,0,0,0,0,1.5,112.2,1.7,null,"04:01:00",null,null,null,""]
[null,3.3,99,3.3,0,0,1027.9000000000001,0,0,0,0,0,1.5,112.2,1.6,null,"04:02:00",null,null,null,""]
[null,3.4,99,3.4,0,0,1028,0,0,0,0,0,1.5,112.2,1.6,null,"04:03:00",null,null,null,""]
[null,3.4,99,3.4,0,0,1028,0,0,0,0,0,1.5,112.2,1.7,null,"04:04:00",null,null,null,""]
[null,3.4,99,3.4,0,0,1028,0,0,0,0,0,1.5,112.2,1.7,null,"04:05:00",null,null,null,""]
[null,3.4,99,3.4,0,0,1027.9000000000001,0,0,0,0,0,1.5,112.2,1.7,null,"04:06:00",null,null,null,""]
[null,3.4,99,3.4,0,0,1027.9000000000001,0,0,0,0,0,1.5,112.2,1.7,null,"04:07:00",null,null,null,""]
[null,3.4,99,3.4,0,0,1027.9000000000001,0,0,0,0,0,1.5,112.2,1.7,null,"04:08:00",null,null,null,""]
[null,3.4,99,3.4,0,0,1027.8,0,0,0,0,0,1.5,112.2,1.7,null,"04:09:00",null,null,null,""]
[null,3.5,99,3.5,0,0,1027.9000000000001,0,0,0,0,0,1.5,112.2,1.7,null,"04:10:00",null,null,null,""]
[null,3.5,99,3.5,0,0,1027.9000000000001,0,0,0,0,0,1.5,112.2,1.8,null,"04:11:00",null,null,null,""]
[null,3.5,99,3.5,0,0,1028,0,0,0,0,0,1.5,112.2,1.7,null,"04:12:00",null,null,null,""]
[null,3.4,99,3.4,0,0,1028.0999999999999,0,0,0,0,0,1.5,112.2,1.7,null,"04:13:00",null,null,null,""]
[null,3.4,99,3.4,0,0,1027.8,0,0,0,0,0,1.5,112.2,1.7,null,"04:14:00",null,null,null,""]
[null,3.4,99,3.4,0,0,1028.0999999999999,0,0,0,0,0,1.5,112.2,1.7,null,"04:15:00",null,null,null,""]
[null,3.4,99,3.4,0,0,1027.9000000000001,0,0,0,0,0,1.5,112.2,1.7,null,"04:16:00",null,null,null,""]
[null,3.4,99,3.4,0,0,1027.9000000000001,0,0,0,0,0,1.5,112.2,1.7,null,"04:17:00",null,null,null,""]
[null,3.4,99,3.4,0,0,1028.0999999999999,0,0,0,0,0,1.5,112.2,1.7,null,"04:18:00",null,null,null,{"$f":"IF(J267>0,60,\"\")","v":""}]
[null,3.3,99,3.3,0,0,1027.8,0,0,0,0,0,1.5,112.2,1.7,null,"04:19:00",null,null,null,""]
[null,3.3,99,3.3,0,0,1028,0,0,0,0,0,1.5,112.2,1.6,null,"04:20:00",null,null,null,""]
[null,3.3,99,3.3,0,0,1027.9000000000001,0,0,0,0,0,1.5,112.2,1.6,null,"04:21:00",null,null,null,""]
[null,3.3,99,3.3,0,0,1028,0,0,0,0,0,1.5,112.2,1.7,null,"04:22:00",null,null,null,""]
[null,3.4,99,3.4,0,0,1028.0999999999999,0,0,0,0,0,1.5,112.2,1.6,null,"04:23:00",null,null,null,""]
[null,3.4,99,3.4,0,0,1027.8,0,0,0,0,0,1.5,112.2,1.6,null,"04:24:00",null,null,null,""]
[null,3.5,99,3.5,0,0,1028.0999999999999,0,0,0,0,0,1.5,112.2,1.6,null,"04:25:00",null,null,null,""]
[null,3.5,99,3.5,0,0,1027.9000000000001,0,0,0,0,0,1.5,112.2,1.6,null,"04:26:00",null,null,null,""]
[null,3.4,99,3.4,0,0,1028.0999999999999,0,0,0,0,0,1.5,112.2,1.6,null,"04:27:00",null,null,null,""]
[null,3.4,99,3.4,0,0,1027.9000000000001,0,0,0,0,0,1.5,112.2,1.6,null,"04:28:00",null,null,null,""]
[null,3.3,99,3.3,0,0,1027.8,0,0,0,0,0,1.5,112.2,1.6,null,"04:29:00",null,null,null,""]
[null,3.3,99,3.3,0,0,1027.8,0,0,0,0,0,1.5,112.2,1.6,null,"04:30:00",null,null,null,""]
[null,3.3,99,3.3,0,0,1027.8,0,0,0,0,0,1.5,112.2,1.6,null,"04:31:00",null,null,null,""]
[null,3.3,99,3.3,0,0,1027.8,0,0,0,0,0,1.5,112.2,1.6,null,"04:32:00",null,null,null,""]
[null,3.3,99,3.3,0,0,1027.9000000000001,0,0,0,0,0,1.5,112.2,1.6,null,"04:33:00",null,null,null,""]
[null,3.3,99,3.3,0,0,1027.9000000000001,0,0,0,0,0,1.5,112.2,1.6,null,"04:34:00",null,null,null,""]
[null,3.3,99,3.3,0,0,1027.9000000000001,0,0,0,0,0,1.5,112.2,1.6,null,"04:35:00",null,null,null,""]
[null,3.3,99,3.3,0,0,1027.7,0,0,0,0,0,1.5,112.2,1.6,null,"04:36:00",null,null,null,""]
[null,3.3,99,3.3,0,0,1027.8,0,0,0,0,0,1.5,112.2,1.6,null,"04:37:00",null,null,null,""]
[null,3.3,99,3.3,0,0,1027.5999999999999,0,0,0,0,0,1.5,112.2,1.6,null,"04:38:00",null,null,null,""]
[null,3.3,99,3.3,0,0,1027.7,0,0,0,0,0,1.5,112.2,1.6,null,"04:39:00",null,null,null,""]
[null,3.3,99,3.3,0,0,1027.8,0,0,0,0,0,1.5,112.2,1.6,null,"04:40:00",null,null,null,""]
[null,3.3,99,3.3,0,0,1027.5999999999999,0,0,0,0,0,1.5,112.2,1.6,null,"04:41:00",null,null,null,""]
[null,3.3,99,3.3,0,0,1027.7,0,0,0,0,0,1.5,112.2,1.6,null,"04:42:00",null,null,null,""]
[null,3.3,99,3.3,0,0,1027.7,0,0,0,0,0,1.5,112.2,1.6,null,"04:43:00",null,null,null,""]
[null,3.3,99,3.3,0,0,1027.8,0,0,0,0,0,1.5,112.2,1.7,null,"04:44:00",null,null,null,""]
[null,3.3,99,3.3,0,0,1027.7,0,0,0,0,0,1.5,112.2,1.7,null,"04:45:00",null,null,null,""]
[null,3.3,99,3.3,0,0,1027.8,0,0,0,0,0,1.5,112.2,1.7,null,"04:46:00",null,null,null,""]
[null,3.3,99,3.3,0,0,1027.5999999999999,0,0,0,0,0,1.5,112.2,1.7,null,"04:47:00",null,null,null,""]
[null,3.3,99,3.3,0,0,1027.9000000000001,0,0,0,0,0,1.5,112.2,1.7,null,"04:48:00",null,null,null,""]
[null,3.3,99,3.3,0,0,1027.7,0,0,0,0,0,1.5,112.2,1.7,null,"04:49:00",null,null,null,""]
[null,3.3,99,3.3,0,0,1027.8,0,0,0,0,0,1.5,112.2,1.7,null,"04:50:00",null,null,null,""]
[null,3.3,99,3.3,0,0,1027.8,0,0,0,0,0,1.5,112.2,1.6,null,"04:51:00",null,null,null,""]
[null,3.3,99,3.3,0,0,1027.7,0,0,0,0,0,1.5,112.2,1.6,null,"04:52:00",null,null,null,""]
[null,3.3,99,3.3,0,0,1027.7,0,0,0,0,0,1.5,112.2,1.6,null,"04:53:00",null,null,null,""]
[null,3.3,99,3.3,0,0,1027.5999999999999,0,0,0,0,0,1.5,112.2,1.6,null,"04:54:00",null,null,null,""]
[null,3.2,99,3.2,0,0,1028,0,0,0,0,0,1.5,112.2,1.6,null,"04:55:00",null,null,null,""]
[null,3.2,99,3.2,0,0,1027.8,0,0,0,0,0,1.5,112.2,1.6,null,"04:56:00",null,null,null,""]
[null,3.3,99,3.3,0,0,1027.8,0,0,0,0,0,1.5,112.2,1.5,null,"04:57:00",null,null,null,""]
[null,3.3,99,3.3,0,0,1027.7,0,0,0,0,0,1.5,112.2,1.5,null,"04:58:00",null,null,null,""]
[null,3.3,99,3.3,0,0,1027.8,0,0,0,0,0,1.5,112.2,1.5,null,"04:59:00",null,null,null,""]
[null,3.3,99,3.3,0,0,1027.9000000000001,0,0,0,0,0,1.5,112.2,1.5,null,"05:00:00",null,null,null,""]
[null,3.3,99,3.3,0,0,1027.5999999999999,0,0,0,0,0,1.5,112.2,1.5,null,"05:01:00",null,null,null,""]
[null,3.3,99,3.3,0,0,1027.5999999999999,0,0,0,0,0,1.5,112.2,1.5,null,"05:02:00",null,null,null,""]
[null,3.3,99,3.3,0,0,1027.5999999999999,0,0,0,0,0,1.5,112.2,1.5,null,"05:03:00",null,null,null,""]
[null,3.3,99,3.3,0,0,1027.5,0,0,0,0,0,1.5,112.2,1.5,null,"05:04:00",null,null,null,""]
[null,3.3,99,3.3,0,0,1027.7,0,0,0,0,0,1.5,112.2,1.4,null,"05:05:00",null,null,null,""]
[null,3.3,99,3.3,0,0,1027.7,0,0,0,0,0,1.5,112.2,1.4,null,"05:06:00",null,null,null,""]
[null,3.2,99,3.2,0,0,1027.5,0,0,0,0,0,1.5,112.2,1.4,null,"05:07:00",null,null,null,""]
[null,3.2,99,3.2,0,0,1027.7,0,0,0,0,0,1.5,112.2,1.4,null,"05:08:00",null,null,null,""]
[null,3.2,99,3.2,0,0,1027.8,0,0,0,0,0,1.5,112.2,1.4,null,"05:09:00",null,null,null,""]
[null,3.2,99,3.2,0,0,1027.8,0,0,0,0,0,1.5,112.2,1.4,null,"05:10:00",null,null,null,""]
[null,3.2,99,3.2,0,0,1027.8,0,0,0,0,0,1.5,112.2,1.4,null,"05:11:00",null,null,null,""]
[null,3.2,99,3.2,0,0,1027.8,0,0,0,0,0,1.5,112.2,1.4,null,"05:12:00",null,null,null,""]
[null,3.2,99,3.2,0,0,1027.7,0,0,0,0,0,1.5,112.2,1.4,null,"05:13:00",null,null,null,""]
[null,3.2,99,3.2,0,0,1027.5999999999999,0,0,0,0,0,1.5,112.2,1.4,null,"05:14:00",null,null,null,""]
[null,3.2,99,3.2,0,0,1027.8,0,0,0,0,0,1.5,112.2,1.4,null,"05:15:00",null,null,null,""]
[null,3.2,99,3.2,0,0,1027.7,0,0,0,0,0,1.5,112.2,1.4,null,"05:16:00",null,null,null,""]
[null,3.2,99,3.2,0,0,1027.7,0,0,0,0,0,1.5,112.2,1.4,null,"05:17:00",null,null,null,""]
[null,3.2,99,3.2,0,0,1027.8,0,0,0,0,0,1.5,112.2,1.4,null,"05:18:00",null,null,null,""]
[null,3.2,99,3.2,0,0,1027.8,0,0,0,0,0,1.5,112.2,1.4,null,"05:19:00",null,null,null,""]
[null,3.2,99,3.2,0,0,1027.9000000000001,0,0,0,0,0,1.5,112.2,1.4,null,"05:20:00",null,null,null,""]
[null,3.2,99,3.2,0,0,1027.8,0,0,0,0,0,1.5,112.2,1.4,null,"05:21:00",null,null,null,""]
[null,3.2,99,3.2,0,0,1027.7,0,0,0,0,0,1.5,112.2,1.4,null,"05:22:00",null,null,null,{"$f":"IF(J331>0,60,\"\")","v":""}]
[null,3.2,99,3.2,0,0,1027.7,0,0,0,0,0,1.5,112.2,1.4,null,"05:23:00",null,null,null,""]
[null,3.2,99,3.2,0,0,1027.9000000000001,0,0,0,0,0,1.5,112.2,1.4,null,"05:24:00",null,null,null,""]
[null,3.2,99,3.2,0,0,1027.8,0,0,0,0,0,1.5,112.2,1.4,null,"05:25:00",null,null,null,""]
[null,3.1,99,3.1,0,0,1027.8,0,0,0,0,0,1.5,112.2,1.4,null,"05:26:00",null,null,null,""]
[null,3.1,99,3.1,0,0,1027.7,0,0,0,0,0,1.5,112.2,1.3,null,"05:27:00",null,null,null,""]
[null,3,99,3,0,0,1027.7,0,0,0,0,0,1.5,112.2,1.3,null,"05:28:00",null,null,null,""]
[null,3,99,3,0,0,1027.9000000000001,0,0,0,0,0,1.5,112.2,1.3,null,"05:29:00",null,null,null,""]
[null,3,99,3,0,0,1027.8,0,0,0,0,0,1.5,112.2,1.3,null,"05:30:00",null,null,null,""]
[null,3,99,3,0,0,1027.8,0,0,0,0,0,1.5,112.2,1.3,null,"05:31:00",null,null,null,""]
[null,3,99,3,0,0,1027.7,0,0,0,0,0,1.5,112.2,1.3,null,"05:32:00",null,null,null,""]
[null,3,99,3,0,0,1027.8,0,0,0,0,0,1.5,112.2,1.3,null,"05:33:00",null,null,null,""]
[null,3,99,3,0,0,1027.7,0,0,0,0,0,1.5,112.2,1.3,null,"05:34:00",null,null,null,""]
[null,3,99,3,0,0,1027.7,0,0,0,0,0,1.5,112.2,1.3,null,"05:35:00",null,null,null,""]
[null,3,99,3,0,0,1027.8,0,0,0,0,0,1.5,112.2,1.3,null,"05:36:00",null,null,null,""]
[null,3,99,3,0,0,1027.5999999999999,0,0,0,0,0,1.5,112.2,1.3,null,"05:37:00",null,null,null,""]
[null,3,99,3,0,0,1027.8,0,0,0,0,0,1.5,112.2,1.3,null,"05:38:00",null,null,null,""]
[null,3,99,3,0,0,1027.8,0,0,0,0,0,1.5,112.2,1.3,null,"05:39:00",null,null,null,""]
[null,3,99,3,0,0,1027.8,0,0,0,0,0,1.5,112.2,1.3,null,"05:40:00",null,null,null,""]
[null,3,99,3,0.4,1.8,1027.7,0,0,0,0,0,1.5,112.2,1.3,null,"05:41:00",null,null,null,""]
[null,3,99,3,0,0,1027.9000000000001,0,0,0,0,0,1.5,112.2,1.3,null,"05:42:00",null,null,null,""]
[null,3.1,99,3.1,0,0,1027.8,0,0,0,0,0,1.5,112.2,1.3,null,"05:43:00",null,null,null,""]
[null,3.1,99,3.1,0,0,1027.8,0,0,0,0,0,1.5,112.2,1.3,null,"05:44:00",null,null,null,""]
[null,3.1,99,3.1,0,0,1028,0,0,0,0,0,1.5,112.2,1.3,null,"05:45:00",null,null,null,""]
[null,3.1,99,3.1,0,0,1027.7,0,0,0,0,0,1.5,112.2,1.3,null,"05:46:00",null,null,null,""]
[null,3.1,99,3.1,0,0,1027.8,0,0,0,0,0,1.5,112.2,1.3,null,"05:47:00",null,null,null,""]
[null,3,99,3,0,0,1027.7,0,0,0,0,0,1.5,112.2,1.3,null,"05:48:00",null,null,null,""]
[null,3,99,3,0,0,1027.8,0,0,0,0,0,1.5,112.2,1.3,null,"05:49:00",null,null,null,""]
[null,3,99,3,0,0,1027.8,0,0,0,0,0,1.5,112.2,1.3,null,"05:50:00",null,null,null,""]
[null,3,99,3,0,0,1027.8,0,0,0,0,0,1.5,112.2,1.3,null,"05:51:00",null,null,null,""]
[null,3,99,3,1.1000000000000001,1.8,1027.9000000000001,0,0,0,0,0,1.5,112.2,1.3,null,"05:52:00",null,null,null,""]
[null,3,99,3,0,0,1027.5999999999999,0,0,0,0,0,1.5,112.2,1.3,null,"05:53:00",null,null,null,""]
[null,3.1,99,3.1,0,0,1027.5999999999999,0,0,0,0,0,1.5,112.2,1.3,null,"05:54:00",null,null,null,""]
[null,3.1,99,3.1,0,0,1027.5999999999999,0,0,0,0,0,1.5,112.2,1.4,null,"05:55:00",null,null,null,""]
[null,3.1,99,3.1,0,0,1028.0999999999999,0,0,0,0,0,1.5,112.2,1.4,null,"05:56:00",null,null,null,""]
[null,3,99,3,0,0,1027.7,0,0,0,0,0,1.5,112.2,1.4,null,"05:57:00",null,null,null,""]
[null,3,99,3,0,0,1027.5999999999999,0,0,0,0,0,1.5,112.2,1.3,null,"05:58:00",null,null,null,""]
[null,3,99,3,0,0,1027.7,0,0,0,0,0,1.5,112.2,1.4,null,"05:59:00",null,null,null,""]
[null,3,99,3,0,0,1027.7,0,0,0,0,0,1.5,112.2,1.4,null,"06:00:00",null,{"$f":"MAX(O369,P369)","v":1.4},{"$f":"(S369-B369)-2","v":-3.6},"",null,{"$f":"IF(S369>B369+3,60,\"\")","v":""}]
[null,3,99,3,0,0,1027.5999999999999,0,0,0,0,0,1.5,112.2,1.4,null,"06:01:00",null,1.4,{"$f":"(S370-B370)-2","v":-3.6},"",null,{"$f":"IF(S370>B370+3,60,\"\")","v":""}]
[null,3,99,3,0,0,1027.8,0,0,0,0,0,1.5,112.2,1.3,null,"06:02:00",null,1.3,-3.7,"",null,""]
[null,3,99,3,0,0,1027.5,0,0,0,0,0,1.5,112.2,1.4,null,"06:03:00",null,1.4,-3.6,"",null,""]
[null,3,99,3,0,0,1027.5,0,0,0,0,0,1.5,112.2,1.4,null,"06:04:00",null,1.4,-3.6,"",null,""]
[null,3,99,3,0,0,1027.5,0,0,0,0,0,1.5,112.2,1.3,null,"06:05:00",null,1.3,{"$f":"(S374-B374)-2","v":-3.7},"",null,""]
[null,2.9,99,2.9,0,0,1027.5999999999999,0,0,0,0,0,1.5,112.2,1.3,null,"06:06:00",null,1.3,-3.5999999999999996,"",null,""]
[null,2.9,99,2.9,0,0,1027.4000000000001,0,0,0,0,0,1.5,112.2,1.3,null,"06:07:00",null,1.3,-3.5999999999999996,"",null,""]
[null,2.8,99,2.8,0.4,1.8,1027.4000000000001,0,0,0,0,0,1.5,112.2,1.3,null,"06:08:00",null,1.3,-3.5,"",null,""]
[null,2.8,99,2.8,0,0,1027.5,0,0,0,0,0,1.5,112.2,1.3,null,"06:09:00",null,1.3,-3.5,"",null,""]
[null,2.8,99,2.8,0,0,1027.4000000000001,0,0,0,0,0,1.5,112.2,1.3,null,"06:10:00",null,1.3,-3.5,"",null,""]
[null,2.8,99,2.8,0.4,1.8,1027.7,0,0,0,0,0,1.5,112.2,1.3,null,"06:11:00",null,1.3,-3.5,"",null,""]
[null,2.8,99,2.8,0,0,1027.5999999999999,0,0,0,0,0,1.5,112.2,1.3,null,"06:12:00",null,1.3,-3.5,"",null,""]
[null,2.8,99,2.8,0,0,1027.5999999999999,0,0,0,0,0,1.5,112.2,1.2,null,"06:13:00",null,1.2,-3.5999999999999996,"",null,""]
[null,2.8,99,2.8,0,0,1027.5999999999999,0,0,0,0,0,1.5,112.2,1.3,null,"06:14:00",null,1.3,-3.5,"",null,""]
[null,2.8,99,2.8,0.7,1.8,1027.5,0,0,0,0,0,1.5,112.2,1.2,null,"06:15:00",null,1.2,-3.5999999999999996,"",null,""]
[null,2.8,99,2.8,0,0,1027.5,0,0,0,0,0,1.5,112.2,1.3,null,"06:16:00",null,1.3,-3.5,"",null,""]
[null,2.8,99,2.8,0,0,1027.5999999999999,0,0,0,0,0,1.5,112.2,1.2,null,"06:17:00",null,1.2,-3.5999999999999996,"",null,""]
[null,2.7,99,2.7,0,0,1027.5999999999999,0,0,0,0,0,1.5,112.2,1.2,null,"06:18:00",null,1.2,-3.5,"",null,""]
[null,2.7,99,2.7,0,0,1027.5,0,0,0,0,0,1.5,112.2,1.2,null,"06:19:00",null,1.2,-3.5,"",null,""]
[null,2.7,99,2.7,0,0,1027.4000000000001,0,0,0,0,0,1.5,112.2,1.2,null,"06:20:00",null,1.2,-3.5,"",null,""]
[null,2.7,99,2.7,0,0,1027.4000000000001,0,0,0,0,0,1.5,112.2,1.2,null,"06:21:00",null,1.2,-3.5,"",null,""]
[null,2.7,99,2.7,0,0,1027.5,0,0,0,0,0,1.5,112.2,1.2,null,"06:22:00",null,1.2,-3.5,"",null,""]
[null,2.7,99,2.7,0,0,1027.5,0,0,0,0,0,1.5,112.2,1.1000000000000001,null,"06:23:00",null,1.1000000000000001,-3.6,"",null,""]
[null,2.7,99,2.7,0,0,1027.4000000000001,0,0,0,0,0,1.5,112.2,1.1000000000000001,null,"06:24:00",null,1.1000000000000001,-3.6,"",null,""]
[null,2.6,99,2.6,0,0,1027.5999999999999,0,0,0,0,0,1.5,112.2,1.1000000000000001,null,"06:25:00",null,1.1000000000000001,-3.5,"",null,""]
[null,2.6,99,2.6,0,0,1027.5999999999999,0,0,0,0,0,1.5,112.2,1.1000000000000001,null,"06:26:00",null,1.1000000000000001,-3.5,{"$f":"IF(J395>0,60,\"\")","v":""},null,""]
[null,2.6,99,2.6,0,0,1027.5,0,0,0,0,0,1.5,112.2,1.1000000000000001,null,"06:27:00",null,1.1000000000000001,-3.5,"",null,""]
[null,2.6,99,2.6,0,0,1027.4000000000001,0,0,0,0,0,1.5,112.2,1,null,"06:28:00",null,1,-3.6,"",null,""]
[null,2.6,99,2.6,0,0,1027.5,0,0,0,0,0,1.5,112.2,1,null,"06:29:00",null,1,-3.6,"",null,""]
[null,2.6,99,2.6,0,0,1027.5,0,0,0,0,0,1.5,112.2,1,null,"06:30:00",null,{"$f":"MAX(O399,P399)","v":1},{"$f":"(S399-B399)-2","v":-3.6},"",null,"",null,null,null,null,null,null,null,null,null,null,null,null,null,null,null,null,null,null,null,null,null,null,null,null,null,null,null,null,null,null,-2]
[null,2.6,99,2.6,0,0,1027.5,0,0,0,0,0,1.5,112.2,1,null,"06:31:00",null,{"$f":"MAX(O400,P400)","v":1},{"$f":"(S400-B400)-2","v":-3.6},"",null,"",null,null,null,null,null,null,null,null,null,null,null,null,null,null,null,null,null,null,null,null,null,null,null,null,null,null,null,null,null,null,-2]
[null,2.6,99,2.6,0,0,1027.5,0,0,0,0,0,1.5,112.2,1,null,"06:32:00",null,1,-3.6,"",null,"",null,null,null,null,null,null,null,null,null,null,null,null,null,null,null,null,null,null,null,null,null,null,null,null,null,null,null,null,null,null,-2.1000000000000005]
[null,2.5,99,2.5,0,0,1027.4000000000001,0,0,0,0,0,1.5,112.2,0.9,null,"06:33:00",null,0.9,-3.6,"",null,"",null,null,null,null,null,null,null,null,null,null,null,null,null,null,null,null,null,null,null,null,null,null,null,null,null,null,null,null,null,null,-2.1000000000000005]
[null,2.5,99,2.5,0,0,1027.4000000000001,0,0,0,0,0,1.5,112.2,0.9,null,"06:34:00",null,0.9,-3.6,"",null,"",null,null,null,null,null,null,null,null,null,null,null,null,null,null,null,null,null,null,null,null,null,null,null,null,null,null,null,null,null,null,-2.1000000000000005]
[null,2.5,99,2.5,0,0,1027.4000000000001,0,0,0,0,0,1.5,112.2,0.9,null,"06:35:00",null,0.9,-3.6,"",null,"",null,null,null,null,null,null,null,null,null,null,null,null,null,null,null,null,null,null,null,null,null,null,null,null,null,null,null,null,null,null,-2.1000000000000005]
[null,2.5,99,2.5,0,0,1027.5999999999999,0,0,0,0,0,1.5,112.2,0.9,null,"06:36:00",null,0.9,{"$f":"(S405-B405)-2","v":-3.6},"",null,"",null,null,null,null,null,null,null,null,null,null,null,null,null,null,null,null,null,null,null,null,null,null,null,null,null,null,null,null,null,null,-2.1000000000000005]
[null,2.5,99,2.5,0,0,1027.5,0,0,0,0,0,1.5,112.2,0.9,null,"06:37:00",null,0.9,-3.6,"",null,"",null,null,null,null,null,null,null,null,null,null,null,null,null,null,null,null,null,null,null,null,null,null,null,null,null,null,null,null,null,null,-2.1000000000000005]
[null,2.5,99,2.5,0,0,1027.5,0,0,0,0,0,1.5,112.2,0.9,null,"06:38:00",null,0.9,-3.6,"",null,"",null,null,null,null,null,null,null,null,null,null,null,null,null,null,null,null,null,null,null,null,null,null,null,null,null,null,null,null,null,null,-2.1000000000000005]
[null,2.5,99,2.5,0,0,1027.3,0,0,0,0,0,1.5,112.2,0.9,null,"06:39:00",null,0.9,-3.6,"",null,"",null,null,null,null,null,null,null,null,null,null,null,null,null,null,null,null,null,null,null,null,null,null,null,null,null,null,null,null,null,null,-2]
[null,2.5,99,2.5,0,0,1027.5,0,0,0,0,0,1.5,112.2,0.9,null,"06:40:00",null,0.9,-3.6,"",null,"",null,null,null,null,null,null,null,null,null,null,null,null,null,null,null,null,null,null,null,null,null,null,null,null,null,null,null,null,null,null,-2]
[null,2.5,99,2.5,0,0,1027.4000000000001,0,0,0,0,0,1.5,112.2,0.8,null,"06:41:00",null,0.8,-3.7,"",null,"",null,null,null,null,null,null,null,null,null,null,null,null,null,null,null,null,null,null,null,null,null,null,null,null,null,null,null,null,null,null,-2]
[null,2.4,99,2.4,0,0,1027.4000000000001,0,0,0,0,0,1.5,112.2,0.9,null,"06:42:00",null,0.9,-3.5,"",null,"",null,null,null,null,null,null,null,null,null,null,null,null,null,null,null,null,null,null,null,null,null,null,null,null,null,null,null,null,null,null,-2]
[null,2.4,99,2.4,0,0,1027.5999999999999,0,0,0,0,0,1.5,112.2,0.8,null,"06:43:00",null,0.8,-3.5999999999999996,"",null,"",null,null,null,null,null,null,null,null,null,null,null,null,null,null,null,null,null,null,null,null,null,null,null,null,null,null,null,null,null,null,-2]
[null,2.4,99,2.4,0,0,1027.5,0,0,0,0,0,1.5,112.2,0.9,null,"06:44:00",null,0.9,-3.5,"",null,"",null,null,null,null,null,null,null,null,null,null,null,null,null,null,null,null,null,null,null,null,null,null,null,null,null,null,null,null,null,null,-2]
[null,2.4,99,2.4,0,0,1027.7,0,0,0,0,0,1.5,112.2,0.8,null,"06:45:00",null,0.8,-3.5999999999999996,"",null,"",null,null,null,null,null,null,null,null,null,null,null,null,null,null,null,null,null,null,null,null,null,null,null,null,null,null,null,null,null,null,-2]
[null,2.4,99,2.4,0,0,1027.5,0,0,0,0,0,1.5,112.2,0.9,null,"06:46:00",null,0.9,-3.5,"",null,"",null,null,null,null,null,null,null,null,null,null,null,null,null,null,null,null,null,null,null,null,null,null,null,null,null,null,null,null,null,null,-2.0999999999999996]
[null,2.4,99,2.4,0,0,1027.5,0,0,0,0,0,1.5,112.2,0.8,null,"06:47:00",null,0.8,-3.5999999999999996,"",null,"",null,null,null,null,null,null,null,null,null,null,null,null,null,null,null,null,null,null,null,null,null,null,null,null,null,null,null,null,null,null,-2.0999999999999996]
[null,2.4,99,2.4,0,0,1027.4000000000001,0,0,0,0,0,1.5,112.2,0.8,null,"06:48:00",null,0.8,-3.5999999999999996,"",null,"",null,null,null,null,null,null,null,null,null,null,null,null,null,null,null,null,null,null,null,null,null,null,null,null,null,null,null,null,null,null,-2.0999999999999996]
[null,2.2999999999999998,99,2.2999999999999998,0,0,1027.5999999999999,0,0,0,0,0,1.5,112.2,0.8,null,"06:49:00",null,0.8,-3.5,"",null,"",null,null,null,null,null,null,null,null,null,null,null,null,null,null,null,null,null,null,null,null,null,null,null,null,null,null,null,null,null,null,-2.0999999999999996]
[null,2.2999999999999998,99,2.2999999999999998,0,0,1027.5,0,0,0,0,0,1.5,112.2,0.8,null,"06:50:00",null,0.8,-3.5,"",null,"",null,null,null,null,null,null,null,null,null,null,null,null,null,null,null,null,null,null,null,null,null,null,null,null,null,null,null,null,null,null,-2.0999999999999996]
[null,2.2999999999999998,99,2.2999999999999998,0,0,1027.5,0,0,0,0,0,1.5,112.2,0.8,null,"06:51:00",null,0.8,-3.5,"",null,"",null,null,null,null,null,null,null,null,null,null,null,null,null,null,null,null,null,null,null,null,null,null,null,null,null,null,null,null,null,null,-8.6999999999999993]
[null,2.2999999999999998,99,2.2999999999999998,0,0,1027.3,0,0,0,0,0,1.5,112.2,0.7,null,"06:52:00",null,0.7,-3.5999999999999996,"",null,"",null,null,null,null,null,null,null,null,null,null,null,null,null,null,null,null,null,null,null,null,null,null,null,null,null,null,null,null,null,null,-2.5]
[null,2.2999999999999998,99,2.2999999999999998,0,0,1027.3,0,0,0,0,0,1.5,112.2,0.7,null,"06:53:00",null,0.7,-3.5999999999999996,"",null,"",null,null,null,null,null,null,null,null,null,null,null,null,null,null,null,null,null,null,null,null,null,null,null,null,null,null,null,null,null,null,-2.5]
[null,2.4,99,2.4,0,0,1027.4000000000001,0,0,0,0,0,1.5,112.2,0.7,null,"06:54:00",null,0.7,-3.7,"",null,"",null,null,null,null,null,null,null,null,null,null,null,null,null,null,null,null,null,null,null,null,null,null,null,null,null,null,null,null,null,null,-2.6000000000000005]
[null,2.4,99,2.4,0,0,1027.4000000000001,0,0,0,0,0,1.5,112.2,0.8,null,"06:55:00",null,0.8,-3.5999999999999996,"",null,"",null,null,null,null,null,null,null,null,null,null,null,null,null,null,null,null,null,null,null,null,null,null,null,null,null,null,null,null,null,null,-2.6000000000000005]
[null,2.4,99,2.4,0,0,1027.4000000000001,0,0,0,0,0,1.5,112.2,0.7,null,"06:56:00",null,0.7,-3.7,"",null,"",null,null,null,null,null,null,null,null,null,null,null,null,null,null,null,null,null,null,null,null,null,null,null,null,null,null,null,null,null,null,-2.3999999999999995]
[null,2.4,99,2.4,0,0,1027.4000000000001,0,0,0,0,0,1.5,112.2,0.8,null,"06:57:00",null,0.8,-3.5999999999999996,"",null,"",null,null,null,null,null,null,null,null,null,null,null,null,null,null,null,null,null,null,null,null,null,null,null,null,null,null,null,null,null,null,-2.3999999999999995]
[null,2.4,99,2.4,0,0,1027.4000000000001,0,0,0,0,0,1.5,112.2,0.8,null,"06:58:00",null,0.8,-3.5999999999999996,"",null,"",null,null,null,null,null,null,null,null,null,null,null,null,null,null,null,null,null,null,null,null,null,null,null,null,null,null,null,null,null,null,-2.3999999999999995]
[null,2.4,99,2.4,0,0,1027.3,0,0,0,0,0,1.5,112.2,0.8,null,"06:59:00",null,0.8,-3.5999999999999996,"",null,"",null,null,null,null,null,null,null,null,null,null,null,null,null,null,null,null,null,null,null,null,null,null,null,null,null,null,null,null,null,null,-2.2999999999999998]
[null,2.4,99,2.4,0,0,1027.3,0,0,0,0,0,1.5,112.2,0.7,null,"07:00:00",null,0.7,-3.7,"",null,"",null,null,null,null,null,null,null,null,null,null,null,null,null,null,null,null,null,null,null,null,null,null,null,null,null,null,null,null,null,null,-2.2999999999999998]
[null,2.4,99,2.4,0,0,1027.4000000000001,0,0,0,0,0,1.5,112.2,0.7,null,"07:01:00",null,0.7,-3.7,"",null,"",null,null,null,null,null,null,null,null,null,null,null,null,null,null,null,null,null,null,null,null,null,null,null,null,null,null,null,null,null,null,-2.2999999999999998]
[null,2.4,99,2.4,0,0,1027.3,0,0,0,0,0,1.5,112.2,0.7,null,"07:02:00",null,0.7,-3.7,"",null,"",null,null,null,null,null,null,null,null,null,null,null,null,null,null,null,null,null,null,null,null,null,null,null,null,null,null,null,null,null,null,-2.2000000000000002]
[null,2.4,99,2.4,0,0,1027.3,0,0,0,0,0,1.5,112.2,0.7,null,"07:03:00",null,0.7,-3.7,"",null,"",null,null,null,null,null,null,null,null,null,null,null,null,null,null,null,null,null,null,null,null,null,null,null,null,null,null,null,null,null,null,-2.2000000000000002]
[null,2.4,99,2.4,0,0,1027.5,0,0,0,0,0,1.5,112.2,0.7,null,"07:04:00",null,0.7,-3.7,"",null,"",null,null,null,null,null,null,null,null,null,null,null,null,null,null,null,null,null,null,null,null,null,null,null,null,null,null,null,null,null,null,-2.2000000000000002]
[null,2.2999999999999998,99,2.2999999999999998,0,0,1027.5,0,0,0,0,0,1.5,112.2,0.7,null,"07:05:00",null,0.7,-3.5999999999999996,"",null,{"$f":"IF(S434>B434+3,60,\"\")","v":""},null,null,null,null,null,null,null,null,null,null,null,null,null,null,null,null,null,null,null,null,null,null,null,null,null,null,null,null,null,null,-2.2000000000000002]
[null,2.4,99,2.4,0,0,1027.3,0,0,0,0,0,1.5,112.2,0.7,null,"07:06:00",null,0.7,-3.7,"",null,"",null,null,null,null,null,null,null,null,null,null,null,null,null,null,null,null,null,null,null,null,null,null,null,null,null,null,null,null,null,null,-2]
[null,2.4,99,2.4,0,0,1027.3,0,0,0,0,0,1.5,112.2,0.7,null,"07:07:00",null,0.7,-3.7,"",null,"",null,null,null,null,null,null,null,null,null,null,null,null,null,null,null,null,null,null,null,null,null,null,null,null,null,null,null,null,null,null,-2]
[null,2.4,99,2.4,0,0,1027.3,0,0,0,0,0,1.5,112.2,0.7,null,"07:08:00",null,0.7,-3.7,"",null,"",null,null,null,null,null,null,null,null,null,null,null,null,null,null,null,null,null,null,null,null,null,null,null,null,null,null,null,null,null,null,-2]
[null,2.4,99,2.4,0,0,1027.5999999999999,0,0,0,0,0,1.5,112.2,0.7,null,"07:09:00",null,0.7,-3.7,"",null,"",null,null,null,null,null,null,null,null,null,null,null,null,null,null,null,null,null,null,null,null,null,null,null,null,null,null,null,null,null,null,-2]
[null,2.5,99,2.5,0.4,1.8,1027.4000000000001,0,0,0,0,0,1.5,112.2,0.7,null,"07:10:00",null,0.7,-3.8,"",null,"",null,null,null,null,null,null,null,null,null,null,null,null,null,null,null,null,null,null,null,null,null,null,null,null,null,null,null,null,null,null,-2]
[null,2.5,99,2.5,0,0,1027.3,0,0,0,0,0,1.5,112.2,0.7,null,"07:11:00",null,0.7,-3.8,"",null,"",null,null,null,null,null,null,null,null,null,null,null,null,null,null,null,null,null,null,null,null,null,null,null,null,null,null,null,null,null,null,-2]
[null,2.4,99,2.4,0,0,1027.3,0,0,0,0,0,1.5,112.2,0.7,null,"07:12:00",null,0.7,-3.7,"",null,"",null,null,null,null,null,null,null,null,null,null,null,null,null,null,null,null,null,null,null,null,null,null,null,null,null,null,null,null,null,null,-1.9000000000000004]
[null,2.4,99,2.4,0,0,1027.3,0,0,0,0,0,1.5,112.2,0.7,null,"07:13:00",null,0.7,-3.7,"",null,"",null,null,null,null,null,null,null,null,null,null,null,null,null,null,null,null,null,null,null,null,null,null,null,null,null,null,null,null,null,null,-1.9000000000000004]
[null,2.4,99,2.4,0,0,1027.3,0,0,0,0,0,1.5,112.2,0.7,null,"07:14:00",null,0.7,-3.7,"",null,"",null,null,null,null,null,null,null,null,null,null,null,null,null,null,null,null,null,null,null,null,null,null,null,null,null,null,null,null,null,null,-1.9000000000000004]
[null,2.4,99,2.4,0,0,1027.3,0,0,0,0,0,1.5,112.2,0.7,null,"07:15:00",null,0.7,-3.7,"",null,"",null,null,null,null,null,null,null,null,null,null,null,null,null,null,null,null,null,null,null,null,null,null,null,null,null,null,null,null,null,null,-1.9000000000000004]
[null,2.4,99,2.4,0,0,1027.3,0,0,0,0,0,1.5,112.2,0.7,null,"07:16:00",null,0.7,-3.7,"",null,"",null,null,null,null,null,null,null,null,null,null,null,null,null,null,null,null,null,null,null,null,null,null,null,null,null,null,null,null,null,null,-1.9000000000000004]
[null,2.2999999999999998,99,2.2999999999999998,0,0,1027.2,0,0,0,0,0,1.5,112.2,0.7,null,"07:17:00",null,0.7,-3.5999999999999996,"",null,"",null,null,null,null,null,null,null,null,null,null,null,null,null,null,null,null,null,null,null,null,null,null,null,null,null,null,null,null,null,null,-1.9000000000000004]
[null,2.2999999999999998,99,2.2999999999999998,0,0,1027.2,0,0,0,0,0,1.5,112.2,0.7,null,"07:18:00",null,0.7,-3.5999999999999996,"",null,"",null,null,null,null,null,null,null,null,null,null,null,null,null,null,null,null,null,null,null,null,null,null,null,null,null,null,null,null,null,null,-1.9000000000000004]
[null,2.2999999999999998,99,2.2999999999999998,1.1000000000000001,1.8,1027.0999999999999,0,0,0,0,0,1.5,112.2,0.7,null,"07:19:00",null,0.7,-3.5999999999999996,"",null,"",null,null,null,null,null,null,null,null,null,null,null,null,null,null,null,null,null,null,null,null,null,null,null,null,null,null,null,null,null,null,-1.7999999999999998]
[null,2.2999999999999998,99,2.2999999999999998,0,0,1027.2,0,0,0,0,0,1.5,112.2,0.7,null,"07:20:00",null,0.7,-3.5999999999999996,"",null,"",null,null,null,null,null,null,null,null,null,null,null,null,null,null,null,null,null,null,null,null,null,null,null,null,null,null,null,null,null,null,-1.8999999999999995]
[null,2.2999999999999998,99,2.2999999999999998,0,0,1027.2,0,0,0,0,0,1.5,112.2,0.7,null,"07:21:00",null,0.7,-3.5999999999999996,"",null,"",null,null,null,null,null,null,null,null,null,null,null,null,null,null,null,null,null,null,null,null,null,null,null,null,null,null,null,null,null,null,-1.8999999999999995]
[null,2.4,99,2.4,0,0,1027.0999999999999,0,0,0,0,0,1.5,112.2,0.7,null,"07:22:00",null,0.7,-3.7,"",null,"",null,null,null,null,null,null,null,null,null,null,null,null,null,null,null,null,null,null,null,null,null,null,null,null,null,null,null,null,null,null,-1.8999999999999995]
[null,2.2999999999999998,99,2.2999999999999998,0,0,1027.0999999999999,0,0,0,0,0,1.5,112.2,0.7,null,"07:23:00",null,0.7,-3.5999999999999996,"",null,"",null,null,null,null,null,null,null,null,null,null,null,null,null,null,null,null,null,null,null,null,null,null,null,null,null,null,null,null,null,null,-2]
[null,2.2999999999999998,99,2.2999999999999998,0,0,1027.2,0,0,0,0,0,1.5,112.2,0.7,null,"07:24:00",null,0.7,-3.5999999999999996,"",null,"",null,null,null,null,null,null,null,null,null,null,null,null,null,null,null,null,null,null,null,null,null,null,null,null,null,null,null,null,null,null,-2.0999999999999996]
[null,2.2999999999999998,99,2.2999999999999998,0,0,1027,0,0,0,0,0,1.5,112.2,0.7,null,"07:25:00",null,0.7,{"$f":"(S454-B454)-2","v":-3.5999999999999996},"",null,"",null,null,null,null,null,null,null,null,null,null,null,null,null,null,null,null,null,null,null,null,null,null,null,null,null,null,null,null,null,null,-2]
[null,2.2999999999999998,99,2.2999999999999998,0,0,1027.2,0,0,0,0,0,1.5,112.2,0.7,null,"07:26:00",null,0.7,-3.5999999999999996,"",null,"",null,null,null,null,null,null,null,null,null,null,null,null,null,null,null,null,null,null,null,null,null,null,null,null,null,null,null,null,null,null,-2.2000000000000002]
[null,2.2000000000000002,99,2.2000000000000002,0,0,1027,0,0,0,0,0,1.5,112.2,0.6,null,"07:27:00",null,0.6,-3.6,"",null,"",null,null,null,null,null,null,null,null,null,null,null,null,null,null,null,null,null,null,null,null,null,null,null,null,null,null,null,null,null,null,-2.5]
[null,2.2000000000000002,99,2.2000000000000002,0,0,1027.0999999999999,0,0,0,0,0,1.5,112.2,0.6,null,"07:28:00",null,0.6,-3.6,"",null,"",null,null,null,null,null,null,null,null,null,null,null,null,null,null,null,null,null,null,null,null,null,null,null,null,null,null,null,null,null,null,-2.6999999999999993]
[null,2.2000000000000002,99,2.2000000000000002,0,0,1027.3,0,0,0,0,0,1.5,112.2,0.6,null,"07:29:00",null,0.6,-3.6,"",null,"",null,null,null,null,null,null,null,null,null,null,null,null,null,null,null,null,null,null,null,null,null,null,null,null,null,null,null,null,null,null,-2.7]
[null,2.2000000000000002,99,2.2000000000000002,0,0,1027.0999999999999,0,0,0,0,0,1.5,112.2,0.6,null,"07:30:00",null,0.6,-3.6,{"$f":"IF(J459>0,60,\"\")","v":""},null,"",null,null,null,null,null,null,null,null,null,null,null,null,null,null,null,null,null,null,null,null,null,null,null,null,null,null,null,null,null,null,-2.7]
[null,2.2000000000000002,99,2.2000000000000002,0,0,1027.2,1,0,0,0,0,1.5,112.2,0.6,null,"07:31:00",null,0.6,-3.6,"",null,"",null,null,null,null,null,null,null,null,null,null,null,null,null,null,null,null,null,null,null,null,null,null,null,null,null,null,null,null,null,null,-2.7]
[null,2.2000000000000002,99,2.2000000000000002,0,0,1027.0999999999999,1,0,0,0,0,1.5,112.2,0.6,null,"07:32:00",null,0.6,-3.6,"",null,"",null,null,null,null,null,null,null,null,null,null,null,null,null,null,null,null,null,null,null,null,null,null,null,null,null,null,null,null,null,null,-2.5999999999999996]
[null,2.2000000000000002,99,2.2000000000000002,0,0,1027,1,0,0,0,0,1.5,112.2,0.6,null,"07:33:00",null,0.6,-3.6,"",null,"",null,null,null,null,null,null,null,null,null,null,null,null,null,null,null,null,null,null,null,null,null,null,null,null,null,null,null,null,null,null,-2.5999999999999996]
[null,2.2000000000000002,99,2.2000000000000002,0,0,1027.2,2,0,0,0,0,1.5,112.2,0.6,null,"07:34:00",null,0.6,-3.6,"",null,"",null,null,null,null,null,null,null,null,null,null,null,null,null,null,null,null,null,null,null,null,null,null,null,null,null,null,null,null,null,null,-2.4000000000000004]
[null,2.2000000000000002,99,2.2000000000000002,0,0,1027.3,3,0,0,0,0,1.5,112.2,0.6,null,"07:35:00",null,{"$f":"MAX(O464,P464)","v":0.6},{"$f":"(S464-B464)-2","v":-3.6},"",null,"",null,null,null,null,null,null,null,null,null,null,null,null,null,null,null,null,null,null,null,null,null,null,null,null,null,null,null,null,null,null,-2.4000000000000004]
[null,2.2000000000000002,99,2.2000000000000002,0,0,1027.3,3,0,0,0,0,1.5,112.2,0.6,null,"07:36:00",null,0.6,-3.6,"",null,"",null,null,null,null,null,null,null,null,null,null,null,null,null,null,null,null,null,null,null,null,null,null,null,null,null,null,null,null,null,null,-2.3000000000000007]
[null,2.1,99,2.1,0,0,1026.9000000000001,4,0,0,0,0,1.5,112.2,0.6,null,"07:37:00",null,0.6,-3.5,"",null,"",null,null,null,null,null,null,null,null,null,null,null,null,null,null,null,null,null,null,null,null,null,null,null,null,null,null,null,null,null,null,-2.3000000000000007]
[null,2.1,99,2.1,0,0,1027.0999999999999,5,0,0,0,0,1.5,112.2,0.6,null,"07:38:00",null,0.6,-3.5,"",null,"",null,null,null,null,null,null,null,null,null,null,null,null,null,null,null,null,null,null,null,null,null,null,null,null,null,null,null,null,null,null,-2.4000000000000004]
[null,2.1,99,2.1,0.4,1.8,1027.0999999999999,7,0,0,0,0,1.5,112.2,0.6,null,"07:39:00",null,0.6,-3.5,"",null,"",null,null,null,null,null,null,null,null,null,null,null,null,null,null,null,null,null,null,null,null,null,null,null,null,null,null,null,null,null,null,-2.4000000000000004]
[null,2.1,99,2.1,0.4,1.8,1026.9000000000001,8,0,0,0,0,1.5,112.2,0.6,null,"07:40:00",null,0.6,-3.5,"",null,"",null,null,null,null,null,null,null,null,null,null,null,null,null,null,null,null,null,null,null,null,null,null,null,null,null,null,null,null,null,null,-2.2000000000000002]
[null,2.2000000000000002,99,2.2000000000000002,0.4,1.8,1027.2,10,0,0,0,0,1.5,112.2,0.6,null,"07:41:00",null,0.6,-3.6,"",null,"",null,null,null,null,null,null,null,null,null,null,null,null,null,null,null,null,null,null,null,null,null,null,null,null,null,null,null,null,null,null,-2.3000000000000007]
[null,2.2000000000000002,99,2.2000000000000002,0,0,1027.0999999999999,12,0,0,0,0,1.5,112.2,0.6,null,"07:42:00",null,0.6,-3.6,"",null,"",null,null,null,null,null,null,null,null,null,null,null,null,null,null,null,null,null,null,null,null,null,null,null,null,null,null,null,null,null,null,-2.3000000000000007]
[null,2.2000000000000002,99,2.2000000000000002,0,0,1026.8,15,0,0,0,0,1.5,112.2,0.6,null,"07:43:00",null,0.6,-3.6,"",null,"",null,null,null,null,null,null,null,null,null,null,null,null,null,null,null,null,null,null,null,null,null,null,null,null,null,null,null,null,null,null,-2.3000000000000007]
[null,2.2000000000000002,99,2.2000000000000002,1.1000000000000001,1.8,1027.0999999999999,17,0,0,0,0,1.5,112.2,0.6,null,"07:44:00",null,0.6,-3.6,"",null,"",null,null,null,null,null,null,null,null,null,null,null,null,null,null,null,null,null,null,null,null,null,null,null,null,null,null,null,null,null,null,-2.3000000000000007]
[null,2.2000000000000002,99,2.2000000000000002,0.4,1.8,1027,21,0,0,0,0,1.5,112.2,0.7,null,"07:45:00",null,0.7,-3.5,"",null,"",null,null,null,null,null,null,null,null,null,null,null,null,null,null,null,null,null,null,null,null,null,null,null,null,null,null,null,null,null,null,-2.2000000000000002]
[null,2.1,99,2.1,0.4,1.8,1027,26,0,0,0,0,1.5,112.2,0.7,null,"07:46:00",null,0.7,-3.4000000000000004,"",null,"",null,null,null,null,null,null,null,null,null,null,null,null,null,null,null,null,null,null,null,null,null,null,null,null,null,null,null,null,null,null,-2.2000000000000002]
[null,2.1,99,2.1,0,0,1027.0999999999999,32,0,0,0,0,1.5,112.2,0.7,null,"07:47:00",null,0.7,-3.4000000000000004,"",null,"",null,null,null,null,null,null,null,null,null,null,null,null,null,null,null,null,null,null,null,null,null,null,null,null,null,null,null,null,null,null,-2.2000000000000002]
[null,2.1,99,2.1,0,0,1026.8,37,0,0,0,0,1.5,112.2,0.7,null,"07:48:00",null,0.7,-3.4000000000000004,"",null,"",null,null,null,null,null,null,null,null,null,null,null,null,null,null,null,null,null,null,null,null,null,null,null,null,null,null,null,null,null,null,-2.2000000000000002]
[null,2,99,2,0,0,1027,46,0,0,0,0,1.5,112.2,0.7,null,"07:49:00",null,0.7,-3.3,"",null,"",null,null,null,null,null,null,null,null,null,null,null,null,null,null,null,null,null,null,null,null,null,null,null,null,null,null,null,null,null,null,-2.2000000000000002]
[null,2,99,2,0,0,1027.0999999999999,55,0,0,0,0,1.5,112.2,0.7,null,"07:50:00",null,0.7,-3.3,"",null,"",null,null,null,null,null,null,null,null,null,null,null,null,null,null,null,null,null,null,null,null,null,null,null,null,null,null,null,null,null,null,-2.2000000000000002]
[null,1.9,99,1.9,0,0,1027.0999999999999,67,0,0,0,0,1.5,112.2,0.7,null,"07:51:00",null,0.7,-3.2,"",null,"",null,null,null,null,null,null,null,null,null,null,null,null,null,null,null,null,null,null,null,null,null,null,null,null,null,null,null,null,null,null,-2.2000000000000002]
[null,1.9,99,1.9,0,0,1027,77,0,0,0,0,1.5,112.2,0.7,null,"07:52:00",null,0.7,-3.2,"",null,"",null,null,null,null,null,null,null,null,null,null,null,null,null,null,null,null,null,null,null,null,null,null,null,null,null,null,null,null,null,null,-2.1000000000000005]
[null,1.9,99,1.9,0.4,1.8,1027.0999999999999,92,0,0,0,0,1.5,112.2,0.7,null,"07:53:00",null,0.7,-3.2,"",null,"",null,null,null,null,null,null,null,null,null,null,null,null,null,null,null,null,null,null,null,null,null,null,null,null,null,null,null,null,null,null,-2.2000000000000002]
[null,1.8,99,1.8,0,0,1027,109,0,0,0,0,1.5,112.2,0.7,null,"07:54:00",null,0.7,-3.1,"",null,"",null,null,null,null,null,null,null,null,null,null,null,null,null,null,null,null,null,null,null,null,null,null,null,null,null,null,null,null,null,null,-2.2000000000000002]
[null,1.8,99,1.8,0,0,1026.9000000000001,129,0,0,0,0,1.5,112.2,0.7,null,"07:55:00",null,0.7,-3.1,"",null,"",null,null,null,null,null,null,null,null,null,null,null,null,null,null,null,null,null,null,null,null,null,null,null,null,null,null,null,null,null,null,-2.2000000000000002]
[null,1.8,99,1.8,0,0,1027,145,0,0,0,0,1.5,112.2,0.7,null,"07:56:00",null,0.7,-3.1,"",null,"",null,null,null,null,null,null,null,null,null,null,null,null,null,null,null,null,null,null,null,null,null,null,null,null,null,null,null,null,null,null,-2.2000000000000002]
[null,1.7,99,1.7,0,0,1027.0999999999999,170,0,0,0,0,1.5,112.2,0.7,null,"07:57:00",null,0.7,-3,"",null,"",null,null,null,null,null,null,null,null,null,null,null,null,null,null,null,null,null,null,null,null,null,null,null,null,null,null,null,null,null,null,-2.2000000000000002]
[null,1.7,99,1.7,0,0,1027,195,0,0,0,0,1.5,112.2,0.7,null,"07:58:00",null,0.7,-3,"",null,"",null,null,null,null,null,null,null,null,null,null,null,null,null,null,null,null,null,null,null,null,null,null,null,null,null,null,null,null,null,null,-2.2000000000000002]
[null,1.7,99,1.7,0,0,1027,224,0,0,0,0,1.5,112.2,0.7,null,"07:59:00",null,0.7,-3,"",null,"",null,null,null,null,null,null,null,null,null,null,null,null,null,null,null,null,null,null,null,null,null,null,null,null,null,null,null,null,null,null,-2.2999999999999998]
[null,1.7,99,1.7,0.4,1.8,1026.9000000000001,247,0,0,0,0,1.5,112.2,0.7,null,"08:00:00",null,0.7,-3,"",null,"",null,null,null,null,null,null,null,null,null,null,null,null,null,null,null,null,null,null,null,null,null,null,null,null,null,null,null,null,null,null,-2.0999999999999996]
[null,1.7,99,1.7,0,0,1027.0999999999999,280,0,0,0,0,1.5,112.2,0.7,null,"08:01:00",null,0.7,-3,"",null,"",null,null,null,null,null,null,null,null,null,null,null,null,null,null,null,null,null,null,null,null,null,null,null,null,null,null,null,null,null,null,-2.0999999999999996]
[null,1.8,99,1.8,0,0,1027,315,0,0,0,0,1.5,112.2,0.7,null,"08:02:00",null,0.7,-3.1,"",null,"",null,null,null,null,null,null,null,null,null,null,null,null,null,null,null,null,null,null,null,null,null,null,null,null,null,null,null,null,null,null,-2.0999999999999996]
[null,1.7,99,1.7,0,0,1026.9000000000001,353,0,0,0,0,1.5,112.2,0.7,null,"08:03:00",null,0.7,-3,"",null,"",null,null,null,null,null,null,null,null,null,null,null,null,null,null,null,null,null,null,null,null,null,null,null,null,null,null,null,null,null,null,-2.1999999999999993]
[null,1.7,99,1.7,0,0,1026.9000000000001,382,0,0,0,0,1.5,112.2,0.7,null,"08:04:00",null,0.7,-3,"",null,"",null,null,null,null,null,null,null,null,null,null,null,null,null,null,null,null,null,null,null,null,null,null,null,null,null,null,null,null,null,null,-2.1999999999999993]
[null,1.7,99,1.7,0,0,1027.0999999999999,424,0,0,0,0,1.5,112.2,0.6,null,"08:05:00",null,0.6,-3.1,"",null,"",null,null,null,null,null,null,null,null,null,null,null,null,null,null,null,null,null,null,null,null,null,null,null,null,null,null,null,null,null,null,-2.0999999999999996]
[null,1.7,99,1.7,0,0,1027,468,0,0,0,0,1.5,112.2,0.6,null,"08:06:00",null,0.6,-3.1,"",null,"",null,null,null,null,null,null,null,null,null,null,null,null,null,null,null,null,null,null,null,null,null,null,null,null,null,null,null,null,null,null,-2.0999999999999996]
[null,1.6,99,1.6,0,0,1026.9000000000001,514,0,0,0,0,1.5,112.2,0.6,null,"08:07:00",null,0.6,-3,"",null,"",null,null,null,null,null,null,null,null,null,null,null,null,null,null,null,null,null,null,null,null,null,null,null,null,null,null,null,null,null,null,-2.0999999999999996]
[null,1.6,99,1.6,0,0,1027.0999999999999,550,0,0,0,0,1.5,112.2,0.6,null,"08:08:00",null,0.6,-3,"",null,"",null,null,null,null,null,null,null,null,null,null,null,null,null,null,null,null,null,null,null,null,null,null,null,null,null,null,null,null,null,null,-2.0999999999999996]
[null,1.6,99,1.6,0,0,1027,599,0,0,0,0,1.5,112.2,0.5,null,"08:09:00",null,0.5,-3.1,"",null,{"$f":"IF(S498>B498+3,60,\"\")","v":""},null,null,null,null,null,null,null,null,null,null,null,null,null,null,null,null,null,null,null,null,null,null,null,null,null,null,null,null,null,null,-2.0999999999999996]
[null,1.6,99,1.6,0,0,1027.0999999999999,648,0,0,0,0,1.5,112.2,0.5,null,"08:10:00",null,0.5,-3.1,"",null,"",null,null,null,null,null,null,null,null,null,null,null,null,null,null,null,null,null,null,null,null,null,null,null,null,null,null,null,null,null,null,-2.0999999999999996]
[null,1.6,99,1.6,0.4,1.8,1026.9000000000001,701,0,0,0,0,1.5,112.2,0.5,null,"08:11:00",null,0.5,-3.1,"",null,"",null,null,null,null,null,null,null,null,null,null,null,null,null,null,null,null,null,null,null,null,null,null,null,null,null,null,null,null,null,null,-2.0999999999999996]
[null,1.6,99,1.6,0,0,1027,738,0,0,0,0,1.5,112.2,0.5,null,"08:12:00",null,0.5,-3.1,"",null,"",null,null,null,null,null,null,null,null,null,null,null,null,null,null,null,null,null,null,null,null,null,null,null,null,null,null,null,null,null,null,-2]
[null,1.7,99,1.7,0,0,1027,791,0,0,0,0,1.5,112.2,0.6,null,"08:13:00",null,0.6,-3.1,"",null,"",null,null,null,null,null,null,null,null,null,null,null,null,null,null,null,null,null,null,null,null,null,null,null,null,null,null,null,null,null,null,-2]
[null,1.7,99,1.7,0,0,1026.9000000000001,846,0,0,0,0,1.5,112.2,0.6,null,"08:14:00",null,0.6,-3.1,"",null,"",null,null,null,null,null,null,null,null,null,null,null,null,null,null,null,null,null,null,null,null,null,null,null,null,null,null,null,null,null,null,-2]
[null,1.7,99,1.7,0,0,1027.0999999999999,900,0,0,0,0,1.5,112.2,0.6,null,"08:15:00",null,0.6,-3.1,"",null,"",null,null,null,null,null,null,null,null,null,null,null,null,null,null,null,null,null,null,null,null,null,null,null,null,null,null,null,null,null,null,-2]
[null,1.8,99,1.8,0,0,1026.9000000000001,942,0,0,0,0,1.5,112.2,0.6,null,"08:16:00",null,0.6,-3.2,"",null,"",null,null,null,null,null,null,null,null,null,null,null,null,null,null,null,null,null,null,null,null,null,null,null,null,null,null,null,null,null,null,-2]
[null,1.8,99,1.8,0,0,1027,997,0,0,0,0,1.5,112.2,0.6,null,"08:17:00",null,0.6,-3.2,"",null,"",null,null,null,null,null,null,null,null,null,null,null,null,null,null,null,null,null,null,null,null,null,null,null,null,null,null,null,null,null,null,-2]
[null,1.8,99,1.8,0,0,1027.0999999999999,1062,0,0,0,0,1.5,112.2,1,null,"08:18:00",null,1,-2.8,"",null,"",null,null,null,null,null,null,null,null,null,null,null,null,null,null,null,null,null,null,null,null,null,null,null,null,null,null,null,null,null,null,-2]
[null,1.8,99,1.8,0.4,1.8,1027,1136,0,0,0,0,1.5,112.2,1.2,null,"08:19:00",null,1.2,-2.6,"",null,"",null,null,null,null,null,null,null,null,null,null,null,null,null,null,null,null,null,null,null,null,null,null,null,null,null,null,null,null,null,null,-2]
[null,1.9,99,1.9,1.1000000000000001,1.8,1026.7,1165,0,0,0,0,1.5,112.2,1.3,null,"08:20:00",null,1.3,-2.5999999999999996,"",null,"",null,null,null,null,null,null,null,null,null,null,null,null,null,null,null,null,null,null,null,null,null,null,null,null,null,null,null,null,null,null,-2]
[null,2,99,2,0,0,1026.8,1214,0,0,0,0,1.5,112.2,1.3,null,"08:21:00",null,1.3,-2.7,"",null,"",null,null,null,null,null,null,null,null,null,null,null,null,null,null,null,null,null,null,null,null,null,null,null,null,null,null,null,null,null,null,-2]
[null,2,99,2,0,0,1027,1280,0,0,0,0,1.5,112.2,1.3,null,"08:22:00",null,1.3,-2.7,"",null,"",null,null,null,null,null,null,null,null,null,null,null,null,null,null,null,null,null,null,null,null,null,null,null,null,null,null,null,null,null,null,-1.8999999999999995]
[null,2.1,99,2.1,0.7,1.8,1026.9000000000001,1452,0,0,0,0,1.5,112.2,1.8,null,"08:23:00",null,1.8,-2.2999999999999998,"",null,"",null,null,null,null,null,null,null,null,null,null,null,null,null,null,null,null,null,null,null,null,null,null,null,null,null,null,null,null,null,null,-2]
[null,2.1,99,2.1,0,0,1027.0999999999999,1624,0,0,0,0,1.5,112.2,2,null,"08:24:00",null,2,-2.1,"",null,"",null,null,null,null,null,null,null,null,null,null,null,null,null,null,null,null,null,null,null,null,null,null,null,null,null,null,null,null,null,null,-2]
[null,2.1,99,2.1,0,0,1026.8,1800,0,0,0,0,1.5,112.2,2.1,null,"08:25:00",null,2.1,-2,"",null,"",null,null,null,null,null,null,null,null,null,null,null,null,null,null,null,null,null,null,null,null,null,null,null,null,null,null,null,null,null,null,-2]
[null,2.2000000000000002,99,2.2000000000000002,0.4,1.8,1026.8,1913,0,0,0,0,1.5,112.2,2.2999999999999998,null,"08:26:00",null,2.2999999999999998,-1.9000000000000004,"",null,"",null,null,null,null,null,null,null,null,null,null,null,null,null,null,null,null,null,null,null,null,null,null,null,null,null,null,null,null,null,null,-2.1000000000000005]
[null,2.2000000000000002,99,2.2000000000000002,0,0,1026.8,2030,0,0,0,0,1.5,112.2,2.4,null,"08:27:00",null,2.4,-1.8000000000000003,"",null,"",null,null,null,null,null,null,null,null,null,null,null,null,null,null,null,null,null,null,null,null,null,null,null,null,null,null,null,null,null,null,-2.1000000000000005]
[null,2.2999999999999998,99,2.2999999999999998,0,0,1027.2,2200,0,0,0,0,1.5,112.2,2.7,null,"08:28:00",null,2.7,-1.5999999999999996,"",null,"",null,null,null,null,null,null,null,null,null,null,null,null,null,null,null,null,null,null,null,null,null,null,null,null,null,null,null,null,null,null,-2.1000000000000005]
[null,2.4,99,2.4,0,0,1026.9000000000001,2314,0,0,0,0,1.5,112.2,2.8,null,"08:29:00",null,2.8,-1.6,"",null,"",null,null,null,null,null,null,null,null,null,null,null,null,null,null,null,null,null,null,null,null,null,null,null,null,null,null,null,null,null,null,-2.1000000000000005]
[null,2.4,99,2.4,0.4,1.8,1026.8,2290,0,0,0,0,1.5,112.2,3,null,"08:30:00",null,3,{"$f":"(S519-B519)-2","v":-1.4},"",null,"",null,null,null,null,null,null,null,null,null,null,null,null,null,null,null,null,null,null,null,null,null,null,null,null,null,null,null,null,null,null,-2.1000000000000005]
[null,2.6,99,2.6,0,0,1027,2360,0,0,0,0,1.5,112.2,3.2,null,"08:31:00",null,3.2,-1.4,"",null,"",null,null,null,null,null,null,null,null,null,null,null,null,null,null,null,null,null,null,null,null,null,null,null,null,null,null,null,null,null,null,-2.1000000000000005]
[null,2.6,99,2.6,0.4,1.8,1026.9000000000001,2540,0,0,0,0,1.5,112.2,3.3,null,"08:32:00",null,3.3,-1.3000000000000003,"",null,"",null,null,null,null,null,null,null,null,null,null,null,null,null,null,null,null,null,null,null,null,null,null,null,null,null,null,null,null,null,null,-2.1000000000000005]
[null,2.6,99,2.6,0,0,1026.7,2785,0,0,0,0,1.5,112.2,3.5,null,"08:33:00",null,3.5,-1.1000000000000001,"",null,"",null,null,null,null,null,null,null,null,null,null,null,null,null,null,null,null,null,null,null,null,null,null,null,null,null,null,null,null,null,null,-2.1000000000000005]
[null,2.7,99,2.7,0,0,1026.9000000000001,2909,0,0,0,0,1.5,112.2,3.8,null,"08:34:00",null,3.8,-0.90000000000000036,{"$f":"IF(J523>0,60,\"\")","v":""},null,"",null,null,null,null,null,null,null,null,null,null,null,null,null,null,null,null,null,null,null,null,null,null,null,null,null,null,null,null,null,null,-2.1000000000000005]
[null,2.7,99,2.7,0,0,1026.8,3045,0,0,0,0,1.5,112.2,3.9,null,"08:35:00",null,3.9,-0.80000000000000027,"",null,"",null,null,null,null,null,null,null,null,null,null,null,null,null,null,null,null,null,null,null,null,null,null,null,null,null,null,null,null,null,null,-2.1000000000000005]
[null,2.7,99,2.7,0,0,1026.9000000000001,3152,0,0,0,0,1.5,112.2,3.9,null,"08:36:00",null,3.9,-0.80000000000000027,"",null,"",null,null,null,null,null,null,null,null,null,null,null,null,null,null,null,null,null,null,null,null,null,null,null,null,null,null,null,null,null,null,-2.1000000000000005]
[null,2.7,99,2.7,0,0,1027.0999999999999,3284,0,0,0,0,1.5,112.2,4.4000000000000004,null,"08:37:00",null,4.4000000000000004,-0.29999999999999982,"",null,"",null,null,null,null,null,null,null,null,null,null,null,null,null,null,null,null,null,null,null,null,null,null,null,null,null,null,null,null,null,null,-2.1000000000000005]
[null,2.7,99,2.7,0,0,1026.9000000000001,3432,0,0,0,0,1.5,112.2,4.4000000000000004,null,"08:38:00",null,4.4000000000000004,-0.29999999999999982,"",null,"",null,null,null,null,null,null,null,null,null,null,null,null,null,null,null,null,null,null,null,null,null,null,null,null,null,null,null,null,null,null,-2.1000000000000005]
[null,2.7,99,2.7,0.7,1.8,1026.9000000000001,3570,0,0,0,0,1.5,112.2,4.4000000000000004,null,"08:39:00",null,{"$f":"MAX(O528,P528)","v":4.4000000000000004},{"$f":"(S528-B528)-2","v":-0.29999999999999982},"",null,"",null,null,null,null,null,null,null,null,null,null,null,null,null,null,null,null,null,null,null,null,null,null,null,null,null,null,null,null,null,null,-2.1000000000000005]
[null,2.7,99,2.7,0,0,1026.7,3682,0,0,0,0,1.5,112.2,4.4000000000000004,null,"08:40:00",null,4.4000000000000004,-0.29999999999999982,"",null,"",null,null,null,null,null,null,null,null,null,null,null,null,null,null,null,null,null,null,null,null,null,null,null,null,null,null,null,null,null,null,-1.8999999999999995]
[null,2.7,99,2.7,0,0,1026.8,3837,0,0,0,0,1.5,112.2,4.4000000000000004,null,"08:41:00",null,4.4000000000000004,-0.29999999999999982,"",null,"",null,null,null,null,null,null,null,null,null,null,null,null,null,null,null,null,null,null,null,null,null,null,null,null,null,null,null,null,null,null,-1.8999999999999995]
[null,2.7,99,2.7,1.8,1.8,1026.9000000000001,3983,0,0,0,0,1.5,112.2,4.4000000000000004,null,"08:42:00",null,4.4000000000000004,-0.29999999999999982,"",null,"",null,null,null,null,null,null,null,null,null,null,null,null,null,null,null,null,null,null,null,null,null,null,null,null,null,null,null,null,null,null,-1.8999999999999995]
[null,2.7,99,2.7,1.4,1.8,1026.8,4142,0,0,0,0,1.5,112.2,4.4000000000000004,null,"08:43:00",null,4.4000000000000004,-0.29999999999999982,"",null,"",null,null,null,null,null,null,null,null,null,null,null,null,null,null,null,null,null,null,null,null,null,null,null,null,null,null,null,null,null,null,-1.8999999999999995]
[null,2.7,99,2.7,0,0,1026.5999999999999,4262,0,0,0,0,1.5,112.2,4.4000000000000004,null,"08:44:00",null,4.4000000000000004,-0.29999999999999982,"",null,"",null,null,null,null,null,null,null,null,null,null,null,null,null,null,null,null,null,null,null,null,null,null,null,null,null,null,null,null,null,null,-1.8999999999999995]
[null,2.7,99,2.7,0.4,1.8,1026.8,4426,0,0,0,0,1.5,112.2,4.4000000000000004,null,"08:45:00",null,4.4000000000000004,-0.29999999999999982,"",null,"",null,null,null,null,null,null,null,null,null,null,null,null,null,null,null,null,null,null,null,null,null,null,null,null,null,null,null,null,null,null,-1.8999999999999995]
[null,2.7,99,2.7,1.4,1.8,1027,4589,0,0,0,0,1.5,112.2,4.4000000000000004,null,"08:46:00",null,4.4000000000000004,-0.29999999999999982,"",null,"",null,null,null,null,null,null,null,null,null,null,null,null,null,null,null,null,null,null,null,null,null,null,null,null,null,null,null,null,null,null,-1.8999999999999995]
[null,2.6,99,2.6,1.1000000000000001,3.6,1026.9000000000001,4762,0,0,0,0,1.5,112.2,4.4000000000000004,null,"08:47:00",null,4.4000000000000004,-0.19999999999999973,"",null,"",null,null,null,null,null,null,null,null,null,null,null,null,null,null,null,null,null,null,null,null,null,null,null,null,null,null,null,null,null,null,-1.8999999999999995]
[null,2.6,99,2.6,0,0,1026.5999999999999,4889,0,0,0,0,1.5,112.2,4.4000000000000004,null,"08:48:00",null,4.4000000000000004,-0.19999999999999973,"",null,"",null,null,null,null,null,null,null,null,null,null,null,null,null,null,null,null,null,null,null,null,null,null,null,null,null,null,null,null,null,null,-1.8999999999999995]
[null,2.6,99,2.6,2.2000000000000002,3.6,1026.5999999999999,5055,0,0,0,0,1.5,112.2,6.7,null,"08:49:00",null,6.7,2.0999999999999996,"",null,60,null,null,null,null,null,null,null,null,null,null,null,null,null,null,null,null,null,null,null,null,null,null,null,null,null,null,null,null,null,null,-1.8999999999999995]
[null,2.7,99,2.7,0,0,1026.7,5215,0,0,0,0,1.5,112.2,6.7,null,"08:50:00",null,6.7,2,"",null,60,null,null,null,null,null,null,null,null,null,null,null,null,null,null,null,null,null,null,null,null,null,null,null,null,null,null,null,null,null,null,-1.8999999999999995]
[null,2.7,99,2.7,0,0,1026.8,5374,0,0,0,0,1.5,112.2,7,null,"08:51:00",null,7,2.2999999999999998,"",null,60,null,null,null,null,null,null,null,null,null,null,null,null,null,null,null,null,null,null,null,null,null,null,null,null,null,null,null,null,null,null,-1.7999999999999998]
[null,2.7,99,2.7,1.1000000000000001,1.8,1026.7,5521,0,0,0,0,1.5,112.2,7.2,null,"08:52:00",null,7.2,2.5,"",null,60,null,null,null,null,null,null,null,null,null,null,null,null,null,null,null,null,null,null,null,null,null,null,null,null,null,null,null,null,null,null,-1.7999999999999998]
[null,2.8,99,2.8,0,0,1026.8,5687,0,0,0,0,1.5,112.2,7.2,null,"08:53:00",null,7.2,2.4000000000000004,"",null,60,null,null,null,null,null,null,null,null,null,null,null,null,null,null,null,null,null,null,null,null,null,null,null,null,null,null,null,null,null,null,-1.7999999999999998]
[null,2.9,99,2.9,0,0,1026.8,5824,0,0,0,0,1.5,112.2,7.2,null,"08:54:00",null,7.2,2.3000000000000007,"",null,60,null,null,null,null,null,null,null,null,null,null,null,null,null,null,null,null,null,null,null,null,null,null,null,null,null,null,null,null,null,null,-1.7999999999999998]
[null,3,99,3,0.4,1.8,1026.7,5984,0,0,0,0,1.5,112.2,7.2,null,"08:55:00",null,{"$f":"MAX(O544,P544)","v":7.2},2.2000000000000002,"",null,60,null,null,null,null,null,null,null,null,null,null,null,null,null,null,null,null,null,null,null,null,null,null,null,null,null,null,null,null,null,null,-1.7000000000000002]
[null,3,99,3,0,0,1026.7,6131,0,0,0,0,1.5,112.2,7.2,null,"08:56:00",null,7.2,2.2000000000000002,"",null,60,null,null,null,null,null,null,null,null,null,null,null,null,null,null,null,null,null,null,null,null,null,null,null,null,null,null,null,null,null,null,-1.7000000000000002]
[null,3.1,99,3.1,0,0,1026.7,6289,0,0,0,0,1.5,112.2,7.2,null,"08:57:00",null,7.2,2.0999999999999996,"",null,60,null,null,null,null,null,null,null,null,null,null,null,null,null,null,null,null,null,null,null,null,null,null,null,null,null,null,null,null,null,null,-1.7000000000000002]
[null,3.1,99,3.1,0,0,1026.8,6460,0,0,0,0,1.5,112.2,7.2,null,"08:58:00",null,7.2,2.0999999999999996,"",null,60,null,null,null,null,null,null,null,null,null,null,null,null,null,null,null,null,null,null,null,null,null,null,null,null,null,null,null,null,null,null,-1.7000000000000002]
[null,3.1,99,3.1,0,0,1026.8,6555,0,0,0,0,1.5,112.2,7.2,null,"08:59:00",null,7.2,2.0999999999999996,"",null,60,null,null,null,null,null,null,null,null,null,null,null,null,null,null,null,null,null,null,null,null,null,null,null,null,null,null,null,null,null,null,-1.5999999999999996]
[null,3.1,99,3.1,0,0,1026.8,6713,0,0,0,0,1.5,112.2,7.2,null,"09:00:00",null,7.2,2.0999999999999996,"",null,60,null,null,null,null,null,null,null,null,null,null,null,null,null,null,null,null,null,null,null,null,null,null,null,null,null,null,null,null,null,null,-1.7000000000000002]
[null,3.2,99,3.2,0,0,1026.7,6846,0,0,0,0,1.5,112.2,7.2,null,"09:01:00",null,7.2,2,"",null,60,null,null,null,null,null,null,null,null,null,null,null,null,null,null,null,null,null,null,null,null,null,null,null,null,null,null,null,null,null,null,-1.6000000000000005]
[null,3.2,99,3.2,1.1000000000000001,1.8,1026.5999999999999,6831,0,0,0,0,1.5,112.2,7.2,null,"09:02:00",null,7.2,2,"",null,60,null,null,null,null,null,null,null,null,null,null,null,null,null,null,null,null,null,null,null,null,null,null,null,null,null,null,null,null,null,null,-1.6000000000000005]
[null,3.3,99,3.3,0.7,1.8,1026.8,7032,0,0,0,0,1.5,112.2,7.2,null,"09:03:00",null,7.2,1.9000000000000004,"",null,60,null,null,null,null,null,null,null,null,null,null,null,null,null,null,null,null,null,null,null,null,null,null,null,null,null,null,null,null,null,null,-1.5]
[null,3.4,99,3.4,0,0,1026.5999999999999,7132,0,0,0,0,1.5,112.2,9.6999999999999993,null,"09:04:00",null,9.6999999999999993,4.2999999999999989,"",null,60,null,null,null,null,null,null,null,null,null,null,null,null,null,null,null,null,null,null,null,null,null,null,null,null,null,null,null,null,null,null,-1.5]
[null,3.4,99,3.4,0,0,1026.8,7264,0,0,0,0,1.5,112.2,10,null,"09:05:00",null,10,4.5999999999999996,"",null,60,null,null,null,null,null,null,null,null,null,null,null,null,null,null,null,null,null,null,null,null,null,null,null,null,null,null,null,null,null,null,-1.5]
[null,3.5,99,3.5,0,0,1026.9000000000001,7365,0,0,0,0,1.5,112.2,10.199999999999999,null,"09:06:00",null,10.199999999999999,4.6999999999999993,"",null,60,null,null,null,null,null,null,null,null,null,null,null,null,null,null,null,null,null,null,null,null,null,null,null,null,null,null,null,null,null,null,-1.4000000000000004]
[null,3.7,99,3.7,0.4,1.8,1026.7,7498,0,0,0,0,1.5,112.2,10.4,null,"09:07:00",null,10.4,4.7,"",null,60,null,null,null,null,null,null,null,null,null,null,null,null,null,null,null,null,null,null,null,null,null,null,null,null,null,null,null,null,null,null,-1.4000000000000004]
[null,4,99,4,1.4,1.8,1026.7,7264,0,0,0,0,1.5,112.2,10.8,null,"09:08:00",null,10.8,4.8000000000000007,"",null,60,null,null,null,null,null,null,null,null,null,null,null,null,null,null,null,null,null,null,null,null,null,null,null,null,null,null,null,null,null,null,-1.4000000000000004]
[null,4,99,4,0,0,1026.7,6730,0,0,0,0,1.5,112.2,11.1,null,"09:09:00",null,11.1,5.0999999999999996,"",null,60,null,null,null,null,null,null,null,null,null,null,null,null,null,null,null,null,null,null,null,null,null,null,null,null,null,null,null,null,null,null,-1.3000000000000007]
[null,4,99,4,0,0,1026.9000000000001,5686,0,0,0,0,1.5,112.2,11.3,null,"09:10:00",null,11.3,5.3000000000000007,"",null,60,null,null,null,null,null,null,null,null,null,null,null,null,null,null,null,null,null,null,null,null,null,null,null,null,null,null,null,null,null,null,-1.3000000000000007]
[null,4,99,4,0,0,1026.7,3859,0,0,0,0,1.5,112.2,11.6,null,"09:11:00",null,11.6,5.6,"",null,60,null,null,null,null,null,null,null,null,null,null,null,null,null,null,null,null,null,null,null,null,null,null,null,null,null,null,null,null,null,null,-1.4000000000000004]
[null,4,99,4,0,0,1026.9000000000001,3604,0,0,0,0,1.5,112.2,11.8,null,"09:12:00",null,11.8,5.8000000000000007,"",null,60,null,null,null,null,null,null,null,null,null,null,null,null,null,null,null,null,null,null,null,null,null,null,null,null,null,null,null,null,null,null,-1.4000000000000004]
[null,4,99,4,2.2000000000000002,3.6,1026.8,3471,0,0,0,0,1.5,112.2,12,null,"09:13:00",null,12,6,"",null,{"$f":"IF(S562>B562+3,60,\"\")","v":60},null,null,null,null,null,null,null,null,null,null,null,null,null,null,null,null,null,null,null,null,null,null,null,null,null,null,null,null,null,null,-1.2999999999999998]
[null,4.0999999999999996,99,4.0999999999999996,1.8,3.6,1026.7,3424,0,0,0,0,1.5,112.2,12.3,null,"09:14:00",null,12.3,6.2000000000000011,"",null,60,null,null,null,null,null,null,null,null,null,null,null,null,null,null,null,null,null,null,null,null,null,null,null,null,null,null,null,null,null,null,-1.2999999999999998]
[null,4.0999999999999996,99,4.0999999999999996,1.1000000000000001,1.8,1026.7,3444,0,0,0,0,1.5,112.2,12.4,null,"09:15:00",null,12.4,6.3000000000000007,"",null,60,null,null,null,null,null,null,null,null,null,null,null,null,null,null,null,null,null,null,null,null,null,null,null,null,null,null,null,null,null,null,-1.2000000000000002]
[null,4.2,99,4.2,0.4,1.8,1026.5999999999999,3468,0,0,0,0,1.5,112.2,12.6,null,"09:16:00",null,12.6,6.3999999999999986,"",null,60,null,null,null,null,null,null,null,null,null,null,null,null,null,null,null,null,null,null,null,null,null,null,null,null,null,null,null,null,null,null,-1.2000000000000002]
[null,4.3,99,4.3,0,0,1026.5999999999999,3501,0,0,0,0,1.5,112.2,12.8,null,"09:17:00",null,12.8,6.5,"",null,60,null,null,null,null,null,null,null,null,null,null,null,null,null,null,null,null,null,null,null,null,null,null,null,null,null,null,null,null,null,null,-1.0999999999999996]
[null,4.3,99,4.3,1.4,1.8,1026.7,3667,0,0,0,0,1.5,112.2,12.9,null,"09:18:00",null,12.9,6.6000000000000014,"",null,60,null,null,null,null,null,null,null,null,null,null,null,null,null,null,null,null,null,null,null,null,null,null,null,null,null,null,null,null,null,null,-1.1999999999999993]
[null,4.4000000000000004,99,4.4000000000000004,1.4,1.8,1026.7,4624,0,0,0,0,1.5,112.2,13,null,"09:19:00",null,13,6.6,"",null,60,null,null,null,null,null,null,null,null,null,null,null,null,null,null,null,null,null,null,null,null,null,null,null,null,null,null,null,null,null,null,-1.0999999999999996]
[null,4.5,99,4.5,1.4,3.6,1026.5999999999999,5880,0,0,0,0,1.5,112.2,13,null,"09:20:00",null,13,6.5,"",null,60,null,null,null,null,null,null,null,null,null,null,null,null,null,null,null,null,null,null,null,null,null,null,null,null,null,null,null,null,null,null,-1.2000000000000002]
[null,4.5,99,4.5,2.5,3.6,1026.8,7705,0,0,0,0,1.5,112.2,13.2,null,"09:21:00",null,13.2,6.6999999999999993,"",null,60,null,null,null,null,null,null,null,null,null,null,null,null,null,null,null,null,null,null,null,null,null,null,null,null,null,null,null,null,null,null,-1.2000000000000002]
[null,4.5999999999999996,99,4.5999999999999996,1.8,1.8,1026.5,8507,0,0,0,0,1.5,112.2,13.3,null,"09:22:00",null,13.3,6.7000000000000011,"",null,60,null,null,null,null,null,null,null,null,null,null,null,null,null,null,null,null,null,null,null,null,null,null,null,null,null,null,null,null,null,null,-1.1000000000000005]
[null,4.7,99,4.7,0.7,1.8,1026.5999999999999,8828,0,0,0,0,1.5,112.2,13.4,null,"09:23:00",null,13.4,6.6999999999999993,"",null,60,null,null,null,null,null,null,null,null,null,null,null,null,null,null,null,null,null,null,null,null,null,null,null,null,null,null,null,null,null,null,-1.2000000000000002]
[null,4.7,99,4.7,0.7,1.8,1026.7,8965,0,0,0,0,1.5,112.2,13.4,null,"09:24:00",null,13.4,6.6999999999999993,"",null,60,null,null,null,null,null,null,null,null,null,null,null,null,null,null,null,null,null,null,null,null,null,null,null,null,null,null,null,null,null,null,-1.2000000000000002]
[null,4.9000000000000004,99,4.9000000000000004,1.1000000000000001,1.8,1026.8,9113,0,0,0,0,1.5,112.2,13.4,null,"09:25:00",null,13.4,6.5,"",null,60,null,null,null,null,null,null,null,null,null,null,null,null,null,null,null,null,null,null,null,null,null,null,null,null,null,null,null,null,null,null,-1.1000000000000005]
[null,5,99,5,1.8,1.8,1026.5999999999999,9227,0,0,0,0,1.5,112.2,13.6,null,"09:26:00",null,13.6,6.6,"",null,60,null,null,null,null,null,null,null,null,null,null,null,null,null,null,null,null,null,null,null,null,null,null,null,null,null,null,null,null,null,null,-1.1000000000000005]
[null,5,99,5,1.1000000000000001,1.8,1026.8,9335,0,0,0,0,1.5,112.2,13.8,null,"09:27:00",null,13.8,6.8000000000000007,"",null,60,null,null,null,null,null,null,null,null,null,null,null,null,null,null,null,null,null,null,null,null,null,null,null,null,null,null,null,null,null,null,-0.99999999999999911]
[null,5,99,5,2.5,3.6,1026.5,9375,0,0,0,0,1.5,112.2,13.9,null,"09:28:00",null,13.9,6.9,"",null,60,null,null,null,null,null,null,null,null,null,null,null,null,null,null,null,null,null,null,null,null,null,null,null,null,null,null,null,null,null,null,-0.99999999999999911]
[null,5.0999999999999996,99,5.0999999999999996,0.4,1.8,1026.7,9461,0,0,0,0,1.5,112.2,13.9,null,"09:29:00",null,13.9,6.8000000000000007,"",null,60,null,null,null,null,null,null,null,null,null,null,null,null,null,null,null,null,null,null,null,null,null,null,null,null,null,null,null,null,null,null,-1.0999999999999996]
[null,5.2,99,5.2,1.8,1.8,1026.7,9563,0,0,0,0,1.5,112.2,13.9,null,"09:30:00",null,13.9,6.6999999999999993,"",null,60,null,null,null,null,null,null,null,null,null,null,null,null,null,null,null,null,null,null,null,null,null,null,null,null,null,null,null,null,null,null,-1]
[null,5.3,99,5.3,1.4,1.8,1026.8,9660,0,0,0,0,1.5,112.2,14.3,null,"09:31:00",null,14.3,7,"",null,60,null,null,null,null,null,null,null,null,null,null,null,null,null,null,null,null,null,null,null,null,null,null,null,null,null,null,null,null,null,null,-1]
[null,5.3,99,5.3,1.1000000000000001,1.8,1026.5,9755,0,0,0,0,1.5,112.2,14.4,null,"09:32:00",null,14.4,7.1000000000000014,"",null,60,null,null,null,null,null,null,null,null,null,null,null,null,null,null,null,null,null,null,null,null,null,null,null,null,null,null,null,null,null,null,-0.90000000000000036]
[null,5.4,99,5.4,1.8,3.6,1026.7,9853,0,0,0,0,1.5,112.2,14.5,null,"09:33:00",null,14.5,7.1,"",null,60,null,null,null,null,null,null,null,null,null,null,null,null,null,null,null,null,null,null,null,null,null,null,null,null,null,null,null,null,null,null,-0.90000000000000036]
[null,5.5,99,5.5,0.4,1.8,1026.5999999999999,9984,0,0,0,0,1.5,112.2,14.7,null,"09:34:00",null,14.7,7.1999999999999993,"",null,60,null,null,null,null,null,null,null,null,null,null,null,null,null,null,null,null,null,null,null,null,null,null,null,null,null,null,null,null,null,null,-0.90000000000000036]
[null,5.6,99,5.6,2.2000000000000002,3.6,1026.5999999999999,10121,0,0,0,0,1.5,112.2,14.8,null,"09:35:00",null,14.8,7.2000000000000011,"",null,60,null,null,null,null,null,null,null,null,null,null,null,null,null,null,null,null,null,null,null,null,null,null,null,null,null,null,null,null,null,null,-0.80000000000000071]
[null,5.7,99,5.7,1.8,1.8,1026.5999999999999,10220,0,0,0,0,1.5,112.2,14.9,null,"09:36:00",null,14.9,7.1999999999999993,"",null,60,null,null,null,null,null,null,null,null,null,null,null,null,null,null,null,null,null,null,null,null,null,null,null,null,null,null,null,null,null,null,-0.80000000000000071]
[null,5.7,99,5.7,2.9,3.6,1026.4000000000001,10359,0,0,0,0,1.5,112.2,15,null,"09:37:00",null,15,7.3000000000000007,"",null,60,null,null,null,null,null,null,null,null,null,null,null,null,null,null,null,null,null,null,null,null,null,null,null,null,null,null,null,null,null,null,-0.70000000000000107]
[null,5.8,99,5.8,1.4,1.8,1026.5999999999999,10454,0,0,0,0,1.5,112.2,15.2,null,"09:38:00",null,15.2,7.3999999999999986,{"$f":"IF(J587>0,60,\"\")","v":""},null,60,null,null,null,null,null,null,null,null,null,null,null,null,null,null,null,null,null,null,null,null,null,null,null,null,null,null,null,null,null,null,-0.70000000000000107]
[null,5.9,99,5.9,1.8,3.6,1026.5999999999999,10596,0,0,0,0,1.5,112.2,15.3,null,"09:39:00",null,15.3,7.4,"",null,60,null,null,null,null,null,null,null,null,null,null,null,null,null,null,null,null,null,null,null,null,null,null,null,null,null,null,null,null,null,null,-0.69999999999999929]
[null,6.1,99,6.1,0.4,1.8,1026.7,10683,0,0,0,0,1.5,112.2,15.4,null,"09:40:00",null,15.4,7.3000000000000007,"",null,60,null,null,null,null,null,null,null,null,null,null,null,null,null,null,null,null,null,null,null,null,null,null,null,null,null,null,null,null,null,null,-0.69999999999999929]
[null,6.1,99,6.1,1.1000000000000001,1.8,1026.5999999999999,10812,0,0,0,0,1.5,112.2,15.6,null,"09:41:00",null,15.6,7.5,"",null,60,null,null,null,null,null,null,null,null,null,null,null,null,null,null,null,null,null,null,null,null,null,null,null,null,null,null,null,null,null,null,-0.59999999999999964]
[null,6.2,99,6.2,4.7,5.4,1026.8,10958,0,0,0,0,1.5,112.2,15.7,null,"09:42:00",null,15.7,7.5,"",null,60,null,null,null,null,null,null,null,null,null,null,null,null,null,null,null,null,null,null,null,null,null,null,null,null,null,null,null,null,null,null,-0.59999999999999964]
[null,6.3,99,6.3,1.1000000000000001,1.8,1026.7,11074,0,0,0,0,1.5,112.2,15.8,null,"09:43:00",null,{"$f":"MAX(O592,P592)","v":15.8},{"$f":"(S592-B592)-2","v":7.5},"",null,60,null,null,null,null,null,null,null,null,null,null,null,null,null,null,null,null,null,null,null,null,null,null,null,null,null,null,null,null,null,null,-0.59999999999999964]
[null,6.3,99,6.3,1.8,1.8,1026.4000000000001,11165,0,0,0,0,1.5,112.2,16,null,"09:44:00",null,16,7.6999999999999993,"",null,60,null,null,null,null,null,null,null,null,null,null,null,null,null,null,null,null,null,null,null,null,null,null,null,null,null,null,null,null,null,null,-0.5]
[null,6.4,99,6.4,3.6,5.4,1026.5999999999999,11332,0,0,0,0,1.5,112.2,16,null,"09:45:00",null,16,7.6,"",null,60,null,null,null,null,null,null,null,null,null,null,null,null,null,null,null,null,null,null,null,null,null,null,null,null,null,null,null,null,null,null,-0.5]
[null,6.5,99,6.5,1.1000000000000001,1.8,1026.5,11474,0,0,0,0,1.5,112.2,16.2,null,"09:46:00",null,16.2,7.6999999999999993,"",null,60,null,null,null,null,null,null,null,null,null,null,null,null,null,null,null,null,null,null,null,null,null,null,null,null,null,null,null,null,null,null,-0.40000000000000036]
[null,6.5,99,6.5,4.7,5.4,1026.4000000000001,11626,0,0,0,0,1.5,112.2,16.3,null,"09:47:00",null,16.3,7.8000000000000007,"",null,60,null,null,null,null,null,null,null,null,null,null,null,null,null,null,null,null,null,null,null,null,null,null,null,null,null,null,null,null,null,null,-0.50000000000000089]
[null,6.6,99,6.6,1.8,1.8,1026.3,11708,0,0,0,0,1.5,112.2,16.3,null,"09:48:00",null,16.3,7.7000000000000011,"",null,60,null,null,null,null,null,null,null,null,null,null,null,null,null,null,null,null,null,null,null,null,null,null,null,null,null,null,null,null,null,null,-0.39999999999999947]
[null,6.6,98,5.8,5.4,7.2,1026.4000000000001,11847,0,0,0,0,1.5,112.2,16.399999999999999,null,"09:49:00",null,16.399999999999999,7.7999999999999989,"",null,60,null,null,null,null,null,null,null,null,null,null,null,null,null,null,null,null,null,null,null,null,null,null,null,null,null,null,null,null,null,null,-0.39999999999999947]
[null,6.6,98,5.8,5.4,7.2,1026.5,11971,0,0,0,0,1.5,112.2,16.399999999999999,null,"09:50:00",null,16.399999999999999,7.7999999999999989,"",null,60,null,null,null,null,null,null,null,null,null,null,null,null,null,null,null,null,null,null,null,null,null,null,null,null,null,null,null,null,null,null,-0.39999999999999947]
[null,6.6,98,6.6,2.2000000000000002,3.6,1026.5,12099,0,0,0,0,1.5,112.2,16.5,null,"09:51:00",null,16.5,7.9,"",null,60,null,null,null,null,null,null,null,null,null,null,null,null,null,null,null,null,null,null,null,null,null,null,null,null,null,null,null,null,null,null,-0.29999999999999982]
[null,6.7,98,6.7,1.8,3.6,1026.5,12179,0,0,0,0,1.5,112.2,16.5,null,"09:52:00",null,16.5,7.8000000000000007,"",null,60,null,null,null,null,null,null,null,null,null,null,null,null,null,null,null,null,null,null,null,null,null,null,null,null,null,null,null,null,null,null,-0.39999999999999947]
[null,6.7,98,6.7,4.3,7.2,1026.4000000000001,12288,0,0,0,0,1.5,112.2,16.5,null,"09:53:00",null,16.5,7.8000000000000007,"",null,60,null,null,null,null,null,null,null,null,null,null,null,null,null,null,null,null,null,null,null,null,null,null,null,null,null,null,null,null,null,null,-0.29999999999999982]
[null,6.8,97,6.8,4.7,5.4,1026.5999999999999,12365,0,0,0,0,1.5,112.2,16.7,null,"09:54:00",null,16.7,7.8999999999999986,"",null,60,null,null,null,null,null,null,null,null,null,null,null,null,null,null,null,null,null,null,null,null,null,null,null,null,null,null,null,null,null,null,-0.20000000000000018]
[null,6.9,97,6.9,2.9,3.6,1026.4000000000001,12451,0,0,0,0,1.5,112.2,16.899999999999999,null,"09:55:00",null,16.899999999999999,7.9999999999999982,"",null,60,null,null,null,null,null,null,null,null,null,null,null,null,null,null,null,null,null,null,null,null,null,null,null,null,null,null,null,null,null,null,-0.20000000000000018]
[null,6.9,97,5.6,6.8,9.4,1026.3,12516,0,0,0,0,1.5,112.2,17,null,"09:56:00",null,17,8.1,"",null,60,null,null,null,null,null,null,null,null,null,null,null,null,null,null,null,null,null,null,null,null,null,null,null,null,null,null,null,null,null,null,-0.20000000000000018]
[null,7,96,6.2,5.4,9.4,1026.3,12578,0,0,0,0,1.5,112.2,17.100000000000001,null,"09:57:00",null,17.100000000000001,8.1000000000000014,"",null,60,null,null,null,null,null,null,null,null,null,null,null,null,null,null,null,null,null,null,null,null,null,null,null,null,null,null,null,null,null,null,-0.20000000000000107]
[null,7.1,96,7.1,3.2,5.4,1026.2,12587,0,0,0,0,1.5,112.2,17.2,null,"09:58:00",null,17.2,8.1,"",null,60,null,null,null,null,null,null,null,null,null,null,null,null,null,null,null,null,null,null,null,null,null,null,null,null,null,null,null,null,null,null,-9.9999999999999645E-2]
[null,7.1,95,6.3,5.4,5.4,1026.4000000000001,12671,0,0,0,0,1.5,112.2,17.2,null,"09:59:00",null,17.2,8.1,"",null,60,null,null,null,null,null,null,null,null,null,null,null,null,null,null,null,null,null,null,null,null,null,null,null,null,null,null,null,null,null,null,-9.9999999999999645E-2]
[null,7.2,95,7.2,4,7.2,1026.0999999999999,12716,0,0,0,0,1.5,112.2,17.2,null,"10:00:00",null,17.2,8,"",null,60,null,null,null,null,null,null,null,null,null,null,null,null,null,null,null,null,null,null,null,null,null,null,null,null,null,null,null,null,null,null,-9.9999999999999645E-2]
[null,7.2,95,7.2,2.5,5.4,1026.2,12775,0,0,0,0,1.5,112.2,17.2,null,"10:01:00",null,17.2,8,"",null,60,null,null,null,null,null,null,null,null,null,null,null,null,null,null,null,null,null,null,null,null,null,null,null,null,null,null,null,null,null,null,-0.19999999999999929]
[null,7.4,94,7.4,4.7,7.2,1026.3,12844,0,0,0,0,1.5,112.2,17.3,null,"10:02:00",null,17.3,7.9,"",null,60,null,null,null,null,null,null,null,null,null,null,null,null,null,null,null,null,null,null,null,null,null,null,null,null,null,null,null,null,null,null,-0.19999999999999929]
[null,7.4,94,6.7,5.4,7.2,1026.4000000000001,12945,0,0,0,0,1.5,112.2,17.3,null,"10:03:00",null,17.3,{"$f":"(S612-B612)-2","v":7.9},"",null,60,null,null,null,null,null,null,null,null,null,null,null,null,null,null,null,null,null,null,null,null,null,null,null,null,null,null,null,null,null,null,-9.9999999999999645E-2]
[null,7.5,94,7.5,1.8,3.6,1026.0999999999999,13010,1,0,0,0,1.5,112.2,17.3,null,"10:04:00",null,{"$f":"MAX(O613,P613)","v":17.3},7.8000000000000007,"",null,60,null,null,null,null,null,null,null,null,null,null,null,null,null,null,null,null,null,null,null,null,null,null,null,null,null,null,null,null,null,null,0]
[null,7.6,93,6.7,6.1,7.2,1026.0999999999999,13059,1,0,0,0,1.5,112.2,17.3,null,"10:05:00",null,17.3,7.7000000000000011,"",null,60,null,null,null,null,null,null,null,null,null,null,null,null,null,null,null,null,null,null,null,null,null,null,null,null,null,null,null,null,null,null,-9.9999999999999645E-2]
[null,7.6,93,7.6,2.5,5.4,1026.3,13143,1,0,0,0,1.5,112.2,17.3,null,"10:06:00",null,17.3,7.7000000000000011,"",null,60,null,null,null,null,null,null,null,null,null,null,null,null,null,null,null,null,null,null,null,null,null,null,null,null,null,null,null,null,null,null,0]
[null,7.6,93,7.6,1.1000000000000001,1.8,1026.4000000000001,13180,1,0,0,0,1.5,112.2,17.3,null,"10:07:00",null,{"$f":"MAX(O616,P616)","v":17.3},7.7000000000000011,"",null,60,null,null,null,null,null,null,null,null,null,null,null,null,null,null,null,null,null,null,null,null,null,null,null,null,null,null,null,null,null,null,0.10000000000000142]
[null,7.8,92,7.8,2.2000000000000002,5.4,1026.3,13208,1,0,0,0,1.5,112.2,17.3,null,"10:08:00",null,17.3,7.5,"",null,60,null,null,null,null,null,null,null,null,null,null,null,null,null,null,null,null,null,null,null,null,null,null,null,null,null,null,null,null,null,null,9.9999999999999645E-2]
[null,8,91,7.5,5,7.2,1026.5,13242,1,0,0,0,1.5,112.2,17.3,null,"10:09:00",null,17.3,7.3000000000000007,"",null,60,null,null,null,null,null,null,null,null,null,null,null,null,null,null,null,null,null,null,null,null,null,null,null,null,null,null,null,null,null,null,9.9999999999999645E-2]
[null,8,91,8,2.2000000000000002,3.6,1026.2,13368,1,0,0,0,1.5,112.2,17.3,null,"10:10:00",null,17.3,7.3000000000000007,"",null,60,null,null,null,null,null,null,null,null,null,null,null,null,null,null,null,null,null,null,null,null,null,null,null,null,null,null,null,null,null,null,0.19999999999999929]
[null,8,91,8,0.4,1.8,1026.3,13380,1,0,0,0,1.5,112.2,17.3,null,"10:11:00",null,17.3,7.3000000000000007,"",null,60,null,null,null,null,null,null,null,null,null,null,null,null,null,null,null,null,null,null,null,null,null,null,null,null,null,null,null,null,null,null,0.19999999999999929]
[null,8.1,90,8.1,1.1000000000000001,1.8,1026.3,13221,1,0,0,0,1.5,112.2,17.3,null,"10:12:00",null,17.3,7.2000000000000011,"",null,60,null,null,null,null,null,null,null,null,null,null,null,null,null,null,null,null,null,null,null,null,null,null,null,null,null,null,null,null,null,null,0.29999999999999893]
[null,8.3000000000000007,90,8.3000000000000007,0.4,1.8,1026.3,13316,1,0,0,0,1.5,112.2,17.3,null,"10:13:00",null,17.3,7,"",null,60,null,null,null,null,null,null,null,null,null,null,null,null,null,null,null,null,null,null,null,null,null,null,null,null,null,null,null,null,null,null,0.29999999999999893]
[null,8.4,89,8.4,1.1000000000000001,1.8,1026.0999999999999,13506,1,0,0,0,1.5,112.2,17.3,null,"10:14:00",null,17.3,6.9,"",null,60,null,null,null,null,null,null,null,null,null,null,null,null,null,null,null,null,null,null,null,null,null,null,null,null,null,null,null,null,null,null,0.29999999999999893]
[null,8.5,89,8.5,1.4,1.8,1026.2,13490,1,0,0,0,1.5,112.2,17.3,null,"10:15:00",null,17.3,6.8000000000000007,"",null,60,null,null,null,null,null,null,null,null,null,null,null,null,null,null,null,null,null,null,null,null,null,null,null,null,null,null,null,null,null,null,0.40000000000000036]
[null,8.5,88,8.5,1.8,1.8,1026.0999999999999,13550,1,0,0,0,1.5,112.2,18.2,null,"10:16:00",null,18.2,7.6999999999999993,"",null,60,null,null,null,null,null,null,null,null,null,null,null,null,null,null,null,null,null,null,null,null,null,null,null,null,null,null,null,null,null,null,0.40000000000000036]
[null,8.6,88,8.6,0.4,1.8,1026.3,13510,1,0,0,0,1.5,112.2,18.2,null,"10:17:00",null,18.2,7.6,"",null,{"$f":"IF(S626>B626+3,60,\"\")","v":60},null,null,null,null,null,null,null,null,null,null,null,null,null,null,null,null,null,null,null,null,null,null,null,null,null,null,null,null,null,null,0.40000000000000036]
[null,8.6,88,8.6,0.4,1.8,1026.2,13225,1,0,0,0,1.5,112.2,18.2,null,"10:18:00",null,18.2,7.6,"",null,60,null,null,null,null,null,null,null,null,null,null,null,null,null,null,null,null,null,null,null,null,null,null,null,null,null,null,null,null,null,null,0.5]
[null,8.8000000000000007,87,8.8000000000000007,0,0,1026.2,13407,1,0,0,0,1.5,112.2,18.2,null,"10:19:00",null,18.2,7.3999999999999986,"",null,60,null,null,null,null,null,null,null,null,null,null,null,null,null,null,null,null,null,null,null,null,null,null,null,null,null,null,null,null,null,null,0.5]
[null,8.9,87,8.9,1.4,3.6,1026.0999999999999,13466,1,0,0,0,1.5,112.2,18.2,null,"10:20:00",null,18.2,7.2999999999999989,"",null,60,null,null,null,null,null,null,null,null,null,null,null,null,null,null,null,null,null,null,null,null,null,null,null,null,null,null,null,null,null,null,0.59999999999999964]
[null,9,87,9,0.4,1.8,1026.3,13503,1,0,0,0,1.5,112.2,19.100000000000001,null,"10:21:00",null,19.100000000000001,8.1000000000000014,"",null,60,null,null,null,null,null,null,null,null,null,null,null,null,null,null,null,null,null,null,null,null,null,null,null,null,null,null,null,null,null,null,0.59999999999999964]
[null,9,87,9,1.1000000000000001,3.6,1026.2,13787,1,0,0,0,1.5,112.2,19.100000000000001,null,"10:22:00",null,19.100000000000001,8.1000000000000014,"",null,60,null,null,null,null,null,null,null,null,null,null,null,null,null,null,null,null,null,null,null,null,null,null,null,null,null,null,null,null,null,null,0.59999999999999964]
[null,9,87,9,1.1000000000000001,1.8,1026.3,13746,1,0,0,0,1.5,112.2,19.5,null,"10:23:00",null,19.5,8.5,"",null,60,null,null,null,null,null,null,null,null,null,null,null,null,null,null,null,null,null,null,null,null,null,null,null,null,null,null,null,null,null,null,0.59999999999999964]
[null,8.9,87,8.9,0.4,1.8,1026.3,13783,1,0,0,0,1.5,112.2,19.7,null,"10:24:00",null,19.7,8.7999999999999989,"",null,60,null,null,null,null,null,null,null,null,null,null,null,null,null,null,null,null,null,null,null,null,null,null,null,null,null,null,null,null,null,null,0.59999999999999964]
[null,8.9,87,8.9,3.2,3.6,1026.3,14165,1,0,0,0,1.5,112.2,19.8,null,"10:25:00",null,19.8,8.9,"",null,60,null,null,null,null,null,null,null,null,null,null,null,null,null,null,null,null,null,null,null,null,null,null,null,null,null,null,null,null,null,null,0.69999999999999929]
[null,8.9,87,8.9,1.4,3.6,1026.0999999999999,14173,1,0,0,0,1.5,112.2,20,null,"10:26:00",null,20,9.1,"",null,60,null,null,null,null,null,null,null,null,null,null,null,null,null,null,null,null,null,null,null,null,null,null,null,null,null,null,null,null,null,null,0.69999999999999929]
[null,9,87,9,1.4,3.6,1026.3,14171,1,0,0,0,1.5,112.2,20,null,"10:27:00",null,20,9,"",null,60,null,null,null,null,null,null,null,null,null,null,null,null,null,null,null,null,null,null,null,null,null,null,null,null,null,null,null,null,null,null,0.70000000000000107]
[null,9,87,9,0,0,1026.0999999999999,14251,1,0,0,0,1.5,112.2,20,null,"10:28:00",null,20,9,"",null,60,null,null,null,null,null,null,null,null,null,null,null,null,null,null,null,null,null,null,null,null,null,null,null,null,null,null,null,null,null,null,0.80000000000000071]
[null,9.1,86,9.1,0.7,1.8,1026.2,14325,1,0,0,0,1.5,112.2,20,null,"10:29:00",null,20,8.9,"",null,60,null,null,null,null,null,null,null,null,null,null,null,null,null,null,null,null,null,null,null,null,null,null,null,null,null,null,null,null,null,null,0.90000000000000036]
[null,9.1999999999999993,85,9.1999999999999993,2.5,3.6,1026.2,14336,1,0,0,0,1.5,112.2,20.3,null,"10:30:00",null,20.3,9.1000000000000014,"",null,60,null,null,null,null,null,null,null,null,null,null,null,null,null,null,null,null,null,null,null,null,null,null,null,null,null,null,null,null,null,null,1]
[null,9.1,85,9.1,1.4,3.6,1026.2,14335,1,0,0,0,1.5,112.2,20.399999999999999,null,"10:31:00",null,20.399999999999999,9.2999999999999989,"",null,60,null,null,null,null,null,null,null,null,null,null,null,null,null,null,null,null,null,null,null,null,null,null,null,null,null,null,null,null,null,null,0.90000000000000036]
[null,9.1,85,9.1,2.2000000000000002,3.6,1026.3,14327,1,0,0,0,1.5,112.2,20.399999999999999,null,"10:32:00",null,20.399999999999999,9.2999999999999989,"",null,60,null,null,null,null,null,null,null,null,null,null,null,null,null,null,null,null,null,null,null,null,null,null,null,null,null,null,null,null,null,null,1]
[null,9.1,85,9.1,2.2000000000000002,3.6,1026.3,14329,1,0,0,0,1.5,112.2,20.399999999999999,null,"10:33:00",null,20.399999999999999,9.2999999999999989,"",null,60,null,null,null,null,null,null,null,null,null,null,null,null,null,null,null,null,null,null,null,null,null,null,null,null,null,null,null,null,null,null,1]
[null,9.1999999999999993,85,9.1999999999999993,0.4,1.8,1026.3,14394,1,0,0,0,1.5,112.2,20.2,null,"10:34:00",null,20.2,9,"",null,60,null,null,null,null,null,null,null,null,null,null,null,null,null,null,null,null,null,null,null,null,null,null,null,null,null,null,null,null,null,null,1]
[null,9.1999999999999993,85,9.1999999999999993,0.7,3.6,1026.2,14412,1,0,0,0,1.5,112.2,20.2,null,"10:35:00",null,20.2,9,"",null,60,null,null,null,null,null,null,null,null,null,null,null,null,null,null,null,null,null,null,null,null,null,null,null,null,null,null,null,null,null,null,1]
[null,9.4,84,9.4,2.5,3.6,1026.3,14045,1,0,0,0,1.5,112.2,20.3,null,"10:36:00",null,20.3,8.9,"",null,60,null,null,null,null,null,null,null,null,null,null,null,null,null,null,null,null,null,null,null,null,null,null,null,null,null,null,null,null,null,null,1.1000000000000014]
[null,9.5,84,9.5,1.1000000000000001,1.8,1026.0999999999999,14423,1,0,0,0,1.5,112.2,20.3,null,"10:37:00",null,20.3,8.8000000000000007,"",null,60,null,null,null,null,null,null,null,null,null,null,null,null,null,null,null,null,null,null,null,null,null,null,null,null,null,null,null,null,null,null,1.2000000000000011]
[null,9.5,84,9.5,4,5.4,1026.0999999999999,14486,1,0,0,0,1.5,112.2,20.3,null,"10:38:00",null,20.3,8.8000000000000007,"",null,60,null,null,null,null,null,null,null,null,null,null,null,null,null,null,null,null,null,null,null,null,null,null,null,null,null,null,null,null,null,null,1.3000000000000007]
[null,9.4,84,9.4,3.6,5.4,1026.2,14567,1,0,0,0,1.5,112.2,20.5,null,"10:39:00",null,20.5,9.1,"",null,60,null,null,null,null,null,null,null,null,null,null,null,null,null,null,null,null,null,null,null,null,null,null,null,null,null,null,null,null,null,null,1.1999999999999993]
[null,9.4,83,9.4,0.4,1.8,1026.0999999999999,14588,1,0,0,0,1.5,112.2,20.6,null,"10:40:00",null,20.6,9.2000000000000011,"",null,60,null,null,null,null,null,null,null,null,null,null,null,null,null,null,null,null,null,null,null,null,null,null,null,null,null,null,null,null,null,null,1.2999999999999989]
[null,9.3000000000000007,84,9.3000000000000007,3.6,5.4,1026.0999999999999,14749,1,0,0,0,1.5,112.2,20.5,null,"10:41:00",null,20.5,9.1999999999999993,{"$f":"IF(J650>0,60,\"\")","v":""},null,60,null,null,null,null,null,null,null,null,null,null,null,null,null,null,null,null,null,null,null,null,null,null,null,null,null,null,null,null,null,null,1.3999999999999986]
[null,9.3000000000000007,84,9.3000000000000007,4,5.4,1026.2,14802,1,0,0,0,1.5,112.2,20.5,null,"10:42:00",null,20.5,9.1999999999999993,{"$f":"IF(J651>0,60,\"\")","v":""},null,60,null,null,null,null,null,null,null,null,null,null,null,null,null,null,null,null,null,null,null,null,null,null,null,null,null,null,null,null,null,null,1.5]
[null,9.3000000000000007,84,9.3000000000000007,4,7.2,1026.2,14783,1,0,0,0,1.5,112.2,20.399999999999999,null,"10:43:00",null,20.399999999999999,9.0999999999999979,"",null,60,null,null,null,null,null,null,null,null,null,null,null,null,null,null,null,null,null,null,null,null,null,null,null,null,null,null,null,null,null,null,1.5]
[null,9.3000000000000007,84,9.3000000000000007,2.5,3.6,1026,14924,1,0,0,0,1.5,112.2,20.3,null,"10:44:00",null,20.3,9,"",null,60,null,null,null,null,null,null,null,null,null,null,null,null,null,null,null,null,null,null,null,null,null,null,null,null,null,null,null,null,null,null,1.5999999999999996]
[null,9.3000000000000007,84,9.3000000000000007,1.1000000000000001,1.8,1026.2,14663,1,0,0,0,1.5,112.2,20.2,null,"10:45:00",null,20.2,8.8999999999999986,"",null,60,null,null,null,null,null,null,null,null,null,null,null,null,null,null,null,null,null,null,null,null,null,null,null,null,null,null,null,null,null,null,1.5999999999999996]
[null,9.3000000000000007,84,9.3000000000000007,4,5.4,1026.0999999999999,15270,1,0,0,0,1.5,112.2,20.2,null,"10:46:00",null,20.2,8.8999999999999986,"",null,60,null,null,null,null,null,null,null,null,null,null,null,null,null,null,null,null,null,null,null,null,null,null,null,null,null,null,null,null,null,null,1.5999999999999996]
[null,9.3000000000000007,84,9.3000000000000007,0.7,3.6,1026.3,14875,1,0,0,0,1.5,112.2,20.100000000000001,null,"10:47:00",null,{"$f":"MAX(O656,P656)","v":20.100000000000001},{"$f":"(S656-B656)-2","v":8.8000000000000007},"",null,60,null,null,null,null,null,null,null,null,null,null,null,null,null,null,null,null,null,null,null,null,null,null,null,null,null,null,null,null,null,null,1.6999999999999993]
[null,9.3000000000000007,84,9.3000000000000007,1.8,3.6,1026.0999999999999,15523,1,0,0,0,1.5,112.2,20.100000000000001,null,"10:48:00",null,20.100000000000001,8.8000000000000007,"",null,60,null,null,null,null,null,null,null,null,null,null,null,null,null,null,null,null,null,null,null,null,null,null,null,null,null,null,null,null,null,null,1.6999999999999993]
[null,9.5,83,9.5,2.5,3.6,1026.3,15777,1,0,0,0,1.5,112.2,20.2,null,"10:49:00",null,20.2,8.6999999999999993,"",null,60,null,null,null,null,null,null,null,null,null,null,null,null,null,null,null,null,null,null,null,null,null,null,null,null,null,null,null,null,null,null,1.7999999999999989]
[null,9.5,84,9.5,3.6,3.6,1026,16228,1,0,0,0,1.5,112.2,20.100000000000001,null,"10:50:00",null,20.100000000000001,8.6000000000000014,"",null,60,null,null,null,null,null,null,null,null,null,null,null,null,null,null,null,null,null,null,null,null,null,null,null,null,null,null,null,null,null,null,1.7999999999999989]
[null,9.5,84,9.5,2.5,3.6,1026,16331,1,0,0,0,1.5,112.2,20.100000000000001,null,"10:51:00",null,20.100000000000001,{"$f":"(S660-B660)-2","v":8.6000000000000014},"",null,60,null,null,null,null,null,null,null,null,null,null,null,null,null,null,null,null,null,null,null,null,null,null,null,null,null,null,null,null,null,null,1.7999999999999989]
[null,9.5,84,9.5,0.4,1.8,1026,16672,1,0,0,0,1.5,112.2,20.100000000000001,null,"10:52:00",null,20.100000000000001,{"$f":"(S661-B661)-2","v":8.6000000000000014},"",null,60,null,null,null,null,null,null,null,null,null,null,null,null,null,null,null,null,null,null,null,null,null,null,null,null,null,null,null,null,null,null,1.9000000000000004]
[null,9.6,83,9.6,0,0,1026,13822,1,0,0,0,1.5,112.2,20.3,null,"10:53:00",null,20.3,8.7000000000000011,"",null,60,null,null,null,null,null,null,null,null,null,null,null,null,null,null,null,null,null,null,null,null,null,null,null,null,null,null,null,null,null,null,1.9000000000000004]
[null,9.8000000000000007,83,9.8000000000000007,0,0,1026.2,16950,1,0,0,0,1.5,112.2,20.399999999999999,null,"10:54:00",null,20.399999999999999,8.5999999999999979,"",null,60,null,null,null,null,null,null,null,null,null,null,null,null,null,null,null,null,null,null,null,null,null,null,null,null,null,null,null,null,null,null,1.9000000000000004]
[null,10,82,10,1.8,5.4,1026.0999999999999,16208,1,0,0,0,1.5,112.2,20.6,null,"10:55:00",null,20.6,8.6000000000000014,"",null,60,null,null,null,null,null,null,null,null,null,null,null,null,null,null,null,null,null,null,null,null,null,null,null,null,null,null,null,null,null,null,1.9000000000000004]
[null,10,82,10,0,0,1026,17548,1,0,0,0,1.5,112.2,20.6,null,"10:56:00",null,20.6,8.6000000000000014,"",null,60,null,null,null,null,null,null,null,null,null,null,null,null,null,null,null,null,null,null,null,null,null,null,null,null,null,null,null,null,null,null,1.9000000000000004]
[null,10,81,10,1.4,1.8,1026.0999999999999,17844,1,0,0,0,1.5,112.2,20.7,null,"10:57:00",null,20.7,8.6999999999999993,"",null,60,null,null,null,null,null,null,null,null,null,null,null,null,null,null,null,null,null,null,null,null,null,null,null,null,null,null,null,null,null,null,1.8000000000000007]
[null,10,81,10,2.2000000000000002,3.6,1026.0999999999999,18347,1,0,0,0,1.5,112.2,20.7,null,"10:58:00",null,20.7,8.6999999999999993,"",null,60,null,null,null,null,null,null,null,null,null,null,null,null,null,null,null,null,null,null,null,null,null,null,null,null,null,null,null,null,null,null,1.8000000000000007]
[null,10,82,10,4,7.2,1026.3,18795,1,0,0,0,1.5,112.2,20.7,null,"10:59:00",null,20.7,8.6999999999999993,"",null,60,null,null,null,null,null,null,null,null,null,null,null,null,null,null,null,null,null,null,null,null,null,null,null,null,null,null,null,null,null,null,1.8000000000000007]
[null,10,82,10,2.2000000000000002,5.4,1026.0999999999999,18078,1,0,0,0,1.5,112.2,20.7,null,"11:00:00",null,20.7,8.6999999999999993,"",null,60,null,null,null,null,null,null,null,null,null,null,null,null,null,null,null,null,null,null,null,null,null,null,null,null,null,null,null,null,null,null,1.8000000000000007]
[null,10.199999999999999,81,10.199999999999999,0.7,1.8,1026.2,19223,1,0,0,0,1.5,112.2,20.8,null,"11:01:00",null,20.8,8.6000000000000014,"",null,60,null,null,null,null,null,null,null,null,null,null,null,null,null,null,null,null,null,null,null,null,null,null,null,null,null,null,null,null,null,null,1.8000000000000007]
[null,10.199999999999999,81,10.199999999999999,1.1000000000000001,1.8,1026,19996,1,0,0,0,1.5,112.2,20.8,null,"11:02:00",null,20.8,8.6000000000000014,"",null,60,null,null,null,null,null,null,null,null,null,null,null,null,null,null,null,null,null,null,null,null,null,null,null,null,null,null,null,null,null,null,1.9000000000000004]
[null,10.3,81,10.3,1.1000000000000001,1.8,1026.2,20267,1,0,0,0,1.5,112.2,20.9,null,"11:03:00",null,20.9,8.5999999999999979,"",null,60,null,null,null,null,null,null,null,null,null,null,null,null,null,null,null,null,null,null,null,null,null,null,null,null,null,null,null,null,null,null,2]
[null,10.4,80,10.4,5,7.2,1026,20708,1,0,0,0,1.5,112.2,21.1,null,"11:04:00",null,21.1,8.7000000000000011,"",null,60,null,null,null,null,null,null,null,null,null,null,null,null,null,null,null,null,null,null,null,null,null,null,null,null,null,null,null,null,null,null,2.1000000000000014]
[null,10.5,80,10.5,2.5,5.4,1026.0999999999999,21130,1,0,0,0,1.5,112.2,21.3,null,"11:05:00",null,21.3,8.8000000000000007,"",null,60,null,null,null,null,null,null,null,null,null,null,null,null,null,null,null,null,null,null,null,null,null,null,null,null,null,null,null,null,null,null,2.2000000000000011]
[null,10.6,80,10.6,3.2,5.4,1026,21543,1,0,0,0,1.5,112.2,21.4,null,"11:06:00",null,21.4,8.7999999999999989,"",null,60,null,null,null,null,null,null,null,null,null,null,null,null,null,null,null,null,null,null,null,null,null,null,null,null,null,null,null,null,null,null,2.2000000000000011]
[null,10.5,80,10.5,2.5,3.6,1026,22024,1,0,0,0,1.5,112.2,21.5,null,"11:07:00",null,21.5,9,"",null,60,null,null,null,null,null,null,null,null,null,null,null,null,null,null,null,null,null,null,null,null,null,null,null,null,null,null,null,null,null,null,2.0999999999999996]
[null,10.5,80,10.5,1.1000000000000001,3.6,1026.2,22266,1,0,0,0,1.5,112.2,21.5,null,"11:08:00",null,21.5,9,"",null,60,null,null,null,null,null,null,null,null,null,null,null,null,null,null,null,null,null,null,null,null,null,null,null,null,null,null,null,null,null,null,2.0999999999999996]
[null,10.3,80,10.3,2.2000000000000002,3.6,1026.0999999999999,22947,1,0,0,0,1.5,112.2,21.5,null,"11:09:00",null,21.5,9.1999999999999993,"",null,60,null,null,null,null,null,null,null,null,null,null,null,null,null,null,null,null,null,null,null,null,null,null,null,null,null,null,null,null,null,null,2.1999999999999993]
[null,10.3,80,10.3,4,7.2,1025.9000000000001,23374,1,0,0,0,1.5,112.2,21.5,null,"11:10:00",null,21.5,9.1999999999999993,"",null,60,null,null,null,null,null,null,null,null,null,null,null,null,null,null,null,null,null,null,null,null,null,null,null,null,null,null,null,null,null,null,2.0999999999999996]
[null,10.3,80,10.3,1.4,1.8,1026,23845,1,0,0,0,1.5,112.2,21.4,null,"11:11:00",null,21.4,9.0999999999999979,"",null,60,null,null,null,null,null,null,null,null,null,null,null,null,null,null,null,null,null,null,null,null,null,null,null,null,null,null,null,null,null,null,2.0999999999999996]
[null,10.3,80,10.3,1.8,3.6,1026,24256,1,0,0,0,1.5,112.2,21.4,null,"11:12:00",null,21.4,9.0999999999999979,"",null,60,null,null,null,null,null,null,null,null,null,null,null,null,null,null,null,null,null,null,null,null,null,null,null,null,null,null,null,null,null,null,2.2000000000000011]
[null,10.4,80,10.4,1.8,3.6,1026,24773,1,0,0,0,1.5,112.2,21.4,null,"11:13:00",null,21.4,8.9999999999999982,"",null,60,null,null,null,null,null,null,null,null,null,null,null,null,null,null,null,null,null,null,null,null,null,null,null,null,null,null,null,null,null,null,2.1000000000000014]
[null,10.5,79,10.5,2.5,3.6,1025.7,25255,1,0,0,0,1.5,112.2,21.5,null,"11:14:00",null,21.5,9,"",null,60,null,null,null,null,null,null,null,null,null,null,null,null,null,null,null,null,null,null,null,null,null,null,null,null,null,null,null,null,null,null,2.1000000000000014]
[null,10.5,80,10.5,3.2,5.4,1025.8,25795,1,0,0,0,1.5,112.2,21.6,null,"11:15:00",null,21.6,9.1000000000000014,"",null,60,null,null,null,null,null,null,null,null,null,null,null,null,null,null,null,null,null,null,null,null,null,null,null,null,null,null,null,null,null,null,2]
[null,10.5,79,10.5,1.8,3.6,1025.9000000000001,26125,2,0,0,0,1.5,112.2,21.7,null,"11:16:00",null,21.7,9.1999999999999993,"",null,60,null,null,null,null,null,null,null,null,null,null,null,null,null,null,null,null,null,null,null,null,null,null,null,null,null,null,null,null,null,null,1.8999999999999986]
[null,10.6,79,10.6,2.2000000000000002,3.6,1025.8,26705,2,0,0,0,1.5,112.2,21.8,null,"11:17:00",null,21.8,9.2000000000000011,"",null,60,null,null,null,null,null,null,null,null,null,null,null,null,null,null,null,null,null,null,null,null,null,null,null,null,null,null,null,null,null,null,1.8999999999999986]
[null,10.7,79,10.7,1.8,3.6,1025.9000000000001,27367,2,0,0,0,1.5,112.2,21.9,null,"11:18:00",null,21.9,9.1999999999999993,"",null,60,null,null,null,null,null,null,null,null,null,null,null,null,null,null,null,null,null,null,null,null,null,null,null,null,null,null,null,null,null,null,1.8999999999999986]
[null,10.7,79,10.7,2.9,5.4,1025.8,25114,1,0,0,0,1.5,112.2,22.1,null,"11:19:00",null,22.1,9.4000000000000021,"",null,60,null,null,null,null,null,null,null,null,null,null,null,null,null,null,null,null,null,null,null,null,null,null,null,null,null,null,null,null,null,null,1.8999999999999986]
[null,10.7,79,10.7,4.7,5.4,1026.0999999999999,23359,1,0,0,0,1.5,112.2,22.2,null,"11:20:00",null,22.2,9.5,"",null,60,null,null,null,null,null,null,null,null,null,null,null,null,null,null,null,null,null,null,null,null,null,null,null,null,null,null,null,null,null,null,1.8999999999999986]
[null,10.5,79,10.5,4,5.4,1025.9000000000001,21297,1,0,0,0,1.5,112.2,22.3,null,"11:21:00",null,22.3,9.8000000000000007,"",null,{"$f":"IF(S690>B690+3,60,\"\")","v":60},null,null,null,null,null,null,null,null,null,null,null,null,null,null,null,null,null,null,null,null,null,null,null,null,null,null,null,null,null,null,1.8999999999999986]
[null,10.5,80,10.5,1.4,3.6,1025.9000000000001,11493,0,0,0,0,1.5,112.2,22.3,null,"11:22:00",null,22.3,9.8000000000000007,"",null,60,null,null,null,null,null,null,null,null,null,null,null,null,null,null,null,null,null,null,null,null,null,null,null,null,null,null,null,null,null,null,1.8999999999999986]
[null,10.4,80,10.4,2.5,5.4,1025.8,21086,1,0,0,0,1.5,112.2,22.1,null,"11:23:00",null,22.1,9.7000000000000011,"",null,60,null,null,null,null,null,null,null,null,null,null,null,null,null,null,null,null,null,null,null,null,null,null,null,null,null,null,null,null,null,null,1.8999999999999986]
[null,10.4,80,10.4,3.2,3.6,1025.9000000000001,23639,1,0,0,0,1.5,112.2,22,null,"11:24:00",null,22,9.6,"",null,60,null,null,null,null,null,null,null,null,null,null,null,null,null,null,null,null,null,null,null,null,null,null,null,null,null,null,null,null,null,null,1.8999999999999986]
[null,10.3,80,10.3,1.4,3.6,1025.8,25885,1,0,0,0,1.5,112.2,21.7,null,"11:25:00",null,21.7,9.3999999999999986,"",null,60,null,null,null,null,null,null,null,null,null,null,null,null,null,null,null,null,null,null,null,null,null,null,null,null,null,null,null,null,null,null,1.7999999999999989]
[null,10.3,80,10.3,4,5.4,1026.0999999999999,25813,1,0,0,0,1.5,112.2,21.4,null,"11:26:00",null,21.4,9.0999999999999979,"",null,60,null,null,null,null,null,null,null,null,null,null,null,null,null,null,null,null,null,null,null,null,null,null,null,null,null,null,null,null,null,null,1.9000000000000004]
[null,10.4,80,10.4,4,5.4,1025.8,17394,1,0,0,0,1.5,112.2,21.2,null,"11:27:00",null,21.2,8.7999999999999989,"",null,60,null,null,null,null,null,null,null,null,null,null,null,null,null,null,null,null,null,null,null,null,null,null,null,null,null,null,null,null,null,null,1.8000000000000007]
[null,10.6,80,10.6,2.5,5.4,1025.8,21849,1,0,0,0,1.5,112.2,21.2,null,"11:28:00",null,21.2,8.6,"",null,60,null,null,null,null,null,null,null,null,null,null,null,null,null,null,null,null,null,null,null,null,null,null,null,null,null,null,null,null,null,null,1.8000000000000007]
[null,10.6,79,10.6,6.8,9.4,1025.8,11036,0,0,0,0,1.5,112.2,21.1,null,"11:29:00",null,21.1,8.5000000000000018,"",null,60,null,null,null,null,null,null,null,null,null,null,null,null,null,null,null,null,null,null,null,null,null,null,null,null,null,null,null,null,null,null,1.6999999999999993]
[null,10.6,80,10.6,1.8,3.6,1025.9000000000001,24854,1,0,0,0,1.5,112.2,20.9,null,"11:30:00",null,20.9,8.2999999999999989,"",null,60,null,null,null,null,null,null,null,null,null,null,null,null,null,null,null,null,null,null,null,null,null,null,null,null,null,null,null,null,null,null,1.6999999999999993]
[null,10.5,80,10.5,2.2000000000000002,3.6,1026.0999999999999,35747,2,0,0,0,1.5,112.2,20.7,null,"11:31:00",null,20.7,8.1999999999999993,"",null,60,null,null,null,null,null,null,null,null,null,null,null,null,null,null,null,null,null,null,null,null,null,null,null,null,null,null,null,null,null,null,1.6999999999999993]
[null,10.5,80,10.5,0.4,1.8,1025.9000000000001,35898,2,0,0,0,1.5,112.2,20.399999999999999,null,"11:32:00",null,20.399999999999999,7.8999999999999986,"",null,60,null,null,null,null,null,null,null,null,null,null,null,null,null,null,null,null,null,null,null,null,null,null,null,null,null,null,null,null,null,null,1.5999999999999996]
[null,10.6,79,10.6,2.5,5.4,1026.0999999999999,9511,0,0,0,0,1.5,112.2,20.3,null,"11:33:00",null,20.3,7.7000000000000011,"",null,60,null,null,null,null,null,null,null,null,null,null,null,null,null,null,null,null,null,null,null,null,null,null,null,null,null,null,null,null,null,null,1.5999999999999996]
[null,10.9,79,10.9,3.6,5.4,1025.9000000000001,34651,2,0,0,0,1.5,112.2,20.3,null,"11:34:00",null,20.3,7.4,"",null,60,null,null,null,null,null,null,null,null,null,null,null,null,null,null,null,null,null,null,null,null,null,null,null,null,null,null,null,null,null,null,1.5]
[null,10.9,79,10.9,2.2000000000000002,3.6,1025.9000000000001,37081,2,0,0,0,1.5,112.2,20.5,null,"11:35:00",null,20.5,7.6,"",null,60,null,null,null,null,null,null,null,null,null,null,null,null,null,null,null,null,null,null,null,null,null,null,null,null,null,null,null,null,null,null,1.5]
[null,10.9,79,10.9,2.9,3.6,1025.9000000000001,38159,2,0,0,0,1.5,112.2,20.7,null,"11:36:00",null,20.7,7.7999999999999989,"",null,60,null,null,null,null,null,null,null,null,null,null,null,null,null,null,null,null,null,null,null,null,null,null,null,null,null,null,null,null,null,null,1.5]
[null,10.9,79,10.9,1.8,1.8,1026,39690,3,0,0,0,1.5,112.2,20.8,null,"11:37:00",null,20.8,7.9,"",null,60,null,null,null,null,null,null,null,null,null,null,null,null,null,null,null,null,null,null,null,null,null,null,null,null,null,null,null,null,null,null,1.4000000000000004]
[null,11,79,11,2.5,3.6,1025.7,40437,3,0,0,0,1.5,112.2,21,null,"11:38:00",null,21,8,"",null,60,null,null,null,null,null,null,null,null,null,null,null,null,null,null,null,null,null,null,null,null,null,null,null,null,null,null,null,null,null,null,1.4000000000000004]
[null,11.1,78,11.1,0.4,1.8,1025.8,41104,3,0,0,0,1.5,112.2,21.3,null,"11:39:00",null,21.3,8.2000000000000011,"",null,60,null,null,null,null,null,null,null,null,null,null,null,null,null,null,null,null,null,null,null,null,null,null,null,null,null,null,null,null,null,null,1.4000000000000004]
[null,11.3,78,11.3,0.4,1.8,1025.8,41408,3,0,0,0,1.5,112.2,21.6,null,"11:40:00",null,21.6,8.3000000000000007,"",null,60,null,null,null,null,null,null,null,null,null,null,null,null,null,null,null,null,null,null,null,null,null,null,null,null,null,null,null,null,null,null,-11.5]
[null,11.4,78,11.4,4,7.2,1025.8,42222,3,0,0,0,1.5,112.2,22,null,"11:41:00",null,22,8.6,"",null,60,null,null,null,null,null,null,null,null,null,null,null,null,null,null,null,null,null,null,null,null,null,null,null,null,null,null,null,null,null,null,1.4000000000000004]
[null,11.4,78,11.4,5.8,7.2,1025.8,9624,0,0,0,0,1.5,112.2,22.3,null,"11:42:00",null,22.3,8.9,"",null,60,null,null,null,null,null,null,null,null,null,null,null,null,null,null,null,null,null,null,null,null,null,null,null,null,null,null,null,null,null,null,1.4000000000000004]
[null,11.3,78,11.3,7.9,11.2,1025.9000000000001,43419,3,0,0,0,1.5,112.2,22.6,null,"11:43:00",null,22.6,9.3000000000000007,"",null,60,null,null,null,null,null,null,null,null,null,null,null,null,null,null,null,null,null,null,null,null,null,null,null,null,null,null,null,null,null,null,1.5]
[null,11.2,78,11.2,6.1,7.2,1025.9000000000001,12803,0,0,0,0,1.5,112.2,22.8,null,"11:44:00",null,22.8,9.6000000000000014,"",null,60,null,null,null,null,null,null,null,null,null,null,null,null,null,null,null,null,null,null,null,null,null,null,null,null,null,null,null,null,null,null,1.5]
[null,11.2,79,11.2,3.6,3.6,1026,8812,0,0,0,0,1.5,112.2,23,null,"11:45:00",null,23,9.8000000000000007,"",null,60,null,null,null,null,null,null,null,null,null,null,null,null,null,null,null,null,null,null,null,null,null,null,null,null,null,null,null,null,null,null,1.5]
[null,11.3,79,11.3,5,7.2,1025.8,8507,0,0,0,0,1.5,112.2,23.2,null,"11:46:00",null,23.2,9.8999999999999986,{"$f":"IF(J715>0,60,\"\")","v":""},null,60,null,null,null,null,null,null,null,null,null,null,null,null,null,null,null,null,null,null,null,null,null,null,null,null,null,null,null,null,null,null,1.5]
[null,11.4,79,11.4,1.4,3.6,1025.7,42312,3,0,0,0,1.5,112.2,23.4,null,"11:47:00",null,23.4,9.9999999999999982,"",null,60,null,null,null,null,null,null,null,null,null,null,null,null,null,null,null,null,null,null,null,null,null,null,null,null,null,null,null,null,null,null,1.5]
[null,11.5,77,11.5,2.2000000000000002,3.6,1025.7,42326,3,0,0,0,1.5,112.2,23.6,null,"11:48:00",null,23.6,10.100000000000001,"",null,60,null,null,null,null,null,null,null,null,null,null,null,null,null,null,null,null,null,null,null,null,null,null,null,null,null,null,null,null,null,null,1.5999999999999996]
[null,11.5,77,11.5,2.9,5.4,1025.8,39703,3,0,0,0,1.5,112.2,23.7,null,"11:49:00",null,23.7,10.199999999999999,"",null,60,null,null,null,null,null,null,null,null,null,null,null,null,null,null,null,null,null,null,null,null,null,null,null,null,null,null,null,null,null,null,1.5]
[null,11.5,77,11.5,6.1,7.2,1025.8,35690,2,0,0,0,1.5,112.2,23.7,null,"11:50:00",null,23.7,10.199999999999999,"",null,60,null,null,null,null,null,null,null,null,null,null,null,null,null,null,null,null,null,null,null,null,null,null,null,null,null,null,null,null,null,null,1.4000000000000004]
[null,11.5,79,11.5,2.9,5.4,1025.7,36572,2,0,0,0,1.5,112.2,23.8,null,"11:51:00",null,{"$f":"MAX(O720,P720)","v":23.8},{"$f":"(S720-B720)-2","v":10.3},"",null,60,null,null,null,null,null,null,null,null,null,null,null,null,null,null,null,null,null,null,null,null,null,null,null,null,null,null,null,null,null,null,1.5]
[null,11.4,78,11.4,1.4,1.8,1025.5999999999999,35326,2,0,0,0,1.5,112.2,23.8,null,"11:52:00",null,23.8,10.4,"",null,60,null,null,null,null,null,null,null,null,null,null,null,null,null,null,null,null,null,null,null,null,null,null,null,null,null,null,null,null,null,null,1.5]
[null,11.4,78,11.4,1.4,1.8,1025.5999999999999,34768,2,0,0,0,1.5,112.2,23.6,null,"11:53:00",null,23.6,10.200000000000001,"",null,60,null,null,null,null,null,null,null,null,null,null,null,null,null,null,null,null,null,null,null,null,null,null,null,null,null,null,null,null,null,null,1.5]
[null,11.4,78,11.4,6.1,7.2,1025.5,35003,2,0,0,0,1.5,112.2,23.4,null,"11:54:00",null,23.4,9.9999999999999982,"",null,60,null,null,null,null,null,null,null,null,null,null,null,null,null,null,null,null,null,null,null,null,null,null,null,null,null,null,null,null,null,null,1.5999999999999996]
[null,11.3,79,11.3,4.7,9.4,1025.7,34947,2,0,0,0,1.5,112.2,23.2,null,"11:55:00",null,23.2,9.8999999999999986,"",null,60,null,null,null,null,null,null,null,null,null,null,null,null,null,null,null,null,null,null,null,null,null,null,null,null,null,null,null,null,null,null,1.5999999999999996]
[null,11.3,78,11.3,7.2,11.2,1025.7,38124,2,0,0,0,1.5,112.2,23.1,null,"11:56:00",null,23.1,9.8000000000000007,"",null,60,null,null,null,null,null,null,null,null,null,null,null,null,null,null,null,null,null,null,null,null,null,null,null,null,null,null,null,null,null,null,1.5999999999999996]
[null,11.3,78,11.3,3.6,5.4,1025.8,39687,3,0,0,0,1.5,112.2,23.1,null,"11:57:00",null,23.1,9.8000000000000007,"",null,60,null,null,null,null,null,null,null,null,null,null,null,null,null,null,null,null,null,null,null,null,null,null,null,null,null,null,null,null,null,null,1.5999999999999996]
[null,11.4,77,11.4,1.4,3.6,1025.5999999999999,10820,0,0,0,0,1.5,112.2,22.6,null,"11:58:00",null,22.6,9.2000000000000011,"",null,60,null,null,null,null,null,null,null,null,null,null,null,null,null,null,null,null,null,null,null,null,null,null,null,null,null,null,null,null,null,null,1.5]
[null,11.5,76,11.5,4.3,9.4,1025.7,40607,3,0,0,0,1.5,112.2,22.4,null,"11:59:00",null,22.4,8.8999999999999986,"",null,60,null,null,null,null,null,null,null,null,null,null,null,null,null,null,null,null,null,null,null,null,null,null,null,null,null,null,null,null,null,null,1.5]
[null,11.6,77,11.6,1.4,3.6,1025.5999999999999,41796,3,0,0,0,1.5,112.2,22.2,null,"12:00:00",null,22.2,8.6,"",null,60,null,null,null,null,null,null,null,null,null,null,null,null,null,null,null,null,null,null,null,null,null,null,null,null,null,null,null,null,null,null,1.5]
[null,11.6,77,11.6,1.8,1.8,1025.5999999999999,42195,3,0,0,0,1.5,112.2,22.1,null,"12:01:00",null,22.1,8.5000000000000018,"",null,60,null,null,null,null,null,null,null,null,null,null,null,null,null,null,null,null,null,null,null,null,null,null,null,null,null,null,null,null,null,null,1.5999999999999996]
[null,11.6,77,11.6,1.8,3.6,1025.8,43443,3,0,0,0,1.5,112.2,22,null,"12:02:00",null,22,8.4,"",null,60,null,null,null,null,null,null,null,null,null,null,null,null,null,null,null,null,null,null,null,null,null,null,null,null,null,null,null,null,null,null,1.6999999999999993]
[null,11.7,77,11.7,1.1000000000000001,1.8,1025.5,43639,3,0,0,0,1.5,112.2,22,null,"12:03:00",null,22,8.3000000000000007,"",null,60,null,null,null,null,null,null,null,null,null,null,null,null,null,null,null,null,null,null,null,null,null,null,null,null,null,null,null,null,null,null,1.6999999999999993]
[null,11.8,76,11.8,1.1000000000000001,1.8,1025.5,43438,3,0,0,0,1.5,112.2,22,null,"12:04:00",null,22,8.1999999999999993,"",null,60,null,null,null,null,null,null,null,null,null,null,null,null,null,null,null,null,null,null,null,null,null,null,null,null,null,null,null,null,null,null,1.7999999999999989]
[null,12,76,12,1.4,1.8,1025.5999999999999,45227,3,0,0,0,1.5,112.2,22.1,null,"12:05:00",null,22.1,8.1000000000000014,"",null,60,null,null,null,null,null,null,null,null,null,null,null,null,null,null,null,null,null,null,null,null,null,null,null,null,null,null,null,null,null,null,1.6999999999999993]
[null,12.1,76,12.1,5.4,7.2,1025.5,47462,3,0,0,0,1.5,112.2,22.2,null,"12:06:00",null,22.2,8.1,"",null,60,null,null,null,null,null,null,null,null,null,null,null,null,null,null,null,null,null,null,null,null,null,null,null,null,null,null,null,null,null,null,1.6999999999999993]
[null,12.1,77,12.1,4.7,7.2,1025.5,48338,3,0,0,0,1.5,112.2,22.4,null,"12:07:00",null,22.4,8.2999999999999989,"",null,60,null,null,null,null,null,null,null,null,null,null,null,null,null,null,null,null,null,null,null,null,null,null,null,null,null,null,null,null,null,null,1.6999999999999993]
[null,11.9,77,11.9,1.4,1.8,1025.7,49225,3,0,0,0,1.5,112.2,22.5,null,"12:08:00",null,22.5,8.6,"",null,60,null,null,null,null,null,null,null,null,null,null,null,null,null,null,null,null,null,null,null,null,null,null,null,null,null,null,null,null,null,null,1.5999999999999996]
[null,12,76,12,3.6,5.4,1025.5,49614,3,0,0,0,1.5,112.2,22.7,null,"12:09:00",null,22.7,8.6999999999999993,"",null,60,null,null,null,null,null,null,null,null,null,null,null,null,null,null,null,null,null,null,null,null,null,null,null,null,null,null,null,null,null,null,1.5]
[null,12.1,75,12.1,2.9,5.4,1025.4000000000001,49591,3,0,0,0,1.5,112.2,22.9,null,"12:10:00",null,22.9,8.7999999999999989,"",null,60,null,null,null,null,null,null,null,null,null,null,null,null,null,null,null,null,null,null,null,null,null,null,null,null,null,null,null,null,null,null,1.5]
[null,12.2,75,12.2,7.2,11.2,1025.5999999999999,50008,3,0,0,0,1.5,112.2,23.1,null,"12:11:00",null,23.1,8.9000000000000021,"",null,60,null,null,null,null,null,null,null,null,null,null,null,null,null,null,null,null,null,null,null,null,null,null,null,null,null,null,null,null,null,null,1.5]
[null,12.2,76,12.2,8.6,11.2,1025.7,49860,3,0,0,0,1.5,112.2,23.3,null,"12:12:00",null,23.3,9.1000000000000014,"",null,60,null,null,null,null,null,null,null,null,null,null,null,null,null,null,null,null,null,null,null,null,null,null,null,null,null,null,null,null,null,null,1.5]
[null,12,76,12,4.7,5.4,1025.5999999999999,49818,3,0,0,0,1.5,112.2,23.4,null,"12:13:00",null,23.4,9.3999999999999986,"",null,60,null,null,null,null,null,null,null,null,null,null,null,null,null,null,null,null,null,null,null,null,null,null,null,null,null,null,null,null,null,null,1.5]
[null,11.9,76,11.9,7.6,9.4,1025.5,49294,3,0,0,0,1.5,112.2,23.5,null,"12:14:00",null,23.5,9.6,"",null,60,null,null,null,null,null,null,null,null,null,null,null,null,null,null,null,null,null,null,null,null,null,null,null,null,null,null,null,null,null,null,1.5]
[null,11.9,77,11.9,4,5.4,1025.5,48983,3,0,0,0,1.5,112.2,23.7,null,"12:15:00",null,23.7,9.7999999999999989,"",null,60,null,null,null,null,null,null,null,null,null,null,null,null,null,null,null,null,null,null,null,null,null,null,null,null,null,null,null,null,null,null,1.5]
[null,12,76,12,0.7,1.8,1025.7,49095,3,0,0,0,1.5,112.2,23.9,null,"12:16:00",null,23.9,9.8999999999999986,"",null,60,null,null,null,null,null,null,null,null,null,null,null,null,null,null,null,null,null,null,null,null,null,null,null,null,null,null,null,null,null,null,1.5]
[null,12.3,75,12.3,3.6,7.2,1025.5,49308,3,0,0,0,1.5,112.2,24.2,null,"12:17:00",null,24.2,9.8999999999999986,"",null,60,null,null,null,null,null,null,null,null,null,null,null,null,null,null,null,null,null,null,null,null,null,null,null,null,null,null,null,null,null,null,1.5]
[null,12.5,74,12.5,4,7.2,1025.4000000000001,49544,3,0,0,0,1.5,112.2,24.4,null,"12:18:00",null,24.4,9.8999999999999986,"",null,60,null,null,null,null,null,null,null,null,null,null,null,null,null,null,null,null,null,null,null,null,null,null,null,null,null,null,null,null,null,null,1.5]
[null,12.5,74,12.5,3.2,5.4,1025.3,50037,3,0,0,0,1.5,112.2,24.5,null,"12:19:00",null,24.5,10,"",null,60,null,null,null,null,null,null,null,null,null,null,null,null,null,null,null,null,null,null,null,null,null,null,null,null,null,null,null,null,null,null,1.5]
[null,12.5,74,12.5,2.9,3.6,1025.5999999999999,50325,3,0,0,0,1.5,112.2,24.4,null,"12:20:00",null,24.4,9.8999999999999986,"",null,60,null,null,null,null,null,null,null,null,null,null,null,null,null,null,null,null,null,null,null,null,null,null,null,null,null,null,null,null,null,null,1.5]
[null,12.5,74,12.5,1.8,3.6,1025.5,49681,3,0,0,0,1.5,112.2,24.4,null,"12:21:00",null,24.4,9.8999999999999986,"",null,60,null,null,null,null,null,null,null,null,null,null,null,null,null,null,null,null,null,null,null,null,null,null,null,null,null,null,null,null,null,null,1.5]
[null,12.5,74,12.5,1.4,3.6,1025.4000000000001,50259,3,0,0,0,1.5,112.2,24.5,null,"12:22:00",null,24.5,10,"",null,60,null,null,null,null,null,null,null,null,null,null,null,null,null,null,null,null,null,null,null,null,null,null,null,null,null,null,null,null,null,null,1.5]
[null,12.7,73,12.7,1.1000000000000001,1.8,1025.5999999999999,49986,3,0,0,0,1.5,112.2,24.6,null,"12:23:00",null,24.6,9.9000000000000021,"",null,60,null,null,null,null,null,null,null,null,null,null,null,null,null,null,null,null,null,null,null,null,null,null,null,null,null,null,null,null,null,null,1.5]
[null,12.9,73,12.9,1.8,1.8,1025.3,49840,3,0,0,0,1.5,112.2,24.9,null,"12:24:00",null,24.9,9.9999999999999982,"",null,60,null,null,null,null,null,null,null,null,null,null,null,null,null,null,null,null,null,null,null,null,null,null,null,null,null,null,null,null,null,null,1.5]
[null,12.9,74,12.9,4.3,7.2,1025.4000000000001,49919,3,0,0,0,1.5,112.2,25.1,null,"12:25:00",null,25.1,10.200000000000001,"",null,{"$f":"IF(S754>B754+3,60,\"\")","v":60},null,null,null,null,null,null,null,null,null,null,null,null,null,null,null,null,null,null,null,null,null,null,null,null,null,null,null,null,null,null,1.5]
[null,12.7,75,12.7,1.4,3.6,1025.3,49937,3,0,0,0,1.5,112.2,25.3,null,"12:26:00",null,25.3,10.600000000000001,"",null,60,null,null,null,null,null,null,null,null,null,null,null,null,null,null,null,null,null,null,null,null,null,null,null,null,null,null,null,null,null,null,1.5]
[null,12.6,75,12.6,5,7.2,1025.4000000000001,50216,3,0,0,0,1.5,112.2,25.4,null,"12:27:00",null,25.4,10.799999999999999,"",null,60,null,null,null,null,null,null,null,null,null,null,null,null,null,null,null,null,null,null,null,null,null,null,null,null,null,null,null,null,null,null,1.5]
[null,12.5,76,12.5,1.1000000000000001,3.6,1025.5,50494,3,0,0,0,1.5,112.2,25.5,null,"12:28:00",null,25.5,11,"",null,60,null,null,null,null,null,null,null,null,null,null,null,null,null,null,null,null,null,null,null,null,null,null,null,null,null,null,null,null,null,null,1.4000000000000004]
[null,12.3,76,12.3,7.2,9.4,1025.5,50763,3,0,0,0,1.5,112.2,25.4,null,"12:29:00",null,25.4,11.099999999999998,"",null,60,null,null,null,null,null,null,null,null,null,null,null,null,null,null,null,null,null,null,null,null,null,null,null,null,null,null,null,null,null,null,1.4000000000000004]
[null,12.2,77,12.2,2.2000000000000002,3.6,1025.2,50718,3,0,0,0,1.5,112.2,25.4,null,"12:30:00",null,25.4,11.2,"",null,60,null,null,null,null,null,null,null,null,null,null,null,null,null,null,null,null,null,null,null,null,null,null,null,null,null,null,null,null,null,null,1.5]
[null,12.3,75,12.3,1.1000000000000001,1.8,1025.2,50973,3,0,0,0,1.5,112.2,25.4,null,"12:31:00",null,25.4,11.099999999999998,"",null,60,null,null,null,null,null,null,null,null,null,null,null,null,null,null,null,null,null,null,null,null,null,null,null,null,null,null,null,null,null,null,1.4000000000000004]
[null,12.5,76,12.5,0.7,1.8,1025.4000000000001,51099,3,0,0,0,1.5,112.2,25.4,null,"12:32:00",null,25.4,10.899999999999999,"",null,60,null,null,null,null,null,null,null,null,null,null,null,null,null,null,null,null,null,null,null,null,null,null,null,null,null,null,null,null,null,null,1.4000000000000004]
[null,12.6,75,12.6,6.1,7.2,1025.5,51663,3,0,0,0,1.5,112.2,25.5,null,"12:33:00",null,25.5,10.9,"",null,60,null,null,null,null,null,null,null,null,null,null,null,null,null,null,null,null,null,null,null,null,null,null,null,null,null,null,null,null,null,null,1.4000000000000004]
[null,12.6,75,12.6,4.3,7.2,1025.4000000000001,46299,3,0,0,0,1.5,112.2,25.7,null,"12:34:00",null,25.7,11.1,"",null,60,null,null,null,null,null,null,null,null,null,null,null,null,null,null,null,null,null,null,null,null,null,null,null,null,null,null,null,null,null,null,1.4000000000000004]
[null,12.6,75,12.6,3.6,3.6,1025.2,50521,3,0,0,0,1.5,112.2,25.9,null,"12:35:00",null,25.9,11.299999999999999,"",null,60,null,null,null,null,null,null,null,null,null,null,null,null,null,null,null,null,null,null,null,null,null,null,null,null,null,null,null,null,null,null,1.4000000000000004]
[null,12.6,75,12.6,2.9,3.6,1025.2,51383,3,0,0,0,1.5,112.2,26,null,"12:36:00",null,26,11.4,"",null,60,null,null,null,null,null,null,null,null,null,null,null,null,null,null,null,null,null,null,null,null,null,null,null,null,null,null,null,null,null,null,1.4000000000000004]
[null,12.8,75,12.8,4,5.4,1025.2,50832,3,0,0,0,1.5,112.2,26.1,null,"12:37:00",null,26.1,11.3,"",null,60,null,null,null,null,null,null,null,null,null,null,null,null,null,null,null,null,null,null,null,null,null,null,null,null,null,null,null,null,null,null,1.2999999999999989]
[null,12.8,74,12.8,5.4,7.2,1025.0999999999999,51702,3,0,0,0,1.5,112.2,26.1,null,"12:38:00",null,26.1,11.3,"",null,60,null,null,null,null,null,null,null,null,null,null,null,null,null,null,null,null,null,null,null,null,null,null,null,null,null,null,null,null,null,null,1.2999999999999989]
[null,12.8,75,12.8,4.7,5.4,1025.0999999999999,52362,4,0,0,0,1.5,112.2,26.2,null,"12:39:00",null,26.2,11.399999999999999,"",null,60,null,null,null,null,null,null,null,null,null,null,null,null,null,null,null,null,null,null,null,null,null,null,null,null,null,null,null,null,null,null,1.2999999999999989]
[null,12.7,75,12.7,3.6,5.4,1025.2,52213,4,0,0,0,1.5,112.2,26.3,null,"12:40:00",null,26.3,11.600000000000001,"",null,60,null,null,null,null,null,null,null,null,null,null,null,null,null,null,null,null,null,null,null,null,null,null,null,null,null,null,null,null,null,null,1.2999999999999989]
[null,12.5,74,12.5,6.8,7.2,1025.3,52392,4,0,0,0,1.5,112.2,26.4,null,"12:41:00",null,26.4,11.899999999999999,"",null,60,null,null,null,null,null,null,null,null,null,null,null,null,null,null,null,null,null,null,null,null,null,null,null,null,null,null,null,null,null,null,1.1999999999999993]
[null,12.4,75,12.4,7.2,7.2,1025.2,52068,4,0,0,0,1.5,112.2,26.5,null,"12:42:00",null,26.5,12.1,"",null,60,null,null,null,null,null,null,null,null,null,null,null,null,null,null,null,null,null,null,null,null,null,null,null,null,null,null,null,null,null,null,1.1999999999999993]
[null,12.5,75,12.5,1.4,3.6,1025.0999999999999,44830,3,0,0,0,1.5,112.2,26.7,null,"12:43:00",null,26.7,12.2,"",null,60,null,null,null,null,null,null,null,null,null,null,null,null,null,null,null,null,null,null,null,null,null,null,null,null,null,null,null,null,null,null,1.1999999999999993]
[null,12.4,75,12.4,4.7,5.4,1025.0999999999999,52051,4,0,0,0,1.5,112.2,26.7,null,"12:44:00",null,26.7,12.299999999999999,"",null,60,null,null,null,null,null,null,null,null,null,null,null,null,null,null,null,null,null,null,null,null,null,null,null,null,null,null,null,null,null,null,1.1999999999999993]
[null,12.4,75,12.4,3.2,5.4,1025.2,52239,4,0,0,0,1.5,112.2,26.7,null,"12:45:00",null,26.7,12.299999999999999,"",null,60,null,null,null,null,null,null,null,null,null,null,null,null,null,null,null,null,null,null,null,null,null,null,null,null,null,null,null,null,null,null,1.4000000000000004]
[null,12.5,74,12.5,4,5.4,1025.2,52613,4,0,0,0,1.5,112.2,26.6,null,"12:46:00",null,26.6,12.100000000000001,"",null,60,null,null,null,null,null,null,null,null,null,null,null,null,null,null,null,null,null,null,null,null,null,null,null,null,null,null,null,null,null,null,1.4000000000000004]
[null,12.5,76,12.5,0.4,1.8,1025.0999999999999,51433,3,0,0,0,1.5,112.2,26.6,null,"12:47:00",null,26.6,12.100000000000001,"",null,60,null,null,null,null,null,null,null,null,null,null,null,null,null,null,null,null,null,null,null,null,null,null,null,null,null,null,null,null,null,null,1.1999999999999993]
[null,12.6,75,12.6,2.9,3.6,1025.2,51765,3,0,0,0,1.5,112.2,26.7,null,"12:48:00",null,26.7,12.1,"",null,60,null,null,null,null,null,null,null,null,null,null,null,null,null,null,null,null,null,null,null,null,null,null,null,null,null,null,null,null,null,null,1.3000000000000007]
[null,12.7,75,12.7,6.1,7.2,1025.2,50400,3,0,0,0,1.5,112.2,26.9,null,"12:49:00",null,26.9,12.2,"",null,60,null,null,null,null,null,null,null,null,null,null,null,null,null,null,null,null,null,null,null,null,null,null,null,null,null,null,null,null,null,null,1.4000000000000004]
[null,12.7,76,12.7,0.4,1.8,1025,49615,3,0,0,0,1.5,112.2,27.1,null,"12:50:00",null,27.1,12.400000000000002,{"$f":"IF(J779>0,60,\"\")","v":""},null,60,null,null,null,null,null,null,null,null,null,null,null,null,null,null,null,null,null,null,null,null,null,null,null,null,null,null,null,null,null,null,1.2999999999999989]
[null,12.7,75,12.7,3.6,5.4,1025.0999999999999,50938,3,0,0,0,1.5,112.2,27.2,null,"12:51:00",null,27.2,12.5,"",null,60,null,null,null,null,null,null,null,null,null,null,null,null,null,null,null,null,null,null,null,null,null,null,null,null,null,null,null,null,null,null,1.2999999999999989]
[null,12.7,74,12.7,2.2000000000000002,3.6,1025,49612,3,0,0,0,1.5,112.2,27.3,null,"12:52:00",null,27.3,12.600000000000001,"",null,60,null,null,null,null,null,null,null,null,null,null,null,null,null,null,null,null,null,null,null,null,null,null,null,null,null,null,null,null,null,null,1.2999999999999989]
[null,12.8,74,12.8,2.9,5.4,1025.2,51125,3,0,0,0,1.5,112.2,27.3,null,"12:53:00",null,27.3,12.5,"",null,60,null,null,null,null,null,null,null,null,null,null,null,null,null,null,null,null,null,null,null,null,null,null,null,null,null,null,null,null,null,null,1.2999999999999989]
[null,12.9,74,12.9,0.4,1.8,1025.0999999999999,52834,4,0,0,0,1.5,112.2,27.5,null,"12:54:00",null,27.5,12.6,"",null,60,null,null,null,null,null,null,null,null,null,null,null,null,null,null,null,null,null,null,null,null,null,null,null,null,null,null,null,null,null,null,1.4000000000000004]
[null,13.1,74,13.1,4,5.4,1025.2,52277,4,0,0,0,1.5,112.2,27.6,null,"12:55:00",null,{"$f":"MAX(O784,P784)","v":27.6},{"$f":"(S784-B784)-2","v":12.500000000000002},"",null,60,null,null,null,null,null,null,null,null,null,null,null,null,null,null,null,null,null,null,null,null,null,null,null,null,null,null,null,null,null,null,1.3000000000000007]
[null,13.1,73,13.1,4.3,5.4,1025.2,54550,4,0,0,0,1.5,112.2,27.6,null,"12:56:00",null,27.6,12.500000000000002,"",null,60,null,null,null,null,null,null,null,null,null,null,null,null,null,null,null,null,null,null,null,null,null,null,null,null,null,null,null,null,null,null,1.5]
[null,13,74,13,2.9,3.6,1024.9000000000001,52490,4,0,0,0,1.5,112.2,27.6,null,"12:57:00",null,27.6,12.600000000000001,"",null,60,null,null,null,null,null,null,null,null,null,null,null,null,null,null,null,null,null,null,null,null,null,null,null,null,null,null,null,null,null,null,1.4000000000000004]
[null,12.8,74,12.8,2.9,3.6,1025,53249,4,0,0,0,1.5,112.2,27.7,null,"12:58:00",null,27.7,12.899999999999999,"",null,60,null,null,null,null,null,null,null,null,null,null,null,null,null,null,null,null,null,null,null,null,null,null,null,null,null,null,null,null,null,null,1.4000000000000004]
[null,12.8,75,12.8,2.5,3.6,1025,52919,4,0,0,0,1.5,112.2,27.8,null,"12:59:00",null,27.8,13,"",null,60,null,null,null,null,null,null,null,null,null,null,null,null,null,null,null,null,null,null,null,null,null,null,null,null,null,null,null,null,null,null,1.5]
[null,12.8,74,12.8,5,5.4,1024.9000000000001,52360,4,0,0,0,1.5,112.2,28,null,"13:00:00",null,28,13.2,"",null,60,null,null,null,null,null,null,null,null,null,null,null,null,null,null,null,null,null,null,null,null,null,null,null,null,null,null,null,null,null,null,1.5]
[null,12.9,74,12.9,7.9,9.4,1025,31897,2,0,0,0,1.5,112.2,28.2,null,"13:01:00",null,28.2,13.299999999999999,"",null,60,null,null,null,null,null,null,null,null,null,null,null,null,null,null,null,null,null,null,null,null,null,null,null,null,null,null,null,null,null,null,1.5]
[null,12.6,75,12.6,4,5.4,1025.0999999999999,52760,4,0,0,0,1.5,112.2,28.1,null,"13:02:00",null,28.1,13.500000000000002,"",null,60,null,null,null,null,null,null,null,null,null,null,null,null,null,null,null,null,null,null,null,null,null,null,null,null,null,null,null,null,null,null,1.5999999999999996]
[null,12.5,74,12.5,2.9,3.6,1024.7,49067,3,0,0,0,1.5,112.2,27.9,null,"13:03:00",null,27.9,13.399999999999999,"",null,60,null,null,null,null,null,null,null,null,null,null,null,null,null,null,null,null,null,null,null,null,null,null,null,null,null,null,null,null,null,null,1.5]
[null,12.5,75,12.5,5,7.2,1024.8,47824,3,0,0,0,1.5,112.2,27.7,null,"13:04:00",null,27.7,13.2,"",null,60,null,null,null,null,null,null,null,null,null,null,null,null,null,null,null,null,null,null,null,null,null,null,null,null,null,null,null,null,null,null,1.5]
[null,12.5,75,12.5,5.4,5.4,1024.7,51006,3,0,0,0,1.5,112.2,27.7,null,"13:05:00",null,27.7,13.2,"",null,60,null,null,null,null,null,null,null,null,null,null,null,null,null,null,null,null,null,null,null,null,null,null,null,null,null,null,null,null,null,null,1.5]
[null,12.5,75,12.5,1.8,3.6,1024.9000000000001,51302,3,0,0,0,1.5,112.2,27.5,null,"13:06:00",null,27.5,13,"",null,60,null,null,null,null,null,null,null,null,null,null,null,null,null,null,null,null,null,null,null,null,null,null,null,null,null,null,null,null,null,null,1.4000000000000004]
[null,12.6,76,12.6,1.1000000000000001,3.6,1024.9000000000001,41956,3,0,0,0,1.5,112.2,27.4,null,"13:07:00",null,27.4,12.799999999999999,"",null,60,null,null,null,null,null,null,null,null,null,null,null,null,null,null,null,null,null,null,null,null,null,null,null,null,null,null,null,null,null,null,1.4000000000000004]
[null,12.8,76,12.8,3.2,3.6,1024.7,38167,2,0,0,0,1.5,112.2,27.3,null,"13:08:00",null,27.3,12.5,"",null,60,null,null,null,null,null,null,null,null,null,null,null,null,null,null,null,null,null,null,null,null,null,null,null,null,null,null,null,null,null,null,1.2999999999999989]
[null,12.8,77,12.8,3.6,5.4,1024.7,47067,3,0,0,0,1.5,112.2,27.3,null,"13:09:00",null,27.3,12.5,"",null,60,null,null,null,null,null,null,null,null,null,null,null,null,null,null,null,null,null,null,null,null,null,null,null,null,null,null,null,null,null,null,1.2999999999999989]
[null,12.3,79,12.3,4,5.4,1024.7,49596,3,0,0,0,1.5,112.2,27.4,null,"13:10:00",null,27.4,13.099999999999998,"",null,60,null,null,null,null,null,null,null,null,null,null,null,null,null,null,null,null,null,null,null,null,null,null,null,null,null,null,null,null,null,null,1.2999999999999989]
[null,11.8,79,11.8,3.6,5.4,1024.5999999999999,49606,3,0,0,0,1.5,112.2,27.3,null,"13:11:00",null,27.3,13.5,"",null,60,null,null,null,null,null,null,null,null,null,null,null,null,null,null,null,null,null,null,null,null,null,null,null,null,null,null,null,null,null,null,1.2999999999999989]
[null,11.7,80,11.7,2.2000000000000002,3.6,1024.8,53903,4,0,0,0,1.5,112.2,27.2,null,"13:12:00",null,27.2,13.5,"",null,60,null,null,null,null,null,null,null,null,null,null,null,null,null,null,null,null,null,null,null,null,null,null,null,null,null,null,null,null,null,null,1.1999999999999993]
[null,11.7,79,11.7,2.5,3.6,1024.7,51995,3,0,0,0,1.5,112.2,27.1,null,"13:13:00",null,27.1,13.400000000000002,"",null,60,null,null,null,null,null,null,null,null,null,null,null,null,null,null,null,null,null,null,null,null,null,null,null,null,null,null,null,null,null,null,1.1999999999999993]
[null,11.7,79,11.7,6.1,7.2,1024.8,53669,4,0,0,0,1.5,112.2,27.2,null,"13:14:00",null,27.2,13.5,"",null,60,null,null,null,null,null,null,null,null,null,null,null,null,null,null,null,null,null,null,null,null,null,null,null,null,null,null,null,null,null,null,1.3000000000000007]
[null,11.7,79,11.7,3.6,5.4,1025,54552,4,0,0,0,1.5,112.2,27.3,null,"13:15:00",null,27.3,13.600000000000001,"",null,60,null,null,null,null,null,null,null,null,null,null,null,null,null,null,null,null,null,null,null,null,null,null,null,null,null,null,null,null,null,null,1.3000000000000007]
[null,11.7,80,11.7,3.2,3.6,1024.5999999999999,54521,4,0,0,0,1.5,112.2,27.4,null,"13:16:00",null,27.4,13.7,"",null,60,null,null,null,null,null,null,null,null,null,null,null,null,null,null,null,null,null,null,null,null,null,null,null,null,null,null,null,null,null,null,1.4000000000000004]
[null,11.6,80,11.6,0.4,1.8,1024.8,54867,4,0,0,0,1.5,112.2,27.5,null,"13:17:00",null,27.5,13.9,"",null,60,null,null,null,null,null,null,null,null,null,null,null,null,null,null,null,null,null,null,null,null,null,null,null,null,null,null,null,null,null,null,1.4000000000000004]
[null,11.8,79,11.8,0.4,1.8,1024.7,54391,4,0,0,0,1.5,112.2,27.7,null,"13:18:00",null,27.7,13.899999999999999,"",null,60,null,null,null,null,null,null,null,null,null,null,null,null,null,null,null,null,null,null,null,null,null,null,null,null,null,null,null,null,null,null,1.4000000000000004]
[null,12,78,12,1.8,1.8,1024.8,45484,3,0,0,0,1.5,112.2,27.9,null,"13:19:00",null,27.9,13.899999999999999,"",null,60,null,null,null,null,null,null,null,null,null,null,null,null,null,null,null,null,null,null,null,null,null,null,null,null,null,null,null,null,null,null,1.4000000000000004]
[null,12,78,12,2.9,3.6,1024.7,51325,3,0,0,0,1.5,112.2,28.1,null,"13:20:00",null,28.1,14.100000000000001,"",null,60,null,null,null,null,null,null,null,null,null,null,null,null,null,null,null,null,null,null,null,null,null,null,null,null,null,null,null,null,null,null,1.4000000000000004]
[null,12,78,12,1.4,3.6,1024.5999999999999,53242,4,0,0,0,1.5,112.2,28.4,null,"13:21:00",null,28.4,14.399999999999999,"",null,60,null,null,null,null,null,null,null,null,null,null,null,null,null,null,null,null,null,null,null,null,null,null,null,null,null,null,null,null,null,null,1.5]
[null,12.1,78,12.1,0,0,1024.5999999999999,52369,4,0,0,0,1.5,112.2,28.4,null,"13:22:00",null,28.4,14.299999999999997,"",null,60,null,null,null,null,null,null,null,null,null,null,null,null,null,null,null,null,null,null,null,null,null,null,null,null,null,null,null,null,null,null,1.5]
[null,12.2,77,12.2,0.4,1.8,1024.7,50378,3,0,0,0,1.5,112.2,28.9,null,"13:23:00",null,28.9,14.7,"",null,60,null,null,null,null,null,null,null,null,null,null,null,null,null,null,null,null,null,null,null,null,null,null,null,null,null,null,null,null,null,null,1.5]
[null,12.4,77,12.4,0,0,1024.5,50425,3,0,0,0,1.5,112.2,29.2,null,"13:24:00",null,29.2,14.799999999999997,"",null,60,null,null,null,null,null,null,null,null,null,null,null,null,null,null,null,null,null,null,null,null,null,null,null,null,null,null,null,null,null,null,1.4000000000000004]
[null,12.5,76,12.5,2.2000000000000002,3.6,1024.5,49685,3,0,0,0,1.5,112.2,29.2,null,"13:25:00",null,{"$f":"MAX(O814,P814)","v":29.2},14.7,"",null,60,null,null,null,null,null,null,null,null,null,null,null,null,null,null,null,null,null,null,null,null,null,null,null,null,null,null,null,null,null,null,1.5]
[null,12.3,77,12.3,1.4,1.8,1024.5,52654,4,0,0,0,1.5,112.2,29.2,null,"13:26:00",null,29.2,14.899999999999999,"",null,60,null,null,null,null,null,null,null,null,null,null,null,null,null,null,null,null,null,null,null,null,null,null,null,null,null,null,null,null,null,null,1.4000000000000004]
[null,12.1,77,12.1,2.2000000000000002,3.6,1024.5999999999999,52652,4,0,0,0,1.5,112.2,29.2,null,"13:27:00",null,29.2,15.100000000000001,"",null,60,null,null,null,null,null,null,null,null,null,null,null,null,null,null,null,null,null,null,null,null,null,null,null,null,null,null,null,null,null,null,1.2999999999999989]
[null,12.1,77,12.1,2.2000000000000002,3.6,1024.5,52402,4,0,0,0,1.5,112.2,29.9,null,"13:28:00",null,29.9,15.799999999999997,"",null,60,null,null,null,null,null,null,null,null,null,null,null,null,null,null,null,null,null,null,null,null,null,null,null,null,null,null,null,null,null,null,1.1999999999999993]
[null,12.1,77,12.1,2.5,3.6,1024.5,49602,3,0,0,0,1.5,112.2,29.9,null,"13:29:00",null,29.9,15.799999999999997,"",null,{"$f":"IF(S818>B818+3,60,\"\")","v":60},null,null,null,null,null,null,null,null,null,null,null,null,null,null,null,null,null,null,null,null,null,null,null,null,null,null,null,null,null,null,1.1999999999999993]
[null,12,77,12,1.4,3.6,1024.5,51122,3,0,0,0,1.5,112.2,29.9,null,"13:30:00",null,29.9,15.899999999999999,"",null,60,null,null,null,null,null,null,null,null,null,null,null,null,null,null,null,null,null,null,null,null,null,null,null,null,null,null,null,null,null,null,1.1999999999999993]
[null,12,77,12,0.4,1.8,1024.4000000000001,50874,3,0,0,0,1.5,112.2,29.8,null,"13:31:00",null,29.8,15.8,"",null,60,null,null,null,null,null,null,null,null,null,null,null,null,null,null,null,null,null,null,null,null,null,null,null,null,null,null,null,null,null,null,1.1999999999999993]
[null,12.2,77,12.2,1.1000000000000001,1.8,1024.5,51012,3,0,0,0,1.5,112.2,29.8,null,"13:32:00",null,29.8,15.600000000000001,"",null,60,null,null,null,null,null,null,null,null,null,null,null,null,null,null,null,null,null,null,null,null,null,null,null,null,null,null,null,null,null,null,1.1999999999999993]
[null,12.2,77,12.2,0.4,1.8,1024.4000000000001,45971,3,0,0,0,1.5,112.2,29.8,null,"13:33:00",null,29.8,15.600000000000001,"",null,60,null,null,null,null,null,null,null,null,null,null,null,null,null,null,null,null,null,null,null,null,null,null,null,null,null,null,null,null,null,null,1.1999999999999993]
[null,12.2,77,12.2,1.1000000000000001,1.8,1024.4000000000001,47233,3,0,0,0,1.5,112.2,30,null,"13:34:00",null,30,15.8,"",null,60,null,null,null,null,null,null,null,null,null,null,null,null,null,null,null,null,null,null,null,null,null,null,null,null,null,null,null,null,null,null,1.1999999999999993]
[null,null,null,null,null,null,null,null,null,null,null,null,null,null,null,null,null,null,0,-2,"",null,"",null,null,null,null,null,null,null,null,null,null,null,null,null,null,null,null,null,null,null,null,null,null,null,null,null,null,null,null,null,null,1.1999999999999993]
[null,null,null,null,null,null,null,null,null,null,null,null,null,null,null,null,null,null,0,-2,"",null,"",null,null,null,null,null,null,null,null,null,null,null,null,null,null,null,null,null,null,null,null,null,null,null,null,null,null,null,null,null,null,1.1999999999999993]
[null,null,null,null,null,null,null,null,null,null,null,null,null,null,null,null,null,null,0,-2,"",null,"",null,null,null,null,null,null,null,null,null,null,null,null,null,null,null,null,null,null,null,null,null,null,null,null,null,null,null,null,null,null,1.1999999999999993]
[null,null,null,null,null,null,null,null,null,null,null,null,null,null,null,null,null,null,0,-2,"",null,"",null,null,null,null,null,null,null,null,null,null,null,null,null,null,null,null,null,null,null,null,null,null,null,null,null,null,null,null,null,null,1.1999999999999993]
[null,null,null,null,null,null,null,null,null,null,null,null,null,null,null,null,null,null,0,-2,"",null,"",null,null,null,null,null,null,null,null,null,null,null,null,null,null,null,null,null,null,null,null,null,null,null,null,null,null,null,null,null,null,1.1999999999999993]
[null,null,null,null,null,null,null,null,null,null,null,null,null,null,null,null,null,null,0,-2,"",null,"",null,null,null,null,null,null,null,null,null,null,null,null,null,null,null,null,null,null,null,null,null,null,null,null,null,null,null,null,null,null,1.1999999999999993]
[null,null,null,null,null,null,null,null,null,null,null,null,null,null,null,null,null,null,0,-2,"",null,"",null,null,null,null,null,null,null,null,null,null,null,null,null,null,null,null,null,null,null,null,null,null,null,null,null,null,null,null,null,null,1.0999999999999996]
[null,null,null,null,null,null,null,null,null,null,null,null,null,null,null,null,null,null,0,-2,"",null,"",null,null,null,null,null,null,null,null,null,null,null,null,null,null,null,null,null,null,null,null,null,null,null,null,null,null,null,null,null,null,1.0999999999999996]
[null,null,null,null,null,null,null,null,null,null,null,null,null,null,null,null,null,null,0,-2,"",null,"",null,null,null,null,null,null,null,null,null,null,null,null,null,null,null,null,null,null,null,null,null,null,null,null,null,null,null,null,null,null,1.0999999999999996]
[null,null,null,null,null,null,null,null,null,null,null,null,null,null,null,null,null,null,0,-2,"",null,"",null,null,null,null,null,null,null,null,null,null,null,null,null,null,null,null,null,null,null,null,null,null,null,null,null,null,null,null,null,null,1.0999999999999996]
[null,null,null,null,null,null,null,null,null,null,null,null,null,null,null,null,null,null,0,-2,"",null,"",null,null,null,null,null,null,null,null,null,null,null,null,null,null,null,null,null,null,null,null,null,null,null,null,null,null,null,null,null,null,1.0999999999999996]
[null,null,null,null,null,null,null,null,null,null,null,null,null,null,null,null,null,null,0,-2,"",null,"",null,null,null,null,null,null,null,null,null,null,null,null,null,null,null,null,null,null,null,null,null,null,null,null,null,null,null,null,null,null,1.0999999999999996]
[null,null,null,null,null,null,null,null,null,null,null,null,null,null,null,null,null,null,0,-2,"",null,"",null,null,null,null,null,null,null,null,null,null,null,null,null,null,null,null,null,null,null,null,null,null,null,null,null,null,null,null,null,null,1.0999999999999996]
[null,null,null,null,null,null,null,null,null,null,null,null,null,null,null,null,null,null,0,-2,"",null,"",null,null,null,null,null,null,null,null,null,null,null,null,null,null,null,null,null,null,null,null,null,null,null,null,null,null,null,null,null,null,1.0999999999999996]
[null,null,null,null,null,null,null,null,null,null,null,null,null,null,null,null,null,null,0,-2,"",null,"",null,null,null,null,null,null,null,null,null,null,null,null,null,null,null,null,null,null,null,null,null,null,null,null,null,null,null,null,null,null,1.0999999999999996]
[null,null,null,null,null,null,null,null,null,null,null,null,null,null,null,null,null,null,0,-2,"",null,"",null,null,null,null,null,null,null,null,null,null,null,null,null,null,null,null,null,null,null,null,null,null,null,null,null,null,null,null,null,null,1.0999999999999996]
[null,null,null,null,null,null,null,null,null,null,null,null,null,null,null,null,null,null,0,-2,"",null,"",null,null,null,null,null,null,null,null,null,null,null,null,null,null,null,null,null,null,null,null,null,null,null,null,null,null,null,null,null,null,1.0999999999999996]
[null,null,null,null,null,null,null,null,null,null,null,null,null,null,null,null,null,null,0,-2,"",null,"",null,null,null,null,null,null,null,null,null,null,null,null,null,null,null,null,null,null,null,null,null,null,null,null,null,null,null,null,null,null,1.0999999999999996]
[null,null,null,null,null,null,null,null,null,null,null,null,null,null,null,null,null,null,0,-2,"",null,"",null,null,null,null,null,null,null,null,null,null,null,null,null,null,null,null,null,null,null,null,null,null,null,null,null,null,null,null,null,null,1.0999999999999996]
[null,null,null,null,null,null,null,null,null,null,null,null,null,null,null,null,null,null,0,-2,{"$f":"IF(J843>0,60,\"\")","v":""},null,"",null,null,null,null,null,null,null,null,null,null,null,null,null,null,null,null,null,null,null,null,null,null,null,null,null,null,null,null,null,null,1.0999999999999996]
[null,null,null,null,null,null,null,null,null,null,null,null,null,null,null,null,null,null,0,-2,"",null,"",null,null,null,null,null,null,null,null,null,null,null,null,null,null,null,null,null,null,null,null,null,null,null,null,null,null,null,null,null,null,1.0999999999999996]
[null,null,null,null,null,null,null,null,null,null,null,null,null,null,null,null,null,null,0,-2,"",null,"",null,null,null,null,null,null,null,null,null,null,null,null,null,null,null,null,null,null,null,null,null,null,null,null,null,null,null,null,null,null,1.0999999999999996]
[null,null,null,null,null,null,null,null,null,null,null,null,null,null,null,null,null,null,0,-2,"",null,"",null,null,null,null,null,null,null,null,null,null,null,null,null,null,null,null,null,null,null,null,null,null,null,null,null,null,null,null,null,null,1.0999999999999996]
[null,null,null,null,null,null,null,null,null,null,null,null,null,null,null,null,null,null,0,-2,"",null,"",null,null,null,null,null,null,null,null,null,null,null,null,null,null,null,null,null,null,null,null,null,null,null,null,null,null,null,null,null,null,1.1999999999999993]
[null,null,null,null,null,null,null,null,null,null,null,null,null,null,null,null,null,null,{"$f":"MAX(O848,P848)","v":0},{"$f":"(S848-B848)-2","v":-2},"",null,"",null,null,null,null,null,null,null,null,null,null,null,null,null,null,null,null,null,null,null,null,null,null,null,null,null,null,null,null,null,null,1.0999999999999996]
[null,null,null,null,null,null,null,null,null,null,null,null,null,null,null,null,null,null,0,-2,"",null,"",null,null,null,null,null,null,null,null,null,null,null,null,null,null,null,null,null,null,null,null,null,null,null,null,null,null,null,null,null,null,1]
[null,null,null,null,null,null,null,null,null,null,null,null,null,null,null,null,null,null,0,-2,"",null,"",null,null,null,null,null,null,null,null,null,null,null,null,null,null,null,null,null,null,null,null,null,null,null,null,null,null,null,null,null,null,1]
[null,null,null,null,null,null,null,null,null,null,null,null,null,null,null,null,null,null,0,-2,"",null,"",null,null,null,null,null,null,null,null,null,null,null,null,null,null,null,null,null,null,null,null,null,null,null,null,null,null,null,null,null,null,1.0999999999999996]
[null,null,null,null,null,null,null,null,null,null,null,null,null,null,null,null,null,null,0,-2,"",null,"",null,null,null,null,null,null,null,null,null,null,null,null,null,null,null,null,null,null,null,null,null,null,null,null,null,null,null,null,null,null,1.0999999999999996]
[null,null,null,null,null,null,null,null,null,null,null,null,null,null,null,null,null,null,0,-2,"",null,"",null,null,null,null,null,null,null,null,null,null,null,null,null,null,null,null,null,null,null,null,null,null,null,null,null,null,null,null,null,null,1.0999999999999996]
[null,null,null,null,null,null,null,null,null,null,null,null,null,null,null,null,null,null,0,-2,"",null,"",null,null,null,null,null,null,null,null,null,null,null,null,null,null,null,null,null,null,null,null,null,null,null,null,null,null,null,null,null,null,1.1999999999999993]
[null,null,null,null,null,null,null,null,null,null,null,null,null,null,null,null,null,null,0,-2,"",null,"",null,null,null,null,null,null,null,null,null,null,null,null,null,null,null,null,null,null,null,null,null,null,null,null,null,null,null,null,null,null,1.1999999999999993]
[null,null,null,null,null,null,null,null,null,null,null,null,null,null,null,null,null,null,0,-2,"",null,"",null,null,null,null,null,null,null,null,null,null,null,null,null,null,null,null,null,null,null,null,null,null,null,null,null,null,null,null,null,null,1.3000000000000007]
[null,null,null,null,null,null,null,null,null,null,null,null,null,null,null,null,null,null,0,-2,"",null,"",null,null,null,null,null,null,null,null,null,null,null,null,null,null,null,null,null,null,null,null,null,null,null,null,null,null,null,null,null,null,1.3000000000000007]
[null,null,null,null,null,null,null,null,null,null,null,null,null,null,null,null,null,null,0,-2,"",null,"",null,null,null,null,null,null,null,null,null,null,null,null,null,null,null,null,null,null,null,null,null,null,null,null,null,null,null,null,null,null,1.3000000000000007]
[null,null,null,null,null,null,null,null,null,null,null,null,null,null,null,null,null,null,0,-2,"",null,"",null,null,null,null,null,null,null,null,null,null,null,null,null,null,null,null,null,null,null,null,null,null,null,null,null,null,null,null,null,null,1.4000000000000004]
[null,null,null,null,null,null,null,null,null,null,null,null,null,null,null,null,null,null,0,-2,"",null,"",null,null,null,null,null,null,null,null,null,null,null,null,null,null,null,null,null,null,null,null,null,null,null,null,null,null,null,null,null,null,1.3000000000000007]
[null,null,null,null,null,null,null,null,null,null,null,null,null,null,null,null,null,null,0,-2,"",null,"",null,null,null,null,null,null,null,null,null,null,null,null,null,null,null,null,null,null,null,null,null,null,null,null,null,null,null,null,null,null,1.3000000000000007]
[null,null,null,null,null,null,null,null,null,null,null,null,null,null,null,null,null,null,0,-2,"",null,"",null,null,null,null,null,null,null,null,null,null,null,null,null,null,null,null,null,null,null,null,null,null,null,null,null,null,null,null,null,null,1.4000000000000004]
[null,null,null,null,null,null,null,null,null,null,null,null,null,null,null,null,null,null,0,-2,"",null,"",null,null,null,null,null,null,null,null,null,null,null,null,null,null,null,null,null,null,null,null,null,null,null,null,null,null,null,null,null,null,1.5]
[null,null,null,null,null,null,null,null,null,null,null,null,null,null,null,null,null,null,0,-2,"",null,"",null,null,null,null,null,null,null,null,null,null,null,null,null,null,null,null,null,null,null,null,null,null,null,null,null,null,null,null,null,null,1.4000000000000004]
[null,null,null,null,null,null,null,null,null,null,null,null,null,null,null,null,null,null,0,-2,"",null,"",null,null,null,null,null,null,null,null,null,null,null,null,null,null,null,null,null,null,null,null,null,null,null,null,null,null,null,null,null,null,1.2999999999999989]
[null,null,null,null,null,null,null,null,null,null,null,null,null,null,null,null,null,null,0,-2,"",null,"",null,null,null,null,null,null,null,null,null,null,null,null,null,null,null,null,null,null,null,null,null,null,null,null,null,null,null,null,null,null,1.2999999999999989]
[null,null,null,null,null,null,null,null,null,null,null,null,null,null,null,null,null,null,0,-2,"",null,"",null,null,null,null,null,null,null,null,null,null,null,null,null,null,null,null,null,null,null,null,null,null,null,null,null,null,null,null,null,null,1.2999999999999989]
[null,null,null,null,null,null,null,null,null,null,null,null,null,null,null,null,null,null,0,-2,"",null,"",null,null,null,null,null,null,null,null,null,null,null,null,null,null,null,null,null,null,null,null,null,null,null,null,null,null,null,null,null,null,1.2999999999999989]
[null,null,null,null,null,null,null,null,null,null,null,null,null,null,null,null,null,null,0,-2,"",null,"",null,null,null,null,null,null,null,null,null,null,null,null,null,null,null,null,null,null,null,null,null,null,null,null,null,null,null,null,null,null,1.2999999999999989]
[null,null,null,null,null,null,null,null,null,null,null,null,null,null,null,null,null,null,0,-2,"",null,"",null,null,null,null,null,null,null,null,null,null,null,null,null,null,null,null,null,null,null,null,null,null,null,null,null,null,null,null,null,null,1.2999999999999989]
[null,null,null,null,null,null,null,null,null,null,null,null,null,null,null,null,null,null,0,-2,"",null,"",null,null,null,null,null,null,null,null,null,null,null,null,null,null,null,null,null,null,null,null,null,null,null,null,null,null,null,null,null,null,1.1999999999999993]
[null,null,null,null,null,null,null,null,null,null,null,null,null,null,null,null,null,null,0,-2,"",null,"",null,null,null,null,null,null,null,null,null,null,null,null,null,null,null,null,null,null,null,null,null,null,null,null,null,null,null,null,null,null,1.1999999999999993]
[null,null,null,null,null,null,null,null,null,null,null,null,null,null,null,null,null,null,0,-2,"",null,"",null,null,null,null,null,null,null,null,null,null,null,null,null,null,null,null,null,null,null,null,null,null,null,null,null,null,null,null,null,null,1.1999999999999993]
[null,null,null,null,null,null,null,null,null,null,null,null,null,null,null,null,null,null,0,-2,"",null,"",null,null,null,null,null,null,null,null,null,null,null,null,null,null,null,null,null,null,null,null,null,null,null,null,null,null,null,null,null,null,1.0999999999999996]
[null,null,null,null,null,null,null,null,null,null,null,null,null,null,null,null,null,null,0,-2,"",null,"",null,null,null,null,null,null,null,null,null,null,null,null,null,null,null,null,null,null,null,null,null,null,null,null,null,null,null,null,null,null,1.0999999999999996]
[null,null,null,null,null,null,null,null,null,null,null,null,null,null,null,null,null,null,0,-2,"",null,"",null,null,null,null,null,null,null,null,null,null,null,null,null,null,null,null,null,null,null,null,null,null,null,null,null,null,null,null,null,null,1]
[null,null,null,null,null,null,null,null,null,null,null,null,null,null,null,null,null,null,0,-2,"",null,"",null,null,null,null,null,null,null,null,null,null,null,null,null,null,null,null,null,null,null,null,null,null,null,null,null,null,null,null,null,null,1]
[null,null,null,null,null,null,null,null,null,null,null,null,null,null,null,null,null,null,0,-2,"",null,"",null,null,null,null,null,null,null,null,null,null,null,null,null,null,null,null,null,null,null,null,null,null,null,null,null,null,null,null,null,null,0.89999999999999858]
[null,null,null,null,null,null,null,null,null,null,null,null,null,null,null,null,null,null,0,-2,"",null,"",null,null,null,null,null,null,null,null,null,null,null,null,null,null,null,null,null,null,null,null,null,null,null,null,null,null,null,null,null,null,0.89999999999999858]
[null,null,null,null,null,null,null,null,null,null,null,null,null,null,null,null,null,null,0,-2,"",null,"",null,null,null,null,null,null,null,null,null,null,null,null,null,null,null,null,null,null,null,null,null,null,null,null,null,null,null,null,null,null,0.89999999999999858]
[null,null,null,null,null,null,null,null,null,null,null,null,null,null,null,null,null,null,0,-2,"",null,"",null,null,null,null,null,null,null,null,null,null,null,null,null,null,null,null,null,null,null,null,null,null,null,null,null,null,null,null,null,null,0.89999999999999858]
[null,null,null,null,null,null,null,null,null,null,null,null,null,null,null,null,null,null,0,-2,"",null,{"$f":"IF(S882>B882+3,60,\"\")","v":""},null,null,null,null,null,null,null,null,null,null,null,null,null,null,null,null,null,null,null,null,null,null,null,null,null,null,null,null,null,null,0.89999999999999858]
[null,null,null,null,null,null,null,null,null,null,null,null,null,null,null,null,null,null,0,-2,"",null,"",null,null,null,null,null,null,null,null,null,null,null,null,null,null,null,null,null,null,null,null,null,null,null,null,null,null,null,null,null,null,0.89999999999999858]
[null,null,null,null,null,null,null,null,null,null,null,null,null,null,null,null,null,null,0,-2,"",null,"",null,null,null,null,null,null,null,null,null,null,null,null,null,null,null,null,null,null,null,null,null,null,null,null,null,null,null,null,null,null,1]
[null,null,null,null,null,null,null,null,null,null,null,null,null,null,null,null,null,null,0,-2,"",null,"",null,null,null,null,null,null,null,null,null,null,null,null,null,null,null,null,null,null,null,null,null,null,null,null,null,null,null,null,null,null,1]
[null,null,null,null,null,null,null,null,null,null,null,null,null,null,null,null,null,null,0,-2,"",null,"",null,null,null,null,null,null,null,null,null,null,null,null,null,null,null,null,null,null,null,null,null,null,null,null,null,null,null,null,null,null,1.0999999999999996]
[null,null,null,null,null,null,null,null,null,null,null,null,null,null,null,null,null,null,0,-2,"",null,"",null,null,null,null,null,null,null,null,null,null,null,null,null,null,null,null,null,null,null,null,null,null,null,null,null,null,null,null,null,null,1.0999999999999996]
[null,null,null,null,null,null,null,null,null,null,null,null,null,null,null,null,null,null,0,-2,"",null,"",null,null,null,null,null,null,null,null,null,null,null,null,null,null,null,null,null,null,null,null,null,null,null,null,null,null,null,null,null,null,1.0999999999999996]
[null,null,null,null,null,null,null,null,null,null,null,null,null,null,null,null,null,null,0,-2,"",null,"",null,null,null,null,null,null,null,null,null,null,null,null,null,null,null,null,null,null,null,null,null,null,null,null,null,null,null,null,null,null,1.1999999999999993]
[null,null,null,null,null,null,null,null,null,null,null,null,null,null,null,null,null,null,0,-2,"",null,"",null,null,null,null,null,null,null,null,null,null,null,null,null,null,null,null,null,null,null,null,null,null,null,null,null,null,null,null,null,null,1.1999999999999993]
[null,null,null,null,null,null,null,null,null,null,null,null,null,null,null,null,null,null,0,-2,"",null,"",null,null,null,null,null,null,null,null,null,null,null,null,null,null,null,null,null,null,null,null,null,null,null,null,null,null,null,null,null,null,1.1999999999999993]
[null,null,null,null,null,null,null,null,null,null,null,null,null,null,null,null,null,null,0,-2,"",null,"",null,null,null,null,null,null,null,null,null,null,null,null,null,null,null,null,null,null,null,null,null,null,null,null,null,null,null,null,null,null,1.1999999999999993]
[null,null,null,null,null,null,null,null,null,null,null,null,null,null,null,null,null,null,0,-2,"",null,"",null,null,null,null,null,null,null,null,null,null,null,null,null,null,null,null,null,null,null,null,null,null,null,null,null,null,null,null,null,null,1.1999999999999993]
[null,null,null,null,null,null,null,null,null,null,null,null,null,null,null,null,null,null,0,-2,"",null,"",null,null,null,null,null,null,null,null,null,null,null,null,null,null,null,null,null,null,null,null,null,null,null,null,null,null,null,null,null,null,1.1999999999999993]
[null,null,null,null,null,null,null,null,null,null,null,null,null,null,null,null,null,null,0,-2,"",null,"",null,null,null,null,null,null,null,null,null,null,null,null,null,null,null,null,null,null,null,null,null,null,null,null,null,null,null,null,null,null,1.1999999999999993]
[null,null,null,null,null,null,null,null,null,null,null,null,null,null,null,null,null,null,0,-2,"",null,"",null,null,null,null,null,null,null,null,null,null,null,null,null,null,null,null,null,null,null,null,null,null,null,null,null,null,null,null,null,null,1.1999999999999993]
[null,null,null,null,null,null,null,null,null,null,null,null,null,null,null,null,null,null,0,-2,"",null,"",null,null,null,null,null,null,null,null,null,null,null,null,null,null,null,null,null,null,null,null,null,null,null,null,null,null,null,null,null,null,1.1999999999999993]
[null,null,null,null,null,null,null,null,null,null,null,null,null,null,null,null,null,null,0,-2,"",null,"",null,null,null,null,null,null,null,null,null,null,null,null,null,null,null,null,null,null,null,null,null,null,null,null,null,null,null,null,null,null,1.1999999999999993]
[null,null,null,null,null,null,null,null,null,null,null,null,null,null,null,null,null,null,0,-2,"",null,"",null,null,null,null,null,null,null,null,null,null,null,null,null,null,null,null,null,null,null,null,null,null,null,null,null,null,null,null,null,null,1.2999999999999989]
[null,null,null,null,null,null,null,null,null,null,null,null,null,null,null,null,null,null,0,-2,"",null,"",null,null,null,null,null,null,null,null,null,null,null,null,null,null,null,null,null,null,null,null,null,null,null,null,null,null,null,null,null,null,1.2999999999999989]
[null,null,null,null,null,null,null,null,null,null,null,null,null,null,null,null,null,null,0,-2,"",null,"",null,null,null,null,null,null,null,null,null,null,null,null,null,null,null,null,null,null,null,null,null,null,null,null,null,null,null,null,null,null,1.2999999999999989]
[null,null,null,null,null,null,null,null,null,null,null,null,null,null,null,null,null,null,0,-2,"",null,"",null,null,null,null,null,null,null,null,null,null,null,null,null,null,null,null,null,null,null,null,null,null,null,null,null,null,null,null,null,null,1.1999999999999993]
[null,null,null,null,null,null,null,null,null,null,null,null,null,null,null,null,null,null,0,-2,"",null,"",null,null,null,null,null,null,null,null,null,null,null,null,null,null,null,null,null,null,null,null,null,null,null,null,null,null,null,null,null,null,1.1999999999999993]
[null,null,null,null,null,null,null,null,null,null,null,null,null,null,null,null,null,null,0,-2,"",null,"",null,null,null,null,null,null,null,null,null,null,null,null,null,null,null,null,null,null,null,null,null,null,null,null,null,null,null,null,null,null,1.1999999999999993]
[null,null,null,null,null,null,null,null,null,null,null,null,null,null,null,null,null,null,0,-2,"",null,"",null,null,null,null,null,null,null,null,null,null,null,null,null,null,null,null,null,null,null,null,null,null,null,null,null,null,null,null,null,null,1.1999999999999993]
[null,null,null,null,null,null,null,null,null,null,null,null,null,null,null,null,null,null,0,-2,"",null,"",null,null,null,null,null,null,null,null,null,null,null,null,null,null,null,null,null,null,null,null,null,null,null,null,null,null,null,null,null,null,1.1999999999999993]
[null,null,null,null,null,null,null,null,null,null,null,null,null,null,null,null,null,null,0,-2,{"$f":"IF(J907>0,60,\"\")","v":""},null,"",null,null,null,null,null,null,null,null,null,null,null,null,null,null,null,null,null,null,null,null,null,null,null,null,null,null,null,null,null,null,1.1999999999999993]
[null,null,null,null,null,null,null,null,null,null,null,null,null,null,null,null,null,null,0,-2,"",null,"",null,null,null,null,null,null,null,null,null,null,null,null,null,null,null,null,null,null,null,null,null,null,null,null,null,null,null,null,null,null,1.2999999999999989]
[null,null,null,null,null,null,null,null,null,null,null,null,null,null,null,null,null,null,0,-2,"",null,"",null,null,null,null,null,null,null,null,null,null,null,null,null,null,null,null,null,null,null,null,null,null,null,null,null,null,null,null,null,null,1.2999999999999989]
[null,null,null,null,null,null,null,null,null,null,null,null,null,null,null,null,null,null,0,-2,"",null,"",null,null,null,null,null,null,null,null,null,null,null,null,null,null,null,null,null,null,null,null,null,null,null,null,null,null,null,null,null,null,1.2999999999999989]
[null,null,null,null,null,null,null,null,null,null,null,null,null,null,null,null,null,null,0,-2,"",null,"",null,null,null,null,null,null,null,null,null,null,null,null,null,null,null,null,null,null,null,null,null,null,null,null,null,null,null,null,null,null,1.2999999999999989]
[null,null,null,null,null,null,null,null,null,null,null,null,null,null,null,null,null,null,{"$f":"MAX(O912,P912)","v":0},{"$f":"(S912-B912)-2","v":-2},"",null,"",null,null,null,null,null,null,null,null,null,null,null,null,null,null,null,null,null,null,null,null,null,null,null,null,null,null,null,null,null,null,1.2999999999999989]
[null,null,null,null,null,null,null,null,null,null,null,null,null,null,null,null,null,null,0,-2,"",null,"",null,null,null,null,null,null,null,null,null,null,null,null,null,null,null,null,null,null,null,null,null,null,null,null,null,null,null,null,null,null,1.2999999999999989]
[null,null,null,null,null,null,null,null,null,null,null,null,null,null,null,null,null,null,0,-2,"",null,"",null,null,null,null,null,null,null,null,null,null,null,null,null,null,null,null,null,null,null,null,null,null,null,null,null,null,null,null,null,null,1.3000000000000007]
[null,null,null,null,null,null,null,null,null,null,null,null,null,null,null,null,null,null,0,-2,"",null,"",null,null,null,null,null,null,null,null,null,null,null,null,null,null,null,null,null,null,null,null,null,null,null,null,null,null,null,null,null,null,1.4000000000000004]
[null,null,null,null,null,null,null,null,null,null,null,null,null,null,null,null,null,null,0,-2,"",null,"",null,null,null,null,null,null,null,null,null,null,null,null,null,null,null,null,null,null,null,null,null,null,null,null,null,null,null,null,null,null,1.5]
[null,null,null,null,null,null,null,null,null,null,null,null,null,null,null,null,null,null,0,-2,"",null,"",null,null,null,null,null,null,null,null,null,null,null,null,null,null,null,null,null,null,null,null,null,null,null,null,null,null,null,null,null,null,1.5]
[null,null,null,null,null,null,null,null,null,null,null,null,null,null,null,null,null,null,0,-2,"",null,"",null,null,null,null,null,null,null,null,null,null,null,null,null,null,null,null,null,null,null,null,null,null,null,null,null,null,null,null,null,null,1.5]
[null,null,null,null,null,null,null,null,null,null,null,null,null,null,null,null,null,null,0,-2,"",null,"",null,null,null,null,null,null,null,null,null,null,null,null,null,null,null,null,null,null,null,null,null,null,null,null,null,null,null,null,null,null,1.5]
[null,null,null,null,null,null,null,null,null,null,null,null,null,null,null,null,null,null,0,-2,"",null,"",null,null,null,null,null,null,null,null,null,null,null,null,null,null,null,null,null,null,null,null,null,null,null,null,null,null,null,null,null,null,1.5]
[null,null,null,null,null,null,null,null,null,null,null,null,null,null,null,null,null,null,0,-2,"",null,"",null,null,null,null,null,null,null,null,null,null,null,null,null,null,null,null,null,null,null,null,null,null,null,null,null,null,null,null,null,null,1.5]
[null,null,null,null,null,null,null,null,null,null,null,null,null,null,null,null,null,null,0,-2,"",null,"",null,null,null,null,null,null,null,null,null,null,null,null,null,null,null,null,null,null,null,null,null,null,null,null,null,null,null,null,null,null,1.5]
[null,null,null,null,null,null,null,null,null,null,null,null,null,null,null,null,null,null,0,-2,"",null,"",null,null,null,null,null,null,null,null,null,null,null,null,null,null,null,null,null,null,null,null,null,null,null,null,null,null,null,null,null,null,1.5]
[null,null,null,null,null,null,null,null,null,null,null,null,null,null,null,null,null,null,0,-2,"",null,"",null,null,null,null,null,null,null,null,null,null,null,null,null,null,null,null,null,null,null,null,null,null,null,null,null,null,null,null,null,null,1.5]
[null,null,null,null,null,null,null,null,null,null,null,null,null,null,null,null,null,null,0,-2,"",null,"",null,null,null,null,null,null,null,null,null,null,null,null,null,null,null,null,null,null,null,null,null,null,null,null,null,null,null,null,null,null,1.5999999999999996]
[null,null,null,null,null,null,null,null,null,null,null,null,null,null,null,null,null,null,0,-2,"",null,"",null,null,null,null,null,null,null,null,null,null,null,null,null,null,null,null,null,null,null,null,null,null,null,null,null,null,null,null,null,null,1.5]
[null,null,null,null,null,null,null,null,null,null,null,null,null,null,null,null,null,null,0,-2,"",null,"",null,null,null,null,null,null,null,null,null,null,null,null,null,null,null,null,null,null,null,null,null,null,null,null,null,null,null,null,null,null,1.5]
[null,null,null,null,null,null,null,null,null,null,null,null,null,null,null,null,null,null,0,-2,"",null,"",null,null,null,null,null,null,null,null,null,null,null,null,null,null,null,null,null,null,null,null,null,null,null,null,null,null,null,null,null,null,1.4000000000000004]
[null,null,null,null,null,null,null,null,null,null,null,null,null,null,null,null,null,null,0,-2,"",null,"",null,null,null,null,null,null,null,null,null,null,null,null,null,null,null,null,null,null,null,null,null,null,null,null,null,null,null,null,null,null,1.4000000000000004]
[null,null,null,null,null,null,null,null,null,null,null,null,null,null,null,null,null,null,0,-2,"",null,"",null,null,null,null,null,null,null,null,null,null,null,null,null,null,null,null,null,null,null,null,null,null,null,null,null,null,null,null,null,null,1.4000000000000004]
[null,null,null,null,null,null,null,null,null,null,null,null,null,null,null,null,null,null,0,-2,"",null,"",null,null,null,null,null,null,null,null,null,null,null,null,null,null,null,null,null,null,null,null,null,null,null,null,null,null,null,null,null,null,1.5]
[null,null,null,null,null,null,null,null,null,null,null,null,null,null,null,null,null,null,0,-2,"",null,"",null,null,null,null,null,null,null,null,null,null,null,null,null,null,null,null,null,null,null,null,null,null,null,null,null,null,null,null,null,null,1.5]
[null,null,null,null,null,null,null,null,null,null,null,null,null,null,null,null,null,null,0,-2,"",null,"",null,null,null,null,null,null,null,null,null,null,null,null,null,null,null,null,null,null,null,null,null,null,null,null,null,null,null,null,null,null,1.5]
[null,null,null,null,null,null,null,null,null,null,null,null,null,null,null,null,null,null,0,-2,"",null,"",null,null,null,null,null,null,null,null,null,null,null,null,null,null,null,null,null,null,null,null,null,null,null,null,null,null,null,null,null,null,1.4000000000000004]
[null,null,null,null,null,null,null,null,null,null,null,null,null,null,null,null,null,null,0,-2,"",null,"",null,null,null,null,null,null,null,null,null,null,null,null,null,null,null,null,null,null,null,null,null,null,null,null,null,null,null,null,null,null,1.2999999999999989]
[null,null,null,null,null,null,null,null,null,null,null,null,null,null,null,null,null,null,0,-2,"",null,"",null,null,null,null,null,null,null,null,null,null,null,null,null,null,null,null,null,null,null,null,null,null,null,null,null,null,null,null,null,null,1.4000000000000004]
[null,null,null,null,null,null,null,null,null,null,null,null,null,null,null,null,null,null,0,-2,"",null,"",null,null,null,null,null,null,null,null,null,null,null,null,null,null,null,null,null,null,null,null,null,null,null,null,null,null,null,null,null,null,1.1999999999999993]
[null,null,null,null,null,null,null,null,null,null,null,null,null,null,null,null,null,null,0,-2,"",null,"",null,null,null,null,null,null,null,null,null,null,null,null,null,null,null,null,null,null,null,null,null,null,null,null,null,null,null,null,null,null,1.1999999999999993]
[null,null,null,null,null,null,null,null,null,null,null,null,null,null,null,null,null,null,0,-2,"",null,"",null,null,null,null,null,null,null,null,null,null,null,null,null,null,null,null,null,null,null,null,null,null,null,null,null,null,null,null,null,null,1.4000000000000004]
[null,null,null,null,null,null,null,null,null,null,null,null,null,null,null,null,null,null,0,-2,"",null,"",null,null,null,null,null,null,null,null,null,null,null,null,null,null,null,null,null,null,null,null,null,null,null,null,null,null,null,null,null,null,1.4000000000000004]
[null,null,null,null,null,null,null,null,null,null,null,null,null,null,null,null,null,null,0,-2,"",null,"",null,null,null,null,null,null,null,null,null,null,null,null,null,null,null,null,null,null,null,null,null,null,null,null,null,null,null,null,null,null,1.4000000000000004]
[null,null,null,null,null,null,null,null,null,null,null,null,null,null,null,null,null,null,0,-2,"",null,"",null,null,null,null,null,null,null,null,null,null,null,null,null,null,null,null,null,null,null,null,null,null,null,null,null,null,null,null,null,null,1.3000000000000007]
[null,null,null,null,null,null,null,null,null,null,null,null,null,null,null,null,null,null,0,-2,"",null,"",null,null,null,null,null,null,null,null,null,null,null,null,null,null,null,null,null,null,null,null,null,null,null,null,null,null,null,null,null,null,1.3000000000000007]
[null,null,null,null,null,null,null,null,null,null,null,null,null,null,null,null,null,null,0,-2,"",null,"",null,null,null,null,null,null,null,null,null,null,null,null,null,null,null,null,null,null,null,null,null,null,null,null,null,null,null,null,null,null,1.1999999999999993]
[null,null,null,null,null,null,null,null,null,null,null,null,null,null,null,null,null,null,0,-2,"",null,"",null,null,null,null,null,null,null,null,null,null,null,null,null,null,null,null,null,null,null,null,null,null,null,null,null,null,null,null,null,null,1.2999999999999989]
[null,null,null,null,null,null,null,null,null,null,null,null,null,null,null,null,null,null,0,-2,"",null,{"$f":"IF(S946>B946+3,60,\"\")","v":""},null,null,null,null,null,null,null,null,null,null,null,null,null,null,null,null,null,null,null,null,null,null,null,null,null,null,null,null,null,null,1.2999999999999989]
[null,null,null,null,null,null,null,null,null,null,null,null,null,null,null,null,null,null,0,-2,"",null,"",null,null,null,null,null,null,null,null,null,null,null,null,null,null,null,null,null,null,null,null,null,null,null,null,null,null,null,null,null,null,1.2999999999999989]
[null,null,null,null,null,null,null,null,null,null,null,null,null,null,null,null,null,null,0,-2,"",null,"",null,null,null,null,null,null,null,null,null,null,null,null,null,null,null,null,null,null,null,null,null,null,null,null,null,null,null,null,null,null,1.2999999999999989]
[null,null,null,null,null,null,null,null,null,null,null,null,null,null,null,null,null,null,0,-2,"",null,"",null,null,null,null,null,null,null,null,null,null,null,null,null,null,null,null,null,null,null,null,null,null,null,null,null,null,null,null,null,null,1.2999999999999989]
[null,null,null,null,null,null,null,null,null,null,null,null,null,null,null,null,null,null,0,-2,"",null,"",null,null,null,null,null,null,null,null,null,null,null,null,null,null,null,null,null,null,null,null,null,null,null,null,null,null,null,null,null,null,1.1999999999999993]
[null,null,null,null,null,null,null,null,null,null,null,null,null,null,null,null,null,null,0,-2,"",null,"",null,null,null,null,null,null,null,null,null,null,null,null,null,null,null,null,null,null,null,null,null,null,null,null,null,null,null,null,null,null,1.2999999999999989]
[null,null,null,null,null,null,null,null,null,null,null,null,null,null,null,null,null,null,0,-2,"",null,"",null,null,null,null,null,null,null,null,null,null,null,null,null,null,null,null,null,null,null,null,null,null,null,null,null,null,null,null,null,null,1.2999999999999989]
[null,null,null,null,null,null,null,null,null,null,null,null,null,null,null,null,null,null,0,-2,"",null,"",null,null,null,null,null,null,null,null,null,null,null,null,null,null,null,null,null,null,null,null,null,null,null,null,null,null,null,null,null,null,1.2999999999999989]
[null,null,null,null,null,null,null,null,null,null,null,null,null,null,null,null,null,null,0,-2,"",null,"",null,null,null,null,null,null,null,null,null,null,null,null,null,null,null,null,null,null,null,null,null,null,null,null,null,null,null,null,null,null,1.2999999999999989]
[null,null,null,null,null,null,null,null,null,null,null,null,null,null,null,null,null,null,0,-2,"",null,"",null,null,null,null,null,null,null,null,null,null,null,null,null,null,null,null,null,null,null,null,null,null,null,null,null,null,null,null,null,null,1.2999999999999989]
[null,null,null,null,null,null,null,null,null,null,null,null,null,null,null,null,null,null,0,-2,"",null,"",null,null,null,null,null,null,null,null,null,null,null,null,null,null,null,null,null,null,null,null,null,null,null,null,null,null,null,null,null,null,1.4000000000000004]
[null,null,null,null,null,null,null,null,null,null,null,null,null,null,null,null,null,null,0,-2,"",null,"",null,null,null,null,null,null,null,null,null,null,null,null,null,null,null,null,null,null,null,null,null,null,null,null,null,null,null,null,null,null,1.3000000000000007]
[null,null,null,null,null,null,null,null,null,null,null,null,null,null,null,null,null,null,0,-2,"",null,"",null,null,null,null,null,null,null,null,null,null,null,null,null,null,null,null,null,null,null,null,null,null,null,null,null,null,null,null,null,null,1.4000000000000004]
[null,null,null,null,null,null,null,null,null,null,null,null,null,null,null,null,null,null,0,-2,"",null,"",null,null,null,null,null,null,null,null,null,null,null,null,null,null,null,null,null,null,null,null,null,null,null,null,null,null,null,null,null,null,1.5]
[null,null,null,null,null,null,null,null,null,null,null,null,null,null,null,null,null,null,0,-2,"",null,"",null,null,null,null,null,null,null,null,null,null,null,null,null,null,null,null,null,null,null,null,null,null,null,null,null,null,null,null,null,null,1.5999999999999996]
[null,null,null,null,null,null,null,null,null,null,null,null,null,null,null,null,null,null,0,-2,"",null,"",null,null,null,null,null,null,null,null,null,null,null,null,null,null,null,null,null,null,null,null,null,null,null,null,null,null,null,null,null,null,1.8000000000000007]
[null,null,null,null,null,null,null,null,null,null,null,null,null,null,null,null,null,null,0,-2,"",null,"",null,null,null,null,null,null,null,null,null,null,null,null,null,null,null,null,null,null,null,null,null,null,null,null,null,null,null,null,null,null,1.8000000000000007]
[null,null,null,null,null,null,null,null,null,null,null,null,null,null,null,null,null,null,0,-2,"",null,"",null,null,null,null,null,null,null,null,null,null,null,null,null,null,null,null,null,null,null,null,null,null,null,null,null,null,null,null,null,null,1.9000000000000004]
[null,null,null,null,null,null,null,null,null,null,null,null,null,null,null,null,null,null,0,-2,"",null,"",null,null,null,null,null,null,null,null,null,null,null,null,null,null,null,null,null,null,null,null,null,null,null,null,null,null,null,null,null,null,2]
[null,null,null,null,null,null,null,null,null,null,null,null,null,null,null,null,null,null,0,-2,"",null,"",null,null,null,null,null,null,null,null,null,null,null,null,null,null,null,null,null,null,null,null,null,null,null,null,null,null,null,null,null,null,2]
[null,null,null,null,null,null,null,null,null,null,null,null,null,null,null,null,null,null,0,-2,"",null,"",null,null,null,null,null,null,null,null,null,null,null,null,null,null,null,null,null,null,null,null,null,null,null,null,null,null,null,null,null,null,2.0999999999999996]
[null,null,null,null,null,null,null,null,null,null,null,null,null,null,null,null,null,null,0,-2,"",null,"",null,null,null,null,null,null,null,null,null,null,null,null,null,null,null,null,null,null,null,null,null,null,null,null,null,null,null,null,null,null,2.4000000000000004]
[null,null,null,null,null,null,null,null,null,null,null,null,null,null,null,null,null,null,0,-2,"",null,"",null,null,null,null,null,null,null,null,null,null,null,null,null,null,null,null,null,null,null,null,null,null,null,null,null,null,null,null,null,null,2.5999999999999996]
[null,null,null,null,null,null,null,null,null,null,null,null,null,null,null,null,null,null,0,-2,"",null,"",null,null,null,null,null,null,null,null,null,null,null,null,null,null,null,null,null,null,null,null,null,null,null,null,null,null,null,null,null,null,2.6000000000000014]
[null,null,null,null,null,null,null,null,null,null,null,null,null,null,null,null,null,null,0,-2,"",null,"",null,null,null,null,null,null,null,null,null,null,null,null,null,null,null,null,null,null,null,null,null,null,null,null,null,null,null,null,null,null,2.7000000000000011]
[null,null,null,null,null,null,null,null,null,null,null,null,null,null,null,null,null,null,0,-2,{"$f":"IF(J971>0,60,\"\")","v":""},null,"",null,null,null,null,null,null,null,null,null,null,null,null,null,null,null,null,null,null,null,null,null,null,null,null,null,null,null,null,null,null,2.7000000000000011]
[null,null,null,null,null,null,null,null,null,null,null,null,null,null,null,null,null,null,0,-2,"",null,"",null,null,null,null,null,null,null,null,null,null,null,null,null,null,null,null,null,null,null,null,null,null,null,null,null,null,null,null,null,null,2.7000000000000011]
[null,null,null,null,null,null,null,null,null,null,null,null,null,null,null,null,null,null,0,-2,"",null,"",null,null,null,null,null,null,null,null,null,null,null,null,null,null,null,null,null,null,null,null,null,null,null,null,null,null,null,null,null,null,2.7000000000000011]
[null,null,null,null,null,null,null,null,null,null,null,null,null,null,null,null,null,null,0,-2,"",null,"",null,null,null,null,null,null,null,null,null,null,null,null,null,null,null,null,null,null,null,null,null,null,null,null,null,null,null,null,null,null,2.7000000000000011]
[null,null,null,null,null,null,null,null,null,null,null,null,null,null,null,null,null,null,0,-2,"",null,"",null,null,null,null,null,null,null,null,null,null,null,null,null,null,null,null,null,null,null,null,null,null,null,null,null,null,null,null,null,null,2.7000000000000011]
[null,null,null,null,null,null,null,null,null,null,null,null,null,null,null,null,null,null,{"$f":"MAX(O976,P976)","v":0},{"$f":"(S976-B976)-2","v":-2},"",null,"",null,null,null,null,null,null,null,null,null,null,null,null,null,null,null,null,null,null,null,null,null,null,null,null,null,null,null,null,null,null,2.5999999999999996]
[null,null,null,null,null,null,null,null,null,null,null,null,null,null,null,null,null,null,0,-2,"",null,"",null,null,null,null,null,null,null,null,null,null,null,null,null,null,null,null,null,null,null,null,null,null,null,null,null,null,null,null,null,null,2.5999999999999996]
[null,null,null,null,null,null,null,null,null,null,null,null,null,null,null,null,null,null,0,-2,"",null,"",null,null,null,null,null,null,null,null,null,null,null,null,null,null,null,null,null,null,null,null,null,null,null,null,null,null,null,null,null,null,2.6999999999999993]
[null,null,null,null,null,null,null,null,null,null,null,null,null,null,null,null,null,null,0,-2,"",null,"",null,null,null,null,null,null,null,null,null,null,null,null,null,null,null,null,null,null,null,null,null,null,null,null,null,null,null,null,null,null,2.5999999999999996]
[null,null,null,null,null,null,null,null,null,null,null,null,null,null,null,null,null,null,0,-2,"",null,"",null,null,null,null,null,null,null,null,null,null,null,null,null,null,null,null,null,null,null,null,null,null,null,null,null,null,null,null,null,null,2.6999999999999993]
[null,null,null,null,null,null,null,null,null,null,null,null,null,null,null,null,null,null,0,-2,"",null,"",null,null,null,null,null,null,null,null,null,null,null,null,null,null,null,null,null,null,null,null,null,null,null,null,null,null,null,null,null,null,2.5999999999999996]
[null,null,null,null,null,null,null,null,null,null,null,null,null,null,null,null,null,null,0,-2,"",null,"",null,null,null,null,null,null,null,null,null,null,null,null,null,null,null,null,null,null,null,null,null,null,null,null,null,null,null,null,null,null,2.5999999999999996]
[null,null,null,null,null,null,null,null,null,null,null,null,null,null,null,null,null,null,0,-2,"",null,"",null,null,null,null,null,null,null,null,null,null,null,null,null,null,null,null,null,null,null,null,null,null,null,null,null,null,null,null,null,null,2.5999999999999996]
[null,null,null,null,null,null,null,null,null,null,null,null,null,null,null,null,null,null,0,-2,"",null,"",null,null,null,null,null,null,null,null,null,null,null,null,null,null,null,null,null,null,null,null,null,null,null,null,null,null,null,null,null,null,2.6999999999999993]
[null,null,null,null,null,null,null,null,null,null,null,null,null,null,null,null,null,null,0,-2,"",null,"",null,null,null,null,null,null,null,null,null,null,null,null,null,null,null,null,null,null,null,null,null,null,null,null,null,null,null,null,null,null,2.6999999999999993]
[null,null,null,null,null,null,null,null,null,null,null,null,null,null,null,null,null,null,0,-2,"",null,"",null,null,null,null,null,null,null,null,null,null,null,null,null,null,null,null,null,null,null,null,null,null,null,null,null,null,null,null,null,null,2.6999999999999993]
[null,null,null,null,null,null,null,null,null,null,null,null,null,null,null,null,null,null,0,-2,"",null,"",null,null,null,null,null,null,null,null,null,null,null,null,null,null,null,null,null,null,null,null,null,null,null,null,null,null,null,null,null,null,2.5999999999999996]
[null,null,null,null,null,null,null,null,null,null,null,null,null,null,null,null,null,null,0,-2,"",null,"",null,null,null,null,null,null,null,null,null,null,null,null,null,null,null,null,null,null,null,null,null,null,null,null,null,null,null,null,null,null,2.5]
[null,null,null,null,null,null,null,null,null,null,null,null,null,null,null,null,null,null,0,-2,"",null,"",null,null,null,null,null,null,null,null,null,null,null,null,null,null,null,null,null,null,null,null,null,null,null,null,null,null,null,null,null,null,2.5]
[null,null,null,null,null,null,null,null,null,null,null,null,null,null,null,null,null,null,0,-2,"",null,"",null,null,null,null,null,null,null,null,null,null,null,null,null,null,null,null,null,null,null,null,null,null,null,null,null,null,null,null,null,null,2.5]
[null,null,null,null,null,null,null,null,null,null,null,null,null,null,null,null,null,null,0,-2,"",null,"",null,null,null,null,null,null,null,null,null,null,null,null,null,null,null,null,null,null,null,null,null,null,null,null,null,null,null,null,null,null,2.4000000000000004]
[null,null,null,null,null,null,null,null,null,null,null,null,null,null,null,null,null,null,0,-2,"",null,"",null,null,null,null,null,null,null,null,null,null,null,null,null,null,null,null,null,null,null,null,null,null,null,null,null,null,null,null,null,null,2.3000000000000007]
[null,null,null,null,null,null,null,null,null,null,null,null,null,null,null,null,null,null,0,-2,"",null,"",null,null,null,null,null,null,null,null,null,null,null,null,null,null,null,null,null,null,null,null,null,null,null,null,null,null,null,null,null,null,2.3000000000000007]
[null,null,null,null,null,null,null,null,null,null,null,null,null,null,null,null,null,null,0,-2,"",null,"",null,null,null,null,null,null,null,null,null,null,null,null,null,null,null,null,null,null,null,null,null,null,null,null,null,null,null,null,null,null,2.1999999999999993]
[null,null,null,null,null,null,null,null,null,null,null,null,null,null,null,null,null,null,0,-2,"",null,"",null,null,null,null,null,null,null,null,null,null,null,null,null,null,null,null,null,null,null,null,null,null,null,null,null,null,null,null,null,null,2.1999999999999993]
[null,null,null,null,null,null,null,null,null,null,null,null,null,null,null,null,null,null,0,-2,"",null,"",null,null,null,null,null,null,null,null,null,null,null,null,null,null,null,null,null,null,null,null,null,null,null,null,null,null,null,null,null,null,2.0999999999999996]
[null,null,null,null,null,null,null,null,null,null,null,null,null,null,null,null,null,null,0,-2,"",null,"",null,null,null,null,null,null,null,null,null,null,null,null,null,null,null,null,null,null,null,null,null,null,null,null,null,null,null,null,null,null,2.0999999999999996]
[null,null,null,null,null,null,null,null,null,null,null,null,null,null,null,null,null,null,0,-2,"",null,"",null,null,null,null,null,null,null,null,null,null,null,null,null,null,null,null,null,null,null,null,null,null,null,null,null,null,null,null,null,null,2.0999999999999996]
[null,null,null,null,null,null,null,null,null,null,null,null,null,null,null,null,null,null,0,-2,"",null,"",null,null,null,null,null,null,null,null,null,null,null,null,null,null,null,null,null,null,null,null,null,null,null,null,null,null,null,null,null,null,2.0999999999999996]
[null,null,null,null,null,null,null,null,null,null,null,null,null,null,null,null,null,null,0,-2,"",null,"",null,null,null,null,null,null,null,null,null,null,null,null,null,null,null,null,null,null,null,null,null,null,null,null,null,null,null,null,null,null,2.1999999999999993]
[null,null,null,null,null,null,null,null,null,null,null,null,null,null,null,null,null,null,0,-2,"",null,"",null,null,null,null,null,null,null,null,null,null,null,null,null,null,null,null,null,null,null,null,null,null,null,null,null,null,null,null,null,null,2.0999999999999996]
[null,null,null,null,null,null,null,null,null,null,null,null,null,null,null,null,null,null,0,-2,"",null,"",null,null,null,null,null,null,null,null,null,null,null,null,null,null,null,null,null,null,null,null,null,null,null,null,null,null,null,null,null,null,2.0999999999999996]
[null,null,null,null,null,null,null,null,null,null,null,null,null,null,null,null,null,null,0,-2,"",null,"",null,null,null,null,null,null,null,null,null,null,null,null,null,null,null,null,null,null,null,null,null,null,null,null,null,null,null,null,null,null,2.1999999999999993]
[null,null,null,null,null,null,null,null,null,null,null,null,null,null,null,null,null,null,0,-2,"",null,"",null,null,null,null,null,null,null,null,null,null,null,null,null,null,null,null,null,null,null,null,null,null,null,null,null,null,null,null,null,null,2.1999999999999993]
[null,null,null,null,null,null,null,null,null,null,null,null,null,null,null,null,null,null,0,-2,"",null,"",null,null,null,null,null,null,null,null,null,null,null,null,null,null,null,null,null,null,null,null,null,null,null,null,null,null,null,null,null,null,2]
[null,null,null,null,null,null,null,null,null,null,null,null,null,null,null,null,null,null,0,-2,"",null,"",null,null,null,null,null,null,null,null,null,null,null,null,null,null,null,null,null,null,null,null,null,null,null,null,null,null,null,null,null,null,1.9000000000000004]
[null,null,null,null,null,null,null,null,null,null,null,null,null,null,null,null,null,null,0,-2,"",null,"",null,null,null,null,null,null,null,null,null,null,null,null,null,null,null,null,null,null,null,null,null,null,null,null,null,null,null,null,null,null,1.8000000000000007]
[null,null,null,null,null,null,null,null,null,null,null,null,null,null,null,null,null,null,0,-2,"",null,"",null,null,null,null,null,null,null,null,null,null,null,null,null,null,null,null,null,null,null,null,null,null,null,null,null,null,null,null,null,null,1.8000000000000007]
[null,null,null,null,null,null,null,null,null,null,null,null,null,null,null,null,null,null,0,-2,"",null,"",null,null,null,null,null,null,null,null,null,null,null,null,null,null,null,null,null,null,null,null,null,null,null,null,null,null,null,null,null,null,1.6999999999999993]
[null,null,null,null,null,null,null,null,null,null,null,null,null,null,null,null,null,null,0,-2,"",null,{"$f":"IF(S1010>B1010+3,60,\"\")","v":""},null,null,null,null,null,null,null,null,null,null,null,null,null,null,null,null,null,null,null,null,null,null,null,null,null,null,null,null,null,null,1.6999999999999993]
[null,null,null,null,null,null,null,null,null,null,null,null,null,null,null,null,null,null,0,-2,"",null,"",null,null,null,null,null,null,null,null,null,null,null,null,null,null,null,null,null,null,null,null,null,null,null,null,null,null,null,null,null,null,1.6999999999999993]
[null,null,null,null,null,null,null,null,null,null,null,null,null,null,null,null,null,null,0,-2,"",null,"",null,null,null,null,null,null,null,null,null,null,null,null,null,null,null,null,null,null,null,null,null,null,null,null,null,null,null,null,null,null,1.5999999999999996]
[null,null,null,null,null,null,null,null,null,null,null,null,null,null,null,null,null,null,0,-2,"",null,"",null,null,null,null,null,null,null,null,null,null,null,null,null,null,null,null,null,null,null,null,null,null,null,null,null,null,null,null,null,null,1.5999999999999996]
[null,null,null,null,null,null,null,null,null,null,null,null,null,null,null,null,null,null,0,-2,"",null,"",null,null,null,null,null,null,null,null,null,null,null,null,null,null,null,null,null,null,null,null,null,null,null,null,null,null,null,null,null,null,1.5]
[null,null,null,null,null,null,null,null,null,null,null,null,null,null,null,null,null,null,0,-2,"",null,"",null,null,null,null,null,null,null,null,null,null,null,null,null,null,null,null,null,null,null,null,null,null,null,null,null,null,null,null,null,null,1.5]
[null,null,null,null,null,null,null,null,null,null,null,null,null,null,null,null,null,null,0,-2,"",null,"",null,null,null,null,null,null,null,null,null,null,null,null,null,null,null,null,null,null,null,null,null,null,null,null,null,null,null,null,null,null,1.5]
[null,null,null,null,null,null,null,null,null,null,null,null,null,null,null,null,null,null,0,-2,"",null,"",null,null,null,null,null,null,null,null,null,null,null,null,null,null,null,null,null,null,null,null,null,null,null,null,null,null,null,null,null,null,1.4000000000000004]
[null,null,null,null,null,null,null,null,null,null,null,null,null,null,null,null,null,null,0,-2,"",null,"",null,null,null,null,null,null,null,null,null,null,null,null,null,null,null,null,null,null,null,null,null,null,null,null,null,null,null,null,null,null,1.4000000000000004]
[null,null,null,null,null,null,null,null,null,null,null,null,null,null,null,null,null,null,0,-2,"",null,"",null,null,null,null,null,null,null,null,null,null,null,null,null,null,null,null,null,null,null,null,null,null,null,null,null,null,null,null,null,null,1.3000000000000007]
[null,null,null,null,null,null,null,null,null,null,null,null,null,null,null,null,null,null,0,-2,"",null,"",null,null,null,null,null,null,null,null,null,null,null,null,null,null,null,null,null,null,null,null,null,null,null,null,null,null,null,null,null,null,1.1999999999999993]
[null,null,null,null,null,null,null,null,null,null,null,null,null,null,null,null,null,null,0,-2,"",null,"",null,null,null,null,null,null,null,null,null,null,null,null,null,null,null,null,null,null,null,null,null,null,null,null,null,null,null,null,null,null,1.0999999999999996]
[null,null,null,null,null,null,null,null,null,null,null,null,null,null,null,null,null,null,0,-2,"",null,"",null,null,null,null,null,null,null,null,null,null,null,null,null,null,null,null,null,null,null,null,null,null,null,null,null,null,null,null,null,null,1]
[null,null,null,null,null,null,null,null,null,null,null,null,null,null,null,null,null,null,0,-2,"",null,"",null,null,null,null,null,null,null,null,null,null,null,null,null,null,null,null,null,null,null,null,null,null,null,null,null,null,null,null,null,null,1]
[null,null,null,null,null,null,null,null,null,null,null,null,null,null,null,null,null,null,0,-2,"",null,"",null,null,null,null,null,null,null,null,null,null,null,null,null,null,null,null,null,null,null,null,null,null,null,null,null,null,null,null,null,null,0.90000000000000036]
[null,null,null,null,null,null,null,null,null,null,null,null,null,null,null,null,null,null,0,-2,"",null,"",null,null,null,null,null,null,null,null,null,null,null,null,null,null,null,null,null,null,null,null,null,null,null,null,null,null,null,null,null,null,0.80000000000000071]
[null,null,null,null,null,null,null,null,null,null,null,null,null,null,null,null,null,null,0,-2,"",null,"",null,null,null,null,null,null,null,null,null,null,null,null,null,null,null,null,null,null,null,null,null,null,null,null,null,null,null,null,null,null,0.90000000000000036]
[null,null,null,null,null,null,null,null,null,null,null,null,null,null,null,null,null,null,{"$f":"MAX(O1027,P1027)","v":0},{"$f":"(S1027-B1027)-2","v":-2},"",null,"",null,null,null,null,null,null,null,null,null,null,null,null,null,null,null,null,null,null,null,null,null,null,null,null,null,null,null,null,null,null,0.79999999999999893]
[null,null,null,null,null,null,null,null,null,null,null,null,null,null,null,null,null,null,0,-2,"",null,"",null,null,null,null,null,null,null,null,null,null,null,null,null,null,null,null,null,null,null,null,null,null,null,null,null,null,null,null,null,null,0.69999999999999929]
[null,null,null,null,null,null,null,null,null,null,null,null,null,null,null,null,null,null,0,-2,"",null,"",null,null,null,null,null,null,null,null,null,null,null,null,null,null,null,null,null,null,null,null,null,null,null,null,null,null,null,null,null,null,0.59999999999999964]
[null,null,null,null,null,null,null,null,null,null,null,null,null,null,null,null,null,null,0,-2,"",null,"",null,null,null,null,null,null,null,null,null,null,null,null,null,null,null,null,null,null,null,null,null,null,null,null,null,null,null,null,null,null,0.5]
[null,null,null,null,null,null,null,null,null,null,null,null,null,null,null,null,null,null,0,-2,"",null,"",null,null,null,null,null,null,null,null,null,null,null,null,null,null,null,null,null,null,null,null,null,null,null,null,null,null,null,null,null,null,0.5]
[null,null,null,null,null,null,null,null,null,null,null,null,null,null,null,null,null,null,0,-2,"",null,"",null,null,null,null,null,null,null,null,null,null,null,null,null,null,null,null,null,null,null,null,null,null,null,null,null,null,null,null,null,null,0.40000000000000036]
[null,null,null,null,null,null,null,null,null,null,null,null,null,null,null,null,null,null,0,-2,"",null,"",null,null,null,null,null,null,null,null,null,null,null,null,null,null,null,null,null,null,null,null,null,null,null,null,null,null,null,null,null,null,0.29999999999999893]
[null,null,null,null,null,null,null,null,null,null,null,null,null,null,null,null,null,null,0,-2,"",null,"",null,null,null,null,null,null,null,null,null,null,null,null,null,null,null,null,null,null,null,null,null,null,null,null,null,null,null,null,null,null,0.29999999999999893]
[null,null,null,null,null,null,null,null,null,null,null,null,null,null,null,null,null,null,0,-2,{"$f":"IF(J1035>0,60,\"\")","v":""},null,"",null,null,null,null,null,null,null,null,null,null,null,null,null,null,null,null,null,null,null,null,null,null,null,null,null,null,null,null,null,null,0.19999999999999929]
[null,null,null,null,null,null,null,null,null,null,null,null,null,null,null,null,null,null,0,-2,"",null,"",null,null,null,null,null,null,null,null,null,null,null,null,null,null,null,null,null,null,null,null,null,null,null,null,null,null,null,null,null,null,0.29999999999999893]
[null,null,null,null,null,null,null,null,null,null,null,null,null,null,null,null,null,null,0,-2,"",null,"",null,null,null,null,null,null,null,null,null,null,null,null,null,null,null,null,null,null,null,null,null,null,null,null,null,null,null,null,null,null,0.19999999999999929]
[null,null,null,null,null,null,null,null,null,null,null,null,null,null,null,null,null,null,0,-2,"",null,"",null,null,null,null,null,null,null,null,null,null,null,null,null,null,null,null,null,null,null,null,null,null,null,null,null,null,null,null,null,null,9.9999999999999645E-2]
[null,null,null,null,null,null,null,null,null,null,null,null,null,null,null,null,null,null,0,-2,"",null,"",null,null,null,null,null,null,null,null,null,null,null,null,null,null,null,null,null,null,null,null,null,null,null,null,null,null,null,null,null,null,9.9999999999999645E-2]
[null,null,null,null,null,null,null,null,null,null,null,null,null,null,null,null,null,null,{"$f":"MAX(O1040,P1040)","v":0},{"$f":"(S1040-B1040)-2","v":-2},"",null,"",null,null,null,null,null,null,null,null,null,null,null,null,null,null,null,null,null,null,null,null,null,null,null,null,null,null,null,null,null,null,0]
[null,null,null,null,null,null,null,null,null,null,null,null,null,null,null,null,null,null,0,-2,"",null,"",null,null,null,null,null,null,null,null,null,null,null,null,null,null,null,null,null,null,null,null,null,null,null,null,null,null,null,null,null,null,0]
[null,null,null,null,null,null,null,null,null,null,null,null,null,null,null,null,null,null,0,-2,"",null,"",null,null,null,null,null,null,null,null,null,null,null,null,null,null,null,null,null,null,null,null,null,null,null,null,null,null,null,null,null,null,-0.10000000000000142]
[null,null,null,null,null,null,null,null,null,null,null,null,null,null,null,null,null,null,0,-2,"",null,"",null,null,null,null,null,null,null,null,null,null,null,null,null,null,null,null,null,null,null,null,null,null,null,null,null,null,null,null,null,null,-0.20000000000000107]
[null,null,null,null,null,null,null,null,null,null,null,null,null,null,null,null,null,null,0,-2,"",null,"",null,null,null,null,null,null,null,null,null,null,null,null,null,null,null,null,null,null,null,null,null,null,null,null,null,null,null,null,null,null,-0.20000000000000107]
[null,null,null,null,null,null,null,null,null,null,null,null,null,null,null,null,null,null,0,-2,"",null,"",null,null,null,null,null,null,null,null,null,null,null,null,null,null,null,null,null,null,null,null,null,null,null,null,null,null,null,null,null,null,-0.30000000000000071]
[null,null,null,null,null,null,null,null,null,null,null,null,null,null,null,null,null,null,0,-2,"",null,"",null,null,null,null,null,null,null,null,null,null,null,null,null,null,null,null,null,null,null,null,null,null,null,null,null,null,null,null,null,null,-0.30000000000000071]
[null,null,null,null,null,null,null,null,null,null,null,null,null,null,null,null,null,null,0,-2,"",null,"",null,null,null,null,null,null,null,null,null,null,null,null,null,null,null,null,null,null,null,null,null,null,null,null,null,null,null,null,null,null,-0.30000000000000071]
[null,null,null,null,null,null,null,null,null,null,null,null,null,null,null,null,null,null,0,-2,"",null,"",null,null,null,null,null,null,null,null,null,null,null,null,null,null,null,null,null,null,null,null,null,null,null,null,null,null,null,null,null,null,-0.40000000000000036]
[null,null,null,null,null,null,null,null,null,null,null,null,null,null,null,null,null,null,0,-2,"",null,"",null,null,null,null,null,null,null,null,null,null,null,null,null,null,null,null,null,null,null,null,null,null,null,null,null,null,null,null,null,null,-0.40000000000000036]
[null,null,null,null,null,null,null,null,null,null,null,null,null,null,null,null,null,null,0,-2,"",null,"",null,null,null,null,null,null,null,null,null,null,null,null,null,null,null,null,null,null,null,null,null,null,null,null,null,null,null,null,null,null,-0.39999999999999858]
[null,null,null,null,null,null,null,null,null,null,null,null,null,null,null,null,null,null,0,-2,"",null,"",null,null,null,null,null,null,null,null,null,null,null,null,null,null,null,null,null,null,null,null,null,null,null,null,null,null,null,null,null,null,-0.39999999999999858]
[null,null,null,null,null,null,null,null,null,null,null,null,null,null,null,null,null,null,0,-2,"",null,"",null,null,null,null,null,null,null,null,null,null,null,null,null,null,null,null,null,null,null,null,null,null,null,null,null,null,null,null,null,null,-0.5]
[null,null,null,null,null,null,null,null,null,null,null,null,null,null,null,null,null,null,0,-2,"",null,"",null,null,null,null,null,null,null,null,null,null,null,null,null,null,null,null,null,null,null,null,null,null,null,null,null,null,null,null,null,null,-0.5]
[null,null,null,null,null,null,null,null,null,null,null,null,null,null,null,null,null,null,0,-2,"",null,"",null,null,null,null,null,null,null,null,null,null,null,null,null,null,null,null,null,null,null,null,null,null,null,null,null,null,null,null,null,null,-0.5]
[null,null,null,null,null,null,null,null,null,null,null,null,null,null,null,null,null,null,0,-2,"",null,"",null,null,null,null,null,null,null,null,null,null,null,null,null,null,null,null,null,null,null,null,null,null,null,null,null,null,null,null,null,null,-0.5]
[null,null,null,null,null,null,null,null,null,null,null,null,null,null,null,null,null,null,0,-2,"",null,"",null,null,null,null,null,null,null,null,null,null,null,null,null,null,null,null,null,null,null,null,null,null,null,null,null,null,null,null,null,null,-0.59999999999999964]
[null,null,null,null,null,null,null,null,null,null,null,null,null,null,null,null,null,null,0,-2,"",null,"",null,null,null,null,null,null,null,null,null,null,null,null,null,null,null,null,null,null,null,null,null,null,null,null,null,null,null,null,null,null,-0.5]
[null,null,null,null,null,null,null,null,null,null,null,null,null,null,null,null,null,null,0,-2,"",null,"",null,null,null,null,null,null,null,null,null,null,null,null,null,null,null,null,null,null,null,null,null,null,null,null,null,null,null,null,null,null,-0.59999999999999964]
[null,null,null,null,null,null,null,null,null,null,null,null,null,null,null,null,null,null,{"$f":"MAX(O1059,P1059)","v":0},-2,"",null,"",null,null,null,null,null,null,null,null,null,null,null,null,null,null,null,null,null,null,null,null,null,null,null,null,null,null,null,null,null,null,-0.59999999999999964]
[null,null,null,null,null,null,null,null,null,null,null,null,null,null,null,null,null,null,0,-2,"",null,"",null,null,null,null,null,null,null,null,null,null,null,null,null,null,null,null,null,null,null,null,null,null,null,null,null,null,null,null,null,null,-0.59999999999999964]
[null,null,null,null,null,null,null,null,null,null,null,null,null,null,null,null,null,null,0,-2,"",null,"",null,null,null,null,null,null,null,null,null,null,null,null,null,null,null,null,null,null,null,null,null,null,null,null,null,null,null,null,null,null,-0.69999999999999929]
[null,null,null,null,null,null,null,null,null,null,null,null,null,null,null,null,null,null,0,-2,"",null,"",null,null,null,null,null,null,null,null,null,null,null,null,null,null,null,null,null,null,null,null,null,null,null,null,null,null,null,null,null,null,-0.69999999999999929]
[null,null,null,null,null,null,null,null,null,null,null,null,null,null,null,null,null,null,0,-2,"",null,"",null,null,null,null,null,null,null,null,null,null,null,null,null,null,null,null,null,null,null,null,null,null,null,null,null,null,null,null,null,null,-0.80000000000000071]
[null,null,null,null,null,null,null,null,null,null,null,null,null,null,null,null,null,null,0,-2,"",null,"",null,null,null,null,null,null,null,null,null,null,null,null,null,null,null,null,null,null,null,null,null,null,null,null,null,null,null,null,null,null,-0.80000000000000071]
[null,null,null,null,null,null,null,null,null,null,null,null,null,null,null,null,null,null,0,-2,"",null,"",null,null,null,null,null,null,null,null,null,null,null,null,null,null,null,null,null,null,null,null,null,null,null,null,null,null,null,null,null,null,-0.80000000000000071]
[null,null,null,null,null,null,null,null,null,null,null,null,null,null,null,null,null,null,0,-2,"",null,"",null,null,null,null,null,null,null,null,null,null,null,null,null,null,null,null,null,null,null,null,null,null,null,null,null,null,null,null,null,null,-0.90000000000000036]
[null,null,null,null,null,null,null,null,null,null,null,null,null,null,null,null,null,null,0,-2,"",null,"",null,null,null,null,null,null,null,null,null,null,null,null,null,null,null,null,null,null,null,null,null,null,null,null,null,null,null,null,null,null,-1]
[null,null,null,null,null,null,null,null,null,null,null,null,null,null,null,null,null,null,0,-2,"",null,"",null,null,null,null,null,null,null,null,null,null,null,null,null,null,null,null,null,null,null,null,null,null,null,null,null,null,null,null,null,null,-1]
[null,null,null,null,null,null,null,null,null,null,null,null,null,null,null,null,null,null,0,-2,"",null,"",null,null,null,null,null,null,null,null,null,null,null,null,null,null,null,null,null,null,null,null,null,null,null,null,null,null,null,null,null,null,-1.0999999999999996]
[null,null,null,null,null,null,null,null,null,null,null,null,null,null,null,null,null,null,0,-2,"",null,"",null,null,null,null,null,null,null,null,null,null,null,null,null,null,null,null,null,null,null,null,null,null,null,null,null,null,null,null,null,null,-1]
[null,null,null,null,null,null,null,null,null,null,null,null,null,null,null,null,null,null,0,-2,"",null,"",null,null,null,null,null,null,null,null,null,null,null,null,null,null,null,null,null,null,null,null,null,null,null,null,null,null,null,null,null,null,-1.0999999999999996]
[null,null,null,null,null,null,null,null,null,null,null,null,null,null,null,null,null,null,0,-2,"",null,"",null,null,null,null,null,null,null,null,null,null,null,null,null,null,null,null,null,null,null,null,null,null,null,null,null,null,null,null,null,null,-1.0999999999999996]
[null,null,null,null,null,null,null,null,null,null,null,null,null,null,null,null,null,null,0,-2,"",null,"",null,null,null,null,null,null,null,null,null,null,null,null,null,null,null,null,null,null,null,null,null,null,null,null,null,null,null,null,null,null,-1.2000000000000011]
[null,null,null,null,null,null,null,null,null,null,null,null,null,null,null,null,null,null,0,-2,"",null,{"$f":"IF(S1074>B1074+3,60,\"\")","v":""},null,null,null,null,null,null,null,null,null,null,null,null,null,null,null,null,null,null,null,null,null,null,null,null,null,null,null,null,null,null,-1.1000000000000014]
[null,null,null,null,null,null,null,null,null,null,null,null,null,null,null,null,null,null,0,-2,"",null,"",null,null,null,null,null,null,null,null,null,null,null,null,null,null,null,null,null,null,null,null,null,null,null,null,null,null,null,null,null,null,-1.2000000000000011]
[null,null,null,null,null,null,null,null,null,null,null,null,null,null,null,null,null,null,0,-2,"",null,"",null,null,null,null,null,null,null,null,null,null,null,null,null,null,null,null,null,null,null,null,null,null,null,null,null,null,null,null,null,null,-1.2000000000000011]
[null,null,null,null,null,null,null,null,null,null,null,null,null,null,null,null,null,null,0,-2,"",null,"",null,null,null,null,null,null,null,null,null,null,null,null,null,null,null,null,null,null,null,null,null,null,null,null,null,null,null,null,null,null,-1.3000000000000007]
[null,null,null,null,null,null,null,null,null,null,null,null,null,null,null,null,null,null,0,-2,"",null,"",null,null,null,null,null,null,null,null,null,null,null,null,null,null,null,null,null,null,null,null,null,null,null,null,null,null,null,null,null,null,-1.3000000000000007]
[null,null,null,null,null,null,null,null,null,null,null,null,null,null,null,null,null,null,0,-2,"",null,"",null,null,null,null,null,null,null,null,null,null,null,null,null,null,null,null,null,null,null,null,null,null,null,null,null,null,null,null,null,null,-1.3000000000000007]
[null,null,null,null,null,null,null,null,null,null,null,null,null,null,null,null,null,null,0,-2,"",null,"",null,null,null,null,null,null,null,null,null,null,null,null,null,null,null,null,null,null,null,null,null,null,null,null,null,null,null,null,null,null,-1.3000000000000007]
[null,null,null,null,null,null,null,null,null,null,null,null,null,null,null,null,null,null,0,-2,"",null,"",null,null,null,null,null,null,null,null,null,null,null,null,null,null,null,null,null,null,null,null,null,null,null,null,null,null,null,null,null,null,-1.4000000000000004]
[null,null,null,null,null,null,null,null,null,null,null,null,null,null,null,null,null,null,0,-2,"",null,"",null,null,null,null,null,null,null,null,null,null,null,null,null,null,null,null,null,null,null,null,null,null,null,null,null,null,null,null,null,null,-1.4000000000000004]
[null,null,null,null,null,null,null,null,null,null,null,null,null,null,null,null,null,null,0,-2,"",null,"",null,null,null,null,null,null,null,null,null,null,null,null,null,null,null,null,null,null,null,null,null,null,null,null,null,null,null,null,null,null,-1.3999999999999986]
[null,null,null,null,null,null,null,null,null,null,null,null,null,null,null,null,null,null,0,-2,"",null,"",null,null,null,null,null,null,null,null,null,null,null,null,null,null,null,null,null,null,null,null,null,null,null,null,null,null,null,null,null,null,-1.3999999999999986]
[null,null,null,null,null,null,null,null,null,null,null,null,null,null,null,null,null,null,0,-2,"",null,"",null,null,null,null,null,null,null,null,null,null,null,null,null,null,null,null,null,null,null,null,null,null,null,null,null,null,null,null,null,null,-1.5]
[null,null,null,null,null,null,null,null,null,null,null,null,null,null,null,null,null,null,0,-2,"",null,"",null,null,null,null,null,null,null,null,null,null,null,null,null,null,null,null,null,null,null,null,null,null,null,null,null,null,null,null,null,null,-1.5]
[null,null,null,null,null,null,null,null,null,null,null,null,null,null,null,null,null,null,0,-2,"",null,"",null,null,null,null,null,null,null,null,null,null,null,null,null,null,null,null,null,null,null,null,null,null,null,null,null,null,null,null,null,null,-1.5]
[null,null,null,null,null,null,null,null,null,null,null,null,null,null,null,null,null,null,0,-2,"",null,"",null,null,null,null,null,null,null,null,null,null,null,null,null,null,null,null,null,null,null,null,null,null,null,null,null,null,null,null,null,null,-1.5999999999999996]
[null,null,null,null,null,null,null,null,null,null,null,null,null,null,null,null,null,null,0,-2,"",null,"",null,null,null,null,null,null,null,null,null,null,null,null,null,null,null,null,null,null,null,null,null,null,null,null,null,null,null,null,null,null,-1.5999999999999996]
[null,null,null,null,null,null,null,null,null,null,null,null,null,null,null,null,null,null,0,-2,"",null,"",null,null,null,null,null,null,null,null,null,null,null,null,null,null,null,null,null,null,null,null,null,null,null,null,null,null,null,null,null,null,-1.5999999999999996]
[null,null,null,null,null,null,null,null,null,null,null,null,null,null,null,null,null,null,0,-2,"",null,"",null,null,null,null,null,null,null,null,null,null,null,null,null,null,null,null,null,null,null,null,null,null,null,null,null,null,null,null,null,null,-1.6999999999999993]
[null,null,null,null,null,null,null,null,null,null,null,null,null,null,null,null,null,null,0,-2,"",null,"",null,null,null,null,null,null,null,null,null,null,null,null,null,null,null,null,null,null,null,null,null,null,null,null,null,null,null,null,null,null,-1.6999999999999993]
[null,null,null,null,null,null,null,null,null,null,null,null,null,null,null,null,null,null,0,-2,"",null,"",null,null,null,null,null,null,null,null,null,null,null,null,null,null,null,null,null,null,null,null,null,null,null,null,null,null,null,null,null,null,-1.5999999999999996]
[null,null,null,null,null,null,null,null,null,null,null,null,null,null,null,null,null,null,0,-2,"",null,"",null,null,null,null,null,null,null,null,null,null,null,null,null,null,null,null,null,null,null,null,null,null,null,null,null,null,null,null,null,null,-1.6999999999999993]
[null,null,null,null,null,null,null,null,null,null,null,null,null,null,null,null,null,null,0,-2,"",null,"",null,null,null,null,null,null,null,null,null,null,null,null,null,null,null,null,null,null,null,null,null,null,null,null,null,null,null,null,null,null,-1.7999999999999989]
[null,null,null,null,null,null,null,null,null,null,null,null,null,null,null,null,null,null,0,-2,"",null,"",null,null,null,null,null,null,null,null,null,null,null,null,null,null,null,null,null,null,null,null,null,null,null,null,null,null,null,null,null,null,-1.7999999999999989]
[null,null,null,null,null,null,null,null,null,null,null,null,null,null,null,null,null,null,0,-2,"",null,"",null,null,null,null,null,null,null,null,null,null,null,null,null,null,null,null,null,null,null,null,null,null,null,null,null,null,null,null,null,null,-2]
[null,null,null,null,null,null,null,null,null,null,null,null,null,null,null,null,null,null,0,-2,"",null,"",null,null,null,null,null,null,null,null,null,null,null,null,null,null,null,null,null,null,null,null,null,null,null,null,null,null,null,null,null,null,-2]
[null,null,null,null,null,null,null,null,null,null,null,null,null,null,null,null,null,null,0,-2,{"$f":"IF(J1099>0,60,\"\")","v":""},null,"",null,null,null,null,null,null,null,null,null,null,null,null,null,null,null,null,null,null,null,null,null,null,null,null,null,null,null,null,null,null,-2]
[null,null,null,null,null,null,null,null,null,null,null,null,null,null,null,null,null,null,0,-2,"",null,"",null,null,null,null,null,null,null,null,null,null,null,null,null,null,null,null,null,null,null,null,null,null,null,null,null,null,null,null,null,null,-2]
[null,null,null,null,null,null,null,null,null,null,null,null,null,null,null,null,null,null,0,-2,"",null,"",null,null,null,null,null,null,null,null,null,null,null,null,null,null,null,null,null,null,null,null,null,null,null,null,null,null,null,null,null,null,-2]
[null,null,null,null,null,null,null,null,null,null,null,null,null,null,null,null,null,null,0,-2,"",null,"",null,null,null,null,null,null,null,null,null,null,null,null,null,null,null,null,null,null,null,null,null,null,null,null,null,null,null,null,null,null,-2]
[null,null,null,null,null,null,null,null,null,null,null,null,null,null,null,null,null,null,0,-2,"",null,"",null,null,null,null,null,null,null,null,null,null,null,null,null,null,null,null,null,null,null,null,null,null,null,null,null,null,null,null,null,null,-2]
[null,null,null,null,null,null,null,null,null,null,null,null,null,null,null,null,null,null,{"$f":"MAX(O1104,P1104)","v":0},{"$f":"(S1104-B1104)-2","v":-2},"",null,"",null,null,null,null,null,null,null,null,null,null,null,null,null,null,null,null,null,null,null,null,null,null,null,null,null,null,null,null,null,null,-2]
[null,null,null,null,null,null,null,null,null,null,null,null,null,null,null,null,null,null,0,-2,"",null,"",null,null,null,null,null,null,null,null,null,null,null,null,null,null,null,null,null,null,null,null,null,null,null,null,null,null,null,null,null,null,-2]
[null,null,null,null,null,null,null,null,null,null,null,null,null,null,null,null,null,null,0,-2,"",null,"",null,null,null,null,null,null,null,null,null,null,null,null,null,null,null,null,null,null,null,null,null,null,null,null,null,null,null,null,null,null,-2]
[null,null,null,null,null,null,null,null,null,null,null,null,null,null,null,null,null,null,0,-2,"",null,"",null,null,null,null,null,null,null,null,null,null,null,null,null,null,null,null,null,null,null,null,null,null,null,null,null,null,null,null,null,null,-2]
[null,null,null,null,null,null,null,null,null,null,null,null,null,null,null,null,null,null,0,-2,"",null,"",null,null,null,null,null,null,null,null,null,null,null,null,null,null,null,null,null,null,null,null,null,null,null,null,null,null,null,null,null,null,-2]
[null,null,null,null,null,null,null,null,null,null,null,null,null,null,null,null,null,null,0,-2,"",null,"",null,null,null,null,null,null,null,null,null,null,null,null,null,null,null,null,null,null,null,null,null,null,null,null,null,null,null,null,null,null,-2]
[null,null,null,null,null,null,null,null,null,null,null,null,null,null,null,null,null,null,0,-2,"",null,"",null,null,null,null,null,null,null,null,null,null,null,null,null,null,null,null,null,null,null,null,null,null,null,null,null,null,null,null,null,null,-2]
[null,null,null,null,null,null,null,null,null,null,null,null,null,null,null,null,null,null,0,-2,"",null,"",null,null,null,null,null,null,null,null,null,null,null,null,null,null,null,null,null,null,null,null,null,null,null,null,null,null,null,null,null,null,-2]
[null,null,null,null,null,null,null,null,null,null,null,null,null,null,null,null,null,null,0,-2,"",null,"",null,null,null,null,null,null,null,null,null,null,null,null,null,null,null,null,null,null,null,null,null,null,null,null,null,null,null,null,null,null,-2]
[null,null,null,null,null,null,null,null,null,null,null,null,null,null,null,null,null,null,0,-2,"",null,"",null,null,null,null,null,null,null,null,null,null,null,null,null,null,null,null,null,null,null,null,null,null,null,null,null,null,null,null,null,null,-2]
[null,null,null,null,null,null,null,null,null,null,null,null,null,null,null,null,null,null,0,-2,"",null,"",null,null,null,null,null,null,null,null,null,null,null,null,null,null,null,null,null,null,null,null,null,null,null,null,null,null,null,null,null,null,-2]
[null,null,null,null,null,null,null,null,null,null,null,null,null,null,null,null,null,null,0,-2,"",null,"",null,null,null,null,null,null,null,null,null,null,null,null,null,null,null,null,null,null,null,null,null,null,null,null,null,null,null,null,null,null,-2]
[null,null,null,null,null,null,null,null,null,null,null,null,null,null,null,null,null,null,0,-2,"",null,"",null,null,null,null,null,null,null,null,null,null,null,null,null,null,null,null,null,null,null,null,null,null,null,null,null,null,null,null,null,null,-2]
[null,null,null,null,null,null,null,null,null,null,null,null,null,null,null,null,null,null,{"$f":"MAX(O1117,P1117)","v":0},{"$f":"(S1117-B1117)-2","v":-2},"",null,"",null,null,null,null,null,null,null,null,null,null,null,null,null,null,null,null,null,null,null,null,null,null,null,null,null,null,null,null,null,null,-2]
[null,null,null,null,null,null,null,null,null,null,null,null,null,null,null,null,null,null,0,{"$f":"(S1118-B1118)-2","v":-2},"",null,"",null,null,null,null,null,null,null,null,null,null,null,null,null,null,null,null,null,null,null,null,null,null,null,null,null,null,null,null,null,null,-2]
[null,null,null,null,null,null,null,null,null,null,null,null,null,null,null,null,null,null,0,-2,"",null,"",null,null,null,null,null,null,null,null,null,null,null,null,null,null,null,null,null,null,null,null,null,null,null,null,null,null,null,null,null,null,-2]
[null,null,null,null,null,null,null,null,null,null,null,null,null,null,null,null,null,null,0,-2,"",null,"",null,null,null,null,null,null,null,null,null,null,null,null,null,null,null,null,null,null,null,null,null,null,null,null,null,null,null,null,null,null,-2]
[null,null,null,null,null,null,null,null,null,null,null,null,null,null,null,null,null,null,0,-2,"",null,"",null,null,null,null,null,null,null,null,null,null,null,null,null,null,null,null,null,null,null,null,null,null,null,null,null,null,null,null,null,null,-2]
[null,null,null,null,null,null,null,null,null,null,null,null,null,null,null,null,null,null,0,-2,"",null,"",null,null,null,null,null,null,null,null,null,null,null,null,null,null,null,null,null,null,null,null,null,null,null,null,null,null,null,null,null,null,-2]
[null,null,null,null,null,null,null,null,null,null,null,null,null,null,null,null,null,null,0,-2,"",null,"",null,null,null,null,null,null,null,null,null,null,null,null,null,null,null,null,null,null,null,null,null,null,null,null,null,null,null,null,null,null,-2]
[null,null,null,null,null,null,null,null,null,null,null,null,null,null,null,null,null,null,0,-2,"",null,"",null,null,null,null,null,null,null,null,null,null,null,null,null,null,null,null,null,null,null,null,null,null,null,null,null,null,null,null,null,null,-2]
[null,null,null,null,null,null,null,null,null,null,null,null,null,null,null,null,null,null,0,-2,"",null,"",null,null,null,null,null,null,null,null,null,null,null,null,null,null,null,null,null,null,null,null,null,null,null,null,null,null,null,null,null,null,-2]
[null,null,null,null,null,null,null,null,null,null,null,null,null,null,null,null,null,null,0,-2,"",null,"",null,null,null,null,null,null,null,null,null,null,null,null,null,null,null,null,null,null,null,null,null,null,null,null,null,null,null,null,null,null,-2]
[null,null,null,null,null,null,null,null,null,null,null,null,null,null,null,null,null,null,0,-2,"",null,"",null,null,null,null,null,null,null,null,null,null,null,null,null,null,null,null,null,null,null,null,null,null,null,null,null,null,null,null,null,null,-2]
[null,null,null,null,null,null,null,null,null,null,null,null,null,null,null,null,null,null,0,-2,"",null,"",null,null,null,null,null,null,null,null,null,null,null,null,null,null,null,null,null,null,null,null,null,null,null,null,null,null,null,null,null,null,-2]
[null,null,null,null,null,null,null,null,null,null,null,null,null,null,null,null,null,null,0,-2,"",null,"",null,null,null,null,null,null,null,null,null,null,null,null,null,null,null,null,null,null,null,null,null,null,null,null,null,null,null,null,null,null,-2]
[null,null,null,null,null,null,null,null,null,null,null,null,null,null,null,null,null,null,0,-2,"",null,"",null,null,null,null,null,null,null,null,null,null,null,null,null,null,null,null,null,null,null,null,null,null,null,null,null,null,null,null,null,null,-2]
[null,null,null,null,null,null,null,null,null,null,null,null,null,null,null,null,null,null,0,-2,"",null,"",null,null,null,null,null,null,null,null,null,null,null,null,null,null,null,null,null,null,null,null,null,null,null,null,null,null,null,null,null,null,-2]
[null,null,null,null,null,null,null,null,null,null,null,null,null,null,null,null,null,null,0,-2,"",null,"",null,null,null,null,null,null,null,null,null,null,null,null,null,null,null,null,null,null,null,null,null,null,null,null,null,null,null,null,null,null,-2]
[null,null,null,null,null,null,null,null,null,null,null,null,null,null,null,null,null,null,0,-2,"",null,"",null,null,null,null,null,null,null,null,null,null,null,null,null,null,null,null,null,null,null,null,null,null,null,null,null,null,null,null,null,null,-2]
[null,null,null,null,null,null,null,null,null,null,null,null,null,null,null,null,null,null,0,-2,"",null,"",null,null,null,null,null,null,null,null,null,null,null,null,null,null,null,null,null,null,null,null,null,null,null,null,null,null,null,null,null,null,-2]
[null,null,null,null,null,null,null,null,null,null,null,null,null,null,null,null,null,null,0,-2,"",null,"",null,null,null,null,null,null,null,null,null,null,null,null,null,null,null,null,null,null,null,null,null,null,null,null,null,null,null,null,null,null,-2]
[null,null,null,null,null,null,null,null,null,null,null,null,null,null,null,null,null,null,0,-2,"",null,"",null,null,null,null,null,null,null,null,null,null,null,null,null,null,null,null,null,null,null,null,null,null,null,null,null,null,null,null,null,null,-2]
[null,null,null,null,null,null,null,null,null,null,null,null,null,null,null,null,null,null,0,-2,"",null,"",null,null,null,null,null,null,null,null,null,null,null,null,null,null,null,null,null,null,null,null,null,null,null,null,null,null,null,null,null,null,-2]
[null,null,null,null,null,null,null,null,null,null,null,null,null,null,null,null,null,null,0,-2,"",null,{"$f":"IF(S1138>B1138+3,60,\"\")","v":""},null,null,null,null,null,null,null,null,null,null,null,null,null,null,null,null,null,null,null,null,null,null,null,null,null,null,null,null,null,null,-2]
[null,null,null,null,null,null,null,null,null,null,null,null,null,null,null,null,null,null,0,-2,"",null,"",null,null,null,null,null,null,null,null,null,null,null,null,null,null,null,null,null,null,null,null,null,null,null,null,null,null,null,null,null,null,-2]
[null,null,null,null,null,null,null,null,null,null,null,null,null,null,null,null,null,null,0,-2,"",null,"",null,null,null,null,null,null,null,null,null,null,null,null,null,null,null,null,null,null,null,null,null,null,null,null,null,null,null,null,null,null,-2]
[null,null,null,null,null,null,null,null,null,null,null,null,null,null,null,null,null,null,0,-2,"",null,"",null,null,null,null,null,null,null,null,null,null,null,null,null,null,null,null,null,null,null,null,null,null,null,null,null,null,null,null,null,null,-2]
[null,null,null,null,null,null,null,null,null,null,null,null,null,null,null,null,null,null,0,-2,"",null,"",null,null,null,null,null,null,null,null,null,null,null,null,null,null,null,null,null,null,null,null,null,null,null,null,null,null,null,null,null,null,-2]
[null,null,null,null,null,null,null,null,null,null,null,null,null,null,null,null,null,null,0,-2,"",null,"",null,null,null,null,null,null,null,null,null,null,null,null,null,null,null,null,null,null,null,null,null,null,null,null,null,null,null,null,null,null,-2]
[null,null,null,null,null,null,null,null,null,null,null,null,null,null,null,null,null,null,0,-2,"",null,"",null,null,null,null,null,null,null,null,null,null,null,null,null,null,null,null,null,null,null,null,null,null,null,null,null,null,null,null,null,null,-2]
[null,null,null,null,null,null,null,null,null,null,null,null,null,null,null,null,null,null,0,-2,"",null,"",null,null,null,null,null,null,null,null,null,null,null,null,null,null,null,null,null,null,null,null,null,null,null,null,null,null,null,null,null,null,-2]
[null,null,null,null,null,null,null,null,null,null,null,null,null,null,null,null,null,null,0,-2,"",null,"",null,null,null,null,null,null,null,null,null,null,null,null,null,null,null,null,null,null,null,null,null,null,null,null,null,null,null,null,null,null,-2]
[null,null,null,null,null,null,null,null,null,null,null,null,null,null,null,null,null,null,0,-2,"",null,"",null,null,null,null,null,null,null,null,null,null,null,null,null,null,null,null,null,null,null,null,null,null,null,null,null,null,null,null,null,null,-2]
[null,null,null,null,null,null,null,null,null,null,null,null,null,null,null,null,null,null,0,-2,"",null,"",null,null,null,null,null,null,null,null,null,null,null,null,null,null,null,null,null,null,null,null,null,null,null,null,null,null,null,null,null,null,-2]
[null,null,null,null,null,null,null,null,null,null,null,null,null,null,null,null,null,null,0,-2,"",null,"",null,null,null,null,null,null,null,null,null,null,null,null,null,null,null,null,null,null,null,null,null,null,null,null,null,null,null,null,null,null,-2]
[null,null,null,null,null,null,null,null,null,null,null,null,null,null,null,null,null,null,0,-2,"",null,"",null,null,null,null,null,null,null,null,null,null,null,null,null,null,null,null,null,null,null,null,null,null,null,null,null,null,null,null,null,null,-2]
[null,null,null,null,null,null,null,null,null,null,null,null,null,null,null,null,null,null,0,-2,"",null,"",null,null,null,null,null,null,null,null,null,null,null,null,null,null,null,null,null,null,null,null,null,null,null,null,null,null,null,null,null,null,-2]
[null,null,null,null,null,null,null,null,null,null,null,null,null,null,null,null,null,null,0,-2,"",null,"",null,null,null,null,null,null,null,null,null,null,null,null,null,null,null,null,null,null,null,null,null,null,null,null,null,null,null,null,null,null,-2]
[null,null,null,null,null,null,null,null,null,null,null,null,null,null,null,null,null,null,0,-2,"",null,"",null,null,null,null,null,null,null,null,null,null,null,null,null,null,null,null,null,null,null,null,null,null,null,null,null,null,null,null,null,null,-2]
[null,null,null,null,null,null,null,null,null,null,null,null,null,null,null,null,null,null,0,-2,"",null,"",null,null,null,null,null,null,null,null,null,null,null,null,null,null,null,null,null,null,null,null,null,null,null,null,null,null,null,null,null,null,-2]
[null,null,null,null,null,null,null,null,null,null,null,null,null,null,null,null,null,null,0,-2,"",null,"",null,null,null,null,null,null,null,null,null,null,null,null,null,null,null,null,null,null,null,null,null,null,null,null,null,null,null,null,null,null,-2]
[null,null,null,null,null,null,null,null,null,null,null,null,null,null,null,null,null,null,0,-2,"",null,"",null,null,null,null,null,null,null,null,null,null,null,null,null,null,null,null,null,null,null,null,null,null,null,null,null,null,null,null,null,null,-2]
[null,null,null,null,null,null,null,null,null,null,null,null,null,null,null,null,null,null,0,-2,"",null,"",null,null,null,null,null,null,null,null,null,null,null,null,null,null,null,null,null,null,null,null,null,null,null,null,null,null,null,null,null,null,-2]
[null,null,null,null,null,null,null,null,null,null,null,null,null,null,null,null,null,null,0,-2,"",null,"",null,null,null,null,null,null,null,null,null,null,null,null,null,null,null,null,null,null,null,null,null,null,null,null,null,null,null,null,null,null,-2]
[null,null,null,null,null,null,null,null,null,null,null,null,null,null,null,null,null,null,0,-2,"",null,"",null,null,null,null,null,null,null,null,null,null,null,null,null,null,null,null,null,null,null,null,null,null,null,null,null,null,null,null,null,null,-2]
[null,null,null,null,null,null,null,null,null,null,null,null,null,null,null,null,null,null,0,-2,"",null,"",null,null,null,null,null,null,null,null,null,null,null,null,null,null,null,null,null,null,null,null,null,null,null,null,null,null,null,null,null,null,-2]
[null,null,null,null,null,null,null,null,null,null,null,null,null,null,null,null,null,null,0,-2,"",null,"",null,null,null,null,null,null,null,null,null,null,null,null,null,null,null,null,null,null,null,null,null,null,null,null,null,null,null,null,null,null,-2]
[null,null,null,null,null,null,null,null,null,null,null,null,null,null,null,null,null,null,0,-2,"",null,"",null,null,null,null,null,null,null,null,null,null,null,null,null,null,null,null,null,null,null,null,null,null,null,null,null,null,null,null,null,null,-2]
[null,null,null,null,null,null,null,null,null,null,null,null,null,null,null,null,null,null,0,-2,{"$f":"IF(J1163>0,60,\"\")","v":""},null,"",null,null,null,null,null,null,null,null,null,null,null,null,null,null,null,null,null,null,null,null,null,null,null,null,null,null,null,null,null,null,-2]
[null,null,null,null,null,null,null,null,null,null,null,null,null,null,null,null,null,null,0,-2,"",null,"",null,null,null,null,null,null,null,null,null,null,null,null,null,null,null,null,null,null,null,null,null,null,null,null,null,null,null,null,null,null,-2]
[null,null,null,null,null,null,null,null,null,null,null,null,null,null,null,null,null,null,0,-2,"",null,"",null,null,null,null,null,null,null,null,null,null,null,null,null,null,null,null,null,null,null,null,null,null,null,null,null,null,null,null,null,null,-2]
[null,null,null,null,null,null,null,null,null,null,null,null,null,null,null,null,null,null,0,-2,"",null,"",null,null,null,null,null,null,null,null,null,null,null,null,null,null,null,null,null,null,null,null,null,null,null,null,null,null,null,null,null,null,-2]
[null,null,null,null,null,null,null,null,null,null,null,null,null,null,null,null,null,null,0,-2,"",null,"",null,null,null,null,null,null,null,null,null,null,null,null,null,null,null,null,null,null,null,null,null,null,null,null,null,null,null,null,null,null,-2]
[null,null,null,null,null,null,null,null,null,null,null,null,null,null,null,null,null,null,{"$f":"MAX(O1168,P1168)","v":0},{"$f":"(S1168-B1168)-2","v":-2},"",null,"",null,null,null,null,null,null,null,null,null,null,null,null,null,null,null,null,null,null,null,null,null,null,null,null,null,null,null,null,null,null,-2]
[null,null,null,null,null,null,null,null,null,null,null,null,null,null,null,null,null,null,0,-2,"",null,"",null,null,null,null,null,null,null,null,null,null,null,null,null,null,null,null,null,null,null,null,null,null,null,null,null,null,null,null,null,null,-2]
[null,null,null,null,null,null,null,null,null,null,null,null,null,null,null,null,null,null,0,-2,"",null,"",null,null,null,null,null,null,null,null,null,null,null,null,null,null,null,null,null,null,null,null,null,null,null,null,null,null,null,null,null,null,-2]
[null,null,null,null,null,null,null,null,null,null,null,null,null,null,null,null,null,null,0,-2,"",null,"",null,null,null,null,null,null,null,null,null,null,null,null,null,null,null,null,null,null,null,null,null,null,null,null,null,null,null,null,null,null,-2]
[null,null,null,null,null,null,null,null,null,null,null,null,null,null,null,null,null,null,0,-2,"",null,"",null,null,null,null,null,null,null,null,null,null,null,null,null,null,null,null,null,null,null,null,null,null,null,null,null,null,null,null,null,null,-2]
[null,null,null,null,null,null,null,null,null,null,null,null,null,null,null,null,null,null,0,-2,"",null,"",null,null,null,null,null,null,null,null,null,null,null,null,null,null,null,null,null,null,null,null,null,null,null,null,null,null,null,null,null,null,-2]
[null,null,null,null,null,null,null,null,null,null,null,null,null,null,null,null,null,null,0,-2,"",null,"",null,null,null,null,null,null,null,null,null,null,null,null,null,null,null,null,null,null,null,null,null,null,null,null,null,null,null,null,null,null,-2]
[null,null,null,null,null,null,null,null,null,null,null,null,null,null,null,null,null,null,0,-2,"",null,"",null,null,null,null,null,null,null,null,null,null,null,null,null,null,null,null,null,null,null,null,null,null,null,null,null,null,null,null,null,null,-2]
[null,null,null,null,null,null,null,null,null,null,null,null,null,null,null,null,null,null,0,-2,"",null,"",null,null,null,null,null,null,null,null,null,null,null,null,null,null,null,null,null,null,null,null,null,null,null,null,null,null,null,null,null,null,-2]
[null,null,null,null,null,null,null,null,null,null,null,null,null,null,null,null,null,null,0,-2,"",null,"",null,null,null,null,null,null,null,null,null,null,null,null,null,null,null,null,null,null,null,null,null,null,null,null,null,null,null,null,null,null,-2]
[null,null,null,null,null,null,null,null,null,null,null,null,null,null,null,null,null,null,0,-2,"",null,"",null,null,null,null,null,null,null,null,null,null,null,null,null,null,null,null,null,null,null,null,null,null,null,null,null,null,null,null,null,null,-2]
[null,null,null,null,null,null,null,null,null,null,null,null,null,null,null,null,null,null,0,-2,"",null,"",null,null,null,null,null,null,null,null,null,null,null,null,null,null,null,null,null,null,null,null,null,null,null,null,null,null,null,null,null,null,-2]
[null,null,null,null,null,null,null,null,null,null,null,null,null,null,null,null,null,null,0,-2,"",null,"",null,null,null,null,null,null,null,null,null,null,null,null,null,null,null,null,null,null,null,null,null,null,null,null,null,null,null,null,null,null,-2]
[null,null,null,null,null,null,null,null,null,null,null,null,null,null,null,null,null,null,0,-2,"",null,"",null,null,null,null,null,null,null,null,null,null,null,null,null,null,null,null,null,null,null,null,null,null,null,null,null,null,null,null,null,null,-2]
[null,null,null,null,null,null,null,null,null,null,null,null,null,null,null,null,null,null,0,-2,"",null,"",null,null,null,null,null,null,null,null,null,null,null,null,null,null,null,null,null,null,null,null,null,null,null,null,null,null,null,null,null,null,-2]
[null,null,null,null,null,null,null,null,null,null,null,null,null,null,null,null,null,null,0,-2,"",null,"",null,null,null,null,null,null,null,null,null,null,null,null,null,null,null,null,null,null,null,null,null,null,null,null,null,null,null,null,null,null,-2]
[null,null,null,null,null,null,null,null,null,null,null,null,null,null,null,null,null,null,0,-2,"",null,"",null,null,null,null,null,null,null,null,null,null,null,null,null,null,null,null,null,null,null,null,null,null,null,null,null,null,null,null,null,null,-2]
[null,null,null,null,null,null,null,null,null,null,null,null,null,null,null,null,null,null,0,-2,"",null,"",null,null,null,null,null,null,null,null,null,null,null,null,null,null,null,null,null,null,null,null,null,null,null,null,null,null,null,null,null,null,-2]
[null,null,null,null,null,null,null,null,null,null,null,null,null,null,null,null,null,null,0,-2,"",null,"",null,null,null,null,null,null,null,null,null,null,null,null,null,null,null,null,null,null,null,null,null,null,null,null,null,null,null,null,null,null,-2]
[null,null,null,null,null,null,null,null,null,null,null,null,null,null,null,null,null,null,0,-2,"",null,"",null,null,null,null,null,null,null,null,null,null,null,null,null,null,null,null,null,null,null,null,null,null,null,null,null,null,null,null,null,null,-2]
[null,null,null,null,null,null,null,null,null,null,null,null,null,null,null,null,null,null,0,-2,"",null,"",null,null,null,null,null,null,null,null,null,null,null,null,null,null,null,null,null,null,null,null,null,null,null,null,null,null,null,null,null,null,-2]
[null,null,null,null,null,null,null,null,null,null,null,null,null,null,null,null,null,null,0,-2,"",null,"",null,null,null,null,null,null,null,null,null,null,null,null,null,null,null,null,null,null,null,null,null,null,null,null,null,null,null,null,null,null,-2]
[null,null,null,null,null,null,null,null,null,null,null,null,null,null,null,null,null,null,0,-2,"",null,"",null,null,null,null,null,null,null,null,null,null,null,null,null,null,null,null,null,null,null,null,null,null,null,null,null,null,null,null,null,null,-2]
[null,null,null,null,null,null,null,null,null,null,null,null,null,null,null,null,null,null,0,-2,"",null,"",null,null,null,null,null,null,null,null,null,null,null,null,null,null,null,null,null,null,null,null,null,null,null,null,null,null,null,null,null,null,-2]
[null,null,null,null,null,null,null,null,null,null,null,null,null,null,null,null,null,null,0,-2,"",null,"",null,null,null,null,null,null,null,null,null,null,null,null,null,null,null,null,null,null,null,null,null,null,null,null,null,null,null,null,null,null,-2]
[null,null,null,null,null,null,null,null,null,null,null,null,null,null,null,null,null,null,0,-2,"",null,"",null,null,null,null,null,null,null,null,null,null,null,null,null,null,null,null,null,null,null,null,null,null,null,null,null,null,null,null,null,null,-2]
[null,null,null,null,null,null,null,null,null,null,null,null,null,null,null,null,null,null,0,-2,"",null,"",null,null,null,null,null,null,null,null,null,null,null,null,null,null,null,null,null,null,null,null,null,null,null,null,null,null,null,null,null,null,-2]
[null,null,null,null,null,null,null,null,null,null,null,null,null,null,null,null,null,null,0,-2,"",null,"",null,null,null,null,null,null,null,null,null,null,null,null,null,null,null,null,null,null,null,null,null,null,null,null,null,null,null,null,null,null,-2]
[null,null,null,null,null,null,null,null,null,null,null,null,null,null,null,null,null,null,0,-2,"",null,"",null,null,null,null,null,null,null,null,null,null,null,null,null,null,null,null,null,null,null,null,null,null,null,null,null,null,null,null,null,null,-2]
[null,null,null,null,null,null,null,null,null,null,null,null,null,null,null,null,null,null,0,-2,"",null,"",null,null,null,null,null,null,null,null,null,null,null,null,null,null,null,null,null,null,null,null,null,null,null,null,null,null,null,null,null,null,-2]
[null,null,null,null,null,null,null,null,null,null,null,null,null,null,null,null,null,null,0,-2,"",null,"",null,null,null,null,null,null,null,null,null,null,null,null,null,null,null,null,null,null,null,null,null,null,null,null,null,null,null,null,null,null,-2]
[null,null,null,null,null,null,null,null,null,null,null,null,null,null,null,null,null,null,0,-2,"",null,"",null,null,null,null,null,null,null,null,null,null,null,null,null,null,null,null,null,null,null,null,null,null,null,null,null,null,null,null,null,null,-2]
[null,null,null,null,null,null,null,null,null,null,null,null,null,null,null,null,null,null,0,-2,"",null,"",null,null,null,null,null,null,null,null,null,null,null,null,null,null,null,null,null,null,null,null,null,null,null,null,null,null,null,null,null,null,-2]
[null,null,null,null,null,null,null,null,null,null,null,null,null,null,null,null,null,null,0,-2,"",null,"",null,null,null,null,null,null,null,null,null,null,null,null,null,null,null,null,null,null,null,null,null,null,null,null,null,null,null,null,null,null,-2]
[null,null,null,null,null,null,null,null,null,null,null,null,null,null,null,null,null,null,0,-2,"",null,{"$f":"IF(S1202>B1202+3,60,\"\")","v":""},null,null,null,null,null,null,null,null,null,null,null,null,null,null,null,null,null,null,null,null,null,null,null,null,null,null,null,null,null,null,-2]
[null,null,null,null,null,null,null,null,null,null,null,null,null,null,null,null,null,null,0,-2,"",null,"",null,null,null,null,null,null,null,null,null,null,null,null,null,null,null,null,null,null,null,null,null,null,null,null,null,null,null,null,null,null,-2]
[null,null,null,null,null,null,null,null,null,null,null,null,null,null,null,null,null,null,0,-2,"",null,"",null,null,null,null,null,null,null,null,null,null,null,null,null,null,null,null,null,null,null,null,null,null,null,null,null,null,null,null,null,null,-2]
[null,null,null,null,null,null,null,null,null,null,null,null,null,null,null,null,null,null,0,-2,"",null,"",null,null,null,null,null,null,null,null,null,null,null,null,null,null,null,null,null,null,null,null,null,null,null,null,null,null,null,null,null,null,-2]
[null,null,null,null,null,null,null,null,null,null,null,null,null,null,null,null,null,null,0,-2,"",null,"",null,null,null,null,null,null,null,null,null,null,null,null,null,null,null,null,null,null,null,null,null,null,null,null,null,null,null,null,null,null,-2]
[null,null,null,null,null,null,null,null,null,null,null,null,null,null,null,null,null,null,0,-2,"",null,"",null,null,null,null,null,null,null,null,null,null,null,null,null,null,null,null,null,null,null,null,null,null,null,null,null,null,null,null,null,null,-2]
[null,null,null,null,null,null,null,null,null,null,null,null,null,null,null,null,null,null,0,-2,"",null,"",null,null,null,null,null,null,null,null,null,null,null,null,null,null,null,null,null,null,null,null,null,null,null,null,null,null,null,null,null,null,-2]
[null,null,null,null,null,null,null,null,null,null,null,null,null,null,null,null,null,null,0,-2,"",null,"",null,null,null,null,null,null,null,null,null,null,null,null,null,null,null,null,null,null,null,null,null,null,null,null,null,null,null,null,null,null,-2]
[null,null,null,null,null,null,null,null,null,null,null,null,null,null,null,null,null,null,0,-2,"",null,"",null,null,null,null,null,null,null,null,null,null,null,null,null,null,null,null,null,null,null,null,null,null,null,null,null,null,null,null,null,null,-2]
[null,null,null,null,null,null,null,null,null,null,null,null,null,null,null,null,null,null,0,-2,"",null,"",null,null,null,null,null,null,null,null,null,null,null,null,null,null,null,null,null,null,null,null,null,null,null,null,null,null,null,null,null,null,-2]
[null,null,null,null,null,null,null,null,null,null,null,null,null,null,null,null,null,null,0,-2,"",null,"",null,null,null,null,null,null,null,null,null,null,null,null,null,null,null,null,null,null,null,null,null,null,null,null,null,null,null,null,null,null,-2]
[null,null,null,null,null,null,null,null,null,null,null,null,null,null,null,null,null,null,0,-2,"",null,"",null,null,null,null,null,null,null,null,null,null,null,null,null,null,null,null,null,null,null,null,null,null,null,null,null,null,null,null,null,null,-2]
[null,null,null,null,null,null,null,null,null,null,null,null,null,null,null,null,null,null,0,-2,"",null,"",null,null,null,null,null,null,null,null,null,null,null,null,null,null,null,null,null,null,null,null,null,null,null,null,null,null,null,null,null,null,-2]
[null,null,null,null,null,null,null,null,null,null,null,null,null,null,null,null,null,null,0,-2,"",null,"",null,null,null,null,null,null,null,null,null,null,null,null,null,null,null,null,null,null,null,null,null,null,null,null,null,null,null,null,null,null,-2]
[null,null,null,null,null,null,null,null,null,null,null,null,null,null,null,null,null,null,0,-2,"",null,"",null,null,null,null,null,null,null,null,null,null,null,null,null,null,null,null,null,null,null,null,null,null,null,null,null,null,null,null,null,null,-2]
[null,null,null,null,null,null,null,null,null,null,null,null,null,null,null,null,null,null,0,-2,"",null,"",null,null,null,null,null,null,null,null,null,null,null,null,null,null,null,null,null,null,null,null,null,null,null,null,null,null,null,null,null,null,-2]
[null,null,null,null,null,null,null,null,null,null,null,null,null,null,null,null,null,null,0,-2,"",null,"",null,null,null,null,null,null,null,null,null,null,null,null,null,null,null,null,null,null,null,null,null,null,null,null,null,null,null,null,null,null,-2]
[null,null,null,null,null,null,null,null,null,null,null,null,null,null,null,null,null,null,0,-2,"",null,"",null,null,null,null,null,null,null,null,null,null,null,null,null,null,null,null,null,null,null,null,null,null,null,null,null,null,null,null,null,null,-2]
[null,null,null,null,null,null,null,null,null,null,null,null,null,null,null,null,null,null,0,-2,"",null,"",null,null,null,null,null,null,null,null,null,null,null,null,null,null,null,null,null,null,null,null,null,null,null,null,null,null,null,null,null,null,-2]
[null,null,null,null,null,null,null,null,null,null,null,null,null,null,null,null,null,null,0,-2,"",null,"",null,null,null,null,null,null,null,null,null,null,null,null,null,null,null,null,null,null,null,null,null,null,null,null,null,null,null,null,null,null,-2]
[null,null,null,null,null,null,null,null,null,null,null,null,null,null,null,null,null,null,0,-2,"",null,"",null,null,null,null,null,null,null,null,null,null,null,null,null,null,null,null,null,null,null,null,null,null,null,null,null,null,null,null,null,null,-2]
[null,null,null,null,null,null,null,null,null,null,null,null,null,null,null,null,null,null,0,-2,"",null,"",null,null,null,null,null,null,null,null,null,null,null,null,null,null,null,null,null,null,null,null,null,null,null,null,null,null,null,null,null,null,-2]
[null,null,null,null,null,null,null,null,null,null,null,null,null,null,null,null,null,null,0,-2,"",null,"",null,null,null,null,null,null,null,null,null,null,null,null,null,null,null,null,null,null,null,null,null,null,null,null,null,null,null,null,null,null,-2]
[null,null,null,null,null,null,null,null,null,null,null,null,null,null,null,null,null,null,0,-2,"",null,"",null,null,null,null,null,null,null,null,null,null,null,null,null,null,null,null,null,null,null,null,null,null,null,null,null,null,null,null,null,null,-2]
[null,null,null,null,null,null,null,null,null,null,null,null,null,null,null,null,null,null,0,-2,"",null,"",null,null,null,null,null,null,null,null,null,null,null,null,null,null,null,null,null,null,null,null,null,null,null,null,null,null,null,null,null,null,-2]
[null,null,null,null,null,null,null,null,null,null,null,null,null,null,null,null,null,null,0,-2,{"$f":"IF(J1227>0,60,\"\")","v":""},null,"",null,null,null,null,null,null,null,null,null,null,null,null,null,null,null,null,null,null,null,null,null,null,null,null,null,null,null,null,null,null,-2]
[null,null,null,null,null,null,null,null,null,null,null,null,null,null,null,null,null,null,0,-2,"",null,"",null,null,null,null,null,null,null,null,null,null,null,null,null,null,null,null,null,null,null,null,null,null,null,null,null,null,null,null,null,null,-2]
[null,null,null,null,null,null,null,null,null,null,null,null,null,null,null,null,null,null,0,-2,"",null,"",null,null,null,null,null,null,null,null,null,null,null,null,null,null,null,null,null,null,null,null,null,null,null,null,null,null,null,null,null,null,-2]
[null,null,null,null,null,null,null,null,null,null,null,null,null,null,null,null,null,null,0,-2,"",null,"",null,null,null,null,null,null,null,null,null,null,null,null,null,null,null,null,null,null,null,null,null,null,null,null,null,null,null,null,null,null,-2]
[null,null,null,null,null,null,null,null,null,null,null,null,null,null,null,null,null,null,0,-2,"",null,"",null,null,null,null,null,null,null,null,null,null,null,null,null,null,null,null,null,null,null,null,null,null,null,null,null,null,null,null,null,null,-2]
[null,null,null,null,null,null,null,null,null,null,null,null,null,null,null,null,null,null,{"$f":"MAX(O1232,P1232)","v":0},{"$f":"(S1232-B1232)-2","v":-2},"",null,"",null,null,null,null,null,null,null,null,null,null,null,null,null,null,null,null,null,null,null,null,null,null,null,null,null,null,null,null,null,null,-2]
[null,null,null,null,null,null,null,null,null,null,null,null,null,null,null,null,null,null,0,-2,"",null,"",null,null,null,null,null,null,null,null,null,null,null,null,null,null,null,null,null,null,null,null,null,null,null,null,null,null,null,null,null,null,-2]
[null,null,null,null,null,null,null,null,null,null,null,null,null,null,null,null,null,null,0,-2,"",null,"",null,null,null,null,null,null,null,null,null,null,null,null,null,null,null,null,null,null,null,null,null,null,null,null,null,null,null,null,null,null,-2]
[null,null,null,null,null,null,null,null,null,null,null,null,null,null,null,null,null,null,0,-2,"",null,"",null,null,null,null,null,null,null,null,null,null,null,null,null,null,null,null,null,null,null,null,null,null,null,null,null,null,null,null,null,null,-2]
[null,null,null,null,null,null,null,null,null,null,null,null,null,null,null,null,null,null,0,-2,"",null,"",null,null,null,null,null,null,null,null,null,null,null,null,null,null,null,null,null,null,null,null,null,null,null,null,null,null,null,null,null,null,-2]
[null,null,null,null,null,null,null,null,null,null,null,null,null,null,null,null,null,null,0,-2,"",null,"",null,null,null,null,null,null,null,null,null,null,null,null,null,null,null,null,null,null,null,null,null,null,null,null,null,null,null,null,null,null,-2]
[null,null,null,null,null,null,null,null,null,null,null,null,null,null,null,null,null,null,0,-2,"",null,"",null,null,null,null,null,null,null,null,null,null,null,null,null,null,null,null,null,null,null,null,null,null,null,null,null,null,null,null,null,null,-2]
[null,null,null,null,null,null,null,null,null,null,null,null,null,null,null,null,null,null,0,-2,"",null,"",null,null,null,null,null,null,null,null,null,null,null,null,null,null,null,null,null,null,null,null,null,null,null,null,null,null,null,null,null,null,-2]
[null,null,null,null,null,null,null,null,null,null,null,null,null,null,null,null,null,null,0,-2,"",null,"",null,null,null,null,null,null,null,null,null,null,null,null,null,null,null,null,null,null,null,null,null,null,null,null,null,null,null,null,null,null,-2]
[null,null,null,null,null,null,null,null,null,null,null,null,null,null,null,null,null,null,0,-2,"",null,"",null,null,null,null,null,null,null,null,null,null,null,null,null,null,null,null,null,null,null,null,null,null,null,null,null,null,null,null,null,null,-2]
[null,null,null,null,null,null,null,null,null,null,null,null,null,null,null,null,null,null,0,-2,"",null,"",null,null,null,null,null,null,null,null,null,null,null,null,null,null,null,null,null,null,null,null,null,null,null,null,null,null,null,null,null,null,-2]
[null,null,null,null,null,null,null,null,null,null,null,null,null,null,null,null,null,null,0,-2,"",null,"",null,null,null,null,null,null,null,null,null,null,null,null,null,null,null,null,null,null,null,null,null,null,null,null,null,null,null,null,null,null,-2]
[null,null,null,null,null,null,null,null,null,null,null,null,null,null,null,null,null,null,0,-2,"",null,"",null,null,null,null,null,null,null,null,null,null,null,null,null,null,null,null,null,null,null,null,null,null,null,null,null,null,null,null,null,null,-2]
[null,null,null,null,null,null,null,null,null,null,null,null,null,null,null,null,null,null,0,-2,"",null,"",null,null,null,null,null,null,null,null,null,null,null,null,null,null,null,null,null,null,null,null,null,null,null,null,null,null,null,null,null,null,-2]
[null,null,null,null,null,null,null,null,null,null,null,null,null,null,null,null,null,null,0,-2,"",null,"",null,null,null,null,null,null,null,null,null,null,null,null,null,null,null,null,null,null,null,null,null,null,null,null,null,null,null,null,null,null,-2]
[null,null,null,null,null,null,null,null,null,null,null,null,null,null,null,null,null,null,0,-2,"",null,"",null,null,null,null,null,null,null,null,null,null,null,null,null,null,null,null,null,null,null,null,null,null,null,null,null,null,null,null,null,null,-2]
[null,null,null,null,null,null,null,null,null,null,null,null,null,null,null,null,null,null,0,-2,"",null,"",null,null,null,null,null,null,null,null,null,null,null,null,null,null,null,null,null,null,null,null,null,null,null,null,null,null,null,null,null,null,-2]
[null,null,null,null,null,null,null,null,null,null,null,null,null,null,null,null,null,null,0,-2,"",null,"",null,null,null,null,null,null,null,null,null,null,null,null,null,null,null,null,null,null,null,null,null,null,null,null,null,null,null,null,null,null,-2]
[null,null,null,null,null,null,null,null,null,null,null,null,null,null,null,null,null,null,0,-2,"",null,"",null,null,null,null,null,null,null,null,null,null,null,null,null,null,null,null,null,null,null,null,null,null,null,null,null,null,null,null,null,null,-2]
[null,null,null,null,null,null,null,null,null,null,null,null,null,null,null,null,null,null,0,-2,"",null,"",null,null,null,null,null,null,null,null,null,null,null,null,null,null,null,null,null,null,null,null,null,null,null,null,null,null,null,null,null,null,-2]
[null,null,null,null,null,null,null,null,null,null,null,null,null,null,null,null,null,null,0,-2,"",null,"",null,null,null,null,null,null,null,null,null,null,null,null,null,null,null,null,null,null,null,null,null,null,null,null,null,null,null,null,null,null,-2]
[null,null,null,null,null,null,null,null,null,null,null,null,null,null,null,null,null,null,0,-2,"",null,"",null,null,null,null,null,null,null,null,null,null,null,null,null,null,null,null,null,null,null,null,null,null,null,null,null,null,null,null,null,null,-2]
[null,null,null,null,null,null,null,null,null,null,null,null,null,null,null,null,null,null,0,-2,"",null,"",null,null,null,null,null,null,null,null,null,null,null,null,null,null,null,null,null,null,null,null,null,null,null,null,null,null,null,null,null,null,-2]
[null,null,null,null,null,null,null,null,null,null,null,null,null,null,null,null,null,null,0,-2,"",null,"",null,null,null,null,null,null,null,null,null,null,null,null,null,null,null,null,null,null,null,null,null,null,null,null,null,null,null,null,null,null,-2]
[null,null,null,null,null,null,null,null,null,null,null,null,null,null,null,null,null,null,0,-2,"",null,"",null,null,null,null,null,null,null,null,null,null,null,null,null,null,null,null,null,null,null,null,null,null,null,null,null,null,null,null,null,null,-2]
[null,null,null,null,null,null,null,null,null,null,null,null,null,null,null,null,null,null,0,-2,"",null,"",null,null,null,null,null,null,null,null,null,null,null,null,null,null,null,null,null,null,null,null,null,null,null,null,null,null,null,null,null,null,-2]
[null,null,null,null,null,null,null,null,null,null,null,null,null,null,null,null,null,null,0,-2,"",null,"",null,null,null,null,null,null,null,null,null,null,null,null,null,null,null,null,null,null,null,null,null,null,null,null,null,null,null,null,null,null,-2]
[null,null,null,null,null,null,null,null,null,null,null,null,null,null,null,null,null,null,0,-2,"",null,"",null,null,null,null,null,null,null,null,null,null,null,null,null,null,null,null,null,null,null,null,null,null,null,null,null,null,null,null,null,null,-2]
[null,null,null,null,null,null,null,null,null,null,null,null,null,null,null,null,null,null,0,-2,"",null,"",null,null,null,null,null,null,null,null,null,null,null,null,null,null,null,null,null,null,null,null,null,null,null,null,null,null,null,null,null,null,-2]
[null,null,null,null,null,null,null,null,null,null,null,null,null,null,null,null,null,null,0,-2,"",null,"",null,null,null,null,null,null,null,null,null,null,null,null,null,null,null,null,null,null,null,null,null,null,null,null,null,null,null,null,null,null,-2]
[null,null,null,null,null,null,null,null,null,null,null,null,null,null,null,null,null,null,0,-2,"",null,"",null,null,null,null,null,null,null,null,null,null,null,null,null,null,null,null,null,null,null,null,null,null,null,null,null,null,null,null,null,null,-2]
[null,null,null,null,null,null,null,null,null,null,null,null,null,null,null,null,null,null,0,-2,"",null,"",null,null,null,null,null,null,null,null,null,null,null,null,null,null,null,null,null,null,null,null,null,null,null,null,null,null,null,null,null,null,-2]
[null,null,null,null,null,null,null,null,null,null,null,null,null,null,null,null,null,null,0,-2,"",null,"",null,null,null,null,null,null,null,null,null,null,null,null,null,null,null,null,null,null,null,null,null,null,null,null,null,null,null,null,null,null,-2]
[null,null,null,null,null,null,null,null,null,null,null,null,null,null,null,null,null,null,0,-2,"",null,"",null,null,null,null,null,null,null,null,null,null,null,null,null,null,null,null,null,null,null,null,null,null,null,null,null,null,null,null,null,null,-2]
[null,null,null,null,null,null,null,null,null,null,null,null,null,null,null,null,null,null,0,-2,"",null,{"$f":"IF(S1266>B1266+3,60,\"\")","v":""},null,null,null,null,null,null,null,null,null,null,null,null,null,null,null,null,null,null,null,null,null,null,null,null,null,null,null,null,null,null,-2]
[null,null,null,null,null,null,null,null,null,null,null,null,null,null,null,null,null,null,0,-2,"",null,"",null,null,null,null,null,null,null,null,null,null,null,null,null,null,null,null,null,null,null,null,null,null,null,null,null,null,null,null,null,null,-2]
[null,null,null,null,null,null,null,null,null,null,null,null,null,null,null,null,null,null,0,-2,"",null,"",null,null,null,null,null,null,null,null,null,null,null,null,null,null,null,null,null,null,null,null,null,null,null,null,null,null,null,null,null,null,-2]
[null,null,null,null,null,null,null,null,null,null,null,null,null,null,null,null,null,null,0,-2,"",null,"",null,null,null,null,null,null,null,null,null,null,null,null,null,null,null,null,null,null,null,null,null,null,null,null,null,null,null,null,null,null,-2]
[null,null,null,null,null,null,null,null,null,null,null,null,null,null,null,null,null,null,0,-2,"",null,"",null,null,null,null,null,null,null,null,null,null,null,null,null,null,null,null,null,null,null,null,null,null,null,null,null,null,null,null,null,null,-2]
[null,null,null,null,null,null,null,null,null,null,null,null,null,null,null,null,null,null,0,-2,"",null,"",null,null,null,null,null,null,null,null,null,null,null,null,null,null,null,null,null,null,null,null,null,null,null,null,null,null,null,null,null,null,-2]
[null,null,null,null,null,null,null,null,null,null,null,null,null,null,null,null,null,null,0,-2,"",null,"",null,null,null,null,null,null,null,null,null,null,null,null,null,null,null,null,null,null,null,null,null,null,null,null,null,null,null,null,null,null,-2]
[null,null,null,null,null,null,null,null,null,null,null,null,null,null,null,null,null,null,0,-2,"",null,"",null,null,null,null,null,null,null,null,null,null,null,null,null,null,null,null,null,null,null,null,null,null,null,null,null,null,null,null,null,null,-2]
[null,null,null,null,null,null,null,null,null,null,null,null,null,null,null,null,null,null,0,-2,"",null,"",null,null,null,null,null,null,null,null,null,null,null,null,null,null,null,null,null,null,null,null,null,null,null,null,null,null,null,null,null,null,-2]
[null,null,null,null,null,null,null,null,null,null,null,null,null,null,null,null,null,null,0,-2,"",null,"",null,null,null,null,null,null,null,null,null,null,null,null,null,null,null,null,null,null,null,null,null,null,null,null,null,null,null,null,null,null,-2]
[null,null,null,null,null,null,null,null,null,null,null,null,null,null,null,null,null,null,0,-2,"",null,"",null,null,null,null,null,null,null,null,null,null,null,null,null,null,null,null,null,null,null,null,null,null,null,null,null,null,null,null,null,null,-2]
[null,null,null,null,null,null,null,null,null,null,null,null,null,null,null,null,null,null,0,-2,"",null,"",null,null,null,null,null,null,null,null,null,null,null,null,null,null,null,null,null,null,null,null,null,null,null,null,null,null,null,null,null,null,-2]
[null,null,null,null,null,null,null,null,null,null,null,null,null,null,null,null,null,null,0,-2,"",null,"",null,null,null,null,null,null,null,null,null,null,null,null,null,null,null,null,null,null,null,null,null,null,null,null,null,null,null,null,null,null,-2]
[null,null,null,null,null,null,null,null,null,null,null,null,null,null,null,null,null,null,0,-2,"",null,"",null,null,null,null,null,null,null,null,null,null,null,null,null,null,null,null,null,null,null,null,null,null,null,null,null,null,null,null,null,null,-2]
[null,null,null,null,null,null,null,null,null,null,null,null,null,null,null,null,null,null,0,-2,"",null,"",null,null,null,null,null,null,null,null,null,null,null,null,null,null,null,null,null,null,null,null,null,null,null,null,null,null,null,null,null,null,-2]
[null,null,null,null,null,null,null,null,null,null,null,null,null,null,null,null,null,null,0,-2,"",null,"",null,null,null,null,null,null,null,null,null,null,null,null,null,null,null,null,null,null,null,null,null,null,null,null,null,null,null,null,null,null,-2]
[null,null,null,null,null,null,null,null,null,null,null,null,null,null,null,null,null,null,0,-2,"",null,"",null,null,null,null,null,null,null,null,null,null,null,null,null,null,null,null,null,null,null,null,null,null,null,null,null,null,null,null,null,null,-2]
[null,null,null,null,null,null,null,null,null,null,null,null,null,null,null,null,null,null,0,-2,"",null,"",null,null,null,null,null,null,null,null,null,null,null,null,null,null,null,null,null,null,null,null,null,null,null,null,null,null,null,null,null,null,-2]
[null,null,null,null,null,null,null,null,null,null,null,null,null,null,null,null,null,null,0,-2,"",null,"",null,null,null,null,null,null,null,null,null,null,null,null,null,null,null,null,null,null,null,null,null,null,null,null,null,null,null,null,null,null,-2]
[null,null,null,null,null,null,null,null,null,null,null,null,null,null,null,null,null,null,0,-2,"",null,"",null,null,null,null,null,null,null,null,null,null,null,null,null,null,null,null,null,null,null,null,null,null,null,null,null,null,null,null,null,null,-2]
[null,null,null,null,null,null,null,null,null,null,null,null,null,null,null,null,null,null,0,-2,"",null,"",null,null,null,null,null,null,null,null,null,null,null,null,null,null,null,null,null,null,null,null,null,null,null,null,null,null,null,null,null,null,-2]
[null,null,null,null,null,null,null,null,null,null,null,null,null,null,null,null,null,null,0,-2,"",null,"",null,null,null,null,null,null,null,null,null,null,null,null,null,null,null,null,null,null,null,null,null,null,null,null,null,null,null,null,null,null,-2]
[null,null,null,null,null,null,null,null,null,null,null,null,null,null,null,null,null,null,0,-2,"",null,"",null,null,null,null,null,null,null,null,null,null,null,null,null,null,null,null,null,null,null,null,null,null,null,null,null,null,null,null,null,null,-2]
[null,null,null,null,null,null,null,null,null,null,null,null,null,null,null,null,null,null,0,-2,"",null,"",null,null,null,null,null,null,null,null,null,null,null,null,null,null,null,null,null,null,null,null,null,null,null,null,null,null,null,null,null,null,-2]
[null,null,null,null,null,null,null,null,null,null,null,null,null,null,null,null,null,null,0,-2,"",null,"",null,null,null,null,null,null,null,null,null,null,null,null,null,null,null,null,null,null,null,null,null,null,null,null,null,null,null,null,null,null,-2]
[null,null,null,null,null,null,null,null,null,null,null,null,null,null,null,null,null,null,0,-2,{"$f":"IF(J1291>0,60,\"\")","v":""},null,"",null,null,null,null,null,null,null,null,null,null,null,null,null,null,null,null,null,null,null,null,null,null,null,null,null,null,null,null,null,null,-2]
[null,null,null,null,null,null,null,null,null,null,null,null,null,null,null,null,null,null,0,-2,"",null,"",null,null,null,null,null,null,null,null,null,null,null,null,null,null,null,null,null,null,null,null,null,null,null,null,null,null,null,null,null,null,-2]
[null,null,null,null,null,null,null,null,null,null,null,null,null,null,null,null,null,null,0,-2,"",null,"",null,null,null,null,null,null,null,null,null,null,null,null,null,null,null,null,null,null,null,null,null,null,null,null,null,null,null,null,null,null,-2]
[null,null,null,null,null,null,null,null,null,null,null,null,null,null,null,null,null,null,0,-2,"",null,"",null,null,null,null,null,null,null,null,null,null,null,null,null,null,null,null,null,null,null,null,null,null,null,null,null,null,null,null,null,null,-2]
[null,null,null,null,null,null,null,null,null,null,null,null,null,null,null,null,null,null,0,-2,"",null,"",null,null,null,null,null,null,null,null,null,null,null,null,null,null,null,null,null,null,null,null,null,null,null,null,null,null,null,null,null,null,-2]
[null,null,null,null,null,null,null,null,null,null,null,null,null,null,null,null,null,null,{"$f":"MAX(O1296,P1296)","v":0},{"$f":"(S1296-B1296)-2","v":-2},"",null,"",null,null,null,null,null,null,null,null,null,null,null,null,null,null,null,null,null,null,null,null,null,null,null,null,null,null,null,null,null,null,-2]
[null,null,null,null,null,null,null,null,null,null,null,null,null,null,null,null,null,null,0,-2,"",null,"",null,null,null,null,null,null,null,null,null,null,null,null,null,null,null,null,null,null,null,null,null,null,null,null,null,null,null,null,null,null,-2]
[null,null,null,null,null,null,null,null,null,null,null,null,null,null,null,null,null,null,0,-2,"",null,"",null,null,null,null,null,null,null,null,null,null,null,null,null,null,null,null,null,null,null,null,null,null,null,null,null,null,null,null,null,null,-2]
[null,null,null,null,null,null,null,null,null,null,null,null,null,null,null,null,null,null,0,-2,"",null,"",null,null,null,null,null,null,null,null,null,null,null,null,null,null,null,null,null,null,null,null,null,null,null,null,null,null,null,null,null,null,-2]
[null,null,null,null,null,null,null,null,null,null,null,null,null,null,null,null,null,null,0,-2,"",null,"",null,null,null,null,null,null,null,null,null,null,null,null,null,null,null,null,null,null,null,null,null,null,null,null,null,null,null,null,null,null,-2]
[null,null,null,null,null,null,null,null,null,null,null,null,null,null,null,null,null,null,0,-2,"",null,"",null,null,null,null,null,null,null,null,null,null,null,null,null,null,null,null,null,null,null,null,null,null,null,null,null,null,null,null,null,null,-2]
[null,null,null,null,null,null,null,null,null,null,null,null,null,null,null,null,null,null,0,-2,"",null,"",null,null,null,null,null,null,null,null,null,null,null,null,null,null,null,null,null,null,null,null,null,null,null,null,null,null,null,null,null,null,-2]
[null,null,null,null,null,null,null,null,null,null,null,null,null,null,null,null,null,null,0,-2,"",null,"",null,null,null,null,null,null,null,null,null,null,null,null,null,null,null,null,null,null,null,null,null,null,null,null,null,null,null,null,null,null,-2]
[null,null,null,null,null,null,null,null,null,null,null,null,null,null,null,null,null,null,0,-2,"",null,"",null,null,null,null,null,null,null,null,null,null,null,null,null,null,null,null,null,null,null,null,null,null,null,null,null,null,null,null,null,null,-2]
[null,null,null,null,null,null,null,null,null,null,null,null,null,null,null,null,null,null,0,-2,"",null,"",null,null,null,null,null,null,null,null,null,null,null,null,null,null,null,null,null,null,null,null,null,null,null,null,null,null,null,null,null,null,-2]
[null,null,null,null,null,null,null,null,null,null,null,null,null,null,null,null,null,null,0,-2,"",null,"",null,null,null,null,null,null,null,null,null,null,null,null,null,null,null,null,null,null,null,null,null,null,null,null,null,null,null,null,null,null,-2]
[null,null,null,null,null,null,null,null,null,null,null,null,null,null,null,null,null,null,0,-2,"",null,"",null,null,null,null,null,null,null,null,null,null,null,null,null,null,null,null,null,null,null,null,null,null,null,null,null,null,null,null,null,null,-2]
[null,null,null,null,null,null,null,null,null,null,null,null,null,null,null,null,null,null,0,-2,"",null,"",null,null,null,null,null,null,null,null,null,null,null,null,null,null,null,null,null,null,null,null,null,null,null,null,null,null,null,null,null,null,-2]
[null,null,null,null,null,null,null,null,null,null,null,null,null,null,null,null,null,null,0,-2,"",null,"",null,null,null,null,null,null,null,null,null,null,null,null,null,null,null,null,null,null,null,null,null,null,null,null,null,null,null,null,null,null,-2]
[null,null,null,null,null,null,null,null,null,null,null,null,null,null,null,null,null,null,0,-2,"",null,"",null,null,null,null,null,null,null,null,null,null,null,null,null,null,null,null,null,null,null,null,null,null,null,null,null,null,null,null,null,null,-2]
[null,null,null,null,null,null,null,null,null,null,null,null,null,null,null,null,null,null,0,-2,"",null,"",null,null,null,null,null,null,null,null,null,null,null,null,null,null,null,null,null,null,null,null,null,null,null,null,null,null,null,null,null,null,-2]
[null,null,null,null,null,null,null,null,null,null,null,null,null,null,null,null,null,null,0,-2,"",null,"",null,null,null,null,null,null,null,null,null,null,null,null,null,null,null,null,null,null,null,null,null,null,null,null,null,null,null,null,null,null,-2]
[null,null,null,null,null,null,null,null,null,null,null,null,null,null,null,null,null,null,0,-2,"",null,"",null,null,null,null,null,null,null,null,null,null,null,null,null,null,null,null,null,null,null,null,null,null,null,null,null,null,null,null,null,null,-2]
[null,null,null,null,null,null,null,null,null,null,null,null,null,null,null,null,null,null,0,-2,"",null,"",null,null,null,null,null,null,null,null,null,null,null,null,null,null,null,null,null,null,null,null,null,null,null,null,null,null,null,null,null,null,-2]
[null,null,null,null,null,null,null,null,null,null,null,null,null,null,null,null,null,null,0,-2,"",null,"",null,null,null,null,null,null,null,null,null,null,null,null,null,null,null,null,null,null,null,null,null,null,null,null,null,null,null,null,null,null,-2]
[null,null,null,null,null,null,null,null,null,null,null,null,null,null,null,null,null,null,0,-2,"",null,"",null,null,null,null,null,null,null,null,null,null,null,null,null,null,null,null,null,null,null,null,null,null,null,null,null,null,null,null,null,null,-2]
[null,null,null,null,null,null,null,null,null,null,null,null,null,null,null,null,null,null,0,-2,"",null,"",null,null,null,null,null,null,null,null,null,null,null,null,null,null,null,null,null,null,null,null,null,null,null,null,null,null,null,null,null,null,-2]
[null,null,null,null,null,null,null,null,null,null,null,null,null,null,null,null,null,null,0,-2,"",null,"",null,null,null,null,null,null,null,null,null,null,null,null,null,null,null,null,null,null,null,null,null,null,null,null,null,null,null,null,null,null,-2]
[null,null,null,null,null,null,null,null,null,null,null,null,null,null,null,null,null,null,0,-2,"",null,"",null,null,null,null,null,null,null,null,null,null,null,null,null,null,null,null,null,null,null,null,null,null,null,null,null,null,null,null,null,null,-2]
[null,null,null,null,null,null,null,null,null,null,null,null,null,null,null,null,null,null,0,-2,"",null,"",null,null,null,null,null,null,null,null,null,null,null,null,null,null,null,null,null,null,null,null,null,null,null,null,null,null,null,null,null,null,-2]
[null,null,null,null,null,null,null,null,null,null,null,null,null,null,null,null,null,null,0,-2,"",null,"",null,null,null,null,null,null,null,null,null,null,null,null,null,null,null,null,null,null,null,null,null,null,null,null,null,null,null,null,null,null,-2]
[null,null,null,null,null,null,null,null,null,null,null,null,null,null,null,null,null,null,0,-2,"",null,"",null,null,null,null,null,null,null,null,null,null,null,null,null,null,null,null,null,null,null,null,null,null,null,null,null,null,null,null,null,null,-2]
[null,null,null,null,null,null,null,null,null,null,null,null,null,null,null,null,null,null,0,-2,"",null,"",null,null,null,null,null,null,null,null,null,null,null,null,null,null,null,null,null,null,null,null,null,null,null,null,null,null,null,null,null,null,-2]
[null,null,null,null,null,null,null,null,null,null,null,null,null,null,null,null,null,null,0,-2,"",null,"",null,null,null,null,null,null,null,null,null,null,null,null,null,null,null,null,null,null,null,null,null,null,null,null,null,null,null,null,null,null,-2]
[null,null,null,null,null,null,null,null,null,null,null,null,null,null,null,null,null,null,0,-2,{"$f":"IF(J1325>0,60,\"\")","v":""},null,"",null,null,null,null,null,null,null,null,null,null,null,null,null,null,null,null,null,null,null,null,null,null,null,null,null,null,null,null,null,null,-2]
[null,null,null,null,null,null,null,null,null,null,null,null,null,null,null,null,null,null,0,-2,"",null,"",null,null,null,null,null,null,null,null,null,null,null,null,null,null,null,null,null,null,null,null,null,null,null,null,null,null,null,null,null,null,-2]
[null,null,null,null,null,null,null,null,null,null,null,null,null,null,null,null,null,null,0,-2,"",null,"",null,null,null,null,null,null,null,null,null,null,null,null,null,null,null,null,null,null,null,null,null,null,null,null,null,null,null,null,null,null,-2]
[null,null,null,null,null,null,null,null,null,null,null,null,null,null,null,null,null,null,0,-2,"",null,"",null,null,null,null,null,null,null,null,null,null,null,null,null,null,null,null,null,null,null,null,null,null,null,null,null,null,null,null,null,null,-2]
[null,null,null,null,null,null,null,null,null,null,null,null,null,null,null,null,null,null,0,-2,"",null,"",null,null,null,null,null,null,null,null,null,null,null,null,null,null,null,null,null,null,null,null,null,null,null,null,null,null,null,null,null,null,-2]
[null,null,null,null,null,null,null,null,null,null,null,null,null,null,null,null,null,null,0,-2,"",null,{"$f":"IF(S1330>B1330+3,60,\"\")","v":""},null,null,null,null,null,null,null,null,null,null,null,null,null,null,null,null,null,null,null,null,null,null,null,null,null,null,null,null,null,null,-2]
[null,null,null,null,null,null,null,null,null,null,null,null,null,null,null,null,null,null,0,-2,"",null,"",null,null,null,null,null,null,null,null,null,null,null,null,null,null,null,null,null,null,null,null,null,null,null,null,null,null,null,null,null,null,-2]
[null,null,null,null,null,null,null,null,null,null,null,null,null,null,null,null,null,null,0,-2,"",null,"",null,null,null,null,null,null,null,null,null,null,null,null,null,null,null,null,null,null,null,null,null,null,null,null,null,null,null,null,null,null,-2]
[null,null,null,null,null,null,null,null,null,null,null,null,null,null,null,null,null,null,0,-2,"",null,"",null,null,null,null,null,null,null,null,null,null,null,null,null,null,null,null,null,null,null,null,null,null,null,null,null,null,null,null,null,null,-2]
[null,null,null,null,null,null,null,null,null,null,null,null,null,null,null,null,null,null,null,null,"",null,""]
[null,null,null,null,null,null,null,null,null,null,null,null,null,null,null,null,null,null,null,null,"",null,""]
[null,null,null,null,null,null,null,null,null,null,null,null,null,null,null,null,null,null,null,null,"",null,""]
[null,null,null,null,null,null,null,null,null,null,null,null,null,null,null,null,null,null,null,null,"",null,""]
[null,null,null,null,null,null,null,null,null,null,null,null,null,null,null,null,null,null,null,null,"",null,""]
[null,null,null,null,null,null,null,null,null,null,null,null,null,null,null,null,null,null,null,null,"",null,""]
[null,null,null,null,null,null,null,null,null,null,null,null,null,null,null,null,null,null,null,null,"",null,""]
[null,null,null,null,null,null,null,null,null,null,null,null,null,null,null,null,null,null,null,null,"",null,""]
[null,null,null,null,null,null,null,null,null,null,null,null,null,null,null,null,null,null,null,null,"",null,""]
[null,null,null,null,null,null,null,null,null,null,null,null,null,null,null,null,null,null,null,null,"",null,""]
[null,null,null,null,null,null,null,null,null,null,null,null,null,null,null,null,null,null,null,null,"",null,""]
[null,null,null,null,null,null,null,null,null,null,null,null,null,null,null,null,null,null,null,null,"",null,""]
[null,null,null,null,null,null,null,null,null,null,null,null,null,null,null,null,null,null,null,null,"",null,""]
[null,null,null,null,null,null,null,null,null,null,null,null,null,null,null,null,null,null,null,null,"",null,""]
[null,null,null,null,null,null,null,null,null,null,null,null,null,null,null,null,null,null,null,null,"",null,""]
[null,null,null,null,null,null,null,null,null,null,null,null,null,null,null,null,null,null,null,null,"",null,""]
[null,null,null,null,null,null,null,null,null,null,null,null,null,null,null,null,null,null,null,null,"",null,""]
[null,null,null,null,null,null,null,null,null,null,null,null,null,null,null,null,null,null,null,null,"",null,""]
[null,null,null,null,null,null,null,null,null,null,null,null,null,null,null,null,null,null,null,null,"",null,""]
[null,null,null,null,null,null,null,null,null,null,null,null,null,null,null,null,null,null,null,null,"",null,""]
[null,null,null,null,null,null,null,null,null,null,null,null,null,null,null,null,null,null,null,null,"",null,""]
[null,null,null,null,null,null,null,null,null,null,null,null,null,null,null,null,null,null,null,null,{"$f":"IF(J1355>0,60,\"\")","v":""},null,""]
[null,null,null,null,null,null,null,null,null,null,null,null,null,null,null,null,null,null,null,null,"",null,""]
[null,null,null,null,null,null,null,null,null,null,null,null,null,null,null,null,null,null,null,null,"",null,""]
[null,null,null,null,null,null,null,null,null,null,null,null,null,null,null,null,null,null,null,null,"",null,""]
[null,null,null,null,null,null,null,null,null,null,null,null,null,null,null,null,null,null,null,null,"",null,""]
[null,null,null,null,null,null,null,null,null,null,null,null,null,null,null,null,null,null,null,null,"",null,""]
[null,null,null,null,null,null,null,null,null,null,null,null,null,null,null,null,null,null,null,null,"",null,""]
[null,null,null,null,null,null,null,null,null,null,null,null,null,null,null,null,null,null,null,null,"",null,""]
[null,null,null,null,null,null,null,null,null,null,null,null,null,null,null,null,null,null,null,null,"",null,""]
[null,null,null,null,null,null,null,null,null,null,null,null,null,null,null,null,null,null,null,null,"",null,""]
[null,null,null,null,null,null,null,null,null,null,null,null,null,null,null,null,null,null,null,null,"",null,""]
[null,null,null,null,null,null,null,null,null,null,null,null,null,null,null,null,null,null,null,null,"",null,""]
[null,null,null,null,null,null,null,null,null,null,null,null,null,null,null,null,null,null,null,null,"",null,""]
[null,null,null,null,null,null,null,null,null,null,null,null,null,null,null,null,null,null,null,null,"",null,""]
[null,null,null,null,null,null,null,null,null,null,null,null,null,null,null,null,null,null,null,null,"",null,""]
[null,null,null,null,null,null,null,null,null,null,null,null,null,null,null,null,null,null,null,null,"",null,""]
[null,null,null,null,null,null,null,null,null,null,null,null,null,null,null,null,null,null,null,null,"",null,""]
[null,null,null,null,null,null,null,null,null,null,null,null,null,null,null,null,null,null,null,null,"",null,""]
[null,null,null,null,null,null,null,null,null,null,null,null,null,null,null,null,null,null,null,null,"",null,""]
[null,null,null,null,null,null,null,null,null,null,null,null,null,null,null,null,null,null,null,null,"",null,""]
[null,null,null,null,null,null,null,null,null,null,null,null,null,null,null,null,null,null,null,null,"",null,""]
[null,null,null,null,null,null,null,null,null,null,null,null,null,null,null,null,null,null,null,null,"",null,""]
[null,null,null,null,null,null,null,null,null,null,null,null,null,null,null,null,null,null,null,null,"",null,""]
[null,null,null,null,null,null,null,null,null,null,null,null,null,null,null,null,null,null,null,null,"",null,""]
[null,null,null,null,null,null,null,null,null,null,null,null,null,null,null,null,null,null,null,null,"",null,""]
[null,null,null,null,null,null,null,null,null,null,null,null,null,null,null,null,null,null,null,null,"",null,""]
[null,null,null,null,null,null,null,null,null,null,null,null,null,null,null,null,null,null,null,null,"",null,""]
[null,null,null,null,null,null,null,null,null,null,null,null,null,null,null,null,null,null,null,null,"",null,""]
[null,null,null,null,null,null,null,null,null,null,null,null,null,null,null,null,null,null,null,null,"",null,""]
[null,null,null,null,null,null,null,null,null,null,null,null,null,null,null,null,null,null,null,null,"",null,""]
[null,null,null,null,null,null,null,null,null,null,null,null,null,null,null,null,null,null,null,null,"",null,""]
[null,null,null,null,null,null,null,null,null,null,null,null,null,null,null,null,null,null,null,null,"",null,""]
[null,null,null,null,null,null,null,null,null,null,null,null,null,null,null,null,null,null,null,null,"",null,""]
[null,null,null,null,null,null,null,null,null,null,null,null,null,null,null,null,null,null,null,null,"",null,""]
[null,null,null,null,null,null,null,null,null,null,null,null,null,null,null,null,null,null,null,null,"",null,""]
[null,null,null,null,null,null,null,null,null,null,null,null,null,null,null,null,null,null,null,null,"",null,""]
[null,null,null,null,null,null,null,null,null,null,null,null,null,null,null,null,null,null,null,null,"",null,""]
[null,null,null,null,null,null,null,null,null,null,null,null,null,null,null,null,null,null,null,null,"",null,""]
[null,null,null,null,null,null,null,null,null,null,null,null,null,null,null,null,null,null,null,null,"",null,""]
[null,null,null,null,null,null,null,null,null,null,null,null,null,null,null,null,null,null,null,null,"",null,{"$f":"IF(S1394>B1394+3,60,\"\")","v":""}]
[null,null,null,null,null,null,null,null,null,null,null,null,null,null,null,null,null,null,null,null,"",null,""]
[null,null,null,null,null,null,null,null,null,null,null,null,null,null,null,null,null,null,null,null,"",null,""]
[null,null,null,null,null,null,null,null,null,null,null,null,null,null,null,null,null,null,null,null,"",null,""]
[null,null,null,null,null,null,null,null,null,null,null,null,null,null,null,null,null,null,null,null,"",null,""]
[null,null,null,null,null,null,null,null,null,null,null,null,null,null,null,null,null,null,null,null,"",null,""]
[null,null,null,null,null,null,null,null,null,null,null,null,null,null,null,null,null,null,null,null,"",null,""]
[null,null,null,null,null,null,null,null,null,null,null,null,null,null,null,null,null,null,null,null,"",null,""]
[null,null,null,null,null,null,null,null,null,null,null,null,null,null,null,null,null,null,null,null,"",null,""]
[null,null,null,null,null,null,null,null,null,null,null,null,null,null,null,null,null,null,null,null,"",null,""]
[null,null,null,null,null,null,null,null,null,null,null,null,null,null,null,null,null,null,null,null,"",null,""]
[null,null,null,null,null,null,null,null,null,null,null,null,null,null,null,null,null,null,null,null,"",null,""]
[null,null,null,null,null,null,null,null,null,null,null,null,null,null,null,null,null,null,null,null,"",null,""]
[null,null,null,null,null,null,null,null,null,null,null,null,null,null,null,null,null,null,null,null,"",null,""]
[null,null,null,null,null,null,null,null,null,null,null,null,null,null,null,null,null,null,null,null,"",null,""]
[null,null,null,null,null,null,null,null,null,null,null,null,null,null,null,null,null,null,null,null,"",null,""]
[null,null,null,null,null,null,null,null,null,null,null,null,null,null,null,null,null,null,null,null,"",null,""]
[null,null,null,null,null,null,null,null,null,null,null,null,null,null,null,null,null,null,null,null,"",null,""]
[null,null,null,null,null,null,null,null,null,null,null,null,null,null,null,null,null,null,null,null,"",null,""]
[null,null,null,null,null,null,null,null,null,null,null,null,null,null,null,null,null,null,null,null,"",null,""]
[null,null,null,null,null,null,null,null,null,null,null,null,null,null,null,null,null,null,null,null,"",null,""]
[null,null,null,null,null,null,null,null,null,null,null,null,null,null,null,null,null,null,null,null,"",null,""]
[null,null,null,null,null,null,null,null,null,null,null,null,null,null,null,null,null,null,null,null,"",null,""]
[null,null,null,null,null,null,null,null,null,null,null,null,null,null,null,null,null,null,null,null,"",null,""]
[null,null,null,null,null,null,null,null,null,null,null,null,null,null,null,null,null,null,null,null,"",null,""]
[null,null,null,null,null,null,null,null,null,null,null,null,null,null,null,null,null,null,null,null,{"$f":"IF(J1419>0,60,\"\")","v":""},null,""]
[null,null,null,null,null,null,null,null,null,null,null,null,null,null,null,null,null,null,null,null,"",null,""]
[null,null,null,null,null,null,null,null,null,null,null,null,null,null,null,null,null,null,null,null,"",null,""]
[null,null,null,null,null,null,null,null,null,null,null,null,null,null,null,null,null,null,null,null,"",null,""]
[null,null,null,null,null,null,null,null,null,null,null,null,null,null,null,null,null,null,null,null,"",null,""]
[null,null,null,null,null,null,null,null,null,null,null,null,null,null,null,null,null,null,null,null,"",null,""]
[null,null,null,null,null,null,null,null,null,null,null,null,null,null,null,null,null,null,null,null,"",null,""]
[null,null,null,null,null,null,null,null,null,null,null,null,null,null,null,null,null,null,null,null,"",null,""]
[null,null,null,null,null,null,null,null,null,null,null,null,null,null,null,null,null,null,null,null,"",null,""]
[null,null,null,null,null,null,null,null,null,null,null,null,null,null,null,null,null,null,null,null,"",null,""]
[null,null,null,null,null,null,null,null,null,null,null,null,null,null,null,null,null,null,null,null,"",null,""]
[null,null,null,null,null,null,null,null,null,null,null,null,null,null,null,null,null,null,null,null,"",null,""]
[null,null,null,null,null,null,null,null,null,null,null,null,null,null,null,null,null,null,null,null,"",null,""]
[null,null,null,null,null,null,null,null,null,null,null,null,null,null,null,null,null,null,null,null,"",null,""]
[null,null,null,null,null,null,null,null,null,null,null,null,null,null,null,null,null,null,null,null,"",null,""]
[null,null,null,null,null,null,null,null,null,null,null,null,null,null,null,null,null,null,null,null,"",null,""]
[null,null,null,null,null,null,null,null,null,null,null,null,null,null,null,null,null,null,null,null,"",null,""]
[null,null,null,null,null,null,null,null,null,null,null,null,null,null,null,null,null,null,null,null,"",null,""]
[null,null,null,null,null,null,null,null,null,null,null,null,null,null,null,null,null,null,null,null,"",null,""]
[null,null,null,null,null,null,null,null,null,null,null,null,null,null,null,null,null,null,null,null,"",null,""]
[null,null,null,null,null,null,null,null,null,null,null,null,null,null,null,null,null,null,null,null,"",null,""]
[null,null,null,null,null,null,null,null,null,null,null,null,null,null,null,null,null,null,null,null,"",null,""]
[null,null,null,null,null,null,null,null,null,null,null,null,null,null,null,null,null,null,null,null,"",null,""]
[null,null,null,null,null,null,null,null,null,null,null,null,null,null,null,null,null,null,null,null,"",null,""]
[null,null,null,null,null,null,null,null,null,null,null,null,null,null,null,null,null,null,null,null,"",null,""]
[null,null,null,null,null,null,null,null,null,null,null,null,null,null,null,null,null,null,null,null,"",null,""]
[null,null,null,null,null,null,null,null,null,null,null,null,null,null,null,null,null,null,null,null,"",null,""]
[null,null,null,null,null,null,null,null,null,null,null,null,null,null,null,null,null,null,null,null,"",null,""]
[null,null,null,null,null,null,null,null,null,null,null,null,null,null,null,null,null,null,null,null,"",null,""]
[null,null,null,null,null,null,null,null,null,null,null,null,null,null,null,null,null,null,null,null,"",null,""]
[null,null,null,null,null,null,null,null,null,null,null,null,null,null,null,null,null,null,null,null,null,25140]
[null,null,null,null,null,null,null,null,null,null,null,null,null,null,null,null,null,null,null,null,{"$f":"SUM(K9:K1448)","v":0},null,{"$f":"SUM(W9:W1448)","v":17160}]

{"sheet":"Février_2023","index":1,"n_rows":261,"n_cols":70,"rows_kept":261,"cut":false,"hidden":false,"merged":[[4,26,4,28],[6,49,6,50],[8,23,8,24],[6,2,6,3],[6,23,6,24],[8,2,8,3],[4,11,4,19],[6,32,6,33]]}
[null,null,null,null,null,null,null,null,null,null,null,4.5,null,null,null,null,null,10.9,null,null,null,null,null,null,null,null,null,null,null,null,null,null,null,null,null,{"$f":"$AJ$5+RELEVÉS!$AK$5","v":1.5},null,null,null,null,null,null,null,null,null,null,null,null,null,null,null,null,null,null,null,null,"La Rochelle","http://www.meteociel.fr/climatologie/villes.php?code=7316&mois=02&annee=2023",null,null,null,null,null,null,null,null,null,null,"Ephéméride","http://www.ephemeride.com/calendrier/solaire/19/horaires-du-soleil.html"]
[null,null,null,null,null,null,null,null,null,null,null,null,null,null,null,null,null,null,null,null,null,null,null,null,null,null,null,null,null,null,null,null,null,null,null,null,null,null,null,null,null,null,null,null,null,null,null,null,"²"]
[null,null,null,null,null,null,null,null,null,null,null,null,null,null,null,null,null,null,null,null,null,null,null,null,null,null,null,null,null,null,null,null,{"$f":"$C$5","v":"Février_2023"},null,null,"Hauteur de pluie en mm",null,null,null,"Temps de précipitations par 1/4 de journée",null,null,null,null,null,null,null,null,null,{"$f":"$C$5","v":"Février_2023"},null,null,"Chaleur solaire",null,null,null,"Marées","https://marine.meteoconsult.fr/meteo-marine/horaires-maree-la-tranche-sur-mer-1083-0.php"]
[]
[null,null,"Février_2023",null,null,"Mise à jour",null,"le",null,null,null,{"$f":"NOW()","v":"2023-02-20T13:42:13.900"},null,null,null,null,null,null,null,null,null,null,null,{"$f":"C5","v":"Février_2023"},null,null,{"$f":"NOW()","v":"2023-02-20T13:42:13.900"},null,null,null,null,null,"Mise à jour",null,null,{"$f":"SUM($AJ$11:$AJ$66)","v":1.5},null,{"$f":"SUM($AL$11:$AL$66)","v":1.9726851851852269E-2},null,{"$f":"SUM(AN$11:AN$66)","v":0.15208333333333332},null,{"$f":"SUM(AP$11:AP$66)","v":3.9583333333333331E-2},null,{"$f":"SUM(AR$11:AR$66)","v":0},null,{"$f":"SUM(AT$11:AT$66)","v":0},null,null,null,"Mise à jour",null,null,{"$f":"SUM(BA$11:BA$66)","v":4.7416666666666663},null,null,null,"T° de l'eau","https://fr.surf-forecast.com/breaks/La-Tranchesur-Mer/seatemp",null,null,null,null,null,null,null,null,null,null,"meteofloralies","https://www.wunderground.com/dashboard/pws/ILATRA6"]
[]
[null,null,"Températures",null,null,{"$f":"MIN(F$11:F66)","v":0},null,{"$f":"VLOOKUP($F$7,$F$11:$Y$66,17,0)","v":{"$error":"#N/A"}},null,null,null,{"$f":"MIN($L$11:$L$66)","v":-3.4},null,{"$f":"VLOOKUP($L$7,$L$11:$Y$66,14,0)","v":"2023-02-09"},null,null,null,{"$f":"MAX(R$11:R66)","v":13.8},null,{"$f":"VLOOKUP($R$7,$R$11:$Y$66,8,0)","v":"2023-02-16"},null,null,null,"Mise à jour",null,null,"Maxi",null,null,null,null,null,{"$f":"TODAY()","v":"2023-02-20"},null,null,{"$f":"VLOOKUP($AJ$9,$AJ$11:$AY$66,16,0)","v":"2023-02-17"},null,{"$f":"VLOOKUP($AL$9,$AL$11:$AY$66,14,0)","v":"2023-02-17"},null,"Pluie AM",null,"Pluie AM",null,"Pluie AP",null,"Pluie AP",null,null,null,{"$f":"TODAY()","v":"2023-02-20"},null,null,{"$f":"VLOOKUP($BA$9,$BA$11:$BE$66,5,0)","v":"2023-02-11"}]
[]
[null,null,null,null,null,"Ressentie",null,{"$f":"VLOOKUP($F$7,$F$11:$T$66,3,0)","v":{"$error":"#N/A"}},null,"Variation",null,"Mini",null,{"$f":"VLOOKUP($L$7,$L$11:$N$66,3,0)","v":"07:56:00"},null,"Variation",null,"Maxi",null,{"$f":"VLOOKUP($R$7,$R$11:$T$66,3,0)","v":"14:43:00"},null,null,null,"Vitesse du vent",null,null,{"$f":"MAX($AA$11:$AA$66)","v":38.200000000000003},null,{"$f":"VLOOKUP($AA$9,$AA$11:$AH$66,8,0)","v":"2023-02-07"},null,null,null,{"$f":"$BO$73+RELEVÉS!AG5","v":112.2},"Année",null,{"$f":"MAX($AJ$11:$AJ$66)","v":1.2},null,{"$f":"MAX($AL$11:AL$66)","v":1.650462962962999E-2},null,"de 0 à 6h59",null,"7h à 11h59",null,"12h à 18h59",null,"19h à 23h59",null,null,null,"Année",{"$f":"$BQ$73+$BA$5","v":9.4833333333333325},null,{"$f":"MAX($BA$11:$BA$66)","v":0.38263888888888886},null,null,null,null,null,null,"Météofloralies","=SUBSTITUE(TEXTE(MAX(CNUM(SUBSTITUE($U$2;\".\";\",\"));CNUM(SUBSTITUE($V$2;\".\";\",\")));\"standard\");\",\";\".\")"]
[]
[null,null,{"$f":"PROPER(TEXT(D11,\"JJJJ\"))","v":"Mercredi"},"2023-02-01",null,null,null,null,null,{"$f":"IF(OR(L1=\"\",L11=\"\"),\"\",IF(L11>L1,\"»\",IF(L11<L1,\"¼\",\"¹º\")))","v":"»"},null,5.4,null,"23:46:00",null,{"$f":"IF(OR(R9=\"\",R11=\"\"),\"\",IF(R11>R9,\"»\",IF(R11<R9,\"¼\",\"¹º\")))","v":"¼"},null,10.5,null,"14:12:00",null,null,null,{"$f":"$C11","v":"Mercredi"},{"$f":"$D11","v":"2023-02-01"},null,20,null,"12:08:00",null,null,null,{"$f":"$C11","v":"Mercredi"},{"$f":"$D11","v":"2023-02-01"},null,0,null,"00:00:00",null,"00:00:00",null,"00:00:00",null,"00:00:00",null,"00:00:00",null,null,null,{"$f":"$C11","v":"Mercredi"},{"$f":"$D11","v":"2023-02-01"},null,"05:34:00",null,null,25,{"$f":"D11","v":"2023-02-01"},{"$f":"$C11","v":"Mercredi"}]
[]
[null,null,{"$f":"PROPER(TEXT(D13,\"JJJJ\"))","v":"Jeudi"},{"$f":"$D11+1","v":"2023-02-02"},null,null,null,null,null,{"$f":"IF(OR(L11=\"\",L13=\"\"),\"\",IF(L13>L11,\"»\",IF(L13<L11,\"¼\",\"¹º\")))","v":"¼"},null,4.7,null,"01:28:00",null,{"$f":"IF(OR(R11=\"\",R13=\"\"),\"\",IF(R13>R11,\"»\",IF(R13<R11,\"¼\",\"¹º\")))","v":"»"},null,11,null,"12:57:00",null,null,null,{"$f":"$C13","v":"Jeudi"},{"$f":"$D13","v":"2023-02-02"},null,10,null,"13:39:00",null,null,null,{"$f":"$C13","v":"Jeudi"},{"$f":"$D13","v":"2023-02-02"},null,0,null,"00:00:00",null,"00:00:00",null,"00:00:00",null,"00:00:00",null,"00:00:00",null,null,null,{"$f":"$C13","v":"Jeudi"},{"$f":"$D13","v":"2023-02-02"},null,"03:54:00",null,null,26,{"$f":"D13","v":"2023-02-02"},{"$f":"$C13","v":"Jeudi"}]
[]
[null,null,{"$f":"PROPER(TEXT(D15,\"JJJJ\"))","v":"Vendredi"},{"$f":"$D13+1","v":"2023-02-03"},null,null,null,null,null,{"$f":"IF(OR(L13=\"\",L15=\"\"),\"\",IF(L15>L13,\"»\",IF(L15<L13,\"¼\",\"¹º\")))","v":"»"},null,6.5,null,"00:21:00",null,{"$f":"IF(OR(R13=\"\",R15=\"\"),\"\",IF(R15>R13,\"»\",IF(R15<R13,\"¼\",\"¹º\")))","v":"¼"},null,9.6999999999999993,null,"16:00:00",null,null,null,{"$f":"$C15","v":"Vendredi"},{"$f":"$D15","v":"2023-02-03"},null,20.3,null,"14:31:00",null,null,null,{"$f":"$C15","v":"Vendredi"},{"$f":"$D15","v":"2023-02-03"},null,0,null,"00:00:00",null,"00:00:00",null,"00:00:00",null,"00:00:00",null,"00:00:00",null,null,null,{"$f":"$C15","v":"Vendredi"},{"$f":"$D15","v":"2023-02-03"},null,"01:03:00",null,null,27,{"$f":"D15","v":"2023-02-03"},{"$f":"$C15","v":"Vendredi"}]
[]
[null,null,{"$f":"PROPER(TEXT(D17,\"JJJJ\"))","v":"Samedi"},{"$f":"$D15+1","v":"2023-02-04"},null,null,null,null,null,{"$f":"IF(OR(L15=\"\",L17=\"\"),\"\",IF(L17>L15,\"»\",IF(L17<L15,\"¼\",\"¹º\")))","v":"»"},null,7,null,"00:00:00",null,{"$f":"IF(OR(R15=\"\",R17=\"\"),\"\",IF(R17>R15,\"»\",IF(R17<R15,\"¼\",\"¹º\")))","v":"»"},null,10.3,null,"14:41:00",null,null,null,{"$f":"$C17","v":"Samedi"},{"$f":"$D17","v":"2023-02-04"},null,20,null,"12:44:00",null,null,null,{"$f":"$C17","v":"Samedi"},{"$f":"$D17","v":"2023-02-04"},null,0,null,"00:00:00",null,"00:00:00",null,"00:00:00",null,"00:00:00",null,"00:00:00",null,null,null,{"$f":"$C17","v":"Samedi"},{"$f":"$D17","v":"2023-02-04"},null,"00:00:00",null,null,23,{"$f":"D17","v":"2023-02-04"},{"$f":"$C17","v":"Samedi"}]
[]
[null,null,{"$f":"PROPER(TEXT(D19,\"JJJJ\"))","v":"Dimanche"},{"$f":"$D17+1","v":"2023-02-05"},null,null,null,null,null,{"$f":"IF(OR(L17=\"\",L19=\"\"),\"\",IF(L19>L17,\"»\",IF(L19<L17,\"¼\",\"¹º\")))","v":"¼"},null,3.5,null,0.999305555555556,null,{"$f":"IF(OR(R17=\"\",R19=\"\"),\"\",IF(R19>R17,\"»\",IF(R19<R17,\"¼\",\"¹º\")))","v":"»"},null,12.5,null,0.60277777777777797,null,null,null,{"$f":"$C19","v":"Dimanche"},{"$f":"$D19","v":"2023-02-05"},null,22,null,"22:25:00",null,null,null,{"$f":"$C19","v":"Dimanche"},{"$f":"$D19","v":"2023-02-05"},null,0,null,"00:00:00",null,"00:00:00",null,"00:00:00",null,"00:00:00",null,"00:00:00",null,null,null,{"$f":"$C19","v":"Dimanche"},{"$f":"$D19","v":"2023-02-05"},null,"05:51:00",null,null,8,{"$f":"D19","v":"2023-02-05"},{"$f":"$C19","v":"Dimanche"}]
[]
[null,null,{"$f":"PROPER(TEXT(D21,\"JJJJ\"))","v":"Lundi"},{"$f":"$D19+1","v":"2023-02-06"},null,null,null,null,null,{"$f":"IF(OR(L19=\"\",L21=\"\"),\"\",IF(L21>L19,\"»\",IF(L21<L19,\"¼\",\"¹º\")))","v":"¼"},null,0.5,null,0.295833333333333,null,{"$f":"IF(OR(R19=\"\",R21=\"\"),\"\",IF(R21>R19,\"»\",IF(R21<R19,\"¼\",\"¹º\")))","v":"¼"},null,8.9,null,0.65416666666666701,null,null,null,{"$f":"$C21","v":"Lundi"},{"$f":"$D21","v":"2023-02-06"},null,33,null,"12:17:00",null,null,null,{"$f":"$C21","v":"Lundi"},{"$f":"$D21","v":"2023-02-06"},null,0,null,"00:00:00",null,"00:00:00",null,"00:00:00",null,"00:00:00",null,"00:00:00",null,null,null,{"$f":"$C21","v":"Lundi"},{"$f":"$D21","v":"2023-02-06"},null,"06:21:00",null,null,4,{"$f":"D21","v":"2023-02-06"},{"$f":"$C21","v":"Lundi"}]
[]
[null,null,{"$f":"PROPER(TEXT(D23,\"JJJJ\"))","v":"Mardi"},{"$f":"$D21+1","v":"2023-02-07"},null,null,null,null,null,{"$f":"IF(OR(L21=\"\",L23=\"\"),\"\",IF(L23>L21,\"»\",IF(L23<L21,\"¼\",\"¹º\")))","v":"¼"},null,-0.6,null,0.296527777777778,null,{"$f":"IF(OR(R21=\"\",R23=\"\"),\"\",IF(R23>R21,\"»\",IF(R23<R21,\"¼\",\"¹º\")))","v":"¼"},null,7.7,null,0.62361111111111101,null,null,null,{"$f":"$C23","v":"Mardi"},{"$f":"$D23","v":"2023-02-07"},null,38.200000000000003,null,"15:17:00",null,null,null,{"$f":"$C23","v":"Mardi"},{"$f":"$D23","v":"2023-02-07"},null,0,null,"00:00:00",null,"00:00:00",null,"00:00:00",null,"00:00:00",null,"00:00:00",null,null,null,{"$f":"$C23","v":"Mardi"},{"$f":"$D23","v":"2023-02-07"},null,"07:50:00",null,null,5,{"$f":"D23","v":"2023-02-07"},{"$f":"$C23","v":"Mardi"}]
[]
[null,null,{"$f":"PROPER(TEXT(D25,\"JJJJ\"))","v":"Mercredi"},{"$f":"$D23+1","v":"2023-02-08"},null,null,null,null,null,{"$f":"IF(OR(L23=\"\",L25=\"\"),\"\",IF(L25>L23,\"»\",IF(L25<L23,\"¼\",\"¹º\")))","v":"¼"},null,-1.5,null,0.34027777777777801,null,{"$f":"IF(OR(R23=\"\",R25=\"\"),\"\",IF(R25>R23,\"»\",IF(R25<R23,\"¼\",\"¹º\")))","v":"»"},null,10.7,null,0.61944444444444402,null,null,null,{"$f":"$C25","v":"Mercredi"},{"$f":"$D25","v":"2023-02-08"},null,18.100000000000001,null,"10:40:00",null,null,null,{"$f":"$C25","v":"Mercredi"},{"$f":"$D25","v":"2023-02-08"},null,0,null,"00:00:00",null,"00:00:00",null,"00:00:00",null,"00:00:00",null,"00:00:00",null,null,null,{"$f":"$C25","v":"Mercredi"},{"$f":"$D25","v":"2023-02-08"},null,"08:17:00",null,null,6,{"$f":"D25","v":"2023-02-08"},{"$f":"$C25","v":"Mercredi"}]
[]
[null,null,{"$f":"PROPER(TEXT(D27,\"JJJJ\"))","v":"Jeudi"},{"$f":"$D25+1","v":"2023-02-09"},null,null,null,null,null,{"$f":"IF(OR(L25=\"\",L27=\"\"),\"\",IF(L27>L25,\"»\",IF(L27<L25,\"¼\",\"¹º\")))","v":"¼"},null,-3.4,null,0.33055555555555599,null,{"$f":"IF(OR(R25=\"\",R27=\"\"),\"\",IF(R27>R25,\"»\",IF(R27<R25,\"¼\",\"¹º\")))","v":"¼"},null,8.4,null,0.62916666666666698,null,null,null,{"$f":"$C27","v":"Jeudi"},{"$f":"$D27","v":"2023-02-09"},null,15.4,null,"13:49:00",null,null,null,{"$f":"$C27","v":"Jeudi"},{"$f":"$D27","v":"2023-02-09"},null,0,null,"00:00:00",null,"00:00:00",null,"00:00:00",null,"00:00:00",null,"00:00:00",null,null,null,{"$f":"$C27","v":"Jeudi"},{"$f":"$D27","v":"2023-02-09"},null,"08:02:00",null,null,7,{"$f":"D27","v":"2023-02-09"},{"$f":"$C27","v":"Jeudi"}]
[]
[null,null,{"$f":"PROPER(TEXT(D29,\"JJJJ\"))","v":"Vendredi"},{"$f":"$D27+1","v":"2023-02-10"},null,null,null,null,null,{"$f":"IF(OR(L27=\"\",L29=\"\"),\"\",IF(L29>L27,\"»\",IF(L29<L27,\"¼\",\"¹º\")))","v":"»"},null,-2,null,0.31041666666666701,null,{"$f":"IF(OR(R27=\"\",R29=\"\"),\"\",IF(R29>R27,\"»\",IF(R29<R27,\"¼\",\"¹º\")))","v":"»"},null,10.8,null,0.64027777777777795,null,null,null,{"$f":"$C29","v":"Vendredi"},{"$f":"$D29","v":"2023-02-10"},null,25.2,null,"15:01:00",null,null,null,{"$f":"$C29","v":"Vendredi"},{"$f":"$D29","v":"2023-02-10"},null,0,null,"00:00:00",null,"00:00:00",null,"00:00:00",null,"00:00:00",null,"00:00:00",null,null,null,{"$f":"$C29","v":"Vendredi"},{"$f":"$D29","v":"2023-02-10"},null,"08:12:00",null,null,8,{"$f":"D29","v":"2023-02-10"},{"$f":"$C29","v":"Vendredi"}]
[]
[null,null,{"$f":"PROPER(TEXT(D31,\"JJJJ\"))","v":"Samedi"},{"$f":"$D29+1","v":"2023-02-11"},null,null,null,null,null,{"$f":"IF(OR(L29=\"\",L31=\"\"),\"\",IF(L31>L29,\"»\",IF(L31<L29,\"¼\",\"¹º\")))","v":"»"},null,-1.1000000000000001,null,0.35208333333333303,null,{"$f":"IF(OR(R29=\"\",R31=\"\"),\"\",IF(R31>R29,\"»\",IF(R31<R29,\"¼\",\"¹º\")))","v":"»"},null,12.5,null,0.62847222222222199,null,null,null,{"$f":"$C31","v":"Samedi"},{"$f":"$D31","v":"2023-02-11"},null,18.399999999999999,null,"12:26:00",null,null,null,{"$f":"$C31","v":"Samedi"},{"$f":"$D31","v":"2023-02-11"},null,0,null,"00:00:00",null,"00:00:00",null,"00:00:00",null,"00:00:00",null,"00:00:00",null,null,null,{"$f":"$C31","v":"Samedi"},{"$f":"$D31","v":"2023-02-11"},null,"09:11:00",null,null,9,{"$f":"D31","v":"2023-02-11"},{"$f":"$C31","v":"Samedi"}]
[]
[null,null,{"$f":"PROPER(TEXT(D33,\"JJJJ\"))","v":"Dimanche"},{"$f":"$D31+1","v":"2023-02-12"},null,null,null,null,null,{"$f":"IF(OR(L31=\"\",L33=\"\"),\"\",IF(L33>L31,\"»\",IF(L33<L31,\"¼\",\"¹º\")))","v":"»"},null,-0.9,null,0.33819444444444402,null,{"$f":"IF(OR(R31=\"\",R33=\"\"),\"\",IF(R33>R31,\"»\",IF(R33<R31,\"¼\",\"¹º\")))","v":"¼"},null,11.8,null,0.71041666666666703,null,null,null,{"$f":"$C33","v":"Dimanche"},{"$f":"$D33","v":"2023-02-12"},null,16.3,null,"12:06:00",null,null,null,{"$f":"$C33","v":"Dimanche"},{"$f":"$D33","v":"2023-02-12"},null,0,null,"00:00:00",null,"00:00:00",null,"00:00:00",null,"00:00:00",null,"00:00:00",null,null,null,{"$f":"$C33","v":"Dimanche"},{"$f":"$D33","v":"2023-02-12"},null,"08:34:00",null,null,10,{"$f":"D33","v":"2023-02-12"},{"$f":"$C33","v":"Dimanche"}]
[]
[null,null,{"$f":"PROPER(TEXT(D35,\"JJJJ\"))","v":"Lundi"},{"$f":"$D33+1","v":"2023-02-13"},null,null,null,null,null,{"$f":"IF(OR(L33=\"\",L35=\"\"),\"\",IF(L35>L33,\"»\",IF(L35<L33,\"¼\",\"¹º\")))","v":"¼"},null,-2.9,null,0.33055555555555599,null,{"$f":"IF(OR(R33=\"\",R35=\"\"),\"\",IF(R35>R33,\"»\",IF(R35<R33,\"¼\",\"¹º\")))","v":"»"},null,12.9,null,0.64236111111111105,null,null,null,{"$f":"$C35","v":"Lundi"},{"$f":"$D35","v":"2023-02-13"},null,16.600000000000001,null,"13:04:00",null,null,null,{"$f":"$C35","v":"Lundi"},{"$f":"$D35","v":"2023-02-13"},null,0,null,"00:00:00",null,"00:00:00",null,"00:00:00",null,"00:00:00",null,"00:00:00",null,null,null,{"$f":"$C35","v":"Lundi"},{"$f":"$D35","v":"2023-02-13"},null,"08:41:00",null,null,11,{"$f":"D35","v":"2023-02-13"},{"$f":"$C35","v":"Lundi"}]
[]
[null,null,{"$f":"PROPER(TEXT(D37,\"JJJJ\"))","v":"Mardi"},{"$f":"$D35+1","v":"2023-02-14"},null,null,null,null,null,{"$f":"IF(OR(L35=\"\",L37=\"\"),\"\",IF(L37>L35,\"»\",IF(L37<L35,\"¼\",\"¹º\")))","v":"¹º"},null,-2.9,null,0.33055555555555599,null,{"$f":"IF(OR(R35=\"\",R37=\"\"),\"\",IF(R37>R35,\"»\",IF(R37<R35,\"¼\",\"¹º\")))","v":"¹º"},null,12.9,null,0.64236111111111105,null,null,null,{"$f":"$C37","v":"Mardi"},{"$f":"$D37","v":"2023-02-14"},null,16.600000000000001,null,"13:04:00",null,null,null,{"$f":"$C37","v":"Mardi"},{"$f":"$D37","v":"2023-02-14"},null,0,null,"00:00:00",null,"00:00:00",null,"00:00:00",null,"00:00:00",null,"00:00:00",null,null,null,{"$f":"$C37","v":"Mardi"},{"$f":"$D37","v":"2023-02-14"},null,"08:41:00",null,null,12,{"$f":"D37","v":"2023-02-14"},{"$f":"$C37","v":"Mardi"}]
[]
[null,null,{"$f":"PROPER(TEXT(D39,\"JJJJ\"))","v":"Mercredi"},{"$f":"$D37+1","v":"2023-02-15"},null,null,null,null,null,{"$f":"IF(OR(L37=\"\",L39=\"\"),\"\",IF(L39>L37,\"»\",IF(L39<L37,\"¼\",\"¹º\")))","v":"»"},null,1.1000000000000001,null,0.36249999999999999,null,{"$f":"IF(OR(R37=\"\",R39=\"\"),\"\",IF(R39>R37,\"»\",IF(R39<R37,\"¼\",\"¹º\")))","v":"¼"},null,12.6,null,0.56944444444444398,null,null,null,{"$f":"$C39","v":"Mercredi"},{"$f":"$D39","v":"2023-02-15"},null,9.4,null,"10:30:00",null,null,null,{"$f":"$C39","v":"Mercredi"},{"$f":"$D39","v":"2023-02-15"},null,0,null,"00:00:00",null,"00:00:00",null,"00:00:00",null,"00:00:00",null,"00:00:00",null,null,null,{"$f":"$C39","v":"Mercredi"},{"$f":"$D39","v":"2023-02-15"},null,"06:59:00",null,null,13,{"$f":"D39","v":"2023-02-15"},{"$f":"$C39","v":"Mercredi"}]
[]
[null,null,{"$f":"PROPER(TEXT(D41,\"JJJJ\"))","v":"Jeudi"},{"$f":"$D39+1","v":"2023-02-16"},null,null,null,null,null,{"$f":"IF(OR(L39=\"\",L41=\"\"),\"\",IF(L41>L39,\"»\",IF(L41<L39,\"¼\",\"¹º\")))","v":"»"},null,4.3,null,0,null,{"$f":"IF(OR(R39=\"\",R41=\"\"),\"\",IF(R41>R39,\"»\",IF(R41<R39,\"¼\",\"¹º\")))","v":"»"},null,13.8,null,0.61319444444444404,null,null,null,{"$f":"$C41","v":"Jeudi"},{"$f":"$D41","v":"2023-02-16"},null,11.2,null,"15:03:00",null,null,null,{"$f":"$C41","v":"Jeudi"},{"$f":"$D41","v":"2023-02-16"},null,0,null,"00:00:00",null,"00:00:00",null,"00:00:00",null,"00:00:00",null,"00:00:00",null,null,null,{"$f":"$C41","v":"Jeudi"},{"$f":"$D41","v":"2023-02-16"},null,"04:02:00",null,null,14,{"$f":"D41","v":"2023-02-16"},{"$f":"$C41","v":"Jeudi"}]
[]
[null,null,{"$f":"PROPER(TEXT(D43,\"JJJJ\"))","v":"Vendredi"},{"$f":"$D41+1","v":"2023-02-17"},null,null,null,null,null,{"$f":"IF(OR(L41=\"\",L43=\"\"),\"\",IF(L43>L41,\"»\",IF(L43<L41,\"¼\",\"¹º\")))","v":"»"},null,9.8000000000000007,null,"00:33:00",null,{"$f":"IF(OR(R41=\"\",R43=\"\"),\"\",IF(R43>R41,\"»\",IF(R43<R41,\"¼\",\"¹º\")))","v":"¼"},null,12.1,null,"11:36:00",null,null,null,{"$f":"$C43","v":"Vendredi"},{"$f":"$D43","v":"2023-02-17"},null,13,null,"14:23:00",null,null,null,{"$f":"$C43","v":"Vendredi"},{"$f":"$D43","v":"2023-02-17"},null,1.2,null,"00:23:46",null,"03:39:00",null,"00:00:00",null,"00:00:00",null,"00:00:00",null,null,null,{"$f":"$C43","v":"Vendredi"},{"$f":"$D43","v":"2023-02-17"},null,"00:00:00",null,null,15,{"$f":"D43","v":"2023-02-17"},{"$f":"$C43","v":"Vendredi"}]
[]
[null,null,{"$f":"PROPER(TEXT(D45,\"JJJJ\"))","v":"Samedi"},{"$f":"$D43+1","v":"2023-02-18"},null,null,null,null,null,{"$f":"IF(OR(L43=\"\",L45=\"\"),\"\",IF(L45>L43,\"»\",IF(L45<L43,\"¼\",\"¹º\")))","v":"¼"},null,8.8000000000000007,null,"07:54:00",null,{"$f":"IF(OR(R43=\"\",R45=\"\"),\"\",IF(R45>R43,\"»\",IF(R45<R43,\"¼\",\"¹º\")))","v":"»"},null,13.6,null,"15:27:00",null,null,null,{"$f":"$C45","v":"Samedi"},{"$f":"$D45","v":"2023-02-18"},null,11.2,null,"21:24:00",null,null,null,{"$f":"$C45","v":"Samedi"},{"$f":"$D45","v":"2023-02-18"},null,0.3,null,"00:04:38.400",null,"00:00:00",null,"00:57:00",null,"00:00:00",null,"00:00:00",null,null,null,{"$f":"$C45","v":"Samedi"},{"$f":"$D45","v":"2023-02-18"},null,"07:09:00",null,null,16,{"$f":"D45","v":"2023-02-18"},{"$f":"$C45","v":"Samedi"}]
[]
[null,null,{"$f":"PROPER(TEXT(D47,\"JJJJ\"))","v":"Dimanche"},{"$f":"$D45+1","v":"2023-02-19"},null,null,null,null,null,{"$f":"IF(OR(L45=\"\",L47=\"\"),\"\",IF(L47>L45,\"»\",IF(L47<L45,\"¼\",\"¹º\")))","v":"¼"},null,4.3,null,"23:44:00",null,{"$f":"IF(OR(R45=\"\",R47=\"\"),\"\",IF(R47>R45,\"»\",IF(R47<R45,\"¼\",\"¹º\")))","v":"¼"},null,11.9,null,"15:18:00",null,null,null,{"$f":"$C47","v":"Dimanche"},{"$f":"$D47","v":"2023-02-19"},null,13.2,null,"17:12:00",null,null,null,{"$f":"$C47","v":"Dimanche"},{"$f":"$D47","v":"2023-02-19"},null,0,null,"00:00:00",null,"00:00:00",null,"00:00:00",null,"00:00:00",null,"00:00:00",null,null,null,{"$f":"$C47","v":"Dimanche"},{"$f":"$D47","v":"2023-02-19"},null,"05:27:00",null,null,17,{"$f":"D47","v":"2023-02-19"},{"$f":"$C47","v":"Dimanche"}]
[]
[null,null,{"$f":"PROPER(TEXT(D49,\"JJJJ\"))","v":"Lundi"},{"$f":"$D47+1","v":"2023-02-20"},null,null,null,null,null,{"$f":"IF(OR(L47=\"\",L49=\"\"),\"\",IF(L49>L47,\"»\",IF(L49<L47,\"¼\",\"¹º\")))","v":""},null,null,null,null,null,{"$f":"IF(OR(R47=\"\",R49=\"\"),\"\",IF(R49>R47,\"»\",IF(R49<R47,\"¼\",\"¹º\")))","v":""},null,null,null,null,null,null,null,{"$f":"$C49","v":"Lundi"},{"$f":"$D49","v":"2023-02-20"},null,null,null,null,null,null,null,{"$f":"$C49","v":"Lundi"},{"$f":"$D49","v":"2023-02-20"},null,null,null,null,null,null,null,null,null,null,null,null,null,null,null,{"$f":"$C49","v":"Lundi"},{"$f":"$D49","v":"2023-02-20"},null,null,null,null,18,{"$f":"D49","v":"2023-02-20"},{"$f":"$C49","v":"Lundi"}]
[]
[null,null,{"$f":"PROPER(TEXT(D51,\"JJJJ\"))","v":"Mardi"},{"$f":"$D49+1","v":"2023-02-21"},null,null,null,null,null,{"$f":"IF(OR(L49=\"\",L51=\"\"),\"\",IF(L51>L49,\"»\",IF(L51<L49,\"¼\",\"¹º\")))","v":""},null,null,null,null,null,{"$f":"IF(OR(R49=\"\",R51=\"\"),\"\",IF(R51>R49,\"»\",IF(R51<R49,\"¼\",\"¹º\")))","v":""},null,null,null,null,null,null,null,{"$f":"$C51","v":"Mardi"},{"$f":"$D51","v":"2023-02-21"},null,null,null,null,null,null,null,{"$f":"$C51","v":"Mardi"},{"$f":"$D51","v":"2023-02-21"},null,null,null,null,null,null,null,null,null,null,null,null,null,null,null,{"$f":"$C51","v":"Mardi"},{"$f":"$D51","v":"2023-02-21"},null,null,null,null,19,{"$f":"D51","v":"2023-02-21"},{"$f":"$C51","v":"Mardi"}]
[]
[null,null,{"$f":"PROPER(TEXT(D53,\"JJJJ\"))","v":"Mercredi"},{"$f":"$D51+1","v":"2023-02-22"},null,null,null,null,null,{"$f":"IF(OR(L51=\"\",L53=\"\"),\"\",IF(L53>L51,\"»\",IF(L53<L51,\"¼\",\"¹º\")))","v":""},null,null,null,null,null,{"$f":"IF(OR(R51=\"\",R53=\"\"),\"\",IF(R53>R51,\"»\",IF(R53<R51,\"¼\",\"¹º\")))","v":""},null,null,null,null,null,null,null,{"$f":"$C53","v":"Mercredi"},{"$f":"$D53","v":"2023-02-22"},null,null,null,null,null,null,null,{"$f":"$C53","v":"Mercredi"},{"$f":"$D53","v":"2023-02-22"},null,null,null,null,null,null,null,null,null,null,null,null,null,null,null,{"$f":"$C53","v":"Mercredi"},{"$f":"$D53","v":"2023-02-22"},null,null,null,null,20,{"$f":"D53","v":"2023-02-22"},{"$f":"$C53","v":"Mercredi"}]
[]
[null,null,{"$f":"PROPER(TEXT(D55,\"JJJJ\"))","v":"Jeudi"},{"$f":"$D53+1","v":"2023-02-23"},null,null,null,null,null,{"$f":"IF(OR(L53=\"\",L55=\"\"),\"\",IF(L55>L53,\"»\",IF(L55<L53,\"¼\",\"¹º\")))","v":""},null,null,null,null,null,{"$f":"IF(OR(R53=\"\",R55=\"\"),\"\",IF(R55>R53,\"»\",IF(R55<R53,\"¼\",\"¹º\")))","v":""},null,null,null,null,null,null,null,{"$f":"$C55","v":"Jeudi"},{"$f":"$D55","v":"2023-02-23"},null,null,null,null,null,null,null,{"$f":"$C55","v":"Jeudi"},{"$f":"$D55","v":"2023-02-23"},null,null,null,null,null,null,null,null,null,null,null,null,null,null,null,{"$f":"$C55","v":"Jeudi"},{"$f":"$D55","v":"2023-02-23"},null,null,null,null,21,{"$f":"D55","v":"2023-02-23"},{"$f":"$C55","v":"Jeudi"}]
[]
[null,null,{"$f":"PROPER(TEXT(D57,\"JJJJ\"))","v":"Vendredi"},{"$f":"$D55+1","v":"2023-02-24"},null,null,null,null,null,{"$f":"IF(OR(L55=\"\",L57=\"\"),\"\",IF(L57>L55,\"»\",IF(L57<L55,\"¼\",\"¹º\")))","v":""},null,null,null,null,null,{"$f":"IF(OR(N55=\"\",N57=\"\"),\"\",IF(N57>N55,\"»\",IF(N57<N55,\"¼\",\"¹º\")))","v":""},null,null,null,null,null,null,null,{"$f":"$C57","v":"Vendredi"},{"$f":"$D57","v":"2023-02-24"},null,null,null,null,null,null,null,{"$f":"$C57","v":"Vendredi"},{"$f":"$D57","v":"2023-02-24"},null,null,null,null,null,null,null,null,null,null,null,null,null,null,null,{"$f":"$C57","v":"Vendredi"},{"$f":"$D57","v":"2023-02-24"},null,null,null,null,22,{"$f":"D57","v":"2023-02-24"},{"$f":"$C57","v":"Vendredi"}]
[]
[null,null,{"$f":"PROPER(TEXT(D59,\"JJJJ\"))","v":"Samedi"},{"$f":"$D57+1","v":"2023-02-25"},null,null,null,null,null,{"$f":"IF(OR(L57=\"\",L59=\"\"),\"\",IF(L59>L57,\"»\",IF(L59<L57,\"¼\",\"¹º\")))","v":""},null,null,null,null,null,{"$f":"IF(OR(N57=\"\",N59=\"\"),\"\",IF(N59>N57,\"»\",IF(N59<N57,\"¼\",\"¹º\")))","v":""},null,null,null,null,null,null,null,{"$f":"$C59","v":"Samedi"},{"$f":"$D59","v":"2023-02-25"},null,null,null,null,null,null,null,{"$f":"$C59","v":"Samedi"},{"$f":"$D59","v":"2023-02-25"},null,null,null,null,null,null,null,null,null,null,null,null,null,null,null,{"$f":"$C59","v":"Samedi"},{"$f":"$D59","v":"2023-02-25"},null,null,null,null,23,{"$f":"D59","v":"2023-02-25"},{"$f":"$C59","v":"Samedi"}]
[]
[null,null,{"$f":"PROPER(TEXT(D61,\"JJJJ\"))","v":"Dimanche"},{"$f":"$D59+1","v":"2023-02-26"},null,null,null,null,null,{"$f":"IF(OR(L59=\"\",L61=\"\"),\"\",IF(L61>L59,\"»\",IF(L61<L59,\"¼\",\"¹º\")))","v":""},null,null,null,null,null,{"$f":"IF(OR(N59=\"\",N61=\"\"),\"\",IF(N61>N59,\"»\",IF(N61<N59,\"¼\",\"¹º\")))","v":""},null,null,null,null,null,null,null,{"$f":"$C61","v":"Dimanche"},{"$f":"$D61","v":"2023-02-26"},null,null,null,null,null,null,null,{"$f":"$C61","v":"Dimanche"},{"$f":"$D61","v":"2023-02-26"},null,null,null,null,null,null,null,null,null,null,null,null,null,null,null,{"$f":"$C61","v":"Dimanche"},{"$f":"$D61","v":"2023-02-26"},null,null,null,null,24,{"$f":"D61","v":"2023-02-26"},{"$f":"$C61","v":"Dimanche"}]
[]
[null,null,{"$f":"PROPER(TEXT(D63,\"JJJJ\"))","v":"Lundi"},{"$f":"$D61+1","v":"2023-02-27"},null,null,null,null,null,{"$f":"IF(OR(L61=\"\",L63=\"\"),\"\",IF(L63>L61,\"»\",IF(L63<L61,\"¼\",\"¹º\")))","v":""},null,null,null,null,null,{"$f":"IF(OR(N61=\"\",N63=\"\"),\"\",IF(N63>N61,\"»\",IF(N63<N61,\"¼\",\"¹º\")))","v":""},null,null,null,null,null,null,null,{"$f":"$C63","v":"Lundi"},{"$f":"$D63","v":"2023-02-27"},null,null,null,null,null,null,null,{"$f":"$C63","v":"Lundi"},{"$f":"$D63","v":"2023-02-27"},null,null,null,null,null,null,null,null,null,null,null,null,null,null,null,{"$f":"$C63","v":"Lundi"},{"$f":"$D63","v":"2023-02-27"},null,null,null,null,22,{"$f":"D63","v":"2023-02-27"},{"$f":"$C63","v":"Lundi"}]
[]
[null,null,{"$f":"PROPER(TEXT(D65,\"JJJJ\"))","v":"Mardi"},{"$f":"$D63+1","v":"2023-02-28"},null,null,null,null,null,{"$f":"IF(OR(L63=\"\",L65=\"\"),\"\",IF(L65>L63,\"»\",IF(L65<L63,\"¼\",\"¹º\")))","v":""},null,null,null,null,null,{"$f":"IF(OR(N63=\"\",N65=\"\"),\"\",IF(N65>N63,\"»\",IF(N65<N63,\"¼\",\"¹º\")))","v":""},null,null,null,null,null,null,null,{"$f":"$C65","v":"Mardi"},{"$f":"$D65","v":"2023-02-28"},null,null,null,null,null,null,null,{"$f":"$C65","v":"Mardi"},{"$f":"$D65","v":"2023-02-28"},null,null,null,null,null,null,null,null,null,null,null,null,null,null,null,{"$f":"$C65","v":"Mardi"},{"$f":"$D65","v":"2023-02-28"},null,null,null,null,23,{"$f":"D65","v":"2023-02-28"},{"$f":"$C65","v":"Mardi"}]
[]
[null,null,null,null,null,null,null,null,null,null,null,null,null,null,null,11.9]
[]
[null,null,null,null,null,22.3,null,0.55138888888888904]
[]
[null,null,null,null,null,17.399999999999999,null,0.66180555555555598,null,null,null,null,null,null,null,null,null,null,null,null,null,null,null,null,null,null,null,null,null,null,null,null,null,null,null,null,null,null,null,null,null,null,null,null,null,null,null,null,null,null,null,null,null,null,null,null,null,null,null,null,"J7",null,"N7",null,"X9",null,"AG5",null,"AX5"]
[]
[null,null,null,null,null,19.8,null,0.73402777777777795,null,null,null,null,null,null,null,null,null,null,null,null,null,null,null,null,null,null,null,null,null,null,null,null,null,null,null,null,null,null,null,null,null,null,null,null,null,null,null,null,null,null,null,null,null,null,null,null,null,null,null,null,null,null,null,null,null,null,{"$f":"SUM(BO77:BO96)","v":112.2},null,{"$f":"SUM(BQ78:BQ96)","v":4.7416666666666663}]
[]
[null,null,null,null,null,16.399999999999999,null,0.59652777777777799,null,null,null,null,null,null,null,null,null,null,null,null,null,null,null,null,null,null,null,null,null,null,null,null,null,null,null,null,null,null,null,null,null,null,null,null,null,null,null,null,null,null,null,null,null,null,null,null,null,null,null,"T° Mini",{"$f":"MIN(BI77:BI96)","v":-3.4},"T° Maxi",{"$f":"MAX(BK77:BK96)","v":15},"Vent",{"$f":"MAX(BM77:BM96)","v":51.5},"Pluie",{"$f":"MAX(BO77:BO99)","v":110.7},"Soleil",{"$f":"MAX(BQ78:BQ99)","v":4.7416666666666663}]
[]
[null,null,null,null,null,17.100000000000001,null,0.63819444444477402,null,null,null,null,null,"Web cam",null,null,null,null,null,null,null,null,null,null,null,null,null,null,null,null,null,null,null,null,null,null,null,null,null,null,null,null,null,null,null,null,null,null,null,null,null,null,null,null,null,null,null,null,null,"Janvier",-3.2,{"$f":"BH77","v":"Janvier"},15,{"$f":"BH77","v":"Janvier"},51.5,{"$f":"BH77","v":"Janvier"},110.7,{"$f":"BH77","v":"Janvier"},4.5166666666666666]
[null,null,"https://pv.viewsurf.com/2094/La-Tranche-sur-mer-Embarcadere?i=NzYxMDp1bmRlZmluZWQ",null,null,null,null,null,null,null,null,null,null,null,null,null,null,null,null,null,null,null,null,null,null,null,null,null,null,null,null,null,null,null,null,null,null,null,null,null,null,null,null,null,null,null,null,null,null,null,null,null,null,null,null,null,null,null,null,"Février",{"$f":"$L$7","v":-3.4},{"$f":"BH78","v":"Février"},{"$f":"$R$7","v":13.8},{"$f":"BH78","v":"Février"},{"$f":"$AA$9","v":38.200000000000003},{"$f":"BH78","v":"Février"},{"$f":"$AJ$1","v":1.5},{"$f":"BH78","v":"Février"},{"$f":"$BA$5","v":4.7416666666666663}]
[null,null,null,null,null,18.3,null,0.55486111111111103,null,null,null,null,null,null,null,null,null,null,null,null,null,null,null,null,null,null,null,null,null,null,null,null,null,null,null,null,null,null,null,null,null,null,null,null,null,null,null,null,null,null,null,null,null,null,null,null,null,null,null,"Mars",null,{"$f":"BH79","v":"Mars"},null,{"$f":"BH79","v":"Mars"},null,{"$f":"BH79","v":"Mars"},null,{"$f":"BH79","v":"Mars"}]
[null,null,"https://pv.viewsurf.com/2010/La-Tranche-sur-mer-Plage-de-la-Terriere?i=NzM2NDp1bmRlZmluZWQ",null,null,null,null,null,null,null,null,null,null,null,null,null,null,null,null,null,null,null,null,null,null,null,null,null,null,null,null,null,null,null,null,null,null,null,null,null,null,null,null,null,null,null,null,null,null,null,null,null,null,null,null,null,null,null,null,"Avril",null,"Avril",null,"Avril",null,"Avril",null,"Avril"]
[null,null,null,null,null,17.5,null,0.19166666666666701,null,null,null,null,null,null,null,null,null,null,null,null,null,null,null,null,null,null,null,null,null,null,null,null,null,null,null,null,null,null,null,null,null,null,null,null,null,null,null,null,null,null,null,null,null,null,null,null,null,null,null,"Mai",null,{"$f":"BH81","v":"Mai"},null,{"$f":"BH81","v":"Mai"},null,{"$f":"BH81","v":"Mai"},null,{"$f":"BH81","v":"Mai"}]
[null,null,null,null,null,null,null,null,null,null,null,null,null,null,null,null,null,null,null,null,null,null,null,null,null,null,null,null,null,null,null,null,null,null,null,null,null,null,null,null,null,null,null,null,null,null,null,null,null,null,null,null,null,null,null,null,null,null,null,"Juin",null,{"$f":"BH82","v":"Juin"},null,{"$f":"BH82","v":"Juin"},null,{"$f":"BH82","v":"Juin"},null,{"$f":"BH82","v":"Juin"}]
[null,null,null,null,null,16.8,null,0.60069444444444398,null,null,null,null,null,null,null,null,null,null,null,null,null,null,null,null,null,null,null,null,null,null,null,null,null,null,null,null,null,null,null,null,null,null,null,null,null,null,null,null,null,null,null,null,null,null,null,null,null,null,null,"Juillet",null,"Juillet",null,"Juillet",null,"Juillet",null,"Juillet"]
[null,null,null,null,null,null,null,null,null,null,null,null,null,null,null,null,null,null,null,null,null,null,null,null,null,null,null,null,null,null,null,null,null,null,null,null,null,null,null,null,null,null,null,null,null,null,null,null,null,null,null,null,null,null,null,null,null,null,null,"Aout",null,"Aout",null,"Aout",null,"Aout",null,"Aout"]
[null,null,null,null,null,15.9,null,0.54930555555555605,null,null,null,null,null,null,null,null,null,null,null,null,null,null,null,null,null,null,null,null,null,null,null,null,null,null,null,null,null,null,null,null,null,null,null,null,null,null,null,null,null,null,null,null,null,null,null,null,null,null,null,"Septembre",null,{"$f":"BH85","v":"Septembre"},null,{"$f":"BH85","v":"Septembre"},null,{"$f":"BH85","v":"Septembre"},null,{"$f":"BH85","v":"Septembre"}]
[null,null,null,null,null,null,null,null,null,null,null,null,null,null,null,null,null,null,null,null,null,null,null,null,null,null,null,null,null,null,null,null,null,null,null,null,null,null,null,null,null,null,null,null,null,null,null,null,null,null,null,null,null,null,null,null,null,null,null,"Octobre",null,{"$f":"BH86","v":"Octobre"},null,{"$f":"BH86","v":"Octobre"},null,{"$f":"BH86","v":"Octobre"},null,{"$f":"BH86","v":"Octobre"}]
[null,null,null,null,null,16.5,null,0.64791666666666703,null,null,null,null,null,null,null,null,null,null,null,null,null,null,null,null,null,null,null,null,null,null,null,null,null,null,null,null,null,null,null,null,null,null,null,null,null,null,null,null,null,null,null,null,null,null,null,null,null,null,null,"Novembre",null,{"$f":"BH87","v":"Novembre"},null,{"$f":"BH87","v":"Novembre"},null,{"$f":"BH87","v":"Novembre"},null,{"$f":"BH87","v":"Novembre"}]
[null,null,null,null,null,null,null,null,null,null,null,null,null,null,null,null,null,null,null,null,null,null,null,null,null,null,null,null,null,null,null,null,null,null,null,null,null,null,null,null,null,null,null,null,null,null,null,null,null,null,null,null,null,null,null,null,null,null,null,"Novembre",null,{"$f":"BH88","v":"Novembre"},null,{"$f":"BH88","v":"Novembre"},null,{"$f":"BH88","v":"Novembre"},null,{"$f":"BH88","v":"Novembre"}]
[null,null,null,null,null,16.5,null,0.64791666666666703]
[]
[null,null,null,null,null,18.5,null,0.69027777777777799]
[]
[null,null,null,null,null,17.7,null,0.60069444444444398]
[]
[null,null,null,null,null,16.2,null,0.31874999999999998]
[]
[null,null,null,null,null,16.2,null,0.31874999999999998]
[]
[null,null,null,null,null,17.7,null,0.57222222222222197]
[]
[null,null,null,null,null,16.7,null,0.77708333333333302]
[]
[null,null,null,null,null,15.7,null,0.51249999999999996]
[]
[null,null,null,null,null,14.5,null,0.59583333333333299]
[]
[null,null,null,null,null,12.2,null,0.625694444444444]
[]
[null,null,null,null,null,14.1,null,0.56805555555555598]
[]
[null,null,null,null,null,15.2,null,0.47361111111111098]
[]
[null,null,null,null,null,13.7,null,0.52222222222222203]
[]
[null,null,null,null,null,15,null,0.55416666666666703]
[]
[null,null,null,null,null,15.2,null,0.52638888888888902]
[]
[null,null,null,null,null,14.8,null,0.58611111111111103]
[]
[null,null,null,null,null,12.8,null,0.54236111111111096]
[]
[null,null,null,null,null,13.3,null,0.76805555555555605]
[]
[null,null,null,null,null,13.4,null,0.499305555555556]
[]
[null,null,null,null,null,13.3,null,0.55833333333333302]
[]
[null,null,null,null,null,9.1999999999999993,null,0.63541666666666696]
[]
[null,null,null,null,null,6.7,null,0.54861111111111105]
[]
[null,null,null,null,null,6.4,null,0.63541666666666696]
[]
[null,null,null,null,null,5.0999999999999996,null,0.65208333333333302]
[]
[null,null,null,null,null,0,null,{"$error":"#N/A"}]
[]
[null,null,null,null,null,6.7,null,0.58541666666666703]
[]
[null,null,null,null,null,6.7,null,0.58541666666666703]
[]
[null,null,null,null,null,6.7,null,0.58541666666666703]
[]
[null,null,null,null,null,8.1999999999999993,null,0.63194444444444398]
[]
[null,null,null,null,null,5.8,null,0.58055555555555605]
[]
[null,null,null,null,null,7.5,null,0.5625]
[]
[null,null,null,null,null,3.8,null,0.61736111111111103]
[]
[null,null,null,null,null,4.9000000000000004,null,{"$error":"#N/A"}]
[]
[null,null,null,null,null,4.8,null,0.63819444444444495]
[]
[null,null,null,null,null,4.2,null,0.58263888888888904]
[]
[null,null,null,null,null,3,null,0.69374999999999998]
[]
[null,null,null,null,null,5.5,null,0.99097222222222203]
[]
[null,null,null,null,null,13.4,null,0.63402777777777797]
[]
[null,null,null,null,null,4.8,null,0.54236111111111096]
[]
[null,null,null,null,null,5.7,null,0.60902777777777795]
[]
[null,null,null,null,null,2.4,null,0.62777777777777799]
[]
[null,null,null,null,null,9.3000000000000007,null,0.77569444444444402]
[]
[null,null,null,null,null,11.7,null,0.72152777777777799]
[]
[null,null,null,null,null,12.5,null,0.67361111111111105]
[]
[null,null,null,null,null,12.6,null,0.58125000000000004]
[]
[null,null,null,null,null,13.1,null,0.73472222222222205]
[]
[null,null,null,null,null,13.3,null,0.35763888888888901]
[]
[null,null,null,null,null,11.6,null,0.73472222222222205]
[]
[null,null,null,null,null,13.5,null,0.62916666666666698]
[]
[null,null,null,null,null,12,null,0.63194444444444398]
[]
[null,null,null,null,null,12,null,0.63194444444444398]
[]
[null,null,null,null,null,10.8,null,0.98958333333333304]
[]
[null,null,null,null,null,12.7,null,0.70902777777777803]
[]
[null,null,null,null,null,12.7,null,0.70902777777777803]
[]
[null,null,null,null,null,11.9,null,3.125E-2]
[]
[null,null,null,null,null,14.4,null,0.89791666666666703]
[]
[null,null,null,null,null,14.9,null,0.89166666666666705]
[]
[null,null,null,null,null,15,null,0.68055555555555602]
[]
[null,null,null,null,null,6.2,null,0.60555555555555596]
[]
[null,null,null,null,null,1.8,null,0.53333333333333299]
[]
[null,null,null,null,null,3.7,null,0.62013888888888902]
[]
[null,null,null,null,null,3.7,null,0.58333333333333304]
[]
[null,null,null,null,null,3.5,null,0.64375000000000004]
[]
[null,null,null,null,null,7.1,null,0.70416666666666705]
[]
[null,null,null,null,null,6.8,null,0.61666666666666703]
[]
[null,null,null,null,null,7,null,{"$error":"#N/A"}]
[]
[null,null,null,null,null,5.3,null,{"$error":"#N/A"}]
[]
[null,null,null,null,null,8.3000000000000007,null,0.99375000000000002]
[]
[null,null,null,null,null,10.5,null,0.59166666666666701]
[]
[null,null,null,null,null,11,null,0.53958333333333297]
[]
[null,null,null,null,null,9.6999999999999993,null,0.66666666666666696]
[]
[null,null,null,null,null,10.3,null,0.61180555555555605]
[]
[null,null,null,null,null,12.5,null,0.60277777777777797]
[]
[null,null,null,null,null,8.9,null,0.65486111111111101]
[]
[null,null,null,null,null,7.7,null,0.62361111111111101]
[]
[null,null,null,null,null,10.7,null,0.61944444444444402]
[]
[null,null,null,null,null,8.4,null,0.62916666666666698]
[]
[null,null,null,null,null,10.8,null,0.64027777777777795]
[]
[null,null,null,null,null,12.5,null,0.62847222222222199]
[]
[null,null,null,null,null,11.8,null,0.71041666666666703]
[]
[null,null,null,null,null,12.9,null,0.64236111111111105]
[]
[null,null,null,null,null,12.9,null,0.64236111111111105]
[]
[null,null,null,null,null,12.6,null,0.56944444444444398]
[]
[null,null,null,null,null,13.8,null,0.61319444444444404]
[]
[null,null,null,null,null,12.1,null,0.483333333333333]
[]
[null,null,null,null,null,12.1,null,0.483333333333333]
[]
[null,null,null,null,null,13.6,null,0.64375000000000004]

{"sheet":"MINI-MAXI","index":2,"n_rows":21,"n_cols":9,"rows_kept":21,"cut":false,"hidden":false,"merged":[[5,10,5,11],[20,3,20,5],[15,0,15,1],[16,0,16,1],[1,5,1,8]]}
[{"$f":"Février_2023!C5","v":"Février_2023"}]
[null,null,null,null,null,{"$f":"NOW()","v":"2023-02-20T13:42:13.900"}]
[null,null,null,"Pluie Maxi Jour et total mois",null,null,"Températures Mini et Maxi",null,{"$f":"I1-940","v":-940}]
[null,null,null,null,null,"Vent maxi",null,null,3]
[null,null,null,null,null,null,null,null,{"$f":"I2-I3-I4","v":937}]
["Jour","Mois",null,"__200    "]
[null,null,null,"__180    ",{"$f":"INDIRECT($A$1&\"!$W9\")","v":"00:00:00"},null,null,null,{"$f":"Février_2023!L7","v":-3.4}]
[null,null,null,"__160    ",132,null,null,null,145]
[{"$f":"INDIRECT($A$1&\"!$AG5\")","v":"Mise à jour"},null,null,"__140    ",{"$f":"INDIRECT($A$1&\"!$X$9\")","v":"Vitesse du vent"},null,null,null,{"$f":"I7-940","v":-943.4}]
[200,200,null,"__120    ",2,null,null,null,3]
[{"$f":"100*(1-(A9/A10))","v":{"$error":"#VALUE!"}},{"$f":"100*(1-(B9/B10))","v":100},null,"__100    ",{"$f":"E8-E9-E10","v":{"$error":"#VALUE!"}},null,null,null,{"$f":"I8-I9-I10","v":1085.4000000000001}]
[{"$f":"20*A11/100","v":{"$error":"#VALUE!"}},{"$f":"20*B11/100","v":20},null,"__80   ",null,"Soleil maxi"]
[17,28,null,"__60   "]
[{"$f":"(A10/100)*(1+(2*A10/100))/2","v":5},{"$f":"(B10/100)*(1+(2*B10/100))/2","v":5},null,"__40   ",null,null,null,null,"22:00:00"]
[null,null,null,"_20 ",null,null,null,null,"00:00:00"]
[{"$f":"INDIRECT($A1&\"!$AG9\")","v":112.2},null,null,null,null,null,null,null,{"$f":"Février_2023!$BA$9","v":"09:11:00"}]
[{"$f":"INDIRECT($A$1&\"!$AG9\")","v":112.2},null,null,null,null,null,null,null,{"$f":"I14-I16","v":"12:49:00"}]
[]
[]
[]
[null,null,null,null,null,null,{"$f":"Février_2023!N7","v":"2023-02-09"},{"$f":"Février_2023!T7","v":"2023-02-16"}]

{"sheet":"MOIS","index":3,"n_rows":59,"n_cols":7,"rows_kept":59,"cut":false,"hidden":false,"merged":[[47,2,47,4],[20,1,20,4],[43,4,43,5],[44,4,44,5]]}
[{"$f":"Février_2023!C5","v":"Février_2023"}]
[]
[null,"Jours de pluie + de 2mm",null,null,"Jours de soleil + de 4h"]
[]
[]
[]
[]
[]
[31,null,null,31,null,31]
[0,null,null,0,null,0]
[{"$f":"C51","v":0},null,null,{"$f":"C50","v":0},null,{"$f":"C58","v":{"$error":"#REF!"}}]
[{"$f":"A9-A10-A11","v":31},null,null,{"$f":"D9-D10-D11","v":31},null,{"$f":"F9-F10-F11","v":{"$error":"#REF!"}}]
[]
[]
[]
[]
[]
[]
[]
[]
[null,{"$f":"NOW()","v":"2023-02-20T13:42:13.900"}]
[]
[null,"Heures de pluie",null,null,"Heures de soleil"]
[]
[]
[]
[]
[]
[2.5,null,null,22.083333333333332]
["00:00:00",null,null,"00:00:00",null,22.083333333333332]
[{"$f":"B48","v":1.9726851851852269E-2},null,null,{"$f":"C48","v":4.7416666666666663},null,"00:00:00"]
[{"$f":"A29-A31","v":2.4802731481481479},null,null,{"$f":"D29-D31","v":17.341666666666665},null,{"$f":"C56","v":{"$error":"#REF!"}}]
[null,null,null,null,null,{"$f":"F30-F32","v":{"$error":"#REF!"}}]
[]
[]
[]
[]
[]
[]
[]
[]
[]
[]
[null,null,null,null,"Vent fort au-dessus de"]
[null,null,null,null,"50km/h"]
[null,"Heures Pluie","H de soleil"]
[]
["Total",{"$f":"Février_2023!AL5","v":1.9726851851852269E-2},{"$f":"Février_2023!BA5","v":4.7416666666666663}]
[null,"Jours de pluie"]
["Soleil",null,{"$f":"COUNTIF(INDIRECT($A$1&\"!$AX11:$AX71\"),\">4:00\")","v":0}]
["Pluie",null,{"$f":"COUNTIF(INDIRECT($A$1&\"!$Ai11:$Ai71\"),\">4:00\")","v":0},null,null,null,31]
[null,null,null,null,null,null,0]
["Nb",null,null,null,null,null,{"$f":"C59","v":{"$error":"#REF!"}}]
[null,null,null,null,null,null,{"$f":"G51-G52-G53","v":{"$error":"#REF!"}}]
["Vent"]
["Nb d'heures  < 1.1 km/h",null,{"$f":"Février_2023!#REF!","v":{"$error":"#REF!"}}]
["Nb de jours plus petit que 20km/h",null,{"$f":"SUM(#REF!)","v":{"$error":"#REF!"}}]
["Nb de jours entre 20 et 50 km/h",null,{"$f":"SUM(#REF!)","v":{"$error":"#REF!"}}]
["Nb de jours plus grand que 50km/h",null,{"$f":"SUM(#REF!)","v":{"$error":"#REF!"}}]

{"sheet":"CONSOLE","index":4,"n_rows":37,"n_cols":9,"rows_kept":37,"cut":false,"hidden":false,"merged":[]}
[null,"https://marine.meteoconsult.fr/meteo-marine/horaires-maree-la-tranche-sur-mer-1083-0.php"]
[null,null,null,"Conditions",null,"Ensoleillé"]
[null,"*Les relevés correspondent à l'heure de la mise à jour*"]
[null,"                        Températures                          Humidité de l'air                                                                           Vitesse du vent                  Chaleur solaire = T°+2° ",null,null,null,"Marée Haute",0.19999999999999998,"Manuel"]
[null,null,null,null,null,"Marée basse",0.44791666666666669,"\""]
[null,null,null,null,null,"Coéfficient",100,"\""]
[]
[null,null,null,null,null,"Marée Haute",0.72013888888888899,"Manuel"]
[null,null,null,null,null,"Marée basse",0.96319444444444446,"\""]
[null,null,null,null,null,"Coéfficient",105,"\""]
[]
[null,null,null,null,null,"T° de l'eau",8,"Manuel"]
[null,"Petite Pluie"]
[null,"         Température ressentie :                                                                                                                                                levé et couché du soleil :",null,null,null,null,"Soleil"]
[null,"                                                                           Dernière mise à jour :                                                                                           Vent en rafale :",null,null,null,"Heures soleil",{"$f":"G17-G16","v":"10:37:00"}]
[null,"                                                                                                                                                                                                                   Vent moyen :",null,null,null,"Levé","08:01:00","Manuel"]
[null,"                               Pôle culturel des Floralies                                                                        Statistiques                                                    ",null,null,null,"Couché","18:38:00","\""]
[]
[null,null,null,null,null,"T° extérieure",{"$f":"INDIRECT(\"RELEVÉS!B\" & COUNT(RELEVÉS!B:B) + 6,TRUE)","v":12.2},"Auto"]
[null,null,null,null,null,"Vent console",{"$f":"RELEVÉS!E7","v":8.6},"\""]
[null,null,null,null,null,"Soleil",{"$f":"RELEVÉS!AV3","v":0.1986111111111111},"\""]
[null,null,null,null,null,"Vent rafale",{"$f":"RELEVÉS!N5","v":13.1},"\""]
[]
[null,null,null,null,null,"H% du sol",0.28999999999999998,"Manuel"]
[]
[null,null,null,null,null,"Vent moyen",{"$f":"RELEVÉS!U5+5","v":6.4039263803680981},"Auto"]
[null,null,null,null,null,"Humidité",{"$f":"100-H27","v":23},{"$f":"INDIRECT(\"RELEVÉS!C\" & COUNT(RELEVÉS!C:C) + 6,TRUE)","v":77},"Autto"]
[null,null,null,null,null,"T° ressentie",{"$f":"INDIRECT(\"RELEVÉS!D\" & COUNT(RELEVÉS!D:D) + 6,TRUE)","v":12.2},"Auto"]
[null,"                       Haute            Matinée            Basse                        de l'eau                       Haute         Après-midi        Basse                                      Humidité du sol à 20cm de la surface",null,null,null,"Site","http://meteofloralies.free.fr"]
[]
[]
[]
[]
[null,{"$f":"NOW()","v":"2023-02-20T13:42:13.900"}]
[null,null,"Météo + Température de l'eau------>",null,null,null,18]
[null,null,null,null,"Site","http://meteofloralies.free.fr"]
[null,null,"Prévisions",null,null,"https://www.lachainemeteo.com/meteo-france/previsions-meteo-france-aujourdhui"]

{"sheet":"GRAPHIQUES","index":5,"n_rows":25,"n_cols":9,"rows_kept":25,"cut":false,"hidden":false,"merged":[]}
[null,null,"                Dernière mise à jour le :",null,null,{"$f":"NOW()","v":"2023-02-20T13:42:13.900"}]
[null,null,null,null,null," ","²",null,"Température Mini et Maxi extérieure"]
[null,null,"Température extérieure"]
[null,null,null,null,null,"²"]
[null,null,"  Précipitations                                   Humidité Mini …          à                        Maxi …             à",null,null,null,null,null,"Précipitations"]
[]
[]
[]
[null,null,"Vitesse du vent de la journée"]
[null,null,null,null,null,null,null,null,"Vitesse du vent"]
[null,null,"Vitesse du vent"]
[]
[]
[]
[]
[null,null,null,null,null,null,null,null,"Nombre d'heures de soleil"]
[]
[null,null,"Chaleur solaire"]
[]
[]
[]
[]
[]
[]
[null,null,"Luminosité"]